Workbook

Sheet 目次
B2: 自治体排出量カルテ 目次 | E2: =年度マスタ!J4 -> 石川県
B4: 項目 | C4: 表示形式 | D4: 対象年度 | E4: 具体内容
B5: 自治体排出量カルテ① CO2排出量の現状把握
B6: ○地方公共団体の部門・分野別CO2排出量（標準的手法）
B7: 1）部門・分野別CO2排出量構成比 平成17年度（2005年度） | C7: 円グラフ | D7: 2005年度 | E7: ・標準的手法に基づくCO2排出量推計データの部門・分野別排出量を集計
B8: 2）部門・分野別CO2排出量構成比 平成25年度（2013年度） | C8: 円グラフ | D8: 2013年度 | E8: ・標準的手法に基づくCO2排出量推計データの部門・分野別排出量を集計
B9: 3）部門・分野別CO2排出量構成比 令和4年度（2022年度） | C9: 円グラフ | D9: 2022年度 | E9: ・標準的手法に基づくCO2排出量推計データの部門・分野別排出量を集計
B10: 4）部門・分野別CO2排出量の推移 | C10: 積上げ縦棒グラフ | D10: 2009～2022年度 | E10: ・2009年度以降の部門・分野別CO2排出量の推移
B11: 5）部門・分野別CO2排出量構成比の比較（都道府県平均及び全国平均） | C11: 100％積上げ横棒グラフ | D11: 2022年度 | E11: ・地方公共団体と該当都道府県平均、全国平均の部門・分野別のCO2排出量構成比の比較
B13: 自治体排出量カルテ② 活動量の現状把握
B14: ○地方公共団体の活動量
B15: 1）部門・分野別指標の推移（廃棄物分野のみCO2排出量の推移） | C15: 折れ線グラフ・縦棒グラフ | D15: 2009～2022年度 | E15: ・標準的手法の部門・分野別の活動量の推移
B17: 自治体排出量カルテ③ 特定事業所の温室効果ガス排出量の現状把握
B18: 1 地方公共団体の特定事業所排出量
B19: 1）特定事業所の部門別排出量（令和3年度） | C19: 円グラフ | D19: 2021年度 | E19: ・特定事業所の部門別排出量構成比
B20: 2）特定事業所の部門別排出量の推移 | C20: 積上げ縦棒グラフ | D20: 2011~2021年度 | E20: ・2011年度以降の特定事業所の部門別排出量の推移
B21: 3）特定事業所のガス種別排出量（令和3年度） | C21: 円グラフ | D21: 2021年度 | E21: ・特定事業所のガス種別排出量構成比
B22: 4）特定事業所のガス種別排出量の推移 | C22: 積上げ縦棒グラフ | D22: 2011~2021年度 | E22: ・2011年度以降の特定事業所のガス種別排出量の推移
B23: 5）業種別の特定事業所の事業所数及び排出量（令和3年度） | C23: 横棒グラフ | D23: 2021年度 | E23: ・特定事業所の業種別事業所数及び排出量
B24: 2 地方公共団体の区域のCO2排出量との比較
B25: 6）区域のCO2排出量の推移及び特定事業所排出量のカバー率の推移 | C25: 積上げ縦棒・折れ線グラフ | D25: 2011~2021年度 | E25: ・区域の産業部門・業務その他部門の排出量の推移と特定事業所排出量が占める割合（カバー率）の推移
B26: 3 全国の1事業所当たりの排出傾向との比較
B27: 7）1事業所当たりの排出傾向（全国平均値との比較）（令和3年度） | C27: 横棒グラフ | D27: 2021年度 | E27: ・特定事業所1事業所当たりの排出量の全国平均との比較
B29: 自治体排出量カルテ④ 地方公共団体の再生可能エネルギー導入状況及び導入ポテンシャルの現状把握
B30: 1 地方公共団体のFIT・FIP制度による再生可能エネルギー（電気）
B31: 1）区域の再生可能エネルギーの導入設備容量（令和5年度） | C31: 円グラフ | D31: 2023年度 | E31: ・FIT・FIP公表情報の再生可能エネルギーの設備別の導入状況（導入設備容量）
B32: 2）区域の再生可能エネルギーによる発電電力量（令和5年度） | C32: 円グラフ | D32: 2023年度 | E32: ・FIT・FIP公表情報の再生可能エネルギーの設備別の導入状況（発電電力量）
B33: 3）区域の再生可能エネルギーの導入設備容量の推移（累積） | C33: 積上げ縦棒・折れ線グラフ | D33: 2015～2023年度 | E33: ・FIT・FIP公表情報の再生可能エネルギーの設備別導入設備容量の推移と区域の電気使用量に対するFIT・FIP太陽光導入比の推移
B34: 4）区域の太陽光発電（10kW未満）設備の導入件数の推移（累積） | C34: 縦棒グラフ | D34: 2015～2023年度 | E34: ・FIT・FIP公表情報の太陽光（10kW未満）の導入件数の推移
B35: 2 地方公共団体の再生可能エネルギーの導入ポテンシャル
B36: 5）導入ポテンシャル（電気のみ・設備容量） | C36: 円グラフ | D36: 2024年11月末時点 | E36: ・REPOSの再エネ導入ポテンシャル（電気のみ・設備容量）
B37: 6）導入ポテンシャル（発電電力量・利用可能熱量） | C37: 円グラフ | D37: 2024年11月末時点 | E37: ・REPOSの再エネ導入ポテンシャル（発電電力量・利用可能熱量）
B38: 3 区域のエネルギー消費量及び再生可能エネルギー導入ポテンシャル・導入量の比較（電気）
B39: 7）区域内のエネルギー消費量に対する再エネ導入ポテンシャル（電気） | C39: 縦棒グラフ | D39: 2023年度 | E39: ・区域の電気使用量に対する再エネ導入量、再エネ導入ポテンシャルの比較 ※区域の電気使用量は2022年度で代用
B40: 8）区域内の再エネ導入ポテンシャルと再エネ導入量（電気） | C40: 縦棒グラフ | D40: 2023年度 | E40: ・再エネ種別の再エネ導入ポテンシャルに対する再エネ導入量の比較
B42: ※人口が同程度の他の地方公共団体との排出量の比較シート、他の地方公共団体との再エネ導入量や再エネポテンシャルの比較シート、特定事業所集計表シートも付録しています。
B43: 自治体排出量カルテ 他の地方公共団体との比較（部門・分野別排出量）
B44: 1 部門・分野別排出量の比較（標準的手法）（令和3年度（2021年度）)
B45: 1）部門・分野別CO2排出量の比較 | C45: 積上げ横棒グラフ | D45: 2021年度 | E45: ・標準的手法に基づく区域の部門・分野別CO₂排出量を人口が同程度の28市区町村（都道府県の場合は47都道府県）と比較
B46: 2）部門・分野別CO2排出量構成比の比較 | C46: 100％積上げ横棒グラフ | D46: 2021年度 | E46: ・標準的手法に基づく区域の部門・分野別CO₂排出量構成比を人口が同程度の28市区町村（都道府県の場合は47都道府県）と比較
B47: 2 区域の排出量に占める特定事業所排出量比率の比較（令和3年度（2021年度）)
B48: 3）産業部門 | C48: 横棒グラフ | D48: 2021年度 | E48: ・標準的手法に基づく区域の産業部門排出量に対し特定事業所排出量が占める割合（カバー率）を人口が同程度の28市区町村（都道府県の場合は47都道府県）と比較
B49: 4）業務その他部門 | C49: 横棒グラフ | D49: 2021年度 | E49: ・標準的手法に基づく区域の業務その他部門排出量に対し特定事業所排出量が占める割合（カバー率）を人口が同程度の28市区町村（都道府県の場合は47都道府県）と比較
B50: 3 特定事業所排出量の比較（令和3年度（2021年度）)
B51: 5）特定事業所排出量の比較 | C51: 積上げ横棒グラフ | D51: 2021年度 | E51: ・特定事業所排出量を人口が同程度の28市区町村（都道府県の場合は47都道府県）と比較
B52: 6）特定事業所数の比較 | C52: 積上げ横棒グラフ | D52: 2021年度 | E52: ・特定事業所数を人口が同程度の28市区町村（都道府県の場合は47都道府県）と比較
B53: 7）特定事業所排出量の部門別構成比の比較 | C53: 100％積上げ横棒グラフ | D53: 2021年度 | E53: ・特定事業所排出量の部門別構成比を人口が同程度の28市区町村（都道府県の場合は47都道府県）と比較
B55: 自治体排出量カルテ 他の地方公共団体との比較（再エネ導入量・再エネポテンシャル）
B56: 1 再エネ導入量の比較（令和5年度（2023年度））
B57: 1）他の地方公共団体との再エネ別導入設備容量の比較 | C57: 積上げ横棒グラフ | D57: 2023年度 | E57: ・再エネ別導入設備容量を人口が同程度の28市区町村（都道府県の場合は47都道府県）と比較
B58: 2）他の地方公共団体との再エネ別発電電力量の比較 | C58: 積上げ横棒グラフ | D58: 2023年度 | E58: ・再エネ別発電電力量を人口が同程度の28市区町村（都道府県の場合は47都道府県）と比較
B59: 3）他の地方公共団体との対電気使用量FIT・FIP導入比の比較 | C59: 積上げ横棒グラフ | D59: 2023年度 | E59: ・対電気使用量FIT・FIP導入比を人口が同程度の28市区町村（都道府県の場合は47都道府県）と比較 ※区域の電気使用量は2022年度で代用
B60: 4）対世帯数FIT・FIP太陽光発電（10kW未満）導入比の比較 | C60: 横棒グラフ | D60: 2023年度 | E60: ・対世帯数FIT・FIP太陽光発電（10kW未満）導入比を人口が同程度の28市区町村（都道府県の場合は47都道府県）と比較 ※世帯数は2022年度で代用
B61: 2 再エネ導入ポテンシャルの比較
B62: 5）同一都道府県内における他の地方公共団体の再エネポテンシャル（発電電力量）の比較 | C62: 積上げ横棒グラフ | D62: 2024年11月末時点 | E62: ・他の地方公共団体の再エネポテンシャル（発電電力量）を同一都道府県内で比較
B63: 6）同一都道府県内における他の地方公共団体の電気使用量の比較 | C63: 横棒グラフ | D63: 2024年11月末時点 | E63: ・他の地方公共団体の電気使用量を同一都道府県内で比較（※2022年度で代用）
B64: 7）同一都道府県内の他の地方公共団体の再エネ不足量・余剰量の比較 | C64: 横棒グラフ | D64: 2024年11月末時点 | E64: ・他の地方公共団体の再エネ不足量・余剰量を同一都道府県内で比較 ※区域の電気使用量は2022年度で代用
B66: 特定事業所集計表シート
B67: 特定事業所集計表
B68: 特定事業所集計表 | C68: 表 | D68: 2011～2021年度 | E68: ・特定事業所の事業所数と排出量の集計表（日本標準産業分類別）

Sheet ①CO2排出量の現状把握
B1: 自治体排出量カルテ① CO2排出量の現状把握 | AK1: =年度マスタ!J4 -> 石川県 | AW1: グラフ用 | AY1: 1）～3） | AZ1: ※最新年度のグラフ名： | BB1: ="3）排出量の部門・分野別構成比 "&年度マスタ!K5&"（"&年度マスタ!J5&"年度）" -> 3）排出量の部門・分野別構成比 令和4年度（2022年度）
B3: ○地方公共団体の部門・分野別CO2排出量（標準的手法） | AZ3: 平成17年度 | BC3: 平成25年度 | BF3: =年度マスタ!K5 -> 令和4年度
C4: 1）部門・分野別CO2排出量構成比 平成17年度（2005年度） | T4: 4）部門・分野別CO2排出量の推移 | BA4: ［千t-CO2］
AY5: 産業部門 | BA5: =SUM(AZ6:AZ8) -> 2,260 | BD5: =SUM(BC6:BC8) -> 2,293 | BG5: =AK35 -> 1,923
K6: 部門・分野 | O6: 平成17年度 | P6: 構成比 | T6: [千t-CO2] | AX6: 製造業 | AY6: 製造業 | AZ6: =O11 -> 1,803 | BC6: =O32 -> 1,918 | BF6: =AK36 -> 1,598
O7: 排出量 | AX7: 建設業・鉱業 | AY7: 建設業・鉱業 | AZ7: =O12 -> 122 | BC7: =O33 -> 94 | BF7: =AK37 -> 81
O8: ［千t-CO2］ | AX8: 農林水産業 | AY8: 農林水産業 | AZ8: =O13 -> 335 | BC8: =O34 -> 281 | BF8: 243
K9: 合 計 | O9: =O10+O14+O15+O16+O22 -> 8457.446465 | P9: =P10+P14+P15+P16+P22 -> 100% | AX9: 業務その他部門 | AY9: 業務その他部門 | AZ9: =O14 -> 1,766 | BA9: =AZ9 -> 1,766 | BC9: =O35 -> 2,705 | BD9: =BC9 -> 2,705 | BF9: =AK39 -> 1,804 | BG9: =AK39 -> 1,804
L10: 産業部門 | O10: =SUM(O11:O13) -> 2260.294581 | P10: =O10/$O$9 -> 27% | AX10: 家庭部門 | AY10: 家庭部門 | AZ10: =O15 -> 1,877 | BA10: =AZ10 -> 1,877 | BC10: =O36 -> 2,626 | BD10: =BC10 -> 2,626 | BF10: =AK40 -> 1,974 | BG10: =AK40 -> 1,974
M11: 製造業 | O11: =VLOOKUP(年度マスタ!$K$4&"_"&O$6,データシート1!$A:$BT,MATCH("aa_"&$M11,データシート1!$A$1:$BT$1,0),0) -> 1802.780139 | P11: 21% | AX11: 運輸 | AY11: 運輸部門 | BA11: =SUM(AZ12:AZ14) -> 2,439 | BD11: =SUM(BC12:BC14) -> 2,237 | BG11: =AK41 -> 1,882
M12: 建設業・鉱業 | O12: =VLOOKUP(年度マスタ!$K$4&"_"&O$6,データシート1!$A:$BT,MATCH("aa_"&$M12,データシート1!$A$1:$BT$1,0),0) -> 122.1239094 | P12: 1% | AX12: 自動車 | AY12: 自動車 | AZ12: =O17 -> 2,344 | BC12: =O38 -> 2,123 | BF12: =AK42 -> 1,796
M13: 農林水産業 | O13: =VLOOKUP(年度マスタ!$K$4&"_"&O$6,データシート1!$A:$BT,MATCH("aa_"&$M13,データシート1!$A$1:$BT$1,0),0) -> 335.3905326 | P13: 4% | AX13: 鉄道 | AY13: 鉄道 | AZ13: =O20 -> 69 | BC13: =O41 -> 90 | BF13: =AK45 -> 66
L14: 業務その他部門 | O14: =VLOOKUP(年度マスタ!$K$4&"_"&O$6,データシート1!$A:$BT,MATCH("aa_"&$L14,データシート1!$A$1:$BT$1,0),0) -> 1765.585125 | P14: 21% | AX14: 船舶 | AY14: 船舶 | AZ14: =O21 -> 26 | BC14: =O42 -> 24 | BF14: =AK46 -> 20
L15: 家庭部門 | O15: =VLOOKUP(年度マスタ!$K$4&"_"&O$6,データシート1!$A:$BT,MATCH("aa_"&$L15,データシート1!$A$1:$BT$1,0),0) -> 1877.269527 | P15: 22% | AX15: 廃棄物 | AY15: 廃棄物分野（一般廃棄物） | AZ15: =O22 -> 115 | BA15: =AZ15 -> 115 | BC15: =O43 -> 132 | BD15: =BC15 -> 132 | BF15: =AK47 -> 127 | BG15: =AK47 -> 127
L16: 運輸部門 | O16: =SUM(O18:O21) -> 2438.875145 | P16: 29%
M17: 自動車 | O17: =SUM(O18:O19) -> 2343.957748 | P17: 28%
N18: 旅客 | O18: =VLOOKUP(年度マスタ!$K$4&"_"&O$6,データシート1!$A:$BT,MATCH("aa_"&$N18,データシート1!$A$1:$BT$1,0),0) -> 1401.938213 | P18: 17%
N19: 貨物 | O19: =VLOOKUP(年度マスタ!$K$4&"_"&O$6,データシート1!$A:$BT,MATCH("aa_"&$N19,データシート1!$A$1:$BT$1,0),0) -> 942.019535 | P19: 11% | AX19: 4）
M20: 鉄道 | O20: =VLOOKUP(年度マスタ!$K$4&"_"&O$6,データシート1!$A:$BT,MATCH("aa_"&$M20,データシート1!$A$1:$BT$1,0),0) -> 68.99491005 | P20: 1% | AY20: 2009年度 | AZ20: 2010年度 | BA20: 2011年度 | BB20: 2012年度 | BC20: 2013年度 | BD20: 2014年度 | BE20: 2015年度 | BF20: 2016年度 | BG20: 2017年度 | BH20: 2018年度 | BI20: 2019年度 | BJ20: 2020年度 | BK20: 2021年度 | BL20: 2022年度
M21: 船舶 | O21: =VLOOKUP(年度マスタ!$K$4&"_"&O$6,データシート1!$A:$BT,MATCH("aa_"&$M21,データシート1!$A$1:$BT$1,0),0) -> 25.92248656 | P21: 0% | AY21: 平成21年度 | AZ21: 平成22年度 | BA21: 平成23年度 | BB21: 平成24年度 | BC21: 平成25年度 | BD21: 平成26年度 | BE21: 平成27年度 | BF21: 平成28年度 | BG21: 平成29年度 | BH21: 平成30年度 | BI21: 令和元年度 | BJ21: 令和2年度 | BK21: 令和3年度 | BL21: 令和4年度
L22: 廃棄物分野（一般廃棄物） | O22: =VLOOKUP(年度マスタ!$K$4&"_"&O$6,データシート1!$A:$BT,MATCH("aa_"&$L22,データシート1!$A$1:$BT$1,0),0) -> 115.422087 | P22: 1% | AX22: 産業部門 | AY22: =X35 -> 1,836 | AZ22: 1,980 | BA22: 2,387 | BB22: 2,327 | BC22: 2,293 | BD22: 2,158 | BE22: 2,478 | BF22: 2,462 | BG22: 2,306 | BH22: 2,244 | BI22: 2,019 | BJ22: 2,016 | BK22: 2,457 | BL22: 1,923
Q23: ※表中の構成比は、四捨五入の関係で合計が100％にならない場合があります。 | AX23: 業務その他部門 | AY23: =X39 -> 1,787 | AZ23: =Y39 -> 1,962 | BA23: 2,660 | BB23: 2,666 | BC23: 2,705 | BD23: 2,560 | BE23: 2,494 | BF23: 2,346 | BG23: 2,067 | BH23: 1,970 | BI23: 1,845 | BJ23: 1,693 | BK23: 1,785 | BL23: 1,804
AX24: 家庭部門 | AY24: =X40 -> 1,627 | AZ24: =Y40 -> 2,034 | BA24: 2,840 | BB24: 3,022 | BC24: 2,626 | BD24: 2,568 | BE24: 2,531 | BF24: 2,390 | BG24: 2,523 | BH24: 2,166 | BI24: 1,868 | BJ24: 1,761 | BK24: 1,868 | BL24: 1,974
C25: 2）部門・分野別CO2排出量構成比 平成25年度（2013年度） | AX25: 運輸部門 | AY25: =X41 -> 2,300 | AZ25: =Y41 -> 2,311 | BA25: 2,274 | BB25: 2,278 | BC25: 2,237 | BD25: 2,173 | BE25: 2,167 | BF25: 2,151 | BG25: 2,128 | BH25: 2,099 | BI25: 2,047 | BJ25: 1,847 | BK25: 1,834 | BL25: 1,882
AX26: 廃棄物分野（一般廃棄物） | AY26: =X47 -> 116 | AZ26: 124 | BA26: 107 | BB26: 131 | BC26: 132 | BD26: 131 | BE26: 131 | BF26: 127 | BG26: 130 | BH26: 124 | BI26: 140 | BJ26: 124 | BK26: 134 | BL26: 127
K27: 部門・分野 | O27: 平成25年度 | P27: 構成比 | AX27: 合計 | AY27: =X34 -> 7,665 | AZ27: 8,412 | BA27: 10,268 | BB27: 10,423 | BC27: 9,993 | BD27: 9,590 | BE27: 9,802 | BF27: 9,476 | BG27: 9,155 | BH27: 8,604 | BI27: 7,919 | BJ27: 7,441 | BK27: 8,077 | BL27: 7,708
O28: 排出量
O29: ［千t-CO2］ | AX29: 5）
K30: 合 計 | O30: =O31+O35+O36+O37+O43 -> 9992.963362 | P30: =P31+P35+P36+P37+P43 -> 100% | AY30: データ（排出量）
L31: 産業部門 | O31: =SUM(O32:O34) -> 2293.215812 | P31: =O31/$O$30 -> 23% | AK31: ［千t-CO2］ | AY31: aa
M32: 製造業 | O32: =VLOOKUP(年度マスタ!$K$4&"_"&O$27,データシート1!$A:$BT,MATCH("aa_"&$M32,データシート1!$A$1:$BT$1,0),0) -> 1918.071331 | P32: 19% | T32: 部門・分野 | X32: 部門・分野別CO2排出量 | AY32: A.現況推計データ
M33: 建設業・鉱業 | O33: =VLOOKUP(年度マスタ!$K$4&"_"&O$27,データシート1!$A:$BT,MATCH("aa_"&$M33,データシート1!$A$1:$BT$1,0),0) -> 93.83818875 | P33: 1% | X33: 平成21年度 | Y33: 平成22年度 | Z33: 平成23年度 | AA33: 平成24年度 | AB33: 平成25年度 | AC33: 平成26年度 | AD33: 平成27年度 | AE33: 平成28年度 | AF33: 平成29年度 | AG33: 平成30年度 | AH33: 令和元年度 | AI33: 令和2年度 | AJ33: 令和3年度 | AK33: 令和4年度 | AY33: =VLOOKUP(AY$32,年度マスタ!$I$5:$K$9,2,0) -> 2022
M34: 農林水産業 | O34: =VLOOKUP(年度マスタ!$K$4&"_"&O$27,データシート1!$A:$BT,MATCH("aa_"&$M34,データシート1!$A$1:$BT$1,0),0) -> 281.3062924 | P34: 3% | T34: 合 計 | X34: =X35+X39+X40+X41+X47 -> 7665.499848 | Y34: =Y35+Y39+Y40+Y41+Y47 -> 8411.761446 | Z34: 10267.64262 | AA34: 10422.94678 | AB34: 9992.963362 | AC34: 9589.5165 | AD34: 9801.96797 | AE34: 9475.983218 | AF34: 9155.22103 | AG34: 8603.57152 | AH34: 7918.925243 | AI34: 7441.413398 | AJ34: 8076.918279 | AK34: 7708.391551 | AY34: =VLOOKUP(AY$32,年度マスタ!$I$5:$K$9,3,0) -> 令和4年度
L35: 業務その他部門 | O35: =VLOOKUP(年度マスタ!$K$4&"_"&O$27,データシート1!$A:$BT,MATCH("aa_"&$L35,データシート1!$A$1:$BT$1,0),0) -> 2704.536037 | P35: 27% | U35: 産業部門 | X35: =SUM(X36:X38) -> 1835.561755 | Y35: =SUM(Y36:Y38) -> 1979.928152 | Z35: 2386.700602 | AA35: 2326.695945 | AB35: 2293.215812 | AC35: 2157.628099 | AD35: 2478.306478 | AE35: 2462.108459 | AF35: 2306.230837 | AG35: 2243.792935 | AH35: 2019.213585 | AI35: 2015.664502 | AJ35: 2456.507129 | AK35: 1922.736773
L36: 家庭部門 | O36: =VLOOKUP(年度マスタ!$K$4&"_"&O$27,データシート1!$A:$BT,MATCH("aa_"&$L36,データシート1!$A$1:$BT$1,0),0) -> 2625.783471 | P36: 26% | S36: 製造業 | V36: 製造業 | X36: =VLOOKUP(年度マスタ!$K$4&"_"&X$33,データシート1!$A:$BT,MATCH("aa_"&$S36,データシート1!$A$1:$BT$1,0),0) -> 1454.750773 | Y36: =VLOOKUP(年度マスタ!$K$4&"_"&Y$33,データシート1!$A:$BT,MATCH("aa_"&$S36,データシート1!$A$1:$BT$1,0),0) -> 1618.47606 | Z36: =VLOOKUP(年度マスタ!$K$4&"_"&Z$33,データシート1!$A:$BT,MATCH("aa_"&$S36,データシート1!$A$1:$BT$1,0),0) -> 1930.7853 | AA36: =VLOOKUP(年度マスタ!$K$4&"_"&AA$33,データシート1!$A:$BT,MATCH("aa_"&$S36,データシート1!$A$1:$BT$1,0),0) -> 1895.713769 | AB36: =VLOOKUP(年度マスタ!$K$4&"_"&AB$33,データシート1!$A:$BT,MATCH("aa_"&$S36,データシート1!$A$1:$BT$1,0),0) -> 1918.071331 | AC36: =VLOOKUP(年度マスタ!$K$4&"_"&AC$33,データシート1!$A:$BT,MATCH("aa_"&$S36,データシート1!$A$1:$BT$1,0),0) -> 1812.912451 | AD36: =VLOOKUP(年度マスタ!$K$4&"_"&AD$33,データシート1!$A:$BT,MATCH("aa_"&$S36,データシート1!$A$1:$BT$1,0),0) -> 2113.119873 | AE36: =VLOOKUP(年度マスタ!$K$4&"_"&AE$33,データシート1!$A:$BT,MATCH("aa_"&$S36,データシート1!$A$1:$BT$1,0),0) -> 2082.57344 | AF36: =VLOOKUP(年度マスタ!$K$4&"_"&AF$33,データシート1!$A:$BT,MATCH("aa_"&$S36,データシート1!$A$1:$BT$1,0),0) -> 1942.096017 | AG36: =VLOOKUP(年度マスタ!$K$4&"_"&AG$33,データシート1!$A:$BT,MATCH("aa_"&$S36,データシート1!$A$1:$BT$1,0),0) -> 1908.903978 | AH36: =VLOOKUP(年度マスタ!$K$4&"_"&AH$33,データシート1!$A:$BT,MATCH("aa_"&$S36,データシート1!$A$1:$BT$1,0),0) -> 1690.629371 | AI36: =VLOOKUP(年度マスタ!$K$4&"_"&AI$33,データシート1!$A:$BT,MATCH("aa_"&$S36,データシート1!$A$1:$BT$1,0),0) -> 1624.024867 | AJ36: =VLOOKUP(年度マスタ!$K$4&"_"&AJ$33,データシート1!$A:$BT,MATCH("aa_"&$S36,データシート1!$A$1:$BT$1,0),0) -> 2064.147 | AK36: =VLOOKUP(年度マスタ!$K$4&"_"&AK$33,データシート1!$A:$BT,MATCH("aa_"&$S36,データシート1!$A$1:$BT$1,0),0) -> 1598.08607 | AX36: 列名 | AY36: 製造業 | AZ36: 建設業・鉱業 | BA36: 農林水産業 | BB36: 業務その他部門 | BC36: 家庭部門 | BD36: 旅客 | BE36: 貨物 | BF36: 鉄道 | BG36: 船舶 | BH36: 廃棄物分野（一般廃棄物）
L37: 運輸部門 | O37: =SUM(O39:O42) -> 2237.139288 | P37: 22% | S37: 建設業・鉱業 | V37: 建設業・鉱業 | X37: =VLOOKUP(年度マスタ!$K$4&"_"&X$33,データシート1!$A:$BT,MATCH("aa_"&$S37,データシート1!$A$1:$BT$1,0),0) -> 80.90770534 | Y37: =VLOOKUP(年度マスタ!$K$4&"_"&Y$33,データシート1!$A:$BT,MATCH("aa_"&$S37,データシート1!$A$1:$BT$1,0),0) -> 91.89040799 | Z37: =VLOOKUP(年度マスタ!$K$4&"_"&Z$33,データシート1!$A:$BT,MATCH("aa_"&$S37,データシート1!$A$1:$BT$1,0),0) -> 134.4251651 | AA37: =VLOOKUP(年度マスタ!$K$4&"_"&AA$33,データシート1!$A:$BT,MATCH("aa_"&$S37,データシート1!$A$1:$BT$1,0),0) -> 121.7325164 | AB37: =VLOOKUP(年度マスタ!$K$4&"_"&AB$33,データシート1!$A:$BT,MATCH("aa_"&$S37,データシート1!$A$1:$BT$1,0),0) -> 93.83818875 | AC37: =VLOOKUP(年度マスタ!$K$4&"_"&AC$33,データシート1!$A:$BT,MATCH("aa_"&$S37,データシート1!$A$1:$BT$1,0),0) -> 95.61424666 | AD37: =VLOOKUP(年度マスタ!$K$4&"_"&AD$33,データシート1!$A:$BT,MATCH("aa_"&$S37,データシート1!$A$1:$BT$1,0),0) -> 95.37036247 | AE37: =VLOOKUP(年度マスタ!$K$4&"_"&AE$33,データシート1!$A:$BT,MATCH("aa_"&$S37,データシート1!$A$1:$BT$1,0),0) -> 95.59997268 | AF37: =VLOOKUP(年度マスタ!$K$4&"_"&AF$33,データシート1!$A:$BT,MATCH("aa_"&$S37,データシート1!$A$1:$BT$1,0),0) -> 91.88368868 | AG37: =VLOOKUP(年度マスタ!$K$4&"_"&AG$33,データシート1!$A:$BT,MATCH("aa_"&$S37,データシート1!$A$1:$BT$1,0),0) -> 83.87679246 | AH37: =VLOOKUP(年度マスタ!$K$4&"_"&AH$33,データシート1!$A:$BT,MATCH("aa_"&$S37,データシート1!$A$1:$BT$1,0),0) -> 75.71244166 | AI37: =VLOOKUP(年度マスタ!$K$4&"_"&AI$33,データシート1!$A:$BT,MATCH("aa_"&$S37,データシート1!$A$1:$BT$1,0),0) -> 80.09916744 | AJ37: =VLOOKUP(年度マスタ!$K$4&"_"&AJ$33,データシート1!$A:$BT,MATCH("aa_"&$S37,データシート1!$A$1:$BT$1,0),0) -> 84.90731178 | AK37: =VLOOKUP(年度マスタ!$K$4&"_"&AK$33,データシート1!$A:$BT,MATCH("aa_"&$S37,データシート1!$A$1:$BT$1,0),0) -> 81.46375462 | AW37: 00 | AX37: 都道府県範囲(全国) | AY37: =VLOOKUP($AW37&"_"&$AY$34,データシート1!$A:$BT,MATCH($AY$31&"_"&AY$36,データシート1!$A$1:$BT$1,0),0) -> 374767.4341 | AZ37: =VLOOKUP($AW37&"_"&$AY$34,データシート1!$A:$BT,MATCH($AY$31&"_"&AZ$36,データシート1!$A$1:$BT$1,0),0) -> 8264.063512 | BA37: =VLOOKUP($AW37&"_"&$AY$34,データシート1!$A:$BT,MATCH($AY$31&"_"&BA$36,データシート1!$A$1:$BT$1,0),0) -> 15348.15635 | BB37: =VLOOKUP($AW37&"_"&$AY$34,データシート1!$A:$BT,MATCH($AY$31&"_"&BB$36,データシート1!$A$1:$BT$1,0),0) -> 181031.2943 | BC37: =VLOOKUP($AW37&"_"&$AY$34,データシート1!$A:$BT,MATCH($AY$31&"_"&BC$36,データシート1!$A$1:$BT$1,0),0) -> 170770.0373 | BD37: =VLOOKUP($AW37&"_"&$AY$34,データシート1!$A:$BT,MATCH($AY$31&"_"&BD$36,データシート1!$A$1:$BT$1,0),0) -> 91550.79553 | BE37: =VLOOKUP($AW37&"_"&$AY$34,データシート1!$A:$BT,MATCH($AY$31&"_"&BE$36,データシート1!$A$1:$BT$1,0),0) -> 72904.23852 | BF37: =VLOOKUP($AW37&"_"&$AY$34,データシート1!$A:$BT,MATCH($AY$31&"_"&BF$36,データシート1!$A$1:$BT$1,0),0) -> 7383.271797 | BG37: =VLOOKUP($AW37&"_"&$AY$34,データシート1!$A:$BT,MATCH($AY$31&"_"&BG$36,データシート1!$A$1:$BT$1,0),0) -> 10210.94777 | BH37: =VLOOKUP($AW37&"_"&$AY$34,データシート1!$A:$BT,MATCH($AY$31&"_"&BH$36,データシート1!$A$1:$BT$1,0),0) -> 14652.39616
M38: 自動車 | O38: =SUM(O39:O40) -> 2123.340759 | P38: 21% | S38: 農林水産業 | V38: 農林水産業 | X38: =VLOOKUP(年度マスタ!$K$4&"_"&X$33,データシート1!$A:$BT,MATCH("aa_"&$S38,データシート1!$A$1:$BT$1,0),0) -> 299.9032772 | Y38: =VLOOKUP(年度マスタ!$K$4&"_"&Y$33,データシート1!$A:$BT,MATCH("aa_"&$S38,データシート1!$A$1:$BT$1,0),0) -> 269.5616836 | Z38: =VLOOKUP(年度マスタ!$K$4&"_"&Z$33,データシート1!$A:$BT,MATCH("aa_"&$S38,データシート1!$A$1:$BT$1,0),0) -> 321.4901368 | AA38: =VLOOKUP(年度マスタ!$K$4&"_"&AA$33,データシート1!$A:$BT,MATCH("aa_"&$S38,データシート1!$A$1:$BT$1,0),0) -> 309.2496596 | AB38: =VLOOKUP(年度マスタ!$K$4&"_"&AB$33,データシート1!$A:$BT,MATCH("aa_"&$S38,データシート1!$A$1:$BT$1,0),0) -> 281.3062924 | AC38: =VLOOKUP(年度マスタ!$K$4&"_"&AC$33,データシート1!$A:$BT,MATCH("aa_"&$S38,データシート1!$A$1:$BT$1,0),0) -> 249.1014011 | AD38: =VLOOKUP(年度マスタ!$K$4&"_"&AD$33,データシート1!$A:$BT,MATCH("aa_"&$S38,データシート1!$A$1:$BT$1,0),0) -> 269.8162427 | AE38: =VLOOKUP(年度マスタ!$K$4&"_"&AE$33,データシート1!$A:$BT,MATCH("aa_"&$S38,データシート1!$A$1:$BT$1,0),0) -> 283.9350468 | AF38: =VLOOKUP(年度マスタ!$K$4&"_"&AF$33,データシート1!$A:$BT,MATCH("aa_"&$S38,データシート1!$A$1:$BT$1,0),0) -> 272.2511319 | AG38: =VLOOKUP(年度マスタ!$K$4&"_"&AG$33,データシート1!$A:$BT,MATCH("aa_"&$S38,データシート1!$A$1:$BT$1,0),0) -> 251.0121642 | AH38: =VLOOKUP(年度マスタ!$K$4&"_"&AH$33,データシート1!$A:$BT,MATCH("aa_"&$S38,データシート1!$A$1:$BT$1,0),0) -> 252.8717718 | AI38: =VLOOKUP(年度マスタ!$K$4&"_"&AI$33,データシート1!$A:$BT,MATCH("aa_"&$S38,データシート1!$A$1:$BT$1,0),0) -> 311.5404672 | AJ38: =VLOOKUP(年度マスタ!$K$4&"_"&AJ$33,データシート1!$A:$BT,MATCH("aa_"&$S38,データシート1!$A$1:$BT$1,0),0) -> 307.4528178 | AK38: =VLOOKUP(年度マスタ!$K$4&"_"&AK$33,データシート1!$A:$BT,MATCH("aa_"&$S38,データシート1!$A$1:$BT$1,0),0) -> 243.1869483 | AW38: =年度マスタ!H4 -> 17 | AX38: 都道府県範囲（都道府県） | AY38: =VLOOKUP($AW38&"_"&$AY$34,データシート1!$A:$BT,MATCH($AY$31&"_"&AY$36,データシート1!$A$1:$BT$1,0),0) -> 1598.08607 | AZ38: =VLOOKUP($AW38&"_"&$AY$34,データシート1!$A:$BT,MATCH($AY$31&"_"&AZ$36,データシート1!$A$1:$BT$1,0),0) -> 81.46375462 | BA38: =VLOOKUP($AW38&"_"&$AY$34,データシート1!$A:$BT,MATCH($AY$31&"_"&BA$36,データシート1!$A$1:$BT$1,0),0) -> 243.1869483 | BB38: =VLOOKUP($AW38&"_"&$AY$34,データシート1!$A:$BT,MATCH($AY$31&"_"&BB$36,データシート1!$A$1:$BT$1,0),0) -> 1803.598476 | BC38: =VLOOKUP($AW38&"_"&$AY$34,データシート1!$A:$BT,MATCH($AY$31&"_"&BC$36,データシート1!$A$1:$BT$1,0),0) -> 1973.914322 | BD38: =VLOOKUP($AW38&"_"&$AY$34,データシート1!$A:$BT,MATCH($AY$31&"_"&BD$36,データシート1!$A$1:$BT$1,0),0) -> 1066.07797 | BE38: =VLOOKUP($AW38&"_"&$AY$34,データシート1!$A:$BT,MATCH($AY$31&"_"&BE$36,データシート1!$A$1:$BT$1,0),0) -> 729.493158 | BF38: =VLOOKUP($AW38&"_"&$AY$34,データシート1!$A:$BT,MATCH($AY$31&"_"&BF$36,データシート1!$A$1:$BT$1,0),0) -> 65.77545164 | BG38: =VLOOKUP($AW38&"_"&$AY$34,データシート1!$A:$BT,MATCH($AY$31&"_"&BG$36,データシート1!$A$1:$BT$1,0),0) -> 20.25375027 | BH38: =VLOOKUP($AW38&"_"&$AY$34,データシート1!$A:$BT,MATCH($AY$31&"_"&BH$36,データシート1!$A$1:$BT$1,0),0) -> 126.5416512
N39: 旅客 | O39: =VLOOKUP(年度マスタ!$K$4&"_"&O$27,データシート1!$A:$BT,MATCH("aa_"&$N39,データシート1!$A$1:$BT$1,0),0) -> 1302.882207 | P39: 13% | S39: 業務その他部門 | U39: 業務その他部門 | X39: =VLOOKUP(年度マスタ!$K$4&"_"&X$33,データシート1!$A:$BT,MATCH("aa_"&$S39,データシート1!$A$1:$BT$1,0),0) -> 1786.667472 | Y39: =VLOOKUP(年度マスタ!$K$4&"_"&Y$33,データシート1!$A:$BT,MATCH("aa_"&$S39,データシート1!$A$1:$BT$1,0),0) -> 1962.046775 | Z39: =VLOOKUP(年度マスタ!$K$4&"_"&Z$33,データシート1!$A:$BT,MATCH("aa_"&$S39,データシート1!$A$1:$BT$1,0),0) -> 2659.907978 | AA39: =VLOOKUP(年度マスタ!$K$4&"_"&AA$33,データシート1!$A:$BT,MATCH("aa_"&$S39,データシート1!$A$1:$BT$1,0),0) -> 2666.244037 | AB39: =VLOOKUP(年度マスタ!$K$4&"_"&AB$33,データシート1!$A:$BT,MATCH("aa_"&$S39,データシート1!$A$1:$BT$1,0),0) -> 2704.536037 | AC39: =VLOOKUP(年度マスタ!$K$4&"_"&AC$33,データシート1!$A:$BT,MATCH("aa_"&$S39,データシート1!$A$1:$BT$1,0),0) -> 2560.26328 | AD39: =VLOOKUP(年度マスタ!$K$4&"_"&AD$33,データシート1!$A:$BT,MATCH("aa_"&$S39,データシート1!$A$1:$BT$1,0),0) -> 2494.283859 | AE39: =VLOOKUP(年度マスタ!$K$4&"_"&AE$33,データシート1!$A:$BT,MATCH("aa_"&$S39,データシート1!$A$1:$BT$1,0),0) -> 2346.35151 | AF39: =VLOOKUP(年度マスタ!$K$4&"_"&AF$33,データシート1!$A:$BT,MATCH("aa_"&$S39,データシート1!$A$1:$BT$1,0),0) -> 2067.466928 | AG39: =VLOOKUP(年度マスタ!$K$4&"_"&AG$33,データシート1!$A:$BT,MATCH("aa_"&$S39,データシート1!$A$1:$BT$1,0),0) -> 1970.168043 | AH39: =VLOOKUP(年度マスタ!$K$4&"_"&AH$33,データシート1!$A:$BT,MATCH("aa_"&$S39,データシート1!$A$1:$BT$1,0),0) -> 1844.716309 | AI39: =VLOOKUP(年度マスタ!$K$4&"_"&AI$33,データシート1!$A:$BT,MATCH("aa_"&$S39,データシート1!$A$1:$BT$1,0),0) -> 1692.993154 | AJ39: =VLOOKUP(年度マスタ!$K$4&"_"&AJ$33,データシート1!$A:$BT,MATCH("aa_"&$S39,データシート1!$A$1:$BT$1,0),0) -> 1785.158017 | AK39: =VLOOKUP(年度マスタ!$K$4&"_"&AK$33,データシート1!$A:$BT,MATCH("aa_"&$S39,データシート1!$A$1:$BT$1,0),0) -> 1803.598476 | AW39: =年度マスタ!K4 -> 17 | AX39: 市区町村範囲 | AY39: =VLOOKUP($AW39&"_"&$AY$34,データシート1!$A:$BT,MATCH($AY$31&"_"&AY$36,データシート1!$A$1:$BT$1,0),0) -> 1598.08607 | AZ39: =VLOOKUP($AW39&"_"&$AY$34,データシート1!$A:$BT,MATCH($AY$31&"_"&AZ$36,データシート1!$A$1:$BT$1,0),0) -> 81.46375462 | BA39: =VLOOKUP($AW39&"_"&$AY$34,データシート1!$A:$BT,MATCH($AY$31&"_"&BA$36,データシート1!$A$1:$BT$1,0),0) -> 243.1869483 | BB39: =VLOOKUP($AW39&"_"&$AY$34,データシート1!$A:$BT,MATCH($AY$31&"_"&BB$36,データシート1!$A$1:$BT$1,0),0) -> 1803.598476 | BC39: =VLOOKUP($AW39&"_"&$AY$34,データシート1!$A:$BT,MATCH($AY$31&"_"&BC$36,データシート1!$A$1:$BT$1,0),0) -> 1973.914322 | BD39: =VLOOKUP($AW39&"_"&$AY$34,データシート1!$A:$BT,MATCH($AY$31&"_"&BD$36,データシート1!$A$1:$BT$1,0),0) -> 1066.07797 | BE39: =VLOOKUP($AW39&"_"&$AY$34,データシート1!$A:$BT,MATCH($AY$31&"_"&BE$36,データシート1!$A$1:$BT$1,0),0) -> 729.493158 | BF39: =VLOOKUP($AW39&"_"&$AY$34,データシート1!$A:$BT,MATCH($AY$31&"_"&BF$36,データシート1!$A$1:$BT$1,0),0) -> 65.77545164 | BG39: =VLOOKUP($AW39&"_"&$AY$34,データシート1!$A:$BT,MATCH($AY$31&"_"&BG$36,データシート1!$A$1:$BT$1,0),0) -> 20.25375027 | BH39: =VLOOKUP($AW39&"_"&$AY$34,データシート1!$A:$BT,MATCH($AY$31&"_"&BH$36,データシート1!$A$1:$BT$1,0),0) -> 126.5416512
N40: 貨物 | O40: =VLOOKUP(年度マスタ!$K$4&"_"&O$27,データシート1!$A:$BT,MATCH("aa_"&$N40,データシート1!$A$1:$BT$1,0),0) -> 820.4585517 | P40: 8% | S40: 家庭部門 | U40: 家庭部門 | X40: =VLOOKUP(年度マスタ!$K$4&"_"&X$33,データシート1!$A:$BT,MATCH("aa_"&$S40,データシート1!$A$1:$BT$1,0),0) -> 1627.145444 | Y40: =VLOOKUP(年度マスタ!$K$4&"_"&Y$33,データシート1!$A:$BT,MATCH("aa_"&$S40,データシート1!$A$1:$BT$1,0),0) -> 2034.17579 | Z40: =VLOOKUP(年度マスタ!$K$4&"_"&Z$33,データシート1!$A:$BT,MATCH("aa_"&$S40,データシート1!$A$1:$BT$1,0),0) -> 2839.513987 | AA40: =VLOOKUP(年度マスタ!$K$4&"_"&AA$33,データシート1!$A:$BT,MATCH("aa_"&$S40,データシート1!$A$1:$BT$1,0),0) -> 3021.979254 | AB40: =VLOOKUP(年度マスタ!$K$4&"_"&AB$33,データシート1!$A:$BT,MATCH("aa_"&$S40,データシート1!$A$1:$BT$1,0),0) -> 2625.783471 | AC40: =VLOOKUP(年度マスタ!$K$4&"_"&AC$33,データシート1!$A:$BT,MATCH("aa_"&$S40,データシート1!$A$1:$BT$1,0),0) -> 2568.146975 | AD40: =VLOOKUP(年度マスタ!$K$4&"_"&AD$33,データシート1!$A:$BT,MATCH("aa_"&$S40,データシート1!$A$1:$BT$1,0),0) -> 2531.1504 | AE40: =VLOOKUP(年度マスタ!$K$4&"_"&AE$33,データシート1!$A:$BT,MATCH("aa_"&$S40,データシート1!$A$1:$BT$1,0),0) -> 2390.248783 | AF40: =VLOOKUP(年度マスタ!$K$4&"_"&AF$33,データシート1!$A:$BT,MATCH("aa_"&$S40,データシート1!$A$1:$BT$1,0),0) -> 2523.33173 | AG40: =VLOOKUP(年度マスタ!$K$4&"_"&AG$33,データシート1!$A:$BT,MATCH("aa_"&$S40,データシート1!$A$1:$BT$1,0),0) -> 2166.410775 | AH40: =VLOOKUP(年度マスタ!$K$4&"_"&AH$33,データシート1!$A:$BT,MATCH("aa_"&$S40,データシート1!$A$1:$BT$1,0),0) -> 1867.971002 | AI40: =VLOOKUP(年度マスタ!$K$4&"_"&AI$33,データシート1!$A:$BT,MATCH("aa_"&$S40,データシート1!$A$1:$BT$1,0),0) -> 1761.438625 | AJ40: =VLOOKUP(年度マスタ!$K$4&"_"&AJ$33,データシート1!$A:$BT,MATCH("aa_"&$S40,データシート1!$A$1:$BT$1,0),0) -> 1867.912832 | AK40: =VLOOKUP(年度マスタ!$K$4&"_"&AK$33,データシート1!$A:$BT,MATCH("aa_"&$S40,データシート1!$A$1:$BT$1,0),0) -> 1973.914322
M41: 鉄道 | O41: =VLOOKUP(年度マスタ!$K$4&"_"&O$27,データシート1!$A:$BT,MATCH("aa_"&$M41,データシート1!$A$1:$BT$1,0),0) -> 89.99313635 | P41: 1% | S41: 運輸部門 | U41: 運輸部門 | X41: =X42+X45+X46 -> 2299.644354 | Y41: =Y42+Y45+Y46 -> 2311.386634 | Z41: 2274.141834 | AA41: 2277.501482 | AB41: 2237.139288 | AC41: 2172.93411 | AD41: 2167.318334 | AE41: 2150.71661 | AF41: 2127.770885 | AG41: 2099.403429 | AH41: 2047.062213 | AI41: =AI42+AI45+AI46 -> 1846.907523 | AJ41: =AJ42+AJ45+AJ46 -> 1833.585273 | AK41: =AK42+AK45+AK46 -> 1881.60033
M42: 船舶 | O42: =VLOOKUP(年度マスタ!$K$4&"_"&O$27,データシート1!$A:$BT,MATCH("aa_"&$M42,データシート1!$A$1:$BT$1,0),0) -> 23.80539252 | P42: 0% | V42: 自動車 | X42: =SUM(X43:X44) -> 2211.392435 | Y42: =SUM(Y43:Y44) -> 2219.409114 | Z42: 2171.721129 | AA42: 2166.796079 | AB42: 2123.340759 | AC42: 2064.010903 | AD42: 2054.745164 | AE42: 2041.882541 | AF42: 2023.20883 | AG42: 2000.52028 | AH42: 1951.607836 | AI42: 1758.851718 | AJ42: 1747.942597 | AK42: 1795.571128 | AX42: 産業部門 | AY42: 業務その他部門 | AZ42: 家庭部門 | BA42: 運輸部門 | BB42: 廃棄物分野（一般廃棄物） | BC42: 合計
L43: 廃棄物分野（一般廃棄物） | O43: =VLOOKUP(年度マスタ!$K$4&"_"&O$27,データシート1!$A:$BT,MATCH("aa_"&$L43,データシート1!$A$1:$BT$1,0),0) -> 132.2887533 | P43: 1% | S43: 旅客 | W43: 旅客 | X43: =VLOOKUP(年度マスタ!$K$4&"_"&X$33,データシート1!$A:$BT,MATCH("aa_"&$S43,データシート1!$A$1:$BT$1,0),0) -> 1349.131649 | Y43: =VLOOKUP(年度マスタ!$K$4&"_"&Y$33,データシート1!$A:$BT,MATCH("aa_"&$S43,データシート1!$A$1:$BT$1,0),0) -> 1351.883898 | Z43: =VLOOKUP(年度マスタ!$K$4&"_"&Z$33,データシート1!$A:$BT,MATCH("aa_"&$S43,データシート1!$A$1:$BT$1,0),0) -> 1339.449919 | AA43: =VLOOKUP(年度マスタ!$K$4&"_"&AA$33,データシート1!$A:$BT,MATCH("aa_"&$S43,データシート1!$A$1:$BT$1,0),0) -> 1343.778915 | AB43: =VLOOKUP(年度マスタ!$K$4&"_"&AB$33,データシート1!$A:$BT,MATCH("aa_"&$S43,データシート1!$A$1:$BT$1,0),0) -> 1302.882207 | AC43: =VLOOKUP(年度マスタ!$K$4&"_"&AC$33,データシート1!$A:$BT,MATCH("aa_"&$S43,データシート1!$A$1:$BT$1,0),0) -> 1248.988941 | AD43: =VLOOKUP(年度マスタ!$K$4&"_"&AD$33,データシート1!$A:$BT,MATCH("aa_"&$S43,データシート1!$A$1:$BT$1,0),0) -> 1245.873487 | AE43: =VLOOKUP(年度マスタ!$K$4&"_"&AE$33,データシート1!$A:$BT,MATCH("aa_"&$S43,データシート1!$A$1:$BT$1,0),0) -> 1242.25352 | AF43: =VLOOKUP(年度マスタ!$K$4&"_"&AF$33,データシート1!$A:$BT,MATCH("aa_"&$S43,データシート1!$A$1:$BT$1,0),0) -> 1231.382617 | AG43: =VLOOKUP(年度マスタ!$K$4&"_"&AG$33,データシート1!$A:$BT,MATCH("aa_"&$S43,データシート1!$A$1:$BT$1,0),0) -> 1215.146908 | AH43: =VLOOKUP(年度マスタ!$K$4&"_"&AH$33,データシート1!$A:$BT,MATCH("aa_"&$S43,データシート1!$A$1:$BT$1,0),0) -> 1185.898607 | AI43: =VLOOKUP(年度マスタ!$K$4&"_"&AI$33,データシート1!$A:$BT,MATCH("aa_"&$S43,データシート1!$A$1:$BT$1,0),0) -> 1040.078417 | AJ43: =VLOOKUP(年度マスタ!$K$4&"_"&AJ$33,データシート1!$A:$BT,MATCH("aa_"&$S43,データシート1!$A$1:$BT$1,0),0) -> 1010.757936 | AK43: =VLOOKUP(年度マスタ!$K$4&"_"&AK$33,データシート1!$A:$BT,MATCH("aa_"&$S43,データシート1!$A$1:$BT$1,0),0) -> 1066.07797 | AW43: =AW46 -> 全国 | AX43: =AX46/$BC46 -> 42% | AY43: 19% | AZ43: 18% | BA43: 19% | BB43: 2% | BC43: =SUM(AX43:BB43) -> 100%
Q44: ※表中の構成比は、四捨五入の関係で合計が100％にならない場合があります。 | S44: 貨物 | W44: 貨物 | X44: =VLOOKUP(年度マスタ!$K$4&"_"&X$33,データシート1!$A:$BT,MATCH("aa_"&$S44,データシート1!$A$1:$BT$1,0),0) -> 862.2607859 | Y44: =VLOOKUP(年度マスタ!$K$4&"_"&Y$33,データシート1!$A:$BT,MATCH("aa_"&$S44,データシート1!$A$1:$BT$1,0),0) -> 867.5252151 | Z44: =VLOOKUP(年度マスタ!$K$4&"_"&Z$33,データシート1!$A:$BT,MATCH("aa_"&$S44,データシート1!$A$1:$BT$1,0),0) -> 832.2712101 | AA44: =VLOOKUP(年度マスタ!$K$4&"_"&AA$33,データシート1!$A:$BT,MATCH("aa_"&$S44,データシート1!$A$1:$BT$1,0),0) -> 823.0171643 | AB44: =VLOOKUP(年度マスタ!$K$4&"_"&AB$33,データシート1!$A:$BT,MATCH("aa_"&$S44,データシート1!$A$1:$BT$1,0),0) -> 820.4585517 | AC44: =VLOOKUP(年度マスタ!$K$4&"_"&AC$33,データシート1!$A:$BT,MATCH("aa_"&$S44,データシート1!$A$1:$BT$1,0),0) -> 815.0219622 | AD44: =VLOOKUP(年度マスタ!$K$4&"_"&AD$33,データシート1!$A:$BT,MATCH("aa_"&$S44,データシート1!$A$1:$BT$1,0),0) -> 808.8716767 | AE44: =VLOOKUP(年度マスタ!$K$4&"_"&AE$33,データシート1!$A:$BT,MATCH("aa_"&$S44,データシート1!$A$1:$BT$1,0),0) -> 799.629021 | AF44: =VLOOKUP(年度マスタ!$K$4&"_"&AF$33,データシート1!$A:$BT,MATCH("aa_"&$S44,データシート1!$A$1:$BT$1,0),0) -> 791.8262127 | AG44: =VLOOKUP(年度マスタ!$K$4&"_"&AG$33,データシート1!$A:$BT,MATCH("aa_"&$S44,データシート1!$A$1:$BT$1,0),0) -> 785.3733722 | AH44: =VLOOKUP(年度マスタ!$K$4&"_"&AH$33,データシート1!$A:$BT,MATCH("aa_"&$S44,データシート1!$A$1:$BT$1,0),0) -> 765.7092296 | AI44: =VLOOKUP(年度マスタ!$K$4&"_"&AI$33,データシート1!$A:$BT,MATCH("aa_"&$S44,データシート1!$A$1:$BT$1,0),0) -> 718.7733008 | AJ44: =VLOOKUP(年度マスタ!$K$4&"_"&AJ$33,データシート1!$A:$BT,MATCH("aa_"&$S44,データシート1!$A$1:$BT$1,0),0) -> 737.1846609 | AK44: =VLOOKUP(年度マスタ!$K$4&"_"&AK$33,データシート1!$A:$BT,MATCH("aa_"&$S44,データシート1!$A$1:$BT$1,0),0) -> 729.493158 | AW44: =AW47 -> 石川県 | AX44: 25% | AY44: 23% | AZ44: 26% | BA44: 24% | BB44: 2% | BC44: =SUM(AX44:BB44) -> 100%
S45: 鉄道 | V45: 鉄道 | X45: =VLOOKUP(年度マスタ!$K$4&"_"&X$33,データシート1!$A:$BT,MATCH("aa_"&$S45,データシート1!$A$1:$BT$1,0),0) -> 67.7969129 | Y45: =VLOOKUP(年度マスタ!$K$4&"_"&Y$33,データシート1!$A:$BT,MATCH("aa_"&$S45,データシート1!$A$1:$BT$1,0),0) -> 70.58573362 | Z45: =VLOOKUP(年度マスタ!$K$4&"_"&Z$33,データシート1!$A:$BT,MATCH("aa_"&$S45,データシート1!$A$1:$BT$1,0),0) -> 81.17588957 | AA45: =VLOOKUP(年度マスタ!$K$4&"_"&AA$33,データシート1!$A:$BT,MATCH("aa_"&$S45,データシート1!$A$1:$BT$1,0),0) -> 88.68081626 | AB45: =VLOOKUP(年度マスタ!$K$4&"_"&AB$33,データシート1!$A:$BT,MATCH("aa_"&$S45,データシート1!$A$1:$BT$1,0),0) -> 89.99313635 | AC45: =VLOOKUP(年度マスタ!$K$4&"_"&AC$33,データシート1!$A:$BT,MATCH("aa_"&$S45,データシート1!$A$1:$BT$1,0),0) -> 86.07460965 | AD45: =VLOOKUP(年度マスタ!$K$4&"_"&AD$33,データシート1!$A:$BT,MATCH("aa_"&$S45,データシート1!$A$1:$BT$1,0),0) -> 84.06380373 | AE45: =VLOOKUP(年度マスタ!$K$4&"_"&AE$33,データシート1!$A:$BT,MATCH("aa_"&$S45,データシート1!$A$1:$BT$1,0),0) -> 81.48301439 | AF45: =VLOOKUP(年度マスタ!$K$4&"_"&AF$33,データシート1!$A:$BT,MATCH("aa_"&$S45,データシート1!$A$1:$BT$1,0),0) -> 78.57533909 | AG45: =VLOOKUP(年度マスタ!$K$4&"_"&AG$33,データシート1!$A:$BT,MATCH("aa_"&$S45,データシート1!$A$1:$BT$1,0),0) -> 72.63113925 | AH45: =VLOOKUP(年度マスタ!$K$4&"_"&AH$33,データシート1!$A:$BT,MATCH("aa_"&$S45,データシート1!$A$1:$BT$1,0),0) -> 70.32570671 | AI45: =VLOOKUP(年度マスタ!$K$4&"_"&AI$33,データシート1!$A:$BT,MATCH("aa_"&$S45,データシート1!$A$1:$BT$1,0),0) -> 66.78221712 | AJ45: =VLOOKUP(年度マスタ!$K$4&"_"&AJ$33,データシート1!$A:$BT,MATCH("aa_"&$S45,データシート1!$A$1:$BT$1,0),0) -> 65.65636066 | AK45: =VLOOKUP(年度マスタ!$K$4&"_"&AK$33,データシート1!$A:$BT,MATCH("aa_"&$S45,データシート1!$A$1:$BT$1,0),0) -> 65.77545164 | AW45: =AW48 -> 石川県 | AX45: =AX48/$BC48 -> 25% | AY45: 23% | AZ45: 26% | BA45: 24% | BB45: 2% | BC45: =SUM(AX45:BB45) -> 100%
C46: 3）部門・分野別CO2排出量構成比 令和4年度（2022年度） | S46: 船舶 | V46: 船舶 | X46: =VLOOKUP(年度マスタ!$K$4&"_"&X$33,データシート1!$A:$BT,MATCH("aa_"&$S46,データシート1!$A$1:$BT$1,0),0) -> 20.45500606 | Y46: =VLOOKUP(年度マスタ!$K$4&"_"&Y$33,データシート1!$A:$BT,MATCH("aa_"&$S46,データシート1!$A$1:$BT$1,0),0) -> 21.39178651 | Z46: =VLOOKUP(年度マスタ!$K$4&"_"&Z$33,データシート1!$A:$BT,MATCH("aa_"&$S46,データシート1!$A$1:$BT$1,0),0) -> 21.24481628 | AA46: =VLOOKUP(年度マスタ!$K$4&"_"&AA$33,データシート1!$A:$BT,MATCH("aa_"&$S46,データシート1!$A$1:$BT$1,0),0) -> 22.02458631 | AB46: =VLOOKUP(年度マスタ!$K$4&"_"&AB$33,データシート1!$A:$BT,MATCH("aa_"&$S46,データシート1!$A$1:$BT$1,0),0) -> 23.80539252 | AC46: =VLOOKUP(年度マスタ!$K$4&"_"&AC$33,データシート1!$A:$BT,MATCH("aa_"&$S46,データシート1!$A$1:$BT$1,0),0) -> 22.84859654 | AD46: =VLOOKUP(年度マスタ!$K$4&"_"&AD$33,データシート1!$A:$BT,MATCH("aa_"&$S46,データシート1!$A$1:$BT$1,0),0) -> 28.50936638 | AE46: =VLOOKUP(年度マスタ!$K$4&"_"&AE$33,データシート1!$A:$BT,MATCH("aa_"&$S46,データシート1!$A$1:$BT$1,0),0) -> 27.35105383 | AF46: =VLOOKUP(年度マスタ!$K$4&"_"&AF$33,データシート1!$A:$BT,MATCH("aa_"&$S46,データシート1!$A$1:$BT$1,0),0) -> 25.98671648 | AG46: =VLOOKUP(年度マスタ!$K$4&"_"&AG$33,データシート1!$A:$BT,MATCH("aa_"&$S46,データシート1!$A$1:$BT$1,0),0) -> 26.2520094 | AH46: =VLOOKUP(年度マスタ!$K$4&"_"&AH$33,データシート1!$A:$BT,MATCH("aa_"&$S46,データシート1!$A$1:$BT$1,0),0) -> 25.12867042 | AI46: =VLOOKUP(年度マスタ!$K$4&"_"&AI$33,データシート1!$A:$BT,MATCH("aa_"&$S46,データシート1!$A$1:$BT$1,0),0) -> 21.27358811 | AJ46: =VLOOKUP(年度マスタ!$K$4&"_"&AJ$33,データシート1!$A:$BT,MATCH("aa_"&$S46,データシート1!$A$1:$BT$1,0),0) -> 19.98631585 | AK46: =VLOOKUP(年度マスタ!$K$4&"_"&AK$33,データシート1!$A:$BT,MATCH("aa_"&$S46,データシート1!$A$1:$BT$1,0),0) -> 20.25375027 | AW46: 全国 | AX46: =SUM(AY37:BA37) -> 398,380 | AY46: =BB37 -> 181,031 | AZ46: 170,770 | BA46: =SUM(BD37:BG37) -> 182,049 | BB46: =BH37 -> 14,652 | BC46: =SUM(AX46:BB46) -> 946,883
C47: =BB1 -> 3）排出量の部門・分野別構成比 令和4年度（2022年度） | S47: 廃棄物分野（一般廃棄物） | U47: 廃棄物分野（一般廃棄物） | X47: =VLOOKUP(年度マスタ!$K$4&"_"&X$33,データシート1!$A:$BT,MATCH("aa_"&$S47,データシート1!$A$1:$BT$1,0),0) -> 116.4808215 | Y47: =VLOOKUP(年度マスタ!$K$4&"_"&Y$33,データシート1!$A:$BT,MATCH("aa_"&$S47,データシート1!$A$1:$BT$1,0),0) -> 124.224096 | Z47: =VLOOKUP(年度マスタ!$K$4&"_"&Z$33,データシート1!$A:$BT,MATCH("aa_"&$S47,データシート1!$A$1:$BT$1,0),0) -> 107.3782218 | AA47: =VLOOKUP(年度マスタ!$K$4&"_"&AA$33,データシート1!$A:$BT,MATCH("aa_"&$S47,データシート1!$A$1:$BT$1,0),0) -> 130.5260656 | AB47: =VLOOKUP(年度マスタ!$K$4&"_"&AB$33,データシート1!$A:$BT,MATCH("aa_"&$S47,データシート1!$A$1:$BT$1,0),0) -> 132.2887533 | AC47: =VLOOKUP(年度マスタ!$K$4&"_"&AC$33,データシート1!$A:$BT,MATCH("aa_"&$S47,データシート1!$A$1:$BT$1,0),0) -> 130.5440373 | AD47: =VLOOKUP(年度マスタ!$K$4&"_"&AD$33,データシート1!$A:$BT,MATCH("aa_"&$S47,データシート1!$A$1:$BT$1,0),0) -> 130.9088989 | AE47: =VLOOKUP(年度マスタ!$K$4&"_"&AE$33,データシート1!$A:$BT,MATCH("aa_"&$S47,データシート1!$A$1:$BT$1,0),0) -> 126.5578559 | AF47: =VLOOKUP(年度マスタ!$K$4&"_"&AF$33,データシート1!$A:$BT,MATCH("aa_"&$S47,データシート1!$A$1:$BT$1,0),0) -> 130.4206497 | AG47: =VLOOKUP(年度マスタ!$K$4&"_"&AG$33,データシート1!$A:$BT,MATCH("aa_"&$S47,データシート1!$A$1:$BT$1,0),0) -> 123.7963377 | AH47: =VLOOKUP(年度マスタ!$K$4&"_"&AH$33,データシート1!$A:$BT,MATCH("aa_"&$S47,データシート1!$A$1:$BT$1,0),0) -> 139.9621344 | AI47: =VLOOKUP(年度マスタ!$K$4&"_"&AI$33,データシート1!$A:$BT,MATCH("aa_"&$S47,データシート1!$A$1:$BT$1,0),0) -> 124.4095941 | AJ47: =VLOOKUP(年度マスタ!$K$4&"_"&AJ$33,データシート1!$A:$BT,MATCH("aa_"&$S47,データシート1!$A$1:$BT$1,0),0) -> 133.7550274 | AK47: =VLOOKUP(年度マスタ!$K$4&"_"&AK$33,データシート1!$A:$BT,MATCH("aa_"&$S47,データシート1!$A$1:$BT$1,0),0) -> 126.5416512 | AW47: =年度マスタ!I4 -> 石川県 | AX47: =SUM(AY38:BA38) -> 1,923 | AY47: 1,804 | AZ47: 1,974 | BA47: =SUM(BD38:BG38) -> 1,882 | BB47: =BH38 -> 127 | BC47: =SUM(AX47:BB47) -> 7,708
K48: 部門・分野 | O48: =年度マスタ!K5 -> 令和4年度 | P48: 構成比 | AK48: ※表中の内訳と小計・合計は、四捨五入の関係で一致しない場合があります。 | AW48: =年度マスタ!J4 -> 石川県 | AX48: =SUM(AY39:BA39) -> 1,923 | AY48: =BB39 -> 1,804 | AZ48: =BC39 -> 1,974 | BA48: =SUM(BD39:BG39) -> 1,882 | BB48: =BH39 -> 127 | BC48: =SUM(AX48:BB48) -> 7,708
O49: 排出量
O50: ［千t-CO2］ | T50: 5）部門・分野別CO2排出量構成比の比較（都道府県平均及び全国平均）
K51: 合 計 | O51: =O52+O56+O57+O58+O64 -> 7708.391551 | P51: =P52+P56+P57+P58+P64 -> 100% | AK51: ="（"&年度マスタ!$K$5&"）" -> （令和4年度）
L52: 産業部門 | O52: =SUM(O53:O55) -> 1922.736773 | P52: =O52/$O$51 -> 25%
J53: 製造業 | M53: 製造業 | O53: =AK36 -> 1598.08607 | P53: 21%
J54: 建設業・鉱業 | M54: 建設業・鉱業 | O54: =AK37 -> 81.46375462 | P54: 1%
J55: 農林水産業 | M55: 農林水産業 | O55: =AK38 -> 243.1869483 | P55: 3%
J56: 業務その他部門 | L56: 業務その他部門 | O56: =AK39 -> 1803.598476 | P56: 23%
J57: 家庭部門 | L57: 家庭部門 | O57: =AK40 -> 1973.914322 | P57: 26%
L58: 運輸部門 | O58: =SUM(O60:O63) -> 1881.60033 | P58: 24%
M59: 自動車 | O59: =SUM(O60:O61) -> 1795.571128 | P59: 23%
J60: 旅客 | N60: 旅客 | O60: =AK43 -> 1066.07797 | P60: 14%
J61: 貨物 | N61: 貨物 | O61: =AK44 -> 729.493158 | P61: 9%
J62: 鉄道 | M62: 鉄道 | O62: =AK45 -> 65.77545164 | P62: 1%
J63: 船舶 | M63: 船舶 | O63: =AK46 -> 20.25375027 | P63: 0%
J64: 廃棄物分野（一般廃棄物） | L64: 廃棄物分野（一般廃棄物） | O64: =AK47 -> 126.5416512 | P64: 2%
Q65: ※表中の構成比は、四捨五入の関係で合計が100％にならない場合があります。
B67: 区域のCO2排出量は、環境省「地方公共団体実行計画（区域施策編）策定･実施マニュアル」の標準的手法に基づき、統計資料の按分により地方公共団体別部門・分野別CO2排出量を推計した値です。なお、一般廃棄物のCO2排出量は、一般廃棄物処理実態調査結果の焼却施設ごとの年間処理量等から推計しています。 各地方公共団体の過年度のデータは、地方公共団体実行計画策定・実施支援サイト「部門別CO2排出量の現況推計(部門別データ)」（https://www.env.go.jp/policy/local_keikaku/tools/suikei2.html）を御参照ください。 本カルテに掲載している推計年度は、地方公共団体実行計画（区域施策編）で地域の温室効果ガス排出量の目標を策定する際に基準年度や現状年度として選択できます。令和4年度（2022年度）は最新の現況推計年度です。各部門・分野別CO2排出量構成比を分析することで施策の検討に役立てることができます。

Sheet ②活動量の現状把握
B1: 自治体排出量カルテ② 活動量の現状把握 | Z1: =年度マスタ!J4 -> 石川県
AH2: 製造業 | AI2: 建設業・鉱業 | AJ2: 農林水産業 | AK2: 業務その他 | AL2: 家庭 | AM2: 旅客自動車 | AN2: 貨物自動車 | AO2: 鉄道 | AP2: 船舶 | AQ2: 廃棄物
B3: ○地方公共団体の活動量 | AG3: １）部門・分野別指標の推移（廃棄物のみ排出量の推移）
AG4: 年度 | AH4: 製造業 | AI4: 建設業・鉱業 | AJ4: 農林水産業 | AK4: 業務その他 | AL4: 家庭 | AM4: 自動車 | AO4: 鉄道 | AP4: 船舶 | AQ4: 廃棄物分野（一般廃棄物）
C5: 1）部門・分野別指標の推移（廃棄物分野のみCO2排出量の推移） | AH5: 製造品出荷額等 | AI5: 従業者数 | AJ5: 従業者数 | AK5: 従業者数 | AL5: 世帯数 | AM5: 旅客 | AN5: 貨物 | AO5: 人口 | AP5: 入港船舶総トン数 | AQ5: CO2排出量
D6: 産業部門（製造業）- 製造品出荷額等 | L6: 産業部門（建設業・鉱業）- 従業者数 | T6: 産業部門（農林水産業）- 従業者数 | AH6: ［億円］ | AI6: ［人］ | AJ6: ［人］ | AK6: ［人］ | AL6: ［世帯］ | AM6: ［台］ | AN6: ［台］ | AO6: ［人］ | AP6: ［トン］ | AQ6: ［千t-CO2］
D7: =AH6 -> ［億円］ | L7: =AI6 -> ［人］ | T7: =AJ6 -> ［人］ | AF7: 2009 | AG7: 平成21年度 | AH7: =VLOOKUP(年度マスタ!$K$4&"_"&$AG7,データシート1!$A:$BT,MATCH("ab_"&$AH$2,データシート1!$A$1:$BT$1,0),0)/10^4 -> 20,491 | AI7: =VLOOKUP(年度マスタ!$K$4&"_"&$AG7,データシート1!$A:$BT,MATCH("ab_"&AI$2,データシート1!$A$1:$BT$1,0),0) -> 48,260 | AJ7: =VLOOKUP(年度マスタ!$K$4&"_"&$AG7,データシート1!$A:$BT,MATCH("ab_"&AJ$2,データシート1!$A$1:$BT$1,0),0) -> 4,602 | AK7: =VLOOKUP(年度マスタ!$K$4&"_"&$AG7,データシート1!$A:$BT,MATCH("ab_"&AK$2,データシート1!$A$1:$BT$1,0),0) -> 448,048 | AL7: =VLOOKUP(年度マスタ!$K$4&"_"&$AG7,データシート1!$A:$BT,MATCH("ab_"&AL$2,データシート1!$A$1:$BT$1,0),0) -> 444,565 | AM7: =VLOOKUP(年度マスタ!$K$4&"_"&$AG7,データシート1!$A:$BT,MATCH("ab_"&AM$2,データシート1!$A$1:$BT$1,0),0) -> 682,019 | AN7: =VLOOKUP(年度マスタ!$K$4&"_"&$AG7,データシート1!$A:$BT,MATCH("ab_"&AN$2,データシート1!$A$1:$BT$1,0),0) -> 173,547 | AO7: =VLOOKUP(年度マスタ!$K$4&"_"&$AG7,データシート1!$A:$BT,MATCH("ab_"&AO$2,データシート1!$A$1:$BT$1,0),0) -> 1,162,950 | AP7: =VLOOKUP(年度マスタ!$K$4&"_"&$AG7,データシート1!$A:$BT,MATCH("ab_"&AP$2,データシート1!$A$1:$BT$1,0),0) -> 3,769,319 | AQ7: =VLOOKUP(年度マスタ!$K$4&"_"&$AG7,データシート1!$A:$BT,MATCH("ab_"&AQ$2,データシート1!$A$1:$BT$1,0),0) -> 116.4808215
AF8: 2010 | AG8: 平成22年度 | AH8: =VLOOKUP(年度マスタ!$K$4&"_"&$AG8,データシート1!$A:$BT,MATCH("ab_"&$AH$2,データシート1!$A$1:$BT$1,0),0)/10^4 -> 23,742 | AI8: =VLOOKUP(年度マスタ!$K$4&"_"&$AG8,データシート1!$A:$BT,MATCH("ab_"&AI$2,データシート1!$A$1:$BT$1,0),0) -> 48,260 | AJ8: =VLOOKUP(年度マスタ!$K$4&"_"&$AG8,データシート1!$A:$BT,MATCH("ab_"&AJ$2,データシート1!$A$1:$BT$1,0),0) -> 4,602 | AK8: =VLOOKUP(年度マスタ!$K$4&"_"&$AG8,データシート1!$A:$BT,MATCH("ab_"&AK$2,データシート1!$A$1:$BT$1,0),0) -> 448,048 | AL8: =VLOOKUP(年度マスタ!$K$4&"_"&$AG8,データシート1!$A:$BT,MATCH("ab_"&AL$2,データシート1!$A$1:$BT$1,0),0) -> 448,539 | AM8: =VLOOKUP(年度マスタ!$K$4&"_"&$AG8,データシート1!$A:$BT,MATCH("ab_"&AM$2,データシート1!$A$1:$BT$1,0),0) -> 686,586 | AN8: =VLOOKUP(年度マスタ!$K$4&"_"&$AG8,データシート1!$A:$BT,MATCH("ab_"&AN$2,データシート1!$A$1:$BT$1,0),0) -> 170,246 | AO8: =VLOOKUP(年度マスタ!$K$4&"_"&$AG8,データシート1!$A:$BT,MATCH("ab_"&AO$2,データシート1!$A$1:$BT$1,0),0) -> 1,160,206 | AP8: =VLOOKUP(年度マスタ!$K$4&"_"&$AG8,データシート1!$A:$BT,MATCH("ab_"&AP$2,データシート1!$A$1:$BT$1,0),0) -> 3,735,617 | AQ8: =VLOOKUP(年度マスタ!$K$4&"_"&$AG8,データシート1!$A:$BT,MATCH("ab_"&AQ$2,データシート1!$A$1:$BT$1,0),0) -> 124.224096
AF9: 2011 | AG9: 平成23年度 | AH9: =VLOOKUP(年度マスタ!$K$4&"_"&$AG9,データシート1!$A:$BT,MATCH("ab_"&$AH$2,データシート1!$A$1:$BT$1,0),0)/10^4 -> 24,382 | AI9: =VLOOKUP(年度マスタ!$K$4&"_"&$AG9,データシート1!$A:$BT,MATCH("ab_"&AI$2,データシート1!$A$1:$BT$1,0),0) -> 48,260 | AJ9: =VLOOKUP(年度マスタ!$K$4&"_"&$AG9,データシート1!$A:$BT,MATCH("ab_"&AJ$2,データシート1!$A$1:$BT$1,0),0) -> 4,602 | AK9: =VLOOKUP(年度マスタ!$K$4&"_"&$AG9,データシート1!$A:$BT,MATCH("ab_"&AK$2,データシート1!$A$1:$BT$1,0),0) -> 448,048 | AL9: =VLOOKUP(年度マスタ!$K$4&"_"&$AG9,データシート1!$A:$BT,MATCH("ab_"&AL$2,データシート1!$A$1:$BT$1,0),0) -> 451,929 | AM9: =VLOOKUP(年度マスタ!$K$4&"_"&$AG9,データシート1!$A:$BT,MATCH("ab_"&AM$2,データシート1!$A$1:$BT$1,0),0) -> 695,050 | AN9: =VLOOKUP(年度マスタ!$K$4&"_"&$AG9,データシート1!$A:$BT,MATCH("ab_"&AN$2,データシート1!$A$1:$BT$1,0),0) -> 168,188 | AO9: =VLOOKUP(年度マスタ!$K$4&"_"&$AG9,データシート1!$A:$BT,MATCH("ab_"&AO$2,データシート1!$A$1:$BT$1,0),0) -> 1,156,730 | AP9: =VLOOKUP(年度マスタ!$K$4&"_"&$AG9,データシート1!$A:$BT,MATCH("ab_"&AP$2,データシート1!$A$1:$BT$1,0),0) -> 3,703,816 | AQ9: =VLOOKUP(年度マスタ!$K$4&"_"&$AG9,データシート1!$A:$BT,MATCH("ab_"&AQ$2,データシート1!$A$1:$BT$1,0),0) -> 107.3782218
AF10: 2012 | AG10: 平成24年度 | AH10: =VLOOKUP(年度マスタ!$K$4&"_"&$AG10,データシート1!$A:$BT,MATCH("ab_"&$AH$2,データシート1!$A$1:$BT$1,0),0)/10^4 -> 24,334 | AI10: =VLOOKUP(年度マスタ!$K$4&"_"&$AG10,データシート1!$A:$BT,MATCH("ab_"&AI$2,データシート1!$A$1:$BT$1,0),0) -> 48,260 | AJ10: =VLOOKUP(年度マスタ!$K$4&"_"&$AG10,データシート1!$A:$BT,MATCH("ab_"&AJ$2,データシート1!$A$1:$BT$1,0),0) -> 4,602 | AK10: =VLOOKUP(年度マスタ!$K$4&"_"&$AG10,データシート1!$A:$BT,MATCH("ab_"&AK$2,データシート1!$A$1:$BT$1,0),0) -> 448,048 | AL10: =VLOOKUP(年度マスタ!$K$4&"_"&$AG10,データシート1!$A:$BT,MATCH("ab_"&AL$2,データシート1!$A$1:$BT$1,0),0) -> 462,124 | AM10: =VLOOKUP(年度マスタ!$K$4&"_"&$AG10,データシート1!$A:$BT,MATCH("ab_"&AM$2,データシート1!$A$1:$BT$1,0),0) -> 702,827 | AN10: =VLOOKUP(年度マスタ!$K$4&"_"&$AG10,データシート1!$A:$BT,MATCH("ab_"&AN$2,データシート1!$A$1:$BT$1,0),0) -> 165,377 | AO10: =VLOOKUP(年度マスタ!$K$4&"_"&$AG10,データシート1!$A:$BT,MATCH("ab_"&AO$2,データシート1!$A$1:$BT$1,0),0) -> 1,163,089 | AP10: =VLOOKUP(年度マスタ!$K$4&"_"&$AG10,データシート1!$A:$BT,MATCH("ab_"&AP$2,データシート1!$A$1:$BT$1,0),0) -> 3,740,308 | AQ10: =VLOOKUP(年度マスタ!$K$4&"_"&$AG10,データシート1!$A:$BT,MATCH("ab_"&AQ$2,データシート1!$A$1:$BT$1,0),0) -> 130.5260656
AF11: 2013 | AG11: 平成25年度 | AH11: =VLOOKUP(年度マスタ!$K$4&"_"&$AG11,データシート1!$A:$BT,MATCH("ab_"&$AH$2,データシート1!$A$1:$BT$1,0),0)/10^4 -> 24,243 | AI11: =VLOOKUP(年度マスタ!$K$4&"_"&$AG11,データシート1!$A:$BT,MATCH("ab_"&AI$2,データシート1!$A$1:$BT$1,0),0) -> 48,260 | AJ11: =VLOOKUP(年度マスタ!$K$4&"_"&$AG11,データシート1!$A:$BT,MATCH("ab_"&AJ$2,データシート1!$A$1:$BT$1,0),0) -> 4,602 | AK11: =VLOOKUP(年度マスタ!$K$4&"_"&$AG11,データシート1!$A:$BT,MATCH("ab_"&AK$2,データシート1!$A$1:$BT$1,0),0) -> 448,048 | AL11: =VLOOKUP(年度マスタ!$K$4&"_"&$AG11,データシート1!$A:$BT,MATCH("ab_"&AL$2,データシート1!$A$1:$BT$1,0),0) -> 466,200 | AM11: =VLOOKUP(年度マスタ!$K$4&"_"&$AG11,データシート1!$A:$BT,MATCH("ab_"&AM$2,データシート1!$A$1:$BT$1,0),0) -> 711,862 | AN11: =VLOOKUP(年度マスタ!$K$4&"_"&$AG11,データシート1!$A:$BT,MATCH("ab_"&AN$2,データシート1!$A$1:$BT$1,0),0) -> 164,244 | AO11: =VLOOKUP(年度マスタ!$K$4&"_"&$AG11,データシート1!$A:$BT,MATCH("ab_"&AO$2,データシート1!$A$1:$BT$1,0),0) -> 1,163,380 | AP11: =VLOOKUP(年度マスタ!$K$4&"_"&$AG11,データシート1!$A:$BT,MATCH("ab_"&AP$2,データシート1!$A$1:$BT$1,0),0) -> 3,946,263 | AQ11: =VLOOKUP(年度マスタ!$K$4&"_"&$AG11,データシート1!$A:$BT,MATCH("ab_"&AQ$2,データシート1!$A$1:$BT$1,0),0) -> 132.2887533
AF12: 2014 | AG12: 平成26年度 | AH12: =VLOOKUP(年度マスタ!$K$4&"_"&$AG12,データシート1!$A:$BT,MATCH("ab_"&$AH$2,データシート1!$A$1:$BT$1,0),0)/10^4 -> 26,019 | AI12: =VLOOKUP(年度マスタ!$K$4&"_"&$AG12,データシート1!$A:$BT,MATCH("ab_"&AI$2,データシート1!$A$1:$BT$1,0),0) -> 39,844 | AJ12: =VLOOKUP(年度マスタ!$K$4&"_"&$AG12,データシート1!$A:$BT,MATCH("ab_"&AJ$2,データシート1!$A$1:$BT$1,0),0) -> 4,419 | AK12: =VLOOKUP(年度マスタ!$K$4&"_"&$AG12,データシート1!$A:$BT,MATCH("ab_"&AK$2,データシート1!$A$1:$BT$1,0),0) -> 434,606 | AL12: =VLOOKUP(年度マスタ!$K$4&"_"&$AG12,データシート1!$A:$BT,MATCH("ab_"&AL$2,データシート1!$A$1:$BT$1,0),0) -> 470,024 | AM12: =VLOOKUP(年度マスタ!$K$4&"_"&$AG12,データシート1!$A:$BT,MATCH("ab_"&AM$2,データシート1!$A$1:$BT$1,0),0) -> 718,736 | AN12: =VLOOKUP(年度マスタ!$K$4&"_"&$AG12,データシート1!$A:$BT,MATCH("ab_"&AN$2,データシート1!$A$1:$BT$1,0),0) -> 162,312 | AO12: =VLOOKUP(年度マスタ!$K$4&"_"&$AG12,データシート1!$A:$BT,MATCH("ab_"&AO$2,データシート1!$A$1:$BT$1,0),0) -> 1,159,763 | AP12: =VLOOKUP(年度マスタ!$K$4&"_"&$AG12,データシート1!$A:$BT,MATCH("ab_"&AP$2,データシート1!$A$1:$BT$1,0),0) -> 3,799,563 | AQ12: =VLOOKUP(年度マスタ!$K$4&"_"&$AG12,データシート1!$A:$BT,MATCH("ab_"&AQ$2,データシート1!$A$1:$BT$1,0),0) -> 130.5440373
AF13: 2015 | AG13: 平成27年度 | AH13: =VLOOKUP(年度マスタ!$K$4&"_"&$AG13,データシート1!$A:$BT,MATCH("ab_"&$AH$2,データシート1!$A$1:$BT$1,0),0)/10^4 -> 28,072 | AI13: =VLOOKUP(年度マスタ!$K$4&"_"&$AG13,データシート1!$A:$BT,MATCH("ab_"&AI$2,データシート1!$A$1:$BT$1,0),0) -> 39,844 | AJ13: =VLOOKUP(年度マスタ!$K$4&"_"&$AG13,データシート1!$A:$BT,MATCH("ab_"&AJ$2,データシート1!$A$1:$BT$1,0),0) -> 4,419 | AK13: =VLOOKUP(年度マスタ!$K$4&"_"&$AG13,データシート1!$A:$BT,MATCH("ab_"&AK$2,データシート1!$A$1:$BT$1,0),0) -> 434,606 | AL13: =VLOOKUP(年度マスタ!$K$4&"_"&$AG13,データシート1!$A:$BT,MATCH("ab_"&AL$2,データシート1!$A$1:$BT$1,0),0) -> 474,789 | AM13: =VLOOKUP(年度マスタ!$K$4&"_"&$AG13,データシート1!$A:$BT,MATCH("ab_"&AM$2,データシート1!$A$1:$BT$1,0),0) -> 723,843 | AN13: =VLOOKUP(年度マスタ!$K$4&"_"&$AG13,データシート1!$A:$BT,MATCH("ab_"&AN$2,データシート1!$A$1:$BT$1,0),0) -> 160,960 | AO13: =VLOOKUP(年度マスタ!$K$4&"_"&$AG13,データシート1!$A:$BT,MATCH("ab_"&AO$2,データシート1!$A$1:$BT$1,0),0) -> 1,157,042 | AP13: =VLOOKUP(年度マスタ!$K$4&"_"&$AG13,データシート1!$A:$BT,MATCH("ab_"&AP$2,データシート1!$A$1:$BT$1,0),0) -> 4,873,211 | AQ13: =VLOOKUP(年度マスタ!$K$4&"_"&$AG13,データシート1!$A:$BT,MATCH("ab_"&AQ$2,データシート1!$A$1:$BT$1,0),0) -> 130.9088989
AF14: 2016 | AG14: 平成28年度 | AH14: =VLOOKUP(年度マスタ!$K$4&"_"&$AG14,データシート1!$A:$BT,MATCH("ab_"&$AH$2,データシート1!$A$1:$BT$1,0),0)/10^4 -> 28,349 | AI14: =VLOOKUP(年度マスタ!$K$4&"_"&$AG14,データシート1!$A:$BT,MATCH("ab_"&AI$2,データシート1!$A$1:$BT$1,0),0) -> 39,844 | AJ14: =VLOOKUP(年度マスタ!$K$4&"_"&$AG14,データシート1!$A:$BT,MATCH("ab_"&AJ$2,データシート1!$A$1:$BT$1,0),0) -> 4,419 | AK14: =VLOOKUP(年度マスタ!$K$4&"_"&$AG14,データシート1!$A:$BT,MATCH("ab_"&AK$2,データシート1!$A$1:$BT$1,0),0) -> 434,606 | AL14: =VLOOKUP(年度マスタ!$K$4&"_"&$AG14,データシート1!$A:$BT,MATCH("ab_"&AL$2,データシート1!$A$1:$BT$1,0),0) -> 478,395 | AM14: =VLOOKUP(年度マスタ!$K$4&"_"&$AG14,データシート1!$A:$BT,MATCH("ab_"&AM$2,データシート1!$A$1:$BT$1,0),0) -> 730,612 | AN14: =VLOOKUP(年度マスタ!$K$4&"_"&$AG14,データシート1!$A:$BT,MATCH("ab_"&AN$2,データシート1!$A$1:$BT$1,0),0) -> 164,576 | AO14: =VLOOKUP(年度マスタ!$K$4&"_"&$AG14,データシート1!$A:$BT,MATCH("ab_"&AO$2,データシート1!$A$1:$BT$1,0),0) -> 1,153,627 | AP14: =VLOOKUP(年度マスタ!$K$4&"_"&$AG14,データシート1!$A:$BT,MATCH("ab_"&AP$2,データシート1!$A$1:$BT$1,0),0) -> 4,671,291 | AQ14: =VLOOKUP(年度マスタ!$K$4&"_"&$AG14,データシート1!$A:$BT,MATCH("ab_"&AQ$2,データシート1!$A$1:$BT$1,0),0) -> 126.5578559
AF15: 2017 | AG15: 平成29年度 | AH15: =VLOOKUP(年度マスタ!$K$4&"_"&$AG15,データシート1!$A:$BT,MATCH("ab_"&$AH$2,データシート1!$A$1:$BT$1,0),0)/10^4 -> 30,206 | AI15: =VLOOKUP(年度マスタ!$K$4&"_"&$AG15,データシート1!$A:$BT,MATCH("ab_"&AI$2,データシート1!$A$1:$BT$1,0),0) -> 39,844 | AJ15: =VLOOKUP(年度マスタ!$K$4&"_"&$AG15,データシート1!$A:$BT,MATCH("ab_"&AJ$2,データシート1!$A$1:$BT$1,0),0) -> 4,419 | AK15: =VLOOKUP(年度マスタ!$K$4&"_"&$AG15,データシート1!$A:$BT,MATCH("ab_"&AK$2,データシート1!$A$1:$BT$1,0),0) -> 434,606 | AL15: =VLOOKUP(年度マスタ!$K$4&"_"&$AG15,データシート1!$A:$BT,MATCH("ab_"&AL$2,データシート1!$A$1:$BT$1,0),0) -> 482,491 | AM15: =VLOOKUP(年度マスタ!$K$4&"_"&$AG15,データシート1!$A:$BT,MATCH("ab_"&AM$2,データシート1!$A$1:$BT$1,0),0) -> 736,232 | AN15: =VLOOKUP(年度マスタ!$K$4&"_"&$AG15,データシート1!$A:$BT,MATCH("ab_"&AN$2,データシート1!$A$1:$BT$1,0),0) -> 164,009 | AO15: =VLOOKUP(年度マスタ!$K$4&"_"&$AG15,データシート1!$A:$BT,MATCH("ab_"&AO$2,データシート1!$A$1:$BT$1,0),0) -> 1,150,398 | AP15: =VLOOKUP(年度マスタ!$K$4&"_"&$AG15,データシート1!$A:$BT,MATCH("ab_"&AP$2,データシート1!$A$1:$BT$1,0),0) -> 4,526,340 | AQ15: =VLOOKUP(年度マスタ!$K$4&"_"&$AG15,データシート1!$A:$BT,MATCH("ab_"&AQ$2,データシート1!$A$1:$BT$1,0),0) -> 130.4206497
AF16: 2018 | AG16: 平成30年度 | AH16: =VLOOKUP(年度マスタ!$K$4&"_"&$AG16,データシート1!$A:$BT,MATCH("ab_"&$AH$2,データシート1!$A$1:$BT$1,0),0)/10^4 -> 31,409 | AI16: =VLOOKUP(年度マスタ!$K$4&"_"&$AG16,データシート1!$A:$BT,MATCH("ab_"&AI$2,データシート1!$A$1:$BT$1,0),0) -> 39,844 | AJ16: =VLOOKUP(年度マスタ!$K$4&"_"&$AG16,データシート1!$A:$BT,MATCH("ab_"&AJ$2,データシート1!$A$1:$BT$1,0),0) -> 4,419 | AK16: =VLOOKUP(年度マスタ!$K$4&"_"&$AG16,データシート1!$A:$BT,MATCH("ab_"&AK$2,データシート1!$A$1:$BT$1,0),0) -> 434,606 | AL16: =VLOOKUP(年度マスタ!$K$4&"_"&$AG16,データシート1!$A:$BT,MATCH("ab_"&AL$2,データシート1!$A$1:$BT$1,0),0) -> 486,199 | AM16: =VLOOKUP(年度マスタ!$K$4&"_"&$AG16,データシート1!$A:$BT,MATCH("ab_"&AM$2,データシート1!$A$1:$BT$1,0),0) -> 740,436 | AN16: =VLOOKUP(年度マスタ!$K$4&"_"&$AG16,データシート1!$A:$BT,MATCH("ab_"&AN$2,データシート1!$A$1:$BT$1,0),0) -> 164,308 | AO16: =VLOOKUP(年度マスタ!$K$4&"_"&$AG16,データシート1!$A:$BT,MATCH("ab_"&AO$2,データシート1!$A$1:$BT$1,0),0) -> 1,145,948 | AP16: =VLOOKUP(年度マスタ!$K$4&"_"&$AG16,データシート1!$A:$BT,MATCH("ab_"&AP$2,データシート1!$A$1:$BT$1,0),0) -> 4,554,628 | AQ16: =VLOOKUP(年度マスタ!$K$4&"_"&$AG16,データシート1!$A:$BT,MATCH("ab_"&AQ$2,データシート1!$A$1:$BT$1,0),0) -> 123.7963377
AF17: 2019 | AG17: 令和元年度 | AH17: =VLOOKUP(年度マスタ!$K$4&"_"&$AG17,データシート1!$A:$BT,MATCH("ab_"&$AH$2,データシート1!$A$1:$BT$1,0),0)/10^4 -> 30,059 | AI17: =VLOOKUP(年度マスタ!$K$4&"_"&$AG17,データシート1!$A:$BT,MATCH("ab_"&AI$2,データシート1!$A$1:$BT$1,0),0) -> 39,844 | AJ17: =VLOOKUP(年度マスタ!$K$4&"_"&$AG17,データシート1!$A:$BT,MATCH("ab_"&AJ$2,データシート1!$A$1:$BT$1,0),0) -> 4,419 | AK17: =VLOOKUP(年度マスタ!$K$4&"_"&$AG17,データシート1!$A:$BT,MATCH("ab_"&AK$2,データシート1!$A$1:$BT$1,0),0) -> 434,606 | AL17: =VLOOKUP(年度マスタ!$K$4&"_"&$AG17,データシート1!$A:$BT,MATCH("ab_"&AL$2,データシート1!$A$1:$BT$1,0),0) -> 489,511 | AM17: =VLOOKUP(年度マスタ!$K$4&"_"&$AG17,データシート1!$A:$BT,MATCH("ab_"&AM$2,データシート1!$A$1:$BT$1,0),0) -> 742,452 | AN17: =VLOOKUP(年度マスタ!$K$4&"_"&$AG17,データシート1!$A:$BT,MATCH("ab_"&AN$2,データシート1!$A$1:$BT$1,0),0) -> 158,995 | AO17: =VLOOKUP(年度マスタ!$K$4&"_"&$AG17,データシート1!$A:$BT,MATCH("ab_"&AO$2,データシート1!$A$1:$BT$1,0),0) -> 1,139,612 | AP17: =VLOOKUP(年度マスタ!$K$4&"_"&$AG17,データシート1!$A:$BT,MATCH("ab_"&AP$2,データシート1!$A$1:$BT$1,0),0) -> 4,431,140 | AQ17: =VLOOKUP(年度マスタ!$K$4&"_"&$AG17,データシート1!$A:$BT,MATCH("ab_"&AQ$2,データシート1!$A$1:$BT$1,0),0) -> 139.9621344
AF18: 2020 | AG18: 令和2年度 | AH18: =VLOOKUP(年度マスタ!$K$4&"_"&$AG18,データシート1!$A:$BT,MATCH("ab_"&$AH$2,データシート1!$A$1:$BT$1,0),0)/10^4 -> 26,268 | AI18: =VLOOKUP(年度マスタ!$K$4&"_"&$AG18,データシート1!$A:$BT,MATCH("ab_"&AI$2,データシート1!$A$1:$BT$1,0),0) -> 38,485 | AJ18: =VLOOKUP(年度マスタ!$K$4&"_"&$AG18,データシート1!$A:$BT,MATCH("ab_"&AJ$2,データシート1!$A$1:$BT$1,0),0) -> 5,342 | AK18: =VLOOKUP(年度マスタ!$K$4&"_"&$AG18,データシート1!$A:$BT,MATCH("ab_"&AK$2,データシート1!$A$1:$BT$1,0),0) -> 436,508 | AL18: =VLOOKUP(年度マスタ!$K$4&"_"&$AG18,データシート1!$A:$BT,MATCH("ab_"&AL$2,データシート1!$A$1:$BT$1,0),0) -> 492,351 | AM18: =VLOOKUP(年度マスタ!$K$4&"_"&$AG18,データシート1!$A:$BT,MATCH("ab_"&AM$2,データシート1!$A$1:$BT$1,0),0) -> 743,212 | AN18: =VLOOKUP(年度マスタ!$K$4&"_"&$AG18,データシート1!$A:$BT,MATCH("ab_"&AN$2,データシート1!$A$1:$BT$1,0),0) -> 158,636 | AO18: =VLOOKUP(年度マスタ!$K$4&"_"&$AG18,データシート1!$A:$BT,MATCH("ab_"&AO$2,データシート1!$A$1:$BT$1,0),0) -> 1,132,656 | AP18: =VLOOKUP(年度マスタ!$K$4&"_"&$AG18,データシート1!$A:$BT,MATCH("ab_"&AP$2,データシート1!$A$1:$BT$1,0),0) -> 3,771,164 | AQ18: =VLOOKUP(年度マスタ!$K$4&"_"&$AG18,データシート1!$A:$BT,MATCH("ab_"&AQ$2,データシート1!$A$1:$BT$1,0),0) -> 124.4095941
AF19: 2021 | AG19: 令和3年度 | AH19: =VLOOKUP(年度マスタ!$K$4&"_"&$AG19,データシート1!$A:$BT,MATCH("ab_"&$AH$2,データシート1!$A$1:$BT$1,0),0)/10^4 -> 28,018 | AI19: =VLOOKUP(年度マスタ!$K$4&"_"&$AG19,データシート1!$A:$BT,MATCH("ab_"&AI$2,データシート1!$A$1:$BT$1,0),0) -> 38,485 | AJ19: =VLOOKUP(年度マスタ!$K$4&"_"&$AG19,データシート1!$A:$BT,MATCH("ab_"&AJ$2,データシート1!$A$1:$BT$1,0),0) -> 5,342 | AK19: =VLOOKUP(年度マスタ!$K$4&"_"&$AG19,データシート1!$A:$BT,MATCH("ab_"&AK$2,データシート1!$A$1:$BT$1,0),0) -> 436,508 | AL19: =VLOOKUP(年度マスタ!$K$4&"_"&$AG19,データシート1!$A:$BT,MATCH("ab_"&AL$2,データシート1!$A$1:$BT$1,0),0) -> 493,950 | AM19: =VLOOKUP(年度マスタ!$K$4&"_"&$AG19,データシート1!$A:$BT,MATCH("ab_"&AM$2,データシート1!$A$1:$BT$1,0),0) -> 743,677 | AN19: =VLOOKUP(年度マスタ!$K$4&"_"&$AG19,データシート1!$A:$BT,MATCH("ab_"&AN$2,データシート1!$A$1:$BT$1,0),0) -> 158,650 | AO19: =VLOOKUP(年度マスタ!$K$4&"_"&$AG19,データシート1!$A:$BT,MATCH("ab_"&AO$2,データシート1!$A$1:$BT$1,0),0) -> 1,124,501 | AP19: =VLOOKUP(年度マスタ!$K$4&"_"&$AG19,データシート1!$A:$BT,MATCH("ab_"&AP$2,データシート1!$A$1:$BT$1,0),0) -> 3,437,096 | AQ19: =VLOOKUP(年度マスタ!$K$4&"_"&$AG19,データシート1!$A:$BT,MATCH("ab_"&AQ$2,データシート1!$A$1:$BT$1,0),0) -> 133.7550274
D20: 業務その他部門 - 従業者数 | L20: 家庭部門 - 世帯数 | T20: 運輸部門（自動車）- 自動車保有台数 | AF20: 2022 | AG20: 令和4年度 | AH20: =VLOOKUP(年度マスタ!$K$4&"_"&$AG20,データシート1!$A:$BT,MATCH("ab_"&$AH$2,データシート1!$A$1:$BT$1,0),0)/10^4 -> 30,690 | AI20: =VLOOKUP(年度マスタ!$K$4&"_"&$AG20,データシート1!$A:$BT,MATCH("ab_"&AI$2,データシート1!$A$1:$BT$1,0),0) -> 38,485 | AJ20: =VLOOKUP(年度マスタ!$K$4&"_"&$AG20,データシート1!$A:$BT,MATCH("ab_"&AJ$2,データシート1!$A$1:$BT$1,0),0) -> 5,342 | AK20: =VLOOKUP(年度マスタ!$K$4&"_"&$AG20,データシート1!$A:$BT,MATCH("ab_"&AK$2,データシート1!$A$1:$BT$1,0),0) -> 436,508 | AL20: =VLOOKUP(年度マスタ!$K$4&"_"&$AG20,データシート1!$A:$BT,MATCH("ab_"&AL$2,データシート1!$A$1:$BT$1,0),0) -> 497,350 | AM20: =VLOOKUP(年度マスタ!$K$4&"_"&$AG20,データシート1!$A:$BT,MATCH("ab_"&AM$2,データシート1!$A$1:$BT$1,0),0) -> 745,245 | AN20: =VLOOKUP(年度マスタ!$K$4&"_"&$AG20,データシート1!$A:$BT,MATCH("ab_"&AN$2,データシート1!$A$1:$BT$1,0),0) -> 159,388 | AO20: =VLOOKUP(年度マスタ!$K$4&"_"&$AG20,データシート1!$A:$BT,MATCH("ab_"&AO$2,データシート1!$A$1:$BT$1,0),0) -> 1,117,303 | AP20: =VLOOKUP(年度マスタ!$K$4&"_"&$AG20,データシート1!$A:$BT,MATCH("ab_"&AP$2,データシート1!$A$1:$BT$1,0),0) -> 3,526,833 | AQ20: =VLOOKUP(年度マスタ!$K$4&"_"&$AG20,データシート1!$A:$BT,MATCH("ab_"&AQ$2,データシート1!$A$1:$BT$1,0),0) -> 126.5416512
D21: =AK6 -> ［人］ | L21: =AL6 -> ［世帯］ | T21: =AM6 -> ［台］
D34: 運輸部門（鉄道）- 人口 | L34: 運輸部門（船舶）- 入港船舶総トン数 | T34: 廃棄物分野（一般廃棄物） - CO2排出量
D35: =AO6 -> ［人］ | L35: =AP6 -> ［トン］ | T35: [千t-CO2]
B50: 部門・分野別活動量の推移で示す各指標は、部門・分野別CO2排出量の推計に用いた按分指標です。それぞれの指標の経年変化を分析することで、CO2排出量の要因となる活動量がどのように増減しているかを把握することができます。 各指標の引用元は次のとおりです。製造品出荷額等（製造業）：令和元年度までは工業統計調査・令和2年度は経済センサス（活動調査）・令和3年度以降は経済構造実態調査， 従業者数（建設業・鉱業、農林水産業、業務その他部門）：令和元年度までは経済センサス（基礎調査）・令和2年度以降は経済センサス（活動調査）， 世帯数（家庭部門）：住民基本台帳に基づく人口、人口動態及び世帯数調査， 自動車保有台数（運輸部門）：一般財団法人自動車検査登録情報協会「市区町村別自動車保有車両数」及び一般社団法人全国軽自動車協会連合会「市区町村別軽自動車車両数」， 人口（鉄道）：住民基本台帳に基づく人口、人口動態及び世帯数調査， 入港船舶総トン数（船舶）：港湾統計年報 なお、従業者数は経済センサス（基礎調査）を使用し、「平成20年度」、「平成21年度～平成25年度」、「平成26年度～令和元年度」をそれぞれ同じ統計から集計（廃置分合等により数値が同値でない場合もあります）していましたが、令和3年経済センサスからは活動調査で把握されることとなり、令和2年度以降の従業者数は経済センサス（活動調査）から集計しています。廃棄物分野は按分ではなく一般廃棄物処理実態調査結果の焼却施設ごとの年間処理量等から推計しているため、推計したCO2排出量の推移を掲載しています。

Sheet ③特定事業所の現状把握
B2: 自治体排出量カルテ③ 特定事業所の温室効果ガス排出量の現状把握 | AP2: =年度マスタ!J4 -> 石川県
B3: 1 地方公共団体の特定事業所排出量 | AB3: 2 地方公共団体の区域のCO2排出量との比較
AV4: データ（特定事業所件数） | AW4: データ（特定事業所排出量）
AV5: bb | AW5: ba
AV6: _ene | AW6: _ene
AV7: B.SHKデータ | AW7: B.SHKデータ
AV8: =年度マスタ!K6 -> 令和3年度 | AW8: =年度マスタ!K6 -> 令和3年度
AV9: =年度マスタ!J6 -> 2021 | AW9: =年度マスタ!J6 -> 2021
AV11: 円グラフの作成
AV12: 部門別
AW13: 産業部門 | AY13: =SUM(AX14:AX16) -> 1,377 | BE13: =年度マスタ!K4 -> 17 | BF13: =年度マスタ!K4 -> 17 | BG13: =年度マスタ!K4 -> 17 | BH13: 00 | BI13: 00 | BJ13: 00 | BK13: =年度マスタ!K4 -> 17
AV14: 製造業 | AW14: 製造業 | AX14: =P23 -> 1,371 | BE14: =AP2 -> 石川県 | BF14: =AP2 -> 石川県 | BG14: =AP2 -> 石川県 | BH14: 全国 | BI14: 全国 | BJ14: 全国 | BK14: =AP2 -> 石川県
AV15: 建設業・鉱業 | AW15: 建設業・鉱業 | AX15: 0 | BA15: 参照用 | BB15: 大分類 | BC15: 中分類 | BD15: グラフ表示用 | BE15: 事業所数 | BF15: 特定事業所排出量 | BG15: 1事業所当たり | BH15: 事業所数 | BI15: 特定事業所排出量 | BJ15: 1事業所当たり | BK15: 全国平均との比較
AV16: 農林水産業 | AW16: 農林水産業 | AX16: 6 | BA16: 14 | BB16: エネルギー多消費業種 （エネルギー転換部門を除く） | BC16: 14：パルプ・紙・紙加工品製造業 | BD16: =BC16&"(N="&BE16&")" -> 14：パルプ・紙・紙加工品製造業(N=3) | BE16: =VLOOKUP(BE$13&"_"&$AV$8,データシート2!$A:$SI,MATCH($AV$5&"_"&$BA16&$AV$6,データシート2!$A$1:$SI$1,0),0) -> 3 | BF16: =VLOOKUP(BF$13&"_"&$AW$8,データシート2!$A:$SI,MATCH($AW$5&"_"&$BA16&$AW$6,データシート2!$A$1:$SI$1,0),0) -> 33.51 | BG16: =BF16/BE16 -> 11.17 | BH16: =VLOOKUP(BH$13&"_"&$AV$8,データシート2!$A:$SI,MATCH($AV$5&"_"&$BA16&$AV$6,データシート2!$A$1:$SI$1,0),0) -> 390 | BI16: =VLOOKUP(BI$13&"_"&$AW$8,データシート2!$A:$SI,MATCH($AW$5&"_"&$BA16&$AW$6,データシート2!$A$1:$SI$1,0),0) -> 23,128 | BJ16: =BI16/BH16 -> 59 | BK16: =BG16/BJ16 -> 19%
AW17: 業務その他部門 | AX17: =P26 -> 323 | AY17: =AX17 -> 323 | BA17: 16 | BC17: 16：化学工業 | BD17: =BC17&"(N="&BE17&")" -> 16：化学工業(N=7) | BE17: =VLOOKUP(BE$13&"_"&$AV$8,データシート2!$A:$SI,MATCH($AV$5&"_"&$BA17&$AV$6,データシート2!$A$1:$SI$1,0),0) -> 7 | BF17: =VLOOKUP(BF$13&"_"&$AW$8,データシート2!$A:$SI,MATCH($AW$5&"_"&$BA17&$AW$6,データシート2!$A$1:$SI$1,0),0) -> 80.008 | BG17: =BF17/BE17 -> 11.42971429 | BH17: =VLOOKUP(BH$13&"_"&$AV$8,データシート2!$A:$SI,MATCH($AV$5&"_"&$BA17&$AV$6,データシート2!$A$1:$SI$1,0),0) -> 1,191 | BI17: =VLOOKUP(BI$13&"_"&$AW$8,データシート2!$A:$SI,MATCH($AW$5&"_"&$BA17&$AW$6,データシート2!$A$1:$SI$1,0),0) -> 68,902 | BJ17: =BI17/BH17 -> 58 | BK17: =BG17/BJ17 -> 20%
AW18: エネルギー転換部門 | AX18: 438 | AY18: =AX18 -> 438 | BA18: 17 | BC18: 17：石油製品・石炭製品製造業 | BD18: 17：石油製品・石炭製品製造業(N=2) | BE18: =VLOOKUP(BE$13&"_"&$AV$8,データシート2!$A:$SI,MATCH($AV$5&"_"&$BA18&$AV$6,データシート2!$A$1:$SI$1,0),0) -> 2 | BF18: =VLOOKUP(BF$13&"_"&$AW$8,データシート2!$A:$SI,MATCH($AW$5&"_"&$BA18&$AW$6,データシート2!$A$1:$SI$1,0),0) -> 8.717 | BG18: 4.3585 | BH18: =VLOOKUP(BH$13&"_"&$AV$8,データシート2!$A:$SI,MATCH($AV$5&"_"&$BA18&$AV$6,データシート2!$A$1:$SI$1,0),0) -> 98 | BI18: =VLOOKUP(BI$13&"_"&$AW$8,データシート2!$A:$SI,MATCH($AW$5&"_"&$BA18&$AW$6,データシート2!$A$1:$SI$1,0),0) -> 685 | BJ18: 7 | BK18: 62%
P19: ［千t-CO2］ | AW19: 分類不能 | AX19: =P28 -> 0 | AY19: =AX19 -> 0 | BA19: 21 | BC19: 21：窯業・土石製品製造業 | BD19: 21：窯業・土石製品製造業(N=4) | BE19: =VLOOKUP(BE$13&"_"&$AV$8,データシート2!$A:$SI,MATCH($AV$5&"_"&$BA19&$AV$6,データシート2!$A$1:$SI$1,0),0) -> 4 | BF19: =VLOOKUP(BF$13&"_"&$AW$8,データシート2!$A:$SI,MATCH($AW$5&"_"&$BA19&$AW$6,データシート2!$A$1:$SI$1,0),0) -> 19.365 | BG19: 4.84125 | BH19: =VLOOKUP(BH$13&"_"&$AV$8,データシート2!$A:$SI,MATCH($AV$5&"_"&$BA19&$AV$6,データシート2!$A$1:$SI$1,0),0) -> 465 | BI19: =VLOOKUP(BI$13&"_"&$AW$8,データシート2!$A:$SI,MATCH($AW$5&"_"&$BA19&$AW$6,データシート2!$A$1:$SI$1,0),0) -> 53,491 | BJ19: 115 | BK19: 4%
C20: 部門 | F20: 平成23年度 | G20: 平成24年度 | H20: 平成25年度 | I20: 平成26年度 | J20: 平成27年度 | K20: 平成28年度 | L20: 平成29年度 | M20: 平成30年度 | N20: 令和元年度 | O20: 令和2年度 | P20: 令和3年度 | BA20: 22 | BC20: 22：鉄鋼業 | BD20: 22：鉄鋼業(N=10) | BE20: =VLOOKUP(BE$13&"_"&$AV$8,データシート2!$A:$SI,MATCH($AV$5&"_"&$BA20&$AV$6,データシート2!$A$1:$SI$1,0),0) -> 10 | BF20: =VLOOKUP(BF$13&"_"&$AW$8,データシート2!$A:$SI,MATCH($AW$5&"_"&$BA20&$AW$6,データシート2!$A$1:$SI$1,0),0) -> 64.423 | BG20: 6.4423 | BH20: =VLOOKUP(BH$13&"_"&$AV$8,データシート2!$A:$SI,MATCH($AV$5&"_"&$BA20&$AV$6,データシート2!$A$1:$SI$1,0),0) -> 475 | BI20: =VLOOKUP(BI$13&"_"&$AW$8,データシート2!$A:$SI,MATCH($AW$5&"_"&$BA20&$AW$6,データシート2!$A$1:$SI$1,0),0) -> 171,964 | BJ20: 362 | BK20: 2%
C21: 合計 | F21: =SUM(F22,F26,F27,F28) -> 1853.74 | G21: =SUM(G22,G26,G27,G28) -> 2124.251 | H21: 2173.998 | I21: 2412.618 | J21: 2367.675 | K21: 2540.127 | L21: 2605.851 | M21: 2327.323 | N21: 2239.275 | O21: 2053.105 | P21: =SUM(P22,P26,P27,P28) -> 2137.537 | AV21: ガス種別 | BA21: 9 | BB21: エネルギー多消費業種以外 （エネルギー転換部門を除く） | BC21: 9：食料品製造業 | BD21: 9：食料品製造業(N=4) | BE21: =VLOOKUP(BE$13&"_"&$AV$8,データシート2!$A:$SI,MATCH($AV$5&"_"&$BA21&$AV$6,データシート2!$A$1:$SI$1,0),0) -> 4 | BF21: =VLOOKUP(BF$13&"_"&$AW$8,データシート2!$A:$SI,MATCH($AW$5&"_"&$BA21&$AW$6,データシート2!$A$1:$SI$1,0),0) -> 19.803 | BG21: 4.95075 | BH21: =VLOOKUP(BH$13&"_"&$AV$8,データシート2!$A:$SI,MATCH($AV$5&"_"&$BA21&$AV$6,データシート2!$A$1:$SI$1,0),0) -> 1,407 | BI21: =VLOOKUP(BI$13&"_"&$AW$8,データシート2!$A:$SI,MATCH($AW$5&"_"&$BA21&$AW$6,データシート2!$A$1:$SI$1,0),0) -> 12,164 | BJ21: 9 | BK21: 57%
D22: 産業部門 | F22: =SUM(F23:F25) -> 1070.819 | G22: =SUM(G23:G25) -> 1172.714 | H22: 1293.667 | I22: 1440.206 | J22: 1474.678 | K22: 1628.175 | L22: 1704.263 | M22: 1520.177 | N22: 1418.993 | O22: 1289.903 | P22: 1376.995 | AC22: 区域のエネルギー起源CO2排出量 | AP22: ［千t-CO2］ | AV22: =AW22 -> エネルギー起源CO2 | AW22: =D56 -> エネルギー起源CO2 | AX22: =P56 -> 1,901 | AY22: =AX22 -> 1,901 | BA22: 10 | BC22: 10：飲料・たばこ・飼料製造業 | BD22: 10：飲料・たばこ・飼料製造業(N=0) | BE22: =VLOOKUP(BE$13&"_"&$AV$8,データシート2!$A:$SI,MATCH($AV$5&"_"&$BA22&$AV$6,データシート2!$A$1:$SI$1,0),0) -> 0 | BF22: =VLOOKUP(BF$13&"_"&$AW$8,データシート2!$A:$SI,MATCH($AW$5&"_"&$BA22&$AW$6,データシート2!$A$1:$SI$1,0),0) -> 0 | BH22: =VLOOKUP(BH$13&"_"&$AV$8,データシート2!$A:$SI,MATCH($AV$5&"_"&$BA22&$AV$6,データシート2!$A$1:$SI$1,0),0) -> 322 | BI22: =VLOOKUP(BI$13&"_"&$AW$8,データシート2!$A:$SI,MATCH($AW$5&"_"&$BA22&$AW$6,データシート2!$A$1:$SI$1,0),0) -> 3,405 | BJ22: 11
E23: 製造業 | F23: =IFERROR(VLOOKUP(年度マスタ!$K$4&"_"&F$20,データシート1!$A:$BU,MATCH("ba_"&$E23,データシート1!$A$1:$BU$1,0),0),0) -> 1067.517 | G23: =IFERROR(VLOOKUP(年度マスタ!$K$4&"_"&G$20,データシート1!$A:$BU,MATCH("ba_"&$E23,データシート1!$A$1:$BU$1,0),0),0) -> 1168.975 | H23: =IFERROR(VLOOKUP(年度マスタ!$K$4&"_"&H$20,データシート1!$A:$BU,MATCH("ba_"&$E23,データシート1!$A$1:$BU$1,0),0),0) -> 1293.667 | I23: =IFERROR(VLOOKUP(年度マスタ!$K$4&"_"&I$20,データシート1!$A:$BU,MATCH("ba_"&$E23,データシート1!$A$1:$BU$1,0),0),0) -> 1440.206 | J23: =IFERROR(VLOOKUP(年度マスタ!$K$4&"_"&J$20,データシート1!$A:$BU,MATCH("ba_"&$E23,データシート1!$A$1:$BU$1,0),0),0) -> 1474.678 | K23: =IFERROR(VLOOKUP(年度マスタ!$K$4&"_"&K$20,データシート1!$A:$BU,MATCH("ba_"&$E23,データシート1!$A$1:$BU$1,0),0),0) -> 1628.175 | L23: =IFERROR(VLOOKUP(年度マスタ!$K$4&"_"&L$20,データシート1!$A:$BU,MATCH("ba_"&$E23,データシート1!$A$1:$BU$1,0),0),0) -> 1704.263 | M23: =IFERROR(VLOOKUP(年度マスタ!$K$4&"_"&M$20,データシート1!$A:$BU,MATCH("ba_"&$E23,データシート1!$A$1:$BU$1,0),0),0) -> 1520.177 | N23: =IFERROR(VLOOKUP(年度マスタ!$K$4&"_"&N$20,データシート1!$A:$BU,MATCH("ba_"&$E23,データシート1!$A$1:$BU$1,0),0),0) -> 1411.875 | O23: =IFERROR(VLOOKUP(年度マスタ!$K$4&"_"&O$20,データシート1!$A:$BU,MATCH("ba_"&$E23,データシート1!$A$1:$BU$1,0),0),0) -> 1283.938 | P23: =IFERROR(VLOOKUP(年度マスタ!$K$4&"_"&P$20,データシート1!$A:$BU,MATCH("ba_"&$E23,データシート1!$A$1:$BU$1,0),0),0) -> 1371.448 | AC23: 部門 | AF23: 平成23年度 | AG23: 平成24年度 | AH23: 平成25年度 | AI23: 平成26年度 | AJ23: 平成27年度 | AK23: 平成28年度 | AL23: 平成29年度 | AM23: 平成30年度 | AN23: 令和元年度 | AO23: 令和2年度 | AP23: 令和3年度 | AV23: =AW23 -> 非エネルギー起源CO2 | AW23: =D57 -> 非エネルギー起源CO2 | AY23: =P57 -> 123 | BA23: 11 | BC23: 11：繊維工業 | BD23: =BC23&"(N="&BE23&")" -> 11：繊維工業(N=23) | BE23: =VLOOKUP(BE$13&"_"&$AV$8,データシート2!$A:$SI,MATCH($AV$5&"_"&$BA23&$AV$6,データシート2!$A$1:$SI$1,0),0) -> 23 | BF23: =VLOOKUP(BF$13&"_"&$AW$8,データシート2!$A:$SI,MATCH($AW$5&"_"&$BA23&$AW$6,データシート2!$A$1:$SI$1,0),0) -> 266.575 | BG23: =BF23/BE23 -> 11.59021739 | BH23: =VLOOKUP(BH$13&"_"&$AV$8,データシート2!$A:$SI,MATCH($AV$5&"_"&$BA23&$AV$6,データシート2!$A$1:$SI$1,0),0) -> 230 | BI23: =VLOOKUP(BI$13&"_"&$AW$8,データシート2!$A:$SI,MATCH($AW$5&"_"&$BA23&$AW$6,データシート2!$A$1:$SI$1,0),0) -> 4,563 | BJ23: =BI23/BH23 -> 20 | BK23: =BG23/BJ23 -> 58%
E24: 建設業・鉱業 | F24: =IFERROR(VLOOKUP(年度マスタ!$K$4&"_"&F$20,データシート1!$A:$BU,MATCH("ba_"&$E24,データシート1!$A$1:$BU$1,0),0),0) -> 3.302 | G24: =IFERROR(VLOOKUP(年度マスタ!$K$4&"_"&G$20,データシート1!$A:$BU,MATCH("ba_"&$E24,データシート1!$A$1:$BU$1,0),0),0) -> 3.739 | H24: =IFERROR(VLOOKUP(年度マスタ!$K$4&"_"&H$20,データシート1!$A:$BU,MATCH("ba_"&$E24,データシート1!$A$1:$BU$1,0),0),0) -> 0 | I24: =IFERROR(VLOOKUP(年度マスタ!$K$4&"_"&I$20,データシート1!$A:$BU,MATCH("ba_"&$E24,データシート1!$A$1:$BU$1,0),0),0) -> 0 | J24: =IFERROR(VLOOKUP(年度マスタ!$K$4&"_"&J$20,データシート1!$A:$BU,MATCH("ba_"&$E24,データシート1!$A$1:$BU$1,0),0),0) -> 0 | K24: =IFERROR(VLOOKUP(年度マスタ!$K$4&"_"&K$20,データシート1!$A:$BU,MATCH("ba_"&$E24,データシート1!$A$1:$BU$1,0),0),0) -> 0 | L24: =IFERROR(VLOOKUP(年度マスタ!$K$4&"_"&L$20,データシート1!$A:$BU,MATCH("ba_"&$E24,データシート1!$A$1:$BU$1,0),0),0) -> 0 | M24: =IFERROR(VLOOKUP(年度マスタ!$K$4&"_"&M$20,データシート1!$A:$BU,MATCH("ba_"&$E24,データシート1!$A$1:$BU$1,0),0),0) -> 0 | N24: =IFERROR(VLOOKUP(年度マスタ!$K$4&"_"&N$20,データシート1!$A:$BU,MATCH("ba_"&$E24,データシート1!$A$1:$BU$1,0),0),0) -> 0 | O24: =IFERROR(VLOOKUP(年度マスタ!$K$4&"_"&O$20,データシート1!$A:$BU,MATCH("ba_"&$E24,データシート1!$A$1:$BU$1,0),0),0) -> 0 | P24: =IFERROR(VLOOKUP(年度マスタ!$K$4&"_"&P$20,データシート1!$A:$BU,MATCH("ba_"&$E24,データシート1!$A$1:$BU$1,0),0),0) -> 0 | AC24: 産業・業務部門の合計 | AF24: =AF25+AF29 -> 5046.60858 | AG24: =AG25+AG29 -> 4992.939983 | AH24: 4997.75185 | AI24: 4717.891379 | AJ24: 4972.590337 | AK24: 4808.459969 | AL24: 4373.697766 | AM24: 4213.960978 | AN24: 3863.929894 | AO24: =AO25+AO29 -> 3708.657655 | AP24: 4241.665146 | AV24: =AW24 -> 廃棄物原燃料 | AW24: =E58 -> 廃棄物原燃料 | AX24: =P58 -> 17 | BA24: 12 | BC24: 12：木材・木製品製造業 | BD24: 12：木材・木製品製造業(N=1) | BE24: =VLOOKUP(BE$13&"_"&$AV$8,データシート2!$A:$SI,MATCH($AV$5&"_"&$BA24&$AV$6,データシート2!$A$1:$SI$1,0),0) -> 1 | BF24: =VLOOKUP(BF$13&"_"&$AW$8,データシート2!$A:$SI,MATCH($AW$5&"_"&$BA24&$AW$6,データシート2!$A$1:$SI$1,0),0) -> 9.612 | BG24: 9.612 | BH24: =VLOOKUP(BH$13&"_"&$AV$8,データシート2!$A:$SI,MATCH($AV$5&"_"&$BA24&$AV$6,データシート2!$A$1:$SI$1,0),0) -> 62 | BI24: =VLOOKUP(BI$13&"_"&$AW$8,データシート2!$A:$SI,MATCH($AW$5&"_"&$BA24&$AW$6,データシート2!$A$1:$SI$1,0),0) -> 542 | BJ24: 9 | BK24: 110%
E25: 農林水産業 | F25: =IFERROR(VLOOKUP(年度マスタ!$K$4&"_"&F$20,データシート1!$A:$BU,MATCH("ba_"&$E25,データシート1!$A$1:$BU$1,0),0),0) -> 0 | G25: =IFERROR(VLOOKUP(年度マスタ!$K$4&"_"&G$20,データシート1!$A:$BU,MATCH("ba_"&$E25,データシート1!$A$1:$BU$1,0),0),0) -> 0 | H25: =IFERROR(VLOOKUP(年度マスタ!$K$4&"_"&H$20,データシート1!$A:$BU,MATCH("ba_"&$E25,データシート1!$A$1:$BU$1,0),0),0) -> 0 | I25: =IFERROR(VLOOKUP(年度マスタ!$K$4&"_"&I$20,データシート1!$A:$BU,MATCH("ba_"&$E25,データシート1!$A$1:$BU$1,0),0),0) -> 0 | J25: =IFERROR(VLOOKUP(年度マスタ!$K$4&"_"&J$20,データシート1!$A:$BU,MATCH("ba_"&$E25,データシート1!$A$1:$BU$1,0),0),0) -> 0 | K25: =IFERROR(VLOOKUP(年度マスタ!$K$4&"_"&K$20,データシート1!$A:$BU,MATCH("ba_"&$E25,データシート1!$A$1:$BU$1,0),0),0) -> 0 | L25: =IFERROR(VLOOKUP(年度マスタ!$K$4&"_"&L$20,データシート1!$A:$BU,MATCH("ba_"&$E25,データシート1!$A$1:$BU$1,0),0),0) -> 0 | M25: =IFERROR(VLOOKUP(年度マスタ!$K$4&"_"&M$20,データシート1!$A:$BU,MATCH("ba_"&$E25,データシート1!$A$1:$BU$1,0),0),0) -> 0 | N25: =IFERROR(VLOOKUP(年度マスタ!$K$4&"_"&N$20,データシート1!$A:$BU,MATCH("ba_"&$E25,データシート1!$A$1:$BU$1,0),0),0) -> 7.118 | O25: =IFERROR(VLOOKUP(年度マスタ!$K$4&"_"&O$20,データシート1!$A:$BU,MATCH("ba_"&$E25,データシート1!$A$1:$BU$1,0),0),0) -> 5.965 | P25: =IFERROR(VLOOKUP(年度マスタ!$K$4&"_"&P$20,データシート1!$A:$BU,MATCH("ba_"&$E25,データシート1!$A$1:$BU$1,0),0),0) -> 5.547 | AD25: 産業部門 | AF25: =①CO2排出量の現状把握!Z35 -> 2386.700602 | AG25: =①CO2排出量の現状把握!AA35 -> 2326.695945 | AH25: =①CO2排出量の現状把握!AB35 -> 2293.215812 | AI25: =①CO2排出量の現状把握!AC35 -> 2157.628099 | AJ25: =①CO2排出量の現状把握!AD35 -> 2478.306478 | AK25: =①CO2排出量の現状把握!AE35 -> 2462.108459 | AL25: =①CO2排出量の現状把握!AF35 -> 2306.230837 | AM25: =①CO2排出量の現状把握!AG35 -> 2243.792935 | AN25: =①CO2排出量の現状把握!AH35 -> 2019.213585 | AO25: =①CO2排出量の現状把握!AI35 -> 2015.664502 | AP25: =①CO2排出量の現状把握!AJ35 -> 2456.507129 | AV25: =AW25 -> 廃棄物原燃料以外 | AW25: =E59 -> 廃棄物原燃料以外 | AX25: 106 | BA25: 13 | BC25: 13：家具・装備品製造業 | BD25: 13：家具・装備品製造業(N=1) | BE25: =VLOOKUP(BE$13&"_"&$AV$8,データシート2!$A:$SI,MATCH($AV$5&"_"&$BA25&$AV$6,データシート2!$A$1:$SI$1,0),0) -> 1 | BF25: =VLOOKUP(BF$13&"_"&$AW$8,データシート2!$A:$SI,MATCH($AW$5&"_"&$BA25&$AW$6,データシート2!$A$1:$SI$1,0),0) -> 3.357 | BG25: 3.357 | BH25: =VLOOKUP(BH$13&"_"&$AV$8,データシート2!$A:$SI,MATCH($AV$5&"_"&$BA25&$AV$6,データシート2!$A$1:$SI$1,0),0) -> 24 | BI25: =VLOOKUP(BI$13&"_"&$AW$8,データシート2!$A:$SI,MATCH($AW$5&"_"&$BA25&$AW$6,データシート2!$A$1:$SI$1,0),0) -> 112 | BJ25: 5 | BK25: 72%
D26: 業務その他部門 | F26: =IFERROR(VLOOKUP(年度マスタ!$K$4&"_"&F$20,データシート1!$A:$BU,MATCH("ba_"&$D26,データシート1!$A$1:$BU$1,0),0),0) -> 315.821 | G26: =IFERROR(VLOOKUP(年度マスタ!$K$4&"_"&G$20,データシート1!$A:$BU,MATCH("ba_"&$D26,データシート1!$A$1:$BU$1,0),0),0) -> 425.537 | H26: =IFERROR(VLOOKUP(年度マスタ!$K$4&"_"&H$20,データシート1!$A:$BU,MATCH("ba_"&$D26,データシート1!$A$1:$BU$1,0),0),0) -> 423.331 | I26: =IFERROR(VLOOKUP(年度マスタ!$K$4&"_"&I$20,データシート1!$A:$BU,MATCH("ba_"&$D26,データシート1!$A$1:$BU$1,0),0),0) -> 434.812 | J26: =IFERROR(VLOOKUP(年度マスタ!$K$4&"_"&J$20,データシート1!$A:$BU,MATCH("ba_"&$D26,データシート1!$A$1:$BU$1,0),0),0) -> 431.597 | K26: =IFERROR(VLOOKUP(年度マスタ!$K$4&"_"&K$20,データシート1!$A:$BU,MATCH("ba_"&$D26,データシート1!$A$1:$BU$1,0),0),0) -> 428.732 | L26: =IFERROR(VLOOKUP(年度マスタ!$K$4&"_"&L$20,データシート1!$A:$BU,MATCH("ba_"&$D26,データシート1!$A$1:$BU$1,0),0),0) -> 437.528 | M26: =IFERROR(VLOOKUP(年度マスタ!$K$4&"_"&M$20,データシート1!$A:$BU,MATCH("ba_"&$D26,データシート1!$A$1:$BU$1,0),0),0) -> 414.837 | N26: =IFERROR(VLOOKUP(年度マスタ!$K$4&"_"&N$20,データシート1!$A:$BU,MATCH("ba_"&$D26,データシート1!$A$1:$BU$1,0),0),0) -> 378.837 | O26: =IFERROR(VLOOKUP(年度マスタ!$K$4&"_"&O$20,データシート1!$A:$BU,MATCH("ba_"&$D26,データシート1!$A$1:$BU$1,0),0),0) -> 350.381 | P26: =IFERROR(VLOOKUP(年度マスタ!$K$4&"_"&P$20,データシート1!$A:$BU,MATCH("ba_"&$D26,データシート1!$A$1:$BU$1,0),0),0) -> 322.67 | AE26: 製造業 | AF26: =①CO2排出量の現状把握!Z36 -> 1930.7853 | AG26: =①CO2排出量の現状把握!AA36 -> 1895.713769 | AH26: =①CO2排出量の現状把握!AB36 -> 1918.071331 | AI26: =①CO2排出量の現状把握!AC36 -> 1812.912451 | AJ26: =①CO2排出量の現状把握!AD36 -> 2113.119873 | AK26: =①CO2排出量の現状把握!AE36 -> 2082.57344 | AL26: =①CO2排出量の現状把握!AF36 -> 1942.096017 | AM26: =①CO2排出量の現状把握!AG36 -> 1908.903978 | AN26: =①CO2排出量の現状把握!AH36 -> 1690.629371 | AO26: =①CO2排出量の現状把握!AI36 -> 1624.024867 | AP26: =①CO2排出量の現状把握!AJ36 -> 2064.147 | AV26: =AW26 -> CH4 | AW26: =D60 -> CH4 | AX26: 0 | AY26: =AX26 -> 0 | BA26: 15 | BC26: 15：印刷・同関連業 | BD26: 15：印刷・同関連業(N=4) | BE26: =VLOOKUP(BE$13&"_"&$AV$8,データシート2!$A:$SI,MATCH($AV$5&"_"&$BA26&$AV$6,データシート2!$A$1:$SI$1,0),0) -> 4 | BF26: =VLOOKUP(BF$13&"_"&$AW$8,データシート2!$A:$SI,MATCH($AW$5&"_"&$BA26&$AW$6,データシート2!$A$1:$SI$1,0),0) -> 18.607 | BG26: 4.65175 | BH26: =VLOOKUP(BH$13&"_"&$AV$8,データシート2!$A:$SI,MATCH($AV$5&"_"&$BA26&$AV$6,データシート2!$A$1:$SI$1,0),0) -> 189 | BI26: =VLOOKUP(BI$13&"_"&$AW$8,データシート2!$A:$SI,MATCH($AW$5&"_"&$BA26&$AW$6,データシート2!$A$1:$SI$1,0),0) -> 1,412 | BJ26: 7 | BK26: 62%
D27: エネルギー転換部門 | F27: =IFERROR(VLOOKUP(年度マスタ!$K$4&"_"&F$20,データシート1!$A:$BU,MATCH("ba_"&$D27,データシート1!$A$1:$BU$1,0),0),0) -> 467.1 | G27: =IFERROR(VLOOKUP(年度マスタ!$K$4&"_"&G$20,データシート1!$A:$BU,MATCH("ba_"&$D27,データシート1!$A$1:$BU$1,0),0),0) -> 526 | H27: =IFERROR(VLOOKUP(年度マスタ!$K$4&"_"&H$20,データシート1!$A:$BU,MATCH("ba_"&$D27,データシート1!$A$1:$BU$1,0),0),0) -> 457 | I27: =IFERROR(VLOOKUP(年度マスタ!$K$4&"_"&I$20,データシート1!$A:$BU,MATCH("ba_"&$D27,データシート1!$A$1:$BU$1,0),0),0) -> 537.6 | J27: =IFERROR(VLOOKUP(年度マスタ!$K$4&"_"&J$20,データシート1!$A:$BU,MATCH("ba_"&$D27,データシート1!$A$1:$BU$1,0),0),0) -> 461.4 | K27: =IFERROR(VLOOKUP(年度マスタ!$K$4&"_"&K$20,データシート1!$A:$BU,MATCH("ba_"&$D27,データシート1!$A$1:$BU$1,0),0),0) -> 483.22 | L27: =IFERROR(VLOOKUP(年度マスタ!$K$4&"_"&L$20,データシート1!$A:$BU,MATCH("ba_"&$D27,データシート1!$A$1:$BU$1,0),0),0) -> 464.06 | M27: =IFERROR(VLOOKUP(年度マスタ!$K$4&"_"&M$20,データシート1!$A:$BU,MATCH("ba_"&$D27,データシート1!$A$1:$BU$1,0),0),0) -> 392.309 | N27: =IFERROR(VLOOKUP(年度マスタ!$K$4&"_"&N$20,データシート1!$A:$BU,MATCH("ba_"&$D27,データシート1!$A$1:$BU$1,0),0),0) -> 441.445 | O27: =IFERROR(VLOOKUP(年度マスタ!$K$4&"_"&O$20,データシート1!$A:$BU,MATCH("ba_"&$D27,データシート1!$A$1:$BU$1,0),0),0) -> 412.821 | P27: =IFERROR(VLOOKUP(年度マスタ!$K$4&"_"&P$20,データシート1!$A:$BU,MATCH("ba_"&$D27,データシート1!$A$1:$BU$1,0),0),0) -> 437.872 | AE27: 建設業・鉱業 | AF27: =①CO2排出量の現状把握!Z37 -> 134.4251651 | AG27: =①CO2排出量の現状把握!AA37 -> 121.7325164 | AH27: =①CO2排出量の現状把握!AB37 -> 93.83818875 | AI27: =①CO2排出量の現状把握!AC37 -> 95.61424666 | AJ27: =①CO2排出量の現状把握!AD37 -> 95.37036247 | AK27: =①CO2排出量の現状把握!AE37 -> 95.59997268 | AL27: =①CO2排出量の現状把握!AF37 -> 91.88368868 | AM27: =①CO2排出量の現状把握!AG37 -> 83.87679246 | AN27: =①CO2排出量の現状把握!AH37 -> 75.71244166 | AO27: =①CO2排出量の現状把握!AI37 -> 80.09916744 | AP27: =①CO2排出量の現状把握!AJ37 -> 84.90731178 | AV27: =AW27 -> N2O | AW27: N2O | AX27: 23 | AY27: =AX27 -> 23 | BA27: 18 | BC27: 18：プラスチック製品製造業 | BD27: 18：プラスチック製品製造業(N=4) | BE27: =VLOOKUP(BE$13&"_"&$AV$8,データシート2!$A:$SI,MATCH($AV$5&"_"&$BA27&$AV$6,データシート2!$A$1:$SI$1,0),0) -> 4 | BF27: =VLOOKUP(BF$13&"_"&$AW$8,データシート2!$A:$SI,MATCH($AW$5&"_"&$BA27&$AW$6,データシート2!$A$1:$SI$1,0),0) -> 14.869 | BG27: 3.71725 | BH27: =VLOOKUP(BH$13&"_"&$AV$8,データシート2!$A:$SI,MATCH($AV$5&"_"&$BA27&$AV$6,データシート2!$A$1:$SI$1,0),0) -> 706 | BI27: =VLOOKUP(BI$13&"_"&$AW$8,データシート2!$A:$SI,MATCH($AW$5&"_"&$BA27&$AW$6,データシート2!$A$1:$SI$1,0),0) -> 6,123 | BJ27: 9 | BK27: 43%
D28: 分類不能 | F28: =IFERROR(VLOOKUP(年度マスタ!$K$4&"_"&F$20,データシート1!$A:$BU,MATCH("ba_"&$D28,データシート1!$A$1:$BU$1,0),0),0) -> 0 | G28: =IFERROR(VLOOKUP(年度マスタ!$K$4&"_"&G$20,データシート1!$A:$BU,MATCH("ba_"&$D28,データシート1!$A$1:$BU$1,0),0),0) -> 0 | H28: =IFERROR(VLOOKUP(年度マスタ!$K$4&"_"&H$20,データシート1!$A:$BU,MATCH("ba_"&$D28,データシート1!$A$1:$BU$1,0),0),0) -> 0 | I28: =IFERROR(VLOOKUP(年度マスタ!$K$4&"_"&I$20,データシート1!$A:$BU,MATCH("ba_"&$D28,データシート1!$A$1:$BU$1,0),0),0) -> 0 | J28: =IFERROR(VLOOKUP(年度マスタ!$K$4&"_"&J$20,データシート1!$A:$BU,MATCH("ba_"&$D28,データシート1!$A$1:$BU$1,0),0),0) -> 0 | K28: =IFERROR(VLOOKUP(年度マスタ!$K$4&"_"&K$20,データシート1!$A:$BU,MATCH("ba_"&$D28,データシート1!$A$1:$BU$1,0),0),0) -> 0 | L28: =IFERROR(VLOOKUP(年度マスタ!$K$4&"_"&L$20,データシート1!$A:$BU,MATCH("ba_"&$D28,データシート1!$A$1:$BU$1,0),0),0) -> 0 | M28: =IFERROR(VLOOKUP(年度マスタ!$K$4&"_"&M$20,データシート1!$A:$BU,MATCH("ba_"&$D28,データシート1!$A$1:$BU$1,0),0),0) -> 0 | N28: =IFERROR(VLOOKUP(年度マスタ!$K$4&"_"&N$20,データシート1!$A:$BU,MATCH("ba_"&$D28,データシート1!$A$1:$BU$1,0),0),0) -> 0 | O28: =IFERROR(VLOOKUP(年度マスタ!$K$4&"_"&O$20,データシート1!$A:$BU,MATCH("ba_"&$D28,データシート1!$A$1:$BU$1,0),0),0) -> 0 | P28: =IFERROR(VLOOKUP(年度マスタ!$K$4&"_"&P$20,データシート1!$A:$BU,MATCH("ba_"&$D28,データシート1!$A$1:$BU$1,0),0),0) -> 0 | AE28: 農林水産業 | AF28: =①CO2排出量の現状把握!Z38 -> 321.4901368 | AG28: =①CO2排出量の現状把握!AA38 -> 309.2496596 | AH28: =①CO2排出量の現状把握!AB38 -> 281.3062924 | AI28: =①CO2排出量の現状把握!AC38 -> 249.1014011 | AJ28: =①CO2排出量の現状把握!AD38 -> 269.8162427 | AK28: =①CO2排出量の現状把握!AE38 -> 283.9350468 | AL28: =①CO2排出量の現状把握!AF38 -> 272.2511319 | AM28: =①CO2排出量の現状把握!AG38 -> 251.0121642 | AN28: =①CO2排出量の現状把握!AH38 -> 252.8717718 | AO28: =①CO2排出量の現状把握!AI38 -> 311.5404672 | AP28: =①CO2排出量の現状把握!AJ38 -> 307.4528178 | AV28: HFC | AW28: HFC | AX28: 4 | AY28: 4 | BA28: 19 | BC28: 19：ゴム製品製造業 | BD28: 19：ゴム製品製造業(N=0) | BE28: =VLOOKUP(BE$13&"_"&$AV$8,データシート2!$A:$SI,MATCH($AV$5&"_"&$BA28&$AV$6,データシート2!$A$1:$SI$1,0),0) -> 0 | BF28: =VLOOKUP(BF$13&"_"&$AW$8,データシート2!$A:$SI,MATCH($AW$5&"_"&$BA28&$AW$6,データシート2!$A$1:$SI$1,0),0) -> 0 | BH28: =VLOOKUP(BH$13&"_"&$AV$8,データシート2!$A:$SI,MATCH($AV$5&"_"&$BA28&$AV$6,データシート2!$A$1:$SI$1,0),0) -> 148 | BI28: =VLOOKUP(BI$13&"_"&$AW$8,データシート2!$A:$SI,MATCH($AW$5&"_"&$BA28&$AW$6,データシート2!$A$1:$SI$1,0),0) -> 2,145 | BJ28: 14
AD29: 業務その他部門 | AF29: =①CO2排出量の現状把握!Z39 -> 2659.907978 | AG29: =①CO2排出量の現状把握!AA39 -> 2666.244037 | AH29: =①CO2排出量の現状把握!AB39 -> 2704.536037 | AI29: =①CO2排出量の現状把握!AC39 -> 2560.26328 | AJ29: =①CO2排出量の現状把握!AD39 -> 2494.283859 | AK29: =①CO2排出量の現状把握!AE39 -> 2346.35151 | AL29: =①CO2排出量の現状把握!AF39 -> 2067.466928 | AM29: =①CO2排出量の現状把握!AG39 -> 1970.168043 | AN29: =①CO2排出量の現状把握!AH39 -> 1844.716309 | AO29: =①CO2排出量の現状把握!AI39 -> 1692.993154 | AP29: =①CO2排出量の現状把握!AJ39 -> 1785.158017 | AV29: PFC | AW29: PFC | AX29: 59 | AY29: 59 | BA29: 20 | BC29: 20：なめし革・同製品・毛皮製造業 | BD29: 20：なめし革・同製品・毛皮製造業(N=0) | BE29: =VLOOKUP(BE$13&"_"&$AV$8,データシート2!$A:$SI,MATCH($AV$5&"_"&$BA29&$AV$6,データシート2!$A$1:$SI$1,0),0) -> 0 | BF29: =VLOOKUP(BF$13&"_"&$AW$8,データシート2!$A:$SI,MATCH($AW$5&"_"&$BA29&$AW$6,データシート2!$A$1:$SI$1,0),0) -> 0 | BH29: =VLOOKUP(BH$13&"_"&$AV$8,データシート2!$A:$SI,MATCH($AV$5&"_"&$BA29&$AV$6,データシート2!$A$1:$SI$1,0),0) -> 1 | BI29: =VLOOKUP(BI$13&"_"&$AW$8,データシート2!$A:$SI,MATCH($AW$5&"_"&$BA29&$AW$6,データシート2!$A$1:$SI$1,0),0) -> 6 | BJ29: 6
AC30: 区域のエネルギー起源CO2排出量における特定事業所の温室効果ガス排出量のカバー率 | AV30: SF6 | AW30: SF6 | AX30: 23 | AY30: 23 | BA30: 23 | BC30: 23：非鉄金属製造業 | BD30: 23：非鉄金属製造業(N=4) | BE30: =VLOOKUP(BE$13&"_"&$AV$8,データシート2!$A:$SI,MATCH($AV$5&"_"&$BA30&$AV$6,データシート2!$A$1:$SI$1,0),0) -> 4 | BF30: =VLOOKUP(BF$13&"_"&$AW$8,データシート2!$A:$SI,MATCH($AW$5&"_"&$BA30&$AW$6,データシート2!$A$1:$SI$1,0),0) -> 39.614 | BG30: 9.9035 | BH30: =VLOOKUP(BH$13&"_"&$AV$8,データシート2!$A:$SI,MATCH($AV$5&"_"&$BA30&$AV$6,データシート2!$A$1:$SI$1,0),0) -> 325 | BI30: =VLOOKUP(BI$13&"_"&$AW$8,データシート2!$A:$SI,MATCH($AW$5&"_"&$BA30&$AW$6,データシート2!$A$1:$SI$1,0),0) -> 8,872 | BJ30: 27 | BK30: 36%
AC31: 部門 | AF31: 平成23年度 | AG31: 平成24年度 | AH31: 平成25年度 | AI31: 平成26年度 | AJ31: 平成27年度 | AK31: 平成28年度 | AL31: 平成29年度 | AM31: 平成30年度 | AN31: 令和元年度 | AO31: 令和2年度 | AP31: 令和3年度 | AV31: NF3 | AW31: NF3 | AX31: 4 | AY31: 4 | BA31: 24 | BC31: 24：金属製品製造業 | BD31: 24：金属製品製造業(N=2) | BE31: =VLOOKUP(BE$13&"_"&$AV$8,データシート2!$A:$SI,MATCH($AV$5&"_"&$BA31&$AV$6,データシート2!$A$1:$SI$1,0),0) -> 2 | BF31: =VLOOKUP(BF$13&"_"&$AW$8,データシート2!$A:$SI,MATCH($AW$5&"_"&$BA31&$AW$6,データシート2!$A$1:$SI$1,0),0) -> 20.737 | BG31: 10.3685 | BH31: =VLOOKUP(BH$13&"_"&$AV$8,データシート2!$A:$SI,MATCH($AV$5&"_"&$BA31&$AV$6,データシート2!$A$1:$SI$1,0),0) -> 435 | BI31: =VLOOKUP(BI$13&"_"&$AW$8,データシート2!$A:$SI,MATCH($AW$5&"_"&$BA31&$AW$6,データシート2!$A$1:$SI$1,0),0) -> 3,684 | BJ31: 8 | BK31: 122%
AC32: 産業・業務部門の合計 | AF32: =IFERROR(IF(SUM(F23:F26)/AF24>1,1,SUM(F23:F26)/AF24),0) -> 27% | AG32: 32% | AH32: 34% | AI32: 40% | AJ32: 38% | AK32: 43% | AL32: 49% | AM32: 46% | AN32: 47% | AO32: 44% | AP32: 40% | BA32: 25 | BC32: 25：はん用機械器具製造業 | BD32: 25：はん用機械器具製造業(N=7) | BE32: =VLOOKUP(BE$13&"_"&$AV$8,データシート2!$A:$SI,MATCH($AV$5&"_"&$BA32&$AV$6,データシート2!$A$1:$SI$1,0),0) -> 7 | BF32: =VLOOKUP(BF$13&"_"&$AW$8,データシート2!$A:$SI,MATCH($AW$5&"_"&$BA32&$AW$6,データシート2!$A$1:$SI$1,0),0) -> 42.51 | BG32: 6.072857143 | BH32: =VLOOKUP(BH$13&"_"&$AV$8,データシート2!$A:$SI,MATCH($AV$5&"_"&$BA32&$AV$6,データシート2!$A$1:$SI$1,0),0) -> 205 | BI32: =VLOOKUP(BI$13&"_"&$AW$8,データシート2!$A:$SI,MATCH($AW$5&"_"&$BA32&$AW$6,データシート2!$A$1:$SI$1,0),0) -> 3,259 | BJ32: 16 | BK32: 38%
AD33: 産業部門 | AF33: =IFERROR(IF(F22/AF25>1,1,F22/AF25),0) -> 45% | AG33: =IFERROR(IF(G22/AG25>1,1,G22/AG25),0) -> 50% | AH33: 56% | AI33: 67% | AJ33: 60% | AK33: 66% | AL33: 74% | AM33: 68% | AN33: 70% | AO33: 64% | AP33: 56% | BA33: 26 | BC33: 26：生産用機械器具製造業 | BD33: 26：生産用機械器具製造業(N=12) | BE33: =VLOOKUP(BE$13&"_"&$AV$8,データシート2!$A:$SI,MATCH($AV$5&"_"&$BA33&$AV$6,データシート2!$A$1:$SI$1,0),0) -> 12 | BF33: =VLOOKUP(BF$13&"_"&$AW$8,データシート2!$A:$SI,MATCH($AW$5&"_"&$BA33&$AW$6,データシート2!$A$1:$SI$1,0),0) -> 84.571 | BG33: 7.047583333 | BH33: =VLOOKUP(BH$13&"_"&$AV$8,データシート2!$A:$SI,MATCH($AV$5&"_"&$BA33&$AV$6,データシート2!$A$1:$SI$1,0),0) -> 212 | BI33: =VLOOKUP(BI$13&"_"&$AW$8,データシート2!$A:$SI,MATCH($AW$5&"_"&$BA33&$AW$6,データシート2!$A$1:$SI$1,0),0) -> 1,659 | BJ33: 8 | BK33: 90%
AE34: 製造業 | AF34: =IFERROR(IF(F23/AF26>1,1,F23/AF26),0) -> 55% | AG34: =IFERROR(IF(G23/AG26>1,1,G23/AG26),0) -> 62% | AH34: 67% | AI34: 79% | AJ34: 70% | AK34: 78% | AL34: 88% | AM34: 80% | AN34: 84% | AO34: 79% | AP34: 66% | BA34: 27 | BC34: 27：業務用機械器具製造業 | BD34: 27：業務用機械器具製造業(N=1) | BE34: =VLOOKUP(BE$13&"_"&$AV$8,データシート2!$A:$SI,MATCH($AV$5&"_"&$BA34&$AV$6,データシート2!$A$1:$SI$1,0),0) -> 1 | BF34: =VLOOKUP(BF$13&"_"&$AW$8,データシート2!$A:$SI,MATCH($AW$5&"_"&$BA34&$AW$6,データシート2!$A$1:$SI$1,0),0) -> 9.866 | BG34: 9.866 | BH34: =VLOOKUP(BH$13&"_"&$AV$8,データシート2!$A:$SI,MATCH($AV$5&"_"&$BA34&$AV$6,データシート2!$A$1:$SI$1,0),0) -> 114 | BI34: =VLOOKUP(BI$13&"_"&$AW$8,データシート2!$A:$SI,MATCH($AW$5&"_"&$BA34&$AW$6,データシート2!$A$1:$SI$1,0),0) -> 1,183 | BJ34: 10 | BK34: 95%
B35: =D35 -> 0 | AE35: 建設業・鉱業 | AF35: =IFERROR(IF(F24/AF27>1,1,F24/AF27),0) -> 2% | AG35: 3% | AH35: =IFERROR(IF(H24/AH27>1,1,H24/AH27),0) -> 0% | AI35: 0% | AJ35: 0% | AK35: 0% | AL35: 0% | AM35: 0% | AN35: 0% | AO35: 0% | AP35: 0% | BA35: 28 | BC35: 28：電子部品等製造業 | BD35: 28：電子部品等製造業(N=14) | BE35: =VLOOKUP(BE$13&"_"&$AV$8,データシート2!$A:$SI,MATCH($AV$5&"_"&$BA35&$AV$6,データシート2!$A$1:$SI$1,0),0) -> 14 | BF35: =VLOOKUP(BF$13&"_"&$AW$8,データシート2!$A:$SI,MATCH($AW$5&"_"&$BA35&$AW$6,データシート2!$A$1:$SI$1,0),0) -> 577.035 | BG35: 41.21678571 | BH35: =VLOOKUP(BH$13&"_"&$AV$8,データシート2!$A:$SI,MATCH($AV$5&"_"&$BA35&$AV$6,データシート2!$A$1:$SI$1,0),0) -> 484 | BI35: =VLOOKUP(BI$13&"_"&$AW$8,データシート2!$A:$SI,MATCH($AW$5&"_"&$BA35&$AW$6,データシート2!$A$1:$SI$1,0),0) -> 16,441 | BJ35: 34 | BK35: 121%
B36: 0 | AE36: 農林水産業 | AF36: 0% | AG36: 0% | AH36: 0% | AI36: 0% | AJ36: 0% | AK36: 0% | AL36: 0% | AM36: 0% | AN36: 3% | AO36: 2% | AP36: 2% | BA36: 29 | BC36: 29：電気機械器具製造業 | BD36: 29：電気機械器具製造業(N=1) | BE36: =VLOOKUP(BE$13&"_"&$AV$8,データシート2!$A:$SI,MATCH($AV$5&"_"&$BA36&$AV$6,データシート2!$A$1:$SI$1,0),0) -> 1 | BF36: =VLOOKUP(BF$13&"_"&$AW$8,データシート2!$A:$SI,MATCH($AW$5&"_"&$BA36&$AW$6,データシート2!$A$1:$SI$1,0),0) -> 3.585 | BG36: 3.585 | BH36: =VLOOKUP(BH$13&"_"&$AV$8,データシート2!$A:$SI,MATCH($AV$5&"_"&$BA36&$AV$6,データシート2!$A$1:$SI$1,0),0) -> 316 | BI36: =VLOOKUP(BI$13&"_"&$AW$8,データシート2!$A:$SI,MATCH($AW$5&"_"&$BA36&$AW$6,データシート2!$A$1:$SI$1,0),0) -> 3,825 | BJ36: 12 | BK36: 30%
AD37: 業務その他部門 | AF37: =IFERROR(IF(F26/AF29>1,1,F26/AF29),0) -> 12% | AG37: =IFERROR(IF(G26/AG29>1,1,G26/AG29),0) -> 16% | AH37: 16% | AI37: 17% | AJ37: 17% | AK37: 18% | AL37: 21% | AM37: 21% | AN37: 21% | AO37: 21% | AP37: 18% | BA37: 30 | BC37: 30：情報通信機械器具製造業 | BD37: 30：情報通信機械器具製造業(N=1) | BE37: =VLOOKUP(BE$13&"_"&$AV$8,データシート2!$A:$SI,MATCH($AV$5&"_"&$BA37&$AV$6,データシート2!$A$1:$SI$1,0),0) -> 1 | BF37: =VLOOKUP(BF$13&"_"&$AW$8,データシート2!$A:$SI,MATCH($AW$5&"_"&$BA37&$AW$6,データシート2!$A$1:$SI$1,0),0) -> 2.148 | BG37: 2.148 | BH37: =VLOOKUP(BH$13&"_"&$AV$8,データシート2!$A:$SI,MATCH($AV$5&"_"&$BA37&$AV$6,データシート2!$A$1:$SI$1,0),0) -> 61 | BI37: =VLOOKUP(BI$13&"_"&$AW$8,データシート2!$A:$SI,MATCH($AW$5&"_"&$BA37&$AW$6,データシート2!$A$1:$SI$1,0),0) -> 410 | BJ37: 7 | BK37: 32%
BA38: 31 | BC38: 31：輸送用機械器具製造業 | BD38: 31：輸送用機械器具製造業(N=6) | BE38: =VLOOKUP(BE$13&"_"&$AV$8,データシート2!$A:$SI,MATCH($AV$5&"_"&$BA38&$AV$6,データシート2!$A$1:$SI$1,0),0) -> 6 | BF38: =VLOOKUP(BF$13&"_"&$AW$8,データシート2!$A:$SI,MATCH($AW$5&"_"&$BA38&$AW$6,データシート2!$A$1:$SI$1,0),0) -> 48.087 | BG38: 8.0145 | BH38: =VLOOKUP(BH$13&"_"&$AV$8,データシート2!$A:$SI,MATCH($AV$5&"_"&$BA38&$AV$6,データシート2!$A$1:$SI$1,0),0) -> 1,054 | BI38: =VLOOKUP(BI$13&"_"&$AW$8,データシート2!$A:$SI,MATCH($AW$5&"_"&$BA38&$AW$6,データシート2!$A$1:$SI$1,0),0) -> 14,506 | BJ38: 14 | BK38: 58%
BA39: 32 | BC39: 32：その他の製造業 | BD39: 32：その他の製造業(N=1) | BE39: =VLOOKUP(BE$13&"_"&$AV$8,データシート2!$A:$SI,MATCH($AV$5&"_"&$BA39&$AV$6,データシート2!$A$1:$SI$1,0),0) -> 1 | BF39: =VLOOKUP(BF$13&"_"&$AW$8,データシート2!$A:$SI,MATCH($AW$5&"_"&$BA39&$AW$6,データシート2!$A$1:$SI$1,0),0) -> 4.449 | BG39: 4.449 | BH39: =VLOOKUP(BH$13&"_"&$AV$8,データシート2!$A:$SI,MATCH($AV$5&"_"&$BA39&$AV$6,データシート2!$A$1:$SI$1,0),0) -> 78 | BI39: =VLOOKUP(BI$13&"_"&$AW$8,データシート2!$A:$SI,MATCH($AW$5&"_"&$BA39&$AW$6,データシート2!$A$1:$SI$1,0),0) -> 685 | BJ39: 9 | BK39: 51%
BA40: F | BB40: 業務その他部門 | BC40: F：電気・ガス・熱供給・水道業 | BD40: F：電気・ガス・熱供給・水道業(N=3) | BE40: =VLOOKUP(BE$13&"_"&$AV$8,データシート2!$A:$SI,MATCH($AV$5&"_"&$BA40&$AV$6,データシート2!$A$1:$SI$1,0),0) -> 3 | BF40: =VLOOKUP(BF$13&"_"&$AW$8,データシート2!$A:$SI,MATCH($AW$5&"_"&$BA40&$AW$6,データシート2!$A$1:$SI$1,0),0) -> 12.805 | BG40: =BF40/BE40 -> 4.268333333 | BH40: =VLOOKUP(BH$13&"_"&$AV$8,データシート2!$A:$SI,MATCH($AV$5&"_"&$BA40&$AV$6,データシート2!$A$1:$SI$1,0),0) -> 488 | BI40: =VLOOKUP(BI$13&"_"&$AW$8,データシート2!$A:$SI,MATCH($AW$5&"_"&$BA40&$AW$6,データシート2!$A$1:$SI$1,0),0) -> 4,823 | BJ40: =BI40/BH40 -> 10 | BK40: =BG40/BJ40 -> 43%
BA41: G | BC41: G：情報通信業 | BD41: G：情報通信業(N=3) | BE41: =VLOOKUP(BE$13&"_"&$AV$8,データシート2!$A:$SI,MATCH($AV$5&"_"&$BA41&$AV$6,データシート2!$A$1:$SI$1,0),0) -> 3 | BF41: =VLOOKUP(BF$13&"_"&$AW$8,データシート2!$A:$SI,MATCH($AW$5&"_"&$BA41&$AW$6,データシート2!$A$1:$SI$1,0),0) -> 8.266 | BG41: 2.755333333 | BH41: =VLOOKUP(BH$13&"_"&$AV$8,データシート2!$A:$SI,MATCH($AV$5&"_"&$BA41&$AV$6,データシート2!$A$1:$SI$1,0),0) -> 436 | BI41: =VLOOKUP(BI$13&"_"&$AW$8,データシート2!$A:$SI,MATCH($AW$5&"_"&$BA41&$AW$6,データシート2!$A$1:$SI$1,0),0) -> 3,694 | BJ41: 8 | BK41: 33%
AB42: 3 全国の1事業所当たりの排出傾向との比較 | BA42: H | BC42: H：運輸業，郵便業 | BD42: H：運輸業，郵便業(N=0) | BE42: =VLOOKUP(BE$13&"_"&$AV$8,データシート2!$A:$SI,MATCH($AV$5&"_"&$BA42&$AV$6,データシート2!$A$1:$SI$1,0),0) -> 0 | BF42: =VLOOKUP(BF$13&"_"&$AW$8,データシート2!$A:$SI,MATCH($AW$5&"_"&$BA42&$AW$6,データシート2!$A$1:$SI$1,0),0) -> 0 | BH42: =VLOOKUP(BH$13&"_"&$AV$8,データシート2!$A:$SI,MATCH($AV$5&"_"&$BA42&$AV$6,データシート2!$A$1:$SI$1,0),0) -> 181 | BI42: =VLOOKUP(BI$13&"_"&$AW$8,データシート2!$A:$SI,MATCH($AW$5&"_"&$BA42&$AW$6,データシート2!$A$1:$SI$1,0),0) -> 1,207 | BJ42: 7
BA43: I | BC43: I：卸売業，小売業 | BD43: I：卸売業，小売業(N=4) | BE43: =VLOOKUP(BE$13&"_"&$AV$8,データシート2!$A:$SI,MATCH($AV$5&"_"&$BA43&$AV$6,データシート2!$A$1:$SI$1,0),0) -> 4 | BF43: =VLOOKUP(BF$13&"_"&$AW$8,データシート2!$A:$SI,MATCH($AW$5&"_"&$BA43&$AW$6,データシート2!$A$1:$SI$1,0),0) -> 13.872 | BG43: 3.468 | BH43: =VLOOKUP(BH$13&"_"&$AV$8,データシート2!$A:$SI,MATCH($AV$5&"_"&$BA43&$AV$6,データシート2!$A$1:$SI$1,0),0) -> 613 | BI43: =VLOOKUP(BI$13&"_"&$AW$8,データシート2!$A:$SI,MATCH($AW$5&"_"&$BA43&$AW$6,データシート2!$A$1:$SI$1,0),0) -> 2,526 | BJ43: 4 | BK43: 84%
BA44: J | BC44: J：金融業，保険業 | BD44: J：金融業，保険業(N=0) | BE44: =VLOOKUP(BE$13&"_"&$AV$8,データシート2!$A:$SI,MATCH($AV$5&"_"&$BA44&$AV$6,データシート2!$A$1:$SI$1,0),0) -> 0 | BF44: =VLOOKUP(BF$13&"_"&$AW$8,データシート2!$A:$SI,MATCH($AW$5&"_"&$BA44&$AW$6,データシート2!$A$1:$SI$1,0),0) -> 0 | BH44: =VLOOKUP(BH$13&"_"&$AV$8,データシート2!$A:$SI,MATCH($AV$5&"_"&$BA44&$AV$6,データシート2!$A$1:$SI$1,0),0) -> 157 | BI44: =VLOOKUP(BI$13&"_"&$AW$8,データシート2!$A:$SI,MATCH($AW$5&"_"&$BA44&$AW$6,データシート2!$A$1:$SI$1,0),0) -> 767 | BJ44: 5
BA45: K | BC45: K：不動産業，物品賃貸業 | BD45: K：不動産業，物品賃貸業(N=1) | BE45: =VLOOKUP(BE$13&"_"&$AV$8,データシート2!$A:$SI,MATCH($AV$5&"_"&$BA45&$AV$6,データシート2!$A$1:$SI$1,0),0) -> 1 | BF45: =VLOOKUP(BF$13&"_"&$AW$8,データシート2!$A:$SI,MATCH($AW$5&"_"&$BA45&$AW$6,データシート2!$A$1:$SI$1,0),0) -> 3.242 | BG45: 3.242 | BH45: =VLOOKUP(BH$13&"_"&$AV$8,データシート2!$A:$SI,MATCH($AV$5&"_"&$BA45&$AV$6,データシート2!$A$1:$SI$1,0),0) -> 687 | BI45: =VLOOKUP(BI$13&"_"&$AW$8,データシート2!$A:$SI,MATCH($AW$5&"_"&$BA45&$AW$6,データシート2!$A$1:$SI$1,0),0) -> 3,705 | BJ45: 5 | BK45: 60%
BA46: L | BC46: L：学術研究,専門･技術ｻｰﾋﾞｽ業 | BD46: L：学術研究,専門･技術ｻｰﾋﾞｽ業(N=1) | BE46: =VLOOKUP(BE$13&"_"&$AV$8,データシート2!$A:$SI,MATCH($AV$5&"_"&$BA46&$AV$6,データシート2!$A$1:$SI$1,0),0) -> 1 | BF46: =VLOOKUP(BF$13&"_"&$AW$8,データシート2!$A:$SI,MATCH($AW$5&"_"&$BA46&$AW$6,データシート2!$A$1:$SI$1,0),0) -> 3.001 | BG46: 3.001 | BH46: =VLOOKUP(BH$13&"_"&$AV$8,データシート2!$A:$SI,MATCH($AV$5&"_"&$BA46&$AV$6,データシート2!$A$1:$SI$1,0),0) -> 127 | BI46: =VLOOKUP(BI$13&"_"&$AW$8,データシート2!$A:$SI,MATCH($AW$5&"_"&$BA46&$AW$6,データシート2!$A$1:$SI$1,0),0) -> 1,532 | BJ46: 12 | BK46: 25%
BA47: M | BC47: M：宿泊業，飲食サービス業 | BD47: M：宿泊業，飲食サービス業(N=6) | BE47: =VLOOKUP(BE$13&"_"&$AV$8,データシート2!$A:$SI,MATCH($AV$5&"_"&$BA47&$AV$6,データシート2!$A$1:$SI$1,0),0) -> 6 | BF47: =VLOOKUP(BF$13&"_"&$AW$8,データシート2!$A:$SI,MATCH($AW$5&"_"&$BA47&$AW$6,データシート2!$A$1:$SI$1,0),0) -> 16.986 | BG47: 2.831 | BH47: =VLOOKUP(BH$13&"_"&$AV$8,データシート2!$A:$SI,MATCH($AV$5&"_"&$BA47&$AV$6,データシート2!$A$1:$SI$1,0),0) -> 380 | BI47: =VLOOKUP(BI$13&"_"&$AW$8,データシート2!$A:$SI,MATCH($AW$5&"_"&$BA47&$AW$6,データシート2!$A$1:$SI$1,0),0) -> 1,783 | BJ47: 5 | BK47: 60%
BA48: N | BC48: N：生活関連ｻｰﾋﾞｽ業,娯楽業 | BD48: N：生活関連ｻｰﾋﾞｽ業,娯楽業(N=1) | BE48: =VLOOKUP(BE$13&"_"&$AV$8,データシート2!$A:$SI,MATCH($AV$5&"_"&$BA48&$AV$6,データシート2!$A$1:$SI$1,0),0) -> 1 | BF48: =VLOOKUP(BF$13&"_"&$AW$8,データシート2!$A:$SI,MATCH($AW$5&"_"&$BA48&$AW$6,データシート2!$A$1:$SI$1,0),0) -> 2.504 | BG48: 2.504 | BH48: =VLOOKUP(BH$13&"_"&$AV$8,データシート2!$A:$SI,MATCH($AV$5&"_"&$BA48&$AV$6,データシート2!$A$1:$SI$1,0),0) -> 202 | BI48: =VLOOKUP(BI$13&"_"&$AW$8,データシート2!$A:$SI,MATCH($AW$5&"_"&$BA48&$AW$6,データシート2!$A$1:$SI$1,0),0) -> 1,002 | BJ48: 5 | BK48: 50%
BA49: O | BC49: O：教育，学習支援業 | BD49: O：教育，学習支援業(N=5) | BE49: =VLOOKUP(BE$13&"_"&$AV$8,データシート2!$A:$SI,MATCH($AV$5&"_"&$BA49&$AV$6,データシート2!$A$1:$SI$1,0),0) -> 5 | BF49: =VLOOKUP(BF$13&"_"&$AW$8,データシート2!$A:$SI,MATCH($AW$5&"_"&$BA49&$AW$6,データシート2!$A$1:$SI$1,0),0) -> 71.319 | BG49: 14.2638 | BH49: =VLOOKUP(BH$13&"_"&$AV$8,データシート2!$A:$SI,MATCH($AV$5&"_"&$BA49&$AV$6,データシート2!$A$1:$SI$1,0),0) -> 393 | BI49: =VLOOKUP(BI$13&"_"&$AW$8,データシート2!$A:$SI,MATCH($AW$5&"_"&$BA49&$AW$6,データシート2!$A$1:$SI$1,0),0) -> 3,356 | BJ49: 9 | BK49: 167%
BA50: P | BC50: P：医療，福祉 | BD50: P：医療，福祉(N=11) | BE50: =VLOOKUP(BE$13&"_"&$AV$8,データシート2!$A:$SI,MATCH($AV$5&"_"&$BA50&$AV$6,データシート2!$A$1:$SI$1,0),0) -> 11 | BF50: =VLOOKUP(BF$13&"_"&$AW$8,データシート2!$A:$SI,MATCH($AW$5&"_"&$BA50&$AW$6,データシート2!$A$1:$SI$1,0),0) -> 49.88 | BG50: 4.534545455 | BH50: =VLOOKUP(BH$13&"_"&$AV$8,データシート2!$A:$SI,MATCH($AV$5&"_"&$BA50&$AV$6,データシート2!$A$1:$SI$1,0),0) -> 813 | BI50: =VLOOKUP(BI$13&"_"&$AW$8,データシート2!$A:$SI,MATCH($AW$5&"_"&$BA50&$AW$6,データシート2!$A$1:$SI$1,0),0) -> 4,507 | BJ50: 6 | BK50: 82%
BA51: Q | BC51: Q：複合サービス事業 | BD51: Q：複合サービス事業(N=1) | BE51: =VLOOKUP(BE$13&"_"&$AV$8,データシート2!$A:$SI,MATCH($AV$5&"_"&$BA51&$AV$6,データシート2!$A$1:$SI$1,0),0) -> 1 | BF51: =VLOOKUP(BF$13&"_"&$AW$8,データシート2!$A:$SI,MATCH($AW$5&"_"&$BA51&$AW$6,データシート2!$A$1:$SI$1,0),0) -> 6.285 | BG51: 6.285 | BH51: =VLOOKUP(BH$13&"_"&$AV$8,データシート2!$A:$SI,MATCH($AV$5&"_"&$BA51&$AV$6,データシート2!$A$1:$SI$1,0),0) -> 3 | BI51: =VLOOKUP(BI$13&"_"&$AW$8,データシート2!$A:$SI,MATCH($AW$5&"_"&$BA51&$AW$6,データシート2!$A$1:$SI$1,0),0) -> 17 | BJ51: 6 | BK51: 114%
BA52: R | BC52: R：ｻｰﾋﾞｽ業(他に分類されない) | BD52: =BC52&"(N="&BE52&")" -> R：ｻｰﾋﾞｽ業(他に分類されない)(N=6) | BE52: =VLOOKUP(BE$13&"_"&$AV$8,データシート2!$A:$SI,MATCH($AV$5&"_"&$BA52&$AV$6,データシート2!$A$1:$SI$1,0),0) -> 6 | BF52: =VLOOKUP(BF$13&"_"&$AW$8,データシート2!$A:$SI,MATCH($AW$5&"_"&$BA52&$AW$6,データシート2!$A$1:$SI$1,0),0) -> 123.768 | BG52: =BF52/BE52 -> 20.628 | BH52: =VLOOKUP(BH$13&"_"&$AV$8,データシート2!$A:$SI,MATCH($AV$5&"_"&$BA52&$AV$6,データシート2!$A$1:$SI$1,0),0) -> 641 | BI52: =VLOOKUP(BI$13&"_"&$AW$8,データシート2!$A:$SI,MATCH($AW$5&"_"&$BA52&$AW$6,データシート2!$A$1:$SI$1,0),0) -> 17,095 | BJ52: =BI52/BH52 -> 27 | BK52: =BG52/BJ52 -> 77%
P53: ［千t-CO2］ | BA53: S | BC53: S：公務 | BD53: =BC53&"(N="&BE53&")" -> S：公務(N=2) | BE53: =VLOOKUP(BE$13&"_"&$AV$8,データシート2!$A:$SI,MATCH($AV$5&"_"&$BA53&$AV$6,データシート2!$A$1:$SI$1,0),0) -> 2 | BF53: =VLOOKUP(BF$13&"_"&$AW$8,データシート2!$A:$SI,MATCH($AW$5&"_"&$BA53&$AW$6,データシート2!$A$1:$SI$1,0),0) -> 10.742 | BG53: =BF53/BE53 -> 5.371 | BH53: =VLOOKUP(BH$13&"_"&$AV$8,データシート2!$A:$SI,MATCH($AV$5&"_"&$BA53&$AV$6,データシート2!$A$1:$SI$1,0),0) -> 228 | BI53: =VLOOKUP(BI$13&"_"&$AW$8,データシート2!$A:$SI,MATCH($AW$5&"_"&$BA53&$AW$6,データシート2!$A$1:$SI$1,0),0) -> 1,056 | BJ53: =BI53/BH53 -> 5 | BK53: =BG53/BJ53 -> 116%
C54: 温室効果ガス種 | F54: 平成23年度 | G54: 平成24年度 | H54: 平成25年度 | I54: 平成26年度 | J54: 平成27年度 | K54: 平成28年度 | L54: 平成29年度 | M54: 平成30年度 | N54: 令和元年度 | O54: 令和2年度 | P54: 令和3年度 | BA54: 1711+1731 | BB54: エネルギー転換部門 | BC54: 石油精製業・コークス製造業 | BD54: =BC54&"(N="&BE54&")" -> 石油精製業・コークス製造業(N=0) | BE54: =BE58+BE59 -> 0 | BF54: =BF58+BF59 -> 0 | BH54: =BH58+BH59 -> 31 | BI54: =BI58+BI59 -> 27,295 | BJ54: 880
C55: 合計 | F55: =SUM(F56,F57,F60,F61,F62,F63,F64,F65,) -> 1853.74 | G55: =SUM(G56,G57,G60,G61,G62,G63,G64,G65,) -> 2124.251 | H55: 2173.998 | I55: 2412.618 | J55: 2367.675 | K55: 2540.127 | L55: 2605.851 | M55: 2327.323 | N55: 2239.275 | O55: 2053.105 | P55: 2137.537 | BA55: 3311+3312 | BC55: 発電所・変電所 | BD55: =BC55&"(N="&BE55&")" -> 発電所・変電所(N=3) | BE55: =BE60+BE61 -> 3 | BF55: =BF60+BF61 -> 437.872 | BG55: 145.9573333 | BH55: =BH60+BH61 -> 231 | BI55: =BI60+BI61 -> 22,953 | BJ55: 99 | BK55: 147%
C56: =D56 -> エネルギー起源CO2 | D56: エネルギー起源CO2 | F56: =IFERROR(VLOOKUP(年度マスタ!$K$4&"_"&F$54,データシート1!$A:$CE,MATCH("bc_"&$C56,データシート1!$A$1:$CE$1,0),0),0) -> 1747.338 | G56: =IFERROR(VLOOKUP(年度マスタ!$K$4&"_"&G$54,データシート1!$A:$CE,MATCH("bc_"&$C56,データシート1!$A$1:$CE$1,0),0),0) -> 2012.614 | H56: =IFERROR(VLOOKUP(年度マスタ!$K$4&"_"&H$54,データシート1!$A:$CE,MATCH("bc_"&$C56,データシート1!$A$1:$CE$1,0),0),0) -> 1978.64 | I56: =IFERROR(VLOOKUP(年度マスタ!$K$4&"_"&I$54,データシート1!$A:$CE,MATCH("bc_"&$C56,データシート1!$A$1:$CE$1,0),0),0) -> 2269.618 | J56: =IFERROR(VLOOKUP(年度マスタ!$K$4&"_"&J$54,データシート1!$A:$CE,MATCH("bc_"&$C56,データシート1!$A$1:$CE$1,0),0),0) -> 2204.375 | K56: =IFERROR(VLOOKUP(年度マスタ!$K$4&"_"&K$54,データシート1!$A:$CE,MATCH("bc_"&$C56,データシート1!$A$1:$CE$1,0),0),0) -> 2350.165 | L56: =IFERROR(VLOOKUP(年度マスタ!$K$4&"_"&L$54,データシート1!$A:$CE,MATCH("bc_"&$C56,データシート1!$A$1:$CE$1,0),0),0) -> 2430.585 | M56: =IFERROR(VLOOKUP(年度マスタ!$K$4&"_"&M$54,データシート1!$A:$CE,MATCH("bc_"&$C56,データシート1!$A$1:$CE$1,0),0),0) -> 2127.141 | N56: =IFERROR(VLOOKUP(年度マスタ!$K$4&"_"&N$54,データシート1!$A:$CE,MATCH("bc_"&$C56,データシート1!$A$1:$CE$1,0),0),0) -> 2071.172 | O56: =IFERROR(VLOOKUP(年度マスタ!$K$4&"_"&O$54,データシート1!$A:$CE,MATCH("bc_"&$C56,データシート1!$A$1:$CE$1,0),0),0) -> 1886.865 | P56: =IFERROR(VLOOKUP(年度マスタ!$K$4&"_"&P$54,データシート1!$A:$CE,MATCH("bc_"&$C56,データシート1!$A$1:$CE$1,0),0),0) -> 1900.511 | BA56: 3411 | BC56: ガス製造工場 | BD56: ガス製造工場(N=0) | BE56: =BE62 -> 0 | BF56: =BF62 -> 0 | BH56: =BH62 -> 30 | BI56: =BI62 -> 751 | BJ56: 25
D57: 非エネルギー起源CO2 | F57: =SUM(F58:F59) -> 64.714 | G57: =SUM(G58:G59) -> 82.637 | H57: 95.604 | I57: 95.584 | J57: 106.368 | K57: =SUM(K58:K59) -> 117.522 | L57: 124.738 | M57: 128.893 | N57: 126.341 | O57: 124.701 | P57: =SUM(P58:P59) -> 123.155 | BA57: 3511 | BC57: 熱供給業 | BD57: 熱供給業(N=0) | BE57: =BE63 -> 0 | BF57: =BF63 -> 0 | BH57: =BH63 -> 137 | BI57: =BI63 -> 553 | BJ57: 4
C58: 非エネルギー起源CO2（廃棄物の原燃料使用） | E58: 廃棄物原燃料 | F58: =IFERROR(VLOOKUP(年度マスタ!$K$4&"_"&F$54,データシート1!$A:$CE,MATCH("bc_"&$C58,データシート1!$A$1:$CE$1,0),0),0) -> 2.525 | G58: =IFERROR(VLOOKUP(年度マスタ!$K$4&"_"&G$54,データシート1!$A:$CE,MATCH("bc_"&$C58,データシート1!$A$1:$CE$1,0),0),0) -> 3.97 | H58: =IFERROR(VLOOKUP(年度マスタ!$K$4&"_"&H$54,データシート1!$A:$CE,MATCH("bc_"&$C58,データシート1!$A$1:$CE$1,0),0),0) -> 3.965 | I58: =IFERROR(VLOOKUP(年度マスタ!$K$4&"_"&I$54,データシート1!$A:$CE,MATCH("bc_"&$C58,データシート1!$A$1:$CE$1,0),0),0) -> 4.873 | J58: =IFERROR(VLOOKUP(年度マスタ!$K$4&"_"&J$54,データシート1!$A:$CE,MATCH("bc_"&$C58,データシート1!$A$1:$CE$1,0),0),0) -> 4.793 | K58: =IFERROR(VLOOKUP(年度マスタ!$K$4&"_"&K$54,データシート1!$A:$CE,MATCH("bc_"&$C58,データシート1!$A$1:$CE$1,0),0),0) -> 18.416 | L58: =IFERROR(VLOOKUP(年度マスタ!$K$4&"_"&L$54,データシート1!$A:$CE,MATCH("bc_"&$C58,データシート1!$A$1:$CE$1,0),0),0) -> 18.537 | M58: =IFERROR(VLOOKUP(年度マスタ!$K$4&"_"&M$54,データシート1!$A:$CE,MATCH("bc_"&$C58,データシート1!$A$1:$CE$1,0),0),0) -> 19.233 | N58: =IFERROR(VLOOKUP(年度マスタ!$K$4&"_"&N$54,データシート1!$A:$CE,MATCH("bc_"&$C58,データシート1!$A$1:$CE$1,0),0),0) -> 16.793 | O58: =IFERROR(VLOOKUP(年度マスタ!$K$4&"_"&O$54,データシート1!$A:$CE,MATCH("bc_"&$C58,データシート1!$A$1:$CE$1,0),0),0) -> 15.242 | P58: =IFERROR(VLOOKUP(年度マスタ!$K$4&"_"&P$54,データシート1!$A:$CE,MATCH("bc_"&$C58,データシート1!$A$1:$CE$1,0),0),0) -> 17.427 | BA58: 1711 | BD58: 石油精製業 | BE58: =VLOOKUP(BE$13&"_"&$AV$8,データシート2!$A:$SI,MATCH($AV$5&"_"&$BA58,データシート2!$A$1:$SI$1,0),0) -> 0 | BF58: =VLOOKUP(BF$13&"_"&$AW$8,データシート2!$A:$SI,MATCH($AW$5&"_"&$BA58,データシート2!$A$1:$SI$1,0),0) -> 0 | BH58: =VLOOKUP(BH$13&"_"&$AV$8,データシート2!$A:$SI,MATCH($AV$5&"_"&$BA58,データシート2!$A$1:$SI$1,0),0) -> 28 | BI58: =VLOOKUP(BI$13&"_"&$AW$8,データシート2!$A:$SI,MATCH($AW$5&"_"&$BA58,データシート2!$A$1:$SI$1,0),0) -> 25,772 | BJ58: 920
C59: 非エネルギー起源CO2 | E59: 廃棄物原燃料以外 | F59: =IFERROR(VLOOKUP(年度マスタ!$K$4&"_"&F$54,データシート1!$A:$CE,MATCH("bc_"&$C59,データシート1!$A$1:$CE$1,0),0),0) -> 62.189 | G59: =IFERROR(VLOOKUP(年度マスタ!$K$4&"_"&G$54,データシート1!$A:$CE,MATCH("bc_"&$C59,データシート1!$A$1:$CE$1,0),0),0) -> 78.667 | H59: =IFERROR(VLOOKUP(年度マスタ!$K$4&"_"&H$54,データシート1!$A:$CE,MATCH("bc_"&$C59,データシート1!$A$1:$CE$1,0),0),0) -> 91.639 | I59: =IFERROR(VLOOKUP(年度マスタ!$K$4&"_"&I$54,データシート1!$A:$CE,MATCH("bc_"&$C59,データシート1!$A$1:$CE$1,0),0),0) -> 90.711 | J59: =IFERROR(VLOOKUP(年度マスタ!$K$4&"_"&J$54,データシート1!$A:$CE,MATCH("bc_"&$C59,データシート1!$A$1:$CE$1,0),0),0) -> 101.575 | K59: =IFERROR(VLOOKUP(年度マスタ!$K$4&"_"&K$54,データシート1!$A:$CE,MATCH("bc_"&$C59,データシート1!$A$1:$CE$1,0),0),0) -> 99.106 | L59: =IFERROR(VLOOKUP(年度マスタ!$K$4&"_"&L$54,データシート1!$A:$CE,MATCH("bc_"&$C59,データシート1!$A$1:$CE$1,0),0),0) -> 106.201 | M59: =IFERROR(VLOOKUP(年度マスタ!$K$4&"_"&M$54,データシート1!$A:$CE,MATCH("bc_"&$C59,データシート1!$A$1:$CE$1,0),0),0) -> 109.66 | N59: =IFERROR(VLOOKUP(年度マスタ!$K$4&"_"&N$54,データシート1!$A:$CE,MATCH("bc_"&$C59,データシート1!$A$1:$CE$1,0),0),0) -> 109.548 | O59: =IFERROR(VLOOKUP(年度マスタ!$K$4&"_"&O$54,データシート1!$A:$CE,MATCH("bc_"&$C59,データシート1!$A$1:$CE$1,0),0),0) -> 109.459 | P59: =IFERROR(VLOOKUP(年度マスタ!$K$4&"_"&P$54,データシート1!$A:$CE,MATCH("bc_"&$C59,データシート1!$A$1:$CE$1,0),0),0) -> 105.728 | BA59: 1731 | BD59: コークス製造業 | BE59: =VLOOKUP(BE$13&"_"&$AV$8,データシート2!$A:$SI,MATCH($AV$5&"_"&$BA59,データシート2!$A$1:$SI$1,0),0) -> 0 | BF59: =VLOOKUP(BF$13&"_"&$AW$8,データシート2!$A:$SI,MATCH($AW$5&"_"&$BA59,データシート2!$A$1:$SI$1,0),0) -> 0 | BH59: =VLOOKUP(BH$13&"_"&$AV$8,データシート2!$A:$SI,MATCH($AV$5&"_"&$BA59,データシート2!$A$1:$SI$1,0),0) -> 3 | BI59: =VLOOKUP(BI$13&"_"&$AW$8,データシート2!$A:$SI,MATCH($AW$5&"_"&$BA59,データシート2!$A$1:$SI$1,0),0) -> 1,523 | BJ59: 508
C60: =D60 -> CH4 | D60: CH4 | F60: =IFERROR(VLOOKUP(年度マスタ!$K$4&"_"&F$54,データシート1!$A:$CE,MATCH("bc_"&$C60,データシート1!$A$1:$CE$1,0),0),0) -> 0 | G60: =IFERROR(VLOOKUP(年度マスタ!$K$4&"_"&G$54,データシート1!$A:$CE,MATCH("bc_"&$C60,データシート1!$A$1:$CE$1,0),0),0) -> 0 | H60: =IFERROR(VLOOKUP(年度マスタ!$K$4&"_"&H$54,データシート1!$A:$CE,MATCH("bc_"&$C60,データシート1!$A$1:$CE$1,0),0),0) -> 0 | I60: =IFERROR(VLOOKUP(年度マスタ!$K$4&"_"&I$54,データシート1!$A:$CE,MATCH("bc_"&$C60,データシート1!$A$1:$CE$1,0),0),0) -> 4.085 | J60: =IFERROR(VLOOKUP(年度マスタ!$K$4&"_"&J$54,データシート1!$A:$CE,MATCH("bc_"&$C60,データシート1!$A$1:$CE$1,0),0),0) -> 3.968 | K60: =IFERROR(VLOOKUP(年度マスタ!$K$4&"_"&K$54,データシート1!$A:$CE,MATCH("bc_"&$C60,データシート1!$A$1:$CE$1,0),0),0) -> 4.397 | L60: =IFERROR(VLOOKUP(年度マスタ!$K$4&"_"&L$54,データシート1!$A:$CE,MATCH("bc_"&$C60,データシート1!$A$1:$CE$1,0),0),0) -> 2.799 | M60: =IFERROR(VLOOKUP(年度マスタ!$K$4&"_"&M$54,データシート1!$A:$CE,MATCH("bc_"&$C60,データシート1!$A$1:$CE$1,0),0),0) -> 2.056 | N60: =IFERROR(VLOOKUP(年度マスタ!$K$4&"_"&N$54,データシート1!$A:$CE,MATCH("bc_"&$C60,データシート1!$A$1:$CE$1,0),0),0) -> 0 | O60: =IFERROR(VLOOKUP(年度マスタ!$K$4&"_"&O$54,データシート1!$A:$CE,MATCH("bc_"&$C60,データシート1!$A$1:$CE$1,0),0),0) -> 0 | P60: =IFERROR(VLOOKUP(年度マスタ!$K$4&"_"&P$54,データシート1!$A:$CE,MATCH("bc_"&$C60,データシート1!$A$1:$CE$1,0),0),0) -> 0 | BA60: 3311 | BD60: 発電所 | BE60: =VLOOKUP(BE$13&"_"&$AV$8,データシート2!$A:$SI,MATCH($AV$5&"_"&$BA60,データシート2!$A$1:$SI$1,0),0) -> 2 | BF60: =VLOOKUP(BF$13&"_"&$AW$8,データシート2!$A:$SI,MATCH($AW$5&"_"&$BA60,データシート2!$A$1:$SI$1,0),0) -> 430.956 | BG60: 215.478 | BH60: =VLOOKUP(BH$13&"_"&$AV$8,データシート2!$A:$SI,MATCH($AV$5&"_"&$BA60,データシート2!$A$1:$SI$1,0),0) -> 228 | BI60: =VLOOKUP(BI$13&"_"&$AW$8,データシート2!$A:$SI,MATCH($AW$5&"_"&$BA60,データシート2!$A$1:$SI$1,0),0) -> 22,932 | BJ60: 101 | BK60: 214%
B61: =AE32 -> 0 | C61: =D61 -> N2O | D61: N2O | F61: =IFERROR(VLOOKUP(年度マスタ!$K$4&"_"&F$54,データシート1!$A:$CE,MATCH("bc_"&$C61,データシート1!$A$1:$CE$1,0),0),0) -> 14 | G61: =IFERROR(VLOOKUP(年度マスタ!$K$4&"_"&G$54,データシート1!$A:$CE,MATCH("bc_"&$C61,データシート1!$A$1:$CE$1,0),0),0) -> 15 | H61: =IFERROR(VLOOKUP(年度マスタ!$K$4&"_"&H$54,データシート1!$A:$CE,MATCH("bc_"&$C61,データシート1!$A$1:$CE$1,0),0),0) -> 12 | I61: =IFERROR(VLOOKUP(年度マスタ!$K$4&"_"&I$54,データシート1!$A:$CE,MATCH("bc_"&$C61,データシート1!$A$1:$CE$1,0),0),0) -> 24.415 | J61: =IFERROR(VLOOKUP(年度マスタ!$K$4&"_"&J$54,データシート1!$A:$CE,MATCH("bc_"&$C61,データシート1!$A$1:$CE$1,0),0),0) -> 22.931 | K61: =IFERROR(VLOOKUP(年度マスタ!$K$4&"_"&K$54,データシート1!$A:$CE,MATCH("bc_"&$C61,データシート1!$A$1:$CE$1,0),0),0) -> 20.319 | L61: =IFERROR(VLOOKUP(年度マスタ!$K$4&"_"&L$54,データシート1!$A:$CE,MATCH("bc_"&$C61,データシート1!$A$1:$CE$1,0),0),0) -> 24.611 | M61: =IFERROR(VLOOKUP(年度マスタ!$K$4&"_"&M$54,データシート1!$A:$CE,MATCH("bc_"&$C61,データシート1!$A$1:$CE$1,0),0),0) -> 21.635 | N61: =IFERROR(VLOOKUP(年度マスタ!$K$4&"_"&N$54,データシート1!$A:$CE,MATCH("bc_"&$C61,データシート1!$A$1:$CE$1,0),0),0) -> 23.319 | O61: =IFERROR(VLOOKUP(年度マスタ!$K$4&"_"&O$54,データシート1!$A:$CE,MATCH("bc_"&$C61,データシート1!$A$1:$CE$1,0),0),0) -> 18.677 | P61: =IFERROR(VLOOKUP(年度マスタ!$K$4&"_"&P$54,データシート1!$A:$CE,MATCH("bc_"&$C61,データシート1!$A$1:$CE$1,0),0),0) -> 23.316 | BA61: 3312 | BD61: 変電所 | BE61: =VLOOKUP(BE$13&"_"&$AV$8,データシート2!$A:$SI,MATCH($AV$5&"_"&$BA61,データシート2!$A$1:$SI$1,0),0) -> 1 | BF61: =VLOOKUP(BF$13&"_"&$AW$8,データシート2!$A:$SI,MATCH($AW$5&"_"&$BA61,データシート2!$A$1:$SI$1,0),0) -> 6.916 | BG61: 6.916 | BH61: =VLOOKUP(BH$13&"_"&$AV$8,データシート2!$A:$SI,MATCH($AV$5&"_"&$BA61,データシート2!$A$1:$SI$1,0),0) -> 3 | BI61: =VLOOKUP(BI$13&"_"&$AW$8,データシート2!$A:$SI,MATCH($AW$5&"_"&$BA61,データシート2!$A$1:$SI$1,0),0) -> 20 | BJ61: 7 | BK61: 102%
B62: =AE33 -> 0 | C62: HFC | D62: HFC | F62: =IFERROR(VLOOKUP(年度マスタ!$K$4&"_"&F$54,データシート1!$A:$CE,MATCH("bc_"&$C62,データシート1!$A$1:$CE$1,0),0),0) -> 3.2 | G62: =IFERROR(VLOOKUP(年度マスタ!$K$4&"_"&G$54,データシート1!$A:$CE,MATCH("bc_"&$C62,データシート1!$A$1:$CE$1,0),0),0) -> 0 | H62: =IFERROR(VLOOKUP(年度マスタ!$K$4&"_"&H$54,データシート1!$A:$CE,MATCH("bc_"&$C62,データシート1!$A$1:$CE$1,0),0),0) -> 0 | I62: =IFERROR(VLOOKUP(年度マスタ!$K$4&"_"&I$54,データシート1!$A:$CE,MATCH("bc_"&$C62,データシート1!$A$1:$CE$1,0),0),0) -> 0 | J62: =IFERROR(VLOOKUP(年度マスタ!$K$4&"_"&J$54,データシート1!$A:$CE,MATCH("bc_"&$C62,データシート1!$A$1:$CE$1,0),0),0) -> 0 | K62: =IFERROR(VLOOKUP(年度マスタ!$K$4&"_"&K$54,データシート1!$A:$CE,MATCH("bc_"&$C62,データシート1!$A$1:$CE$1,0),0),0) -> 0 | L62: =IFERROR(VLOOKUP(年度マスタ!$K$4&"_"&L$54,データシート1!$A:$CE,MATCH("bc_"&$C62,データシート1!$A$1:$CE$1,0),0),0) -> 3.194 | M62: =IFERROR(VLOOKUP(年度マスタ!$K$4&"_"&M$54,データシート1!$A:$CE,MATCH("bc_"&$C62,データシート1!$A$1:$CE$1,0),0),0) -> 3.113 | N62: =IFERROR(VLOOKUP(年度マスタ!$K$4&"_"&N$54,データシート1!$A:$CE,MATCH("bc_"&$C62,データシート1!$A$1:$CE$1,0),0),0) -> 0 | O62: =IFERROR(VLOOKUP(年度マスタ!$K$4&"_"&O$54,データシート1!$A:$CE,MATCH("bc_"&$C62,データシート1!$A$1:$CE$1,0),0),0) -> 0 | P62: =IFERROR(VLOOKUP(年度マスタ!$K$4&"_"&P$54,データシート1!$A:$CE,MATCH("bc_"&$C62,データシート1!$A$1:$CE$1,0),0),0) -> 3.9 | BA62: 3411 | BD62: ガス製造工場 | BE62: =VLOOKUP(BE$13&"_"&$AV$8,データシート2!$A:$SI,MATCH($AV$5&"_"&$BA62,データシート2!$A$1:$SI$1,0),0) -> 0 | BF62: =VLOOKUP(BF$13&"_"&$AW$8,データシート2!$A:$SI,MATCH($AW$5&"_"&$BA62,データシート2!$A$1:$SI$1,0),0) -> 0 | BH62: =VLOOKUP(BH$13&"_"&$AV$8,データシート2!$A:$SI,MATCH($AV$5&"_"&$BA62,データシート2!$A$1:$SI$1,0),0) -> 30 | BI62: =VLOOKUP(BI$13&"_"&$AW$8,データシート2!$A:$SI,MATCH($AW$5&"_"&$BA62,データシート2!$A$1:$SI$1,0),0) -> 751 | BJ62: 25
B63: =AD34 -> 0 | C63: PFC | D63: PFC | F63: =IFERROR(VLOOKUP(年度マスタ!$K$4&"_"&F$54,データシート1!$A:$CE,MATCH("bc_"&$C63,データシート1!$A$1:$CE$1,0),0),0) -> 20 | G63: =IFERROR(VLOOKUP(年度マスタ!$K$4&"_"&G$54,データシート1!$A:$CE,MATCH("bc_"&$C63,データシート1!$A$1:$CE$1,0),0),0) -> 14 | H63: =IFERROR(VLOOKUP(年度マスタ!$K$4&"_"&H$54,データシート1!$A:$CE,MATCH("bc_"&$C63,データシート1!$A$1:$CE$1,0),0),0) -> 42.44 | I63: =IFERROR(VLOOKUP(年度マスタ!$K$4&"_"&I$54,データシート1!$A:$CE,MATCH("bc_"&$C63,データシート1!$A$1:$CE$1,0),0),0) -> 15.088 | J63: =IFERROR(VLOOKUP(年度マスタ!$K$4&"_"&J$54,データシート1!$A:$CE,MATCH("bc_"&$C63,データシート1!$A$1:$CE$1,0),0),0) -> 20.25 | K63: =IFERROR(VLOOKUP(年度マスタ!$K$4&"_"&K$54,データシート1!$A:$CE,MATCH("bc_"&$C63,データシート1!$A$1:$CE$1,0),0),0) -> 20.712 | L63: =IFERROR(VLOOKUP(年度マスタ!$K$4&"_"&L$54,データシート1!$A:$CE,MATCH("bc_"&$C63,データシート1!$A$1:$CE$1,0),0),0) -> 19.924 | M63: =IFERROR(VLOOKUP(年度マスタ!$K$4&"_"&M$54,データシート1!$A:$CE,MATCH("bc_"&$C63,データシート1!$A$1:$CE$1,0),0),0) -> 25.878 | N63: =IFERROR(VLOOKUP(年度マスタ!$K$4&"_"&N$54,データシート1!$A:$CE,MATCH("bc_"&$C63,データシート1!$A$1:$CE$1,0),0),0) -> 18.443 | O63: =IFERROR(VLOOKUP(年度マスタ!$K$4&"_"&O$54,データシート1!$A:$CE,MATCH("bc_"&$C63,データシート1!$A$1:$CE$1,0),0),0) -> 18 | P63: =IFERROR(VLOOKUP(年度マスタ!$K$4&"_"&P$54,データシート1!$A:$CE,MATCH("bc_"&$C63,データシート1!$A$1:$CE$1,0),0),0) -> 59.348 | BA63: 3511 | BD63: 熱供給業 | BE63: =VLOOKUP(BE$13&"_"&$AV$8,データシート2!$A:$SI,MATCH($AV$5&"_"&$BA63,データシート2!$A$1:$SI$1,0),0) -> 0 | BF63: =VLOOKUP(BF$13&"_"&$AW$8,データシート2!$A:$SI,MATCH($AW$5&"_"&$BA63,データシート2!$A$1:$SI$1,0),0) -> 0 | BH63: =VLOOKUP(BH$13&"_"&$AV$8,データシート2!$A:$SI,MATCH($AV$5&"_"&$BA63,データシート2!$A$1:$SI$1,0),0) -> 137 | BI63: =VLOOKUP(BI$13&"_"&$AW$8,データシート2!$A:$SI,MATCH($AW$5&"_"&$BA63,データシート2!$A$1:$SI$1,0),0) -> 553 | BJ63: 4
B64: =AD35 -> 0 | C64: SF6 | D64: SF6 | F64: =IFERROR(VLOOKUP(年度マスタ!$K$4&"_"&F$54,データシート1!$A:$CE,MATCH("bc_"&$C64,データシート1!$A$1:$CE$1,0),0),0) -> 4.488 | G64: =IFERROR(VLOOKUP(年度マスタ!$K$4&"_"&G$54,データシート1!$A:$CE,MATCH("bc_"&$C64,データシート1!$A$1:$CE$1,0),0),0) -> 0 | H64: =IFERROR(VLOOKUP(年度マスタ!$K$4&"_"&H$54,データシート1!$A:$CE,MATCH("bc_"&$C64,データシート1!$A$1:$CE$1,0),0),0) -> 45.314 | I64: =IFERROR(VLOOKUP(年度マスタ!$K$4&"_"&I$54,データシート1!$A:$CE,MATCH("bc_"&$C64,データシート1!$A$1:$CE$1,0),0),0) -> 3.828 | J64: =IFERROR(VLOOKUP(年度マスタ!$K$4&"_"&J$54,データシート1!$A:$CE,MATCH("bc_"&$C64,データシート1!$A$1:$CE$1,0),0),0) -> 9.783 | K64: =IFERROR(VLOOKUP(年度マスタ!$K$4&"_"&K$54,データシート1!$A:$CE,MATCH("bc_"&$C64,データシート1!$A$1:$CE$1,0),0),0) -> 27.012 | L64: =IFERROR(VLOOKUP(年度マスタ!$K$4&"_"&L$54,データシート1!$A:$CE,MATCH("bc_"&$C64,データシート1!$A$1:$CE$1,0),0),0) -> 0 | M64: =IFERROR(VLOOKUP(年度マスタ!$K$4&"_"&M$54,データシート1!$A:$CE,MATCH("bc_"&$C64,データシート1!$A$1:$CE$1,0),0),0) -> 18.607 | N64: =IFERROR(VLOOKUP(年度マスタ!$K$4&"_"&N$54,データシート1!$A:$CE,MATCH("bc_"&$C64,データシート1!$A$1:$CE$1,0),0),0) -> 0 | O64: =IFERROR(VLOOKUP(年度マスタ!$K$4&"_"&O$54,データシート1!$A:$CE,MATCH("bc_"&$C64,データシート1!$A$1:$CE$1,0),0),0) -> 4.862 | P64: =IFERROR(VLOOKUP(年度マスタ!$K$4&"_"&P$54,データシート1!$A:$CE,MATCH("bc_"&$C64,データシート1!$A$1:$CE$1,0),0),0) -> 23.179
C65: NF3 | D65: NF3 | F65: =IFERROR(VLOOKUP(年度マスタ!$K$4&"_"&F$54,データシート1!$A:$CE,MATCH("bc_"&$C65,データシート1!$A$1:$CE$1,0),0),0) -> 0 | G65: =IFERROR(VLOOKUP(年度マスタ!$K$4&"_"&G$54,データシート1!$A:$CE,MATCH("bc_"&$C65,データシート1!$A$1:$CE$1,0),0),0) -> 0 | H65: =IFERROR(VLOOKUP(年度マスタ!$K$4&"_"&H$54,データシート1!$A:$CE,MATCH("bc_"&$C65,データシート1!$A$1:$CE$1,0),0),0) -> 0 | I65: =IFERROR(VLOOKUP(年度マスタ!$K$4&"_"&I$54,データシート1!$A:$CE,MATCH("bc_"&$C65,データシート1!$A$1:$CE$1,0),0),0) -> 0 | J65: =IFERROR(VLOOKUP(年度マスタ!$K$4&"_"&J$54,データシート1!$A:$CE,MATCH("bc_"&$C65,データシート1!$A$1:$CE$1,0),0),0) -> 0 | K65: =IFERROR(VLOOKUP(年度マスタ!$K$4&"_"&K$54,データシート1!$A:$CE,MATCH("bc_"&$C65,データシート1!$A$1:$CE$1,0),0),0) -> 0 | L65: =IFERROR(VLOOKUP(年度マスタ!$K$4&"_"&L$54,データシート1!$A:$CE,MATCH("bc_"&$C65,データシート1!$A$1:$CE$1,0),0),0) -> 0 | M65: =IFERROR(VLOOKUP(年度マスタ!$K$4&"_"&M$54,データシート1!$A:$CE,MATCH("bc_"&$C65,データシート1!$A$1:$CE$1,0),0),0) -> 0 | N65: =IFERROR(VLOOKUP(年度マスタ!$K$4&"_"&N$54,データシート1!$A:$CE,MATCH("bc_"&$C65,データシート1!$A$1:$CE$1,0),0),0) -> 0 | O65: =IFERROR(VLOOKUP(年度マスタ!$K$4&"_"&O$54,データシート1!$A:$CE,MATCH("bc_"&$C65,データシート1!$A$1:$CE$1,0),0),0) -> 0 | P65: =IFERROR(VLOOKUP(年度マスタ!$K$4&"_"&P$54,データシート1!$A:$CE,MATCH("bc_"&$C65,データシート1!$A$1:$CE$1,0),0),0) -> 4.128
B66: =AD36 -> 0

Sheet ④再エネ導入量・ポテンシャルの現状把握
B1: 自治体排出量カルテ④ 地方公共団体の再生可能エネルギー導入状況及び導入ポテンシャルの現状把握 | AE1: =年度マスタ!J4 -> 石川県
B2: 1 地方公共団体のFIT・FIP制度による再生可能エネルギー（電気）※1 | U2: 2 地方公共団体の再生可能エネルギーの導入ポテンシャル※7
R3: ［kW］
C4: 1）区域の再生可能エネルギーの導入設備容量 | J4: 区域の再生可能エネルギーの導入設備容量 | V4: 5）導入ポテンシャル（電気のみ・設備容量） | AC4: 設備容量 ［kW］ | AD4: 発電電力量［MWh/年］ | AE4: 導入ポテンシャル ［億MJ/年］
C5: （令和5年度） | J5: 平成27年度 | K5: 平成28年度 | L5: 平成29年度 | M5: 平成30年度 | N5: 令和元年度 | O5: 令和2年度 | P5: 令和3年度 | Q5: 令和4年度 | R5: 令和5年度
G6: 太陽光発電（10kW未満） | J6: =VLOOKUP(年度マスタ!$K$4&"_"&J$5,データシート1!$A:$BT,MATCH("cb_"&$G6,データシート1!$A$1:$BT$1,0),0) -> 39,715 | K6: =VLOOKUP(年度マスタ!$K$4&"_"&K$5,データシート1!$A:$BT,MATCH("cb_"&$G6,データシート1!$A$1:$BT$1,0),0) -> 45,383 | L6: =VLOOKUP(年度マスタ!$K$4&"_"&L$5,データシート1!$A:$BT,MATCH("cb_"&$G6,データシート1!$A$1:$BT$1,0),0) -> 50,497 | M6: =VLOOKUP(年度マスタ!$K$4&"_"&M$5,データシート1!$A:$BT,MATCH("cb_"&$G6,データシート1!$A$1:$BT$1,0),0) -> 57,454 | N6: =VLOOKUP(年度マスタ!$K$4&"_"&N$5,データシート1!$A:$BT,MATCH("cb_"&$G6,データシート1!$A$1:$BT$1,0),0) -> 61,135 | O6: =VLOOKUP(年度マスタ!$K$4&"_"&O$5,データシート1!$A:$BT,MATCH("cb_"&$G6,データシート1!$A$1:$BT$1,0),0) -> 65,776 | P6: =VLOOKUP(年度マスタ!$K$4&"_"&P$5,データシート1!$A:$BT,MATCH("cb_"&$G6,データシート1!$A$1:$BT$1,0),0) -> 72,522 | Q6: =VLOOKUP(年度マスタ!$K$4&"_"&Q$5,データシート1!$A:$BT,MATCH("cb_"&$G6,データシート1!$A$1:$BT$1,0),0) -> 77,271 | R6: =VLOOKUP(年度マスタ!$K$4&"_"&R$5,データシート1!$A:$BT,MATCH("cb_"&$G6,データシート1!$A$1:$BT$1,0),0) -> 82,923 | Y6: 太陽光発電（合計） | Z6: 太陽光発電 | AC6: =SUM(AC7:AC8) -> 15,998,761 | AD6: =SUM(AD7:AD8) -> 19,272,514 | AE6: =$AD6*3600/100000000 -> 694
G7: 太陽光発電（10kW以上） | J7: =VLOOKUP(年度マスタ!$K$4&"_"&J$5,データシート1!$A:$BT,MATCH("cb_"&$G7,データシート1!$A$1:$BT$1,0),0) -> 182,784 | K7: =VLOOKUP(年度マスタ!$K$4&"_"&K$5,データシート1!$A:$BT,MATCH("cb_"&$G7,データシート1!$A$1:$BT$1,0),0) -> 259,034 | L7: =VLOOKUP(年度マスタ!$K$4&"_"&L$5,データシート1!$A:$BT,MATCH("cb_"&$G7,データシート1!$A$1:$BT$1,0),0) -> 290,294 | M7: =VLOOKUP(年度マスタ!$K$4&"_"&M$5,データシート1!$A:$BT,MATCH("cb_"&$G7,データシート1!$A$1:$BT$1,0),0) -> 417,680 | N7: =VLOOKUP(年度マスタ!$K$4&"_"&N$5,データシート1!$A:$BT,MATCH("cb_"&$G7,データシート1!$A$1:$BT$1,0),0) -> 447,308 | O7: =VLOOKUP(年度マスタ!$K$4&"_"&O$5,データシート1!$A:$BT,MATCH("cb_"&$G7,データシート1!$A$1:$BT$1,0),0) -> 479,808 | P7: =VLOOKUP(年度マスタ!$K$4&"_"&P$5,データシート1!$A:$BT,MATCH("cb_"&$G7,データシート1!$A$1:$BT$1,0),0) -> 484,983 | Q7: =VLOOKUP(年度マスタ!$K$4&"_"&Q$5,データシート1!$A:$BT,MATCH("cb_"&$G7,データシート1!$A$1:$BT$1,0),0) -> 584,371 | R7: =VLOOKUP(年度マスタ!$K$4&"_"&R$5,データシート1!$A:$BT,MATCH("cb_"&$G7,データシート1!$A$1:$BT$1,0),0) -> 584,653 | Y7: 太陽光（建物系） | Z7: 建物系 | AC7: =VLOOKUP(年度マスタ!$K$4&"_"&年度マスタ!$K$9,データシート3!A:AB,MATCH("ea_"&$Y7&"_設備",データシート3!$A$1:$AB$1,0),0) -> 5,491,448 | AD7: =VLOOKUP(年度マスタ!$K$4&"_"&年度マスタ!$K$9,データシート3!A:AB,MATCH("ea_"&$Y7&"_年間発電",データシート3!$A$1:$AB$1,0),0)/10^3 -> 6,598,691 | AE7: =$AD7*3600/100000000 -> 238
G8: 風力発電 | J8: =VLOOKUP(年度マスタ!$K$4&"_"&J$5,データシート1!$A:$BT,MATCH("cb_"&$G8,データシート1!$A$1:$BT$1,0),0) -> 124,500 | K8: =VLOOKUP(年度マスタ!$K$4&"_"&K$5,データシート1!$A:$BT,MATCH("cb_"&$G8,データシート1!$A$1:$BT$1,0),0) -> 124,526 | L8: =VLOOKUP(年度マスタ!$K$4&"_"&L$5,データシート1!$A:$BT,MATCH("cb_"&$G8,データシート1!$A$1:$BT$1,0),0) -> 124,526 | M8: =VLOOKUP(年度マスタ!$K$4&"_"&M$5,データシート1!$A:$BT,MATCH("cb_"&$G8,データシート1!$A$1:$BT$1,0),0) -> 124,526 | N8: =VLOOKUP(年度マスタ!$K$4&"_"&N$5,データシート1!$A:$BT,MATCH("cb_"&$G8,データシート1!$A$1:$BT$1,0),0) -> 132,006 | O8: =VLOOKUP(年度マスタ!$K$4&"_"&O$5,データシート1!$A:$BT,MATCH("cb_"&$G8,データシート1!$A$1:$BT$1,0),0) -> 132,026 | P8: =VLOOKUP(年度マスタ!$K$4&"_"&P$5,データシート1!$A:$BT,MATCH("cb_"&$G8,データシート1!$A$1:$BT$1,0),0) -> 132,026 | Q8: =VLOOKUP(年度マスタ!$K$4&"_"&Q$5,データシート1!$A:$BT,MATCH("cb_"&$G8,データシート1!$A$1:$BT$1,0),0) -> 132,026 | R8: =VLOOKUP(年度マスタ!$K$4&"_"&R$5,データシート1!$A:$BT,MATCH("cb_"&$G8,データシート1!$A$1:$BT$1,0),0) -> 110,426 | Y8: 太陽光（土地系） | Z8: 土地系 | AC8: =VLOOKUP(年度マスタ!$K$4&"_"&年度マスタ!$K$9,データシート3!A:AB,MATCH("ea_"&$Y8&"_設備",データシート3!$A$1:$AB$1,0),0) -> 10,507,313 | AD8: =VLOOKUP(年度マスタ!$K$4&"_"&年度マスタ!$K$9,データシート3!A:AB,MATCH("ea_"&$Y8&"_年間発電",データシート3!$A$1:$AB$1,0),0)/10^3 -> 12,673,824 | AE8: 456
G9: 水力発電 | J9: =VLOOKUP(年度マスタ!$K$4&"_"&J$5,データシート1!$A:$BT,MATCH("cb_"&$G9,データシート1!$A$1:$BT$1,0),0) -> 1,759 | K9: =VLOOKUP(年度マスタ!$K$4&"_"&K$5,データシート1!$A:$BT,MATCH("cb_"&$G9,データシート1!$A$1:$BT$1,0),0) -> 1,759 | L9: =VLOOKUP(年度マスタ!$K$4&"_"&L$5,データシート1!$A:$BT,MATCH("cb_"&$G9,データシート1!$A$1:$BT$1,0),0) -> 1,766 | M9: =VLOOKUP(年度マスタ!$K$4&"_"&M$5,データシート1!$A:$BT,MATCH("cb_"&$G9,データシート1!$A$1:$BT$1,0),0) -> 2,346 | N9: =VLOOKUP(年度マスタ!$K$4&"_"&N$5,データシート1!$A:$BT,MATCH("cb_"&$G9,データシート1!$A$1:$BT$1,0),0) -> 2,346 | O9: =VLOOKUP(年度マスタ!$K$4&"_"&O$5,データシート1!$A:$BT,MATCH("cb_"&$G9,データシート1!$A$1:$BT$1,0),0) -> 2,346 | P9: =VLOOKUP(年度マスタ!$K$4&"_"&P$5,データシート1!$A:$BT,MATCH("cb_"&$G9,データシート1!$A$1:$BT$1,0),0) -> 2,346 | Q9: =VLOOKUP(年度マスタ!$K$4&"_"&Q$5,データシート1!$A:$BT,MATCH("cb_"&$G9,データシート1!$A$1:$BT$1,0),0) -> 2,506 | R9: =VLOOKUP(年度マスタ!$K$4&"_"&R$5,データシート1!$A:$BT,MATCH("cb_"&$G9,データシート1!$A$1:$BT$1,0),0) -> 2,506 | Y9: 風力（陸上） | Z9: 風力発電 | AC9: =VLOOKUP(年度マスタ!$K$4&"_"&年度マスタ!$K$9,データシート3!A:AB,MATCH("ea_"&$Y9&"_設備",データシート3!$A$1:$AB$1,0),0) -> 4,084,300 | AD9: =VLOOKUP(年度マスタ!$K$4&"_"&年度マスタ!$K$9,データシート3!A:AB,MATCH("ea_"&$Y9&"_年間発電",データシート3!$A$1:$AB$1,0),0)/10^3 -> 9,329,421 | AE9: 336
G10: 地熱発電 | J10: =VLOOKUP(年度マスタ!$K$4&"_"&J$5,データシート1!$A:$BT,MATCH("cb_"&$G10,データシート1!$A$1:$BT$1,0),0) -> 0 | K10: =VLOOKUP(年度マスタ!$K$4&"_"&K$5,データシート1!$A:$BT,MATCH("cb_"&$G10,データシート1!$A$1:$BT$1,0),0) -> 0 | L10: =VLOOKUP(年度マスタ!$K$4&"_"&L$5,データシート1!$A:$BT,MATCH("cb_"&$G10,データシート1!$A$1:$BT$1,0),0) -> 0 | M10: =VLOOKUP(年度マスタ!$K$4&"_"&M$5,データシート1!$A:$BT,MATCH("cb_"&$G10,データシート1!$A$1:$BT$1,0),0) -> 0 | N10: =VLOOKUP(年度マスタ!$K$4&"_"&N$5,データシート1!$A:$BT,MATCH("cb_"&$G10,データシート1!$A$1:$BT$1,0),0) -> 0 | O10: =VLOOKUP(年度マスタ!$K$4&"_"&O$5,データシート1!$A:$BT,MATCH("cb_"&$G10,データシート1!$A$1:$BT$1,0),0) -> 0 | P10: =VLOOKUP(年度マスタ!$K$4&"_"&P$5,データシート1!$A:$BT,MATCH("cb_"&$G10,データシート1!$A$1:$BT$1,0),0) -> 0 | Q10: =VLOOKUP(年度マスタ!$K$4&"_"&Q$5,データシート1!$A:$BT,MATCH("cb_"&$G10,データシート1!$A$1:$BT$1,0),0) -> 0 | R10: =VLOOKUP(年度マスタ!$K$4&"_"&R$5,データシート1!$A:$BT,MATCH("cb_"&$G10,データシート1!$A$1:$BT$1,0),0) -> 0 | Y10: 中小水力発電（合計） | Z10: 中小水力発電 | AC10: =SUM(AC11:AC12) -> 141,974 | AD10: =SUM(AD11:AD12) -> 827,147 | AE10: 30
G11: バイオマス発電 | I11: ※2 | J11: =VLOOKUP(年度マスタ!$K$4&"_"&J$5,データシート1!$A:$BT,MATCH("cb_"&$G11,データシート1!$A$1:$BT$1,0),0) -> 10,350 | K11: =VLOOKUP(年度マスタ!$K$4&"_"&K$5,データシート1!$A:$BT,MATCH("cb_"&$G11,データシート1!$A$1:$BT$1,0),0) -> 10,350 | L11: =VLOOKUP(年度マスタ!$K$4&"_"&L$5,データシート1!$A:$BT,MATCH("cb_"&$G11,データシート1!$A$1:$BT$1,0),0) -> 10,380 | M11: =VLOOKUP(年度マスタ!$K$4&"_"&M$5,データシート1!$A:$BT,MATCH("cb_"&$G11,データシート1!$A$1:$BT$1,0),0) -> 11,375 | N11: =VLOOKUP(年度マスタ!$K$4&"_"&N$5,データシート1!$A:$BT,MATCH("cb_"&$G11,データシート1!$A$1:$BT$1,0),0) -> 11,735 | O11: =VLOOKUP(年度マスタ!$K$4&"_"&O$5,データシート1!$A:$BT,MATCH("cb_"&$G11,データシート1!$A$1:$BT$1,0),0) -> 11,735 | P11: =VLOOKUP(年度マスタ!$K$4&"_"&P$5,データシート1!$A:$BT,MATCH("cb_"&$G11,データシート1!$A$1:$BT$1,0),0) -> 11,735 | Q11: =VLOOKUP(年度マスタ!$K$4&"_"&Q$5,データシート1!$A:$BT,MATCH("cb_"&$G11,データシート1!$A$1:$BT$1,0),0) -> 11,735 | R11: =VLOOKUP(年度マスタ!$K$4&"_"&R$5,データシート1!$A:$BT,MATCH("cb_"&$G11,データシート1!$A$1:$BT$1,0),0) -> 11,735 | Y11: 中小水（河川） | Z11: 河川 | AC11: =VLOOKUP(年度マスタ!$K$4&"_"&年度マスタ!$K$9,データシート3!A:AB,MATCH("ea_"&$Y11&"_設備",データシート3!$A$1:$AB$1,0),0) -> 126,581 | AD11: =VLOOKUP(年度マスタ!$K$4&"_"&年度マスタ!$K$9,データシート3!A:AB,MATCH("ea_"&$Y11&"_年間発電",データシート3!$A$1:$AB$1,0),0)/10^3 -> 735,281 | AE11: 26
G12: 再生可能エネルギー合計 | J12: =SUM(J6:J11) -> 359,108 | K12: =SUM(K6:K11) -> 441,053 | L12: 477,464 | M12: 613,381 | N12: 654,531 | O12: 691,691 | P12: 703,612 | Q12: 807,909 | R12: =SUM(R6:R11) -> 792,243 | Y12: 中小水（農業用水路） | Z12: 農業用水路 | AC12: =VLOOKUP(年度マスタ!$K$4&"_"&年度マスタ!$K$9,データシート3!A:AB,MATCH("ea_"&$Y12&"_設備",データシート3!$A$1:$AB$1,0),0) -> 15,393 | AD12: =VLOOKUP(年度マスタ!$K$4&"_"&年度マスタ!$K$9,データシート3!A:AB,MATCH("ea_"&$Y12&"_年間発電",データシート3!$A$1:$AB$1,0),0)/10^3 -> 91,866 | AE12: 3
Y13: 地熱発電（合計） | Z13: 地熱発電 | AC13: =SUM(AC14:AC16) -> 1,548 | AD13: =SUM(AD14:AD16) -> 9,488 | AE13: 0 | AF13: =AF15 -> 0
Y14: 地熱（蒸気フラッシュ発電） | Z14: 蒸気フラッシュ発電 | AC14: =VLOOKUP(年度マスタ!$K$4&"_"&年度マスタ!$K$9,データシート3!A:AB,MATCH("ea_"&$Y14&"_設備",データシート3!$A$1:$AB$1,0),0) -> 0 | AD14: =VLOOKUP(年度マスタ!$K$4&"_"&年度マスタ!$K$9,データシート3!A:AB,MATCH("ea_"&$Y14&"_年間発電",データシート3!$A$1:$AB$1,0),0)/10^3 -> 0 | AE14: 0
Y15: 地熱（バイナリー発電） | Z15: バイナリー発電 | AC15: =VLOOKUP(年度マスタ!$K$4&"_"&年度マスタ!$K$9,データシート3!A:AB,MATCH("ea_"&$Y15&"_設備",データシート3!$A$1:$AB$1,0),0) -> 9 | AD15: =VLOOKUP(年度マスタ!$K$4&"_"&年度マスタ!$K$9,データシート3!A:AB,MATCH("ea_"&$Y15&"_年間発電",データシート3!$A$1:$AB$1,0),0)/10^3 -> 53 | AE15: 0
R16: ［MWh/年］ | Y16: 地熱（低温バイナリー発電） | Z16: 低温バイナリー発電 | AC16: =VLOOKUP(年度マスタ!$K$4&"_"&年度マスタ!$K$9,データシート3!A:AB,MATCH("ea_"&$Y16&"_設備",データシート3!$A$1:$AB$1,0),0) -> 1,539 | AD16: =VLOOKUP(年度マスタ!$K$4&"_"&年度マスタ!$K$9,データシート3!A:AB,MATCH("ea_"&$Y16&"_年間発電",データシート3!$A$1:$AB$1,0),0)/10^3 -> 9,434 | AE16: 0
J17: 区域の再生可能エネルギーによる発電電力量※3 | V17: 6）導入ポテンシャル（発電電力量・利用可能熱量） | Y17: 太陽熱 | Z17: 太陽熱 | AC17: － | AD17: － | AE17: =VLOOKUP(年度マスタ!$K$4&"_"&年度マスタ!$K$9,データシート3!A:AB,MATCH("ea_"&$Y17&"_設備",データシート3!$A$1:$AB$1,0),0)/10^8 -> 155
J18: 平成27年度 | K18: 平成28年度 | L18: 平成29年度 | M18: 平成30年度 | N18: 令和元年度 | O18: 令和2年度 | P18: 令和3年度 | Q18: 令和4年度 | R18: 令和5年度 | Y18: 地中熱 | Z18: 地中熱 | AC18: － | AD18: － | AE18: =VLOOKUP(年度マスタ!$K$4&"_"&年度マスタ!$K$9,データシート3!A:AB,MATCH("ea_"&$Y18&"_設備",データシート3!$A$1:$AB$1,0),0)/10^8 -> 650
C19: 2）区域の再生可能エネルギーによる発電電力量 | G19: 太陽光発電（10kW未満） | J19: =J6*別紙!$C5/100*別紙!$E5/10^3 -> 47,663 | K19: =K6*別紙!$C5/100*別紙!$E5/10^3 -> 54,465 | L19: =L6*別紙!$C5/100*別紙!$E5/10^3 -> 60,603 | M19: =M6*別紙!$C5/100*別紙!$E5/10^3 -> 68,951 | N19: =N6*別紙!$C5/100*別紙!$E5/10^3 -> 73,370 | O19: =O6*別紙!$C5/100*別紙!$E5/10^3 -> 78,939 | P19: =P6*別紙!$C5/100*別紙!$E5/10^3 -> 87,035 | Q19: =Q6*別紙!$C5/100*別紙!$E5/10^3 -> 92,734 | R19: =R6*別紙!$C5/100*別紙!$E5/10^3 -> 99,517 | Z19: 再生可能エネルギー合計 | AC19: =SUM($AC$6,$AC$9,$AC$10,$AC$13) -> 20,226,583 | AD19: =SUM($AD$6,$AD$9,$AD$10,$AD$13) -> 29,438,569 | AE19: =SUM($AE$6,$AE$9,$AE$10,$AE$13,$AE$17,$AE$18) -> 1,865
C20: （令和5年度） | G20: 太陽光発電（10kW以上） | J20: =J7*別紙!$C6/100*別紙!$E6/10^3 -> 241,779 | K20: =K7*別紙!$C6/100*別紙!$E6/10^3 -> 342,640 | L20: =L7*別紙!$C6/100*別紙!$E6/10^3 -> 383,989 | M20: =M7*別紙!$C6/100*別紙!$E6/10^3 -> 552,491 | N20: =N7*別紙!$C6/100*別紙!$E6/10^3 -> 591,681 | O20: =O7*別紙!$C6/100*別紙!$E6/10^3 -> 634,670 | P20: =P7*別紙!$C6/100*別紙!$E6/10^3 -> 641,516 | Q20: =Q7*別紙!$C6/100*別紙!$E6/10^3 -> 772,983 | R20: =R7*別紙!$C6/100*別紙!$E6/10^3 -> 773,355
G21: 風力発電 | J21: =J8*別紙!$C7/100*別紙!$E7/10^3 -> 270,474 | K21: =K8*別紙!$C7/100*別紙!$E7/10^3 -> 270,530 | L21: =L8*別紙!$C7/100*別紙!$E7/10^3 -> 270,530 | M21: =M8*別紙!$C7/100*別紙!$E7/10^3 -> 270,530 | N21: =N8*別紙!$C7/100*別紙!$E7/10^3 -> 286,780 | O21: =O8*別紙!$C7/100*別紙!$E7/10^3 -> 286,823 | P21: =P8*別紙!$C7/100*別紙!$E7/10^3 -> 286,823 | Q21: =Q8*別紙!$C7/100*別紙!$E7/10^3 -> 286,823 | R21: =R8*別紙!$C7/100*別紙!$E7/10^3 -> 239,898
G22: 水力発電 | J22: =J9*別紙!$C8/100*別紙!$E8/10^3 -> 9,247 | K22: =K9*別紙!$C8/100*別紙!$E8/10^3 -> 9,247 | L22: =L9*別紙!$C8/100*別紙!$E8/10^3 -> 9,284 | M22: =M9*別紙!$C8/100*別紙!$E8/10^3 -> 12,333 | N22: =N9*別紙!$C8/100*別紙!$E8/10^3 -> 12,333 | O22: =O9*別紙!$C8/100*別紙!$E8/10^3 -> 12,333 | P22: =P9*別紙!$C8/100*別紙!$E8/10^3 -> 12,333 | Q22: =Q9*別紙!$C8/100*別紙!$E8/10^3 -> 13,174 | R22: =R9*別紙!$C8/100*別紙!$E8/10^3 -> 13,174 | Z22: 参考）再エネ導入ポテンシャルと再エネ導入量の集計対象の整理※8
G23: 地熱発電 | J23: =J10*別紙!$C9/100*別紙!$E9/10^3 -> 0 | K23: =K10*別紙!$C9/100*別紙!$E9/10^3 -> 0 | L23: =L10*別紙!$C9/100*別紙!$E9/10^3 -> 0 | M23: =M10*別紙!$C9/100*別紙!$E9/10^3 -> 0 | N23: =N10*別紙!$C9/100*別紙!$E9/10^3 -> 0 | O23: =O10*別紙!$C9/100*別紙!$E9/10^3 -> 0 | P23: =P10*別紙!$C9/100*別紙!$E9/10^3 -> 0 | Q23: =Q10*別紙!$C9/100*別紙!$E9/10^3 -> 0 | R23: =R10*別紙!$C9/100*別紙!$E9/10^3 -> 0 | AA23: 再エネ導入ポテンシャル | AD23: 再エネ導入量
G24: バイオマス発電 | I24: ※2 | J24: =J11*別紙!$C10/100*別紙!$E10/10^3 -> 72,533 | K24: =K11*別紙!$C10/100*別紙!$E10/10^3 -> 72,533 | L24: =L11*別紙!$C10/100*別紙!$E10/10^3 -> 72,743 | M24: =M11*別紙!$C10/100*別紙!$E10/10^3 -> 79,716 | N24: =N11*別紙!$C10/100*別紙!$E10/10^3 -> 82,239 | O24: =O11*別紙!$C10/100*別紙!$E10/10^3 -> 82,239 | P24: =P11*別紙!$C10/100*別紙!$E10/10^3 -> 82,239 | Q24: =Q11*別紙!$C10/100*別紙!$E10/10^3 -> 82,239 | R24: =R11*別紙!$C10/100*別紙!$E10/10^3 -> 82,239 | Z24: データ出所 | AA24: REPOS（ポテンシャル情報） | AD24: 再エネ特措法 情報公表用ウェブサイト （全国・都道府県はA表、市町村はB表）
G25: 再生可能エネルギー合計 | J25: =SUM(J19:J24) -> 641,695 | K25: 749,416 | L25: 797,150 | M25: 984,021 | N25: 1,046,403 | O25: 1,095,004 | P25: 1,109,946 | Q25: 1,247,953 | R25: =SUM(R19:R24) -> 1,208,183
G26: 区域の電気使用量 ※4 | J26: =(VLOOKUP(年度マスタ!$K$4&"_"&J$18,データシート1!$A:$BT,MATCH("da_合計",データシート1!$A$1:$BT$1,0),0))/10^3 -> 8,997,057 | K26: =(VLOOKUP(年度マスタ!$K$4&"_"&K$18,データシート1!$A:$BT,MATCH("da_合計",データシート1!$A$1:$BT$1,0),0))/10^3 -> 8,774,637 | L26: =(VLOOKUP(年度マスタ!$K$4&"_"&L$18,データシート1!$A:$BT,MATCH("da_合計",データシート1!$A$1:$BT$1,0),0))/10^3 -> 8,900,442 | M26: =(VLOOKUP(年度マスタ!$K$4&"_"&M$18,データシート1!$A:$BT,MATCH("da_合計",データシート1!$A$1:$BT$1,0),0))/10^3 -> 8,617,612 | N26: =(VLOOKUP(年度マスタ!$K$4&"_"&N$18,データシート1!$A:$BT,MATCH("da_合計",データシート1!$A$1:$BT$1,0),0))/10^3 -> 8,303,586 | O26: =(VLOOKUP(年度マスタ!$K$4&"_"&O$18,データシート1!$A:$BT,MATCH("da_合計",データシート1!$A$1:$BT$1,0),0))/10^3 -> 8,459,311 | P26: =(VLOOKUP(年度マスタ!$K$4&"_"&P$18,データシート1!$A:$BT,MATCH("da_合計",データシート1!$A$1:$BT$1,0),0))/10^3 -> 9,252,272 | Q26: =(VLOOKUP(年度マスタ!$K$4&"_"&Q$18,データシート1!$A:$BT,MATCH("da_合計",データシート1!$A$1:$BT$1,0),0))/10^3 -> 8,463,268 | R26: =Q26 -> 8,463,268 | Z26: 太陽光発電 | AA26: 太陽光発電（建物系・土地系） | AD26: 太陽光発電（10kW未満・10kW以上）
G27: 対電気使用量FIT・FIP導入比※5 | J27: =J25/J26 -> 7.1% | K27: =K25/K26 -> 8.5% | L27: 9.0% | M27: 11.4% | N27: 12.6% | O27: 12.9% | P27: 12.0% | Q27: =Q25/Q26 -> 14.7% | R27: =R25/R26 -> 14.3% | Z27: 風力発電 | AA27: 風力発電（陸上） | AD27: 風力発電（20kW未満・20kW以上のうち洋上風力を除く）
Z29: 水力発電 | AA29: 中小水力発電(河川・農業用水路) | AD29: 水力発電
Z30: 地熱発電 | AA30: 蒸気フラッシュ発電・バイナリー発電・低温バイナリー発電 | AD30: 地熱発電
C34: 3）区域の再生可能エネルギーの導入設備容量の推移（累積） | K34: 4） 区域の太陽光発電（10kW未満※6）設備の導入件数の推移（累積） | U34: 3 区域のエネルギー消費量及び再生可能エネルギー導入ポテンシャル・導入量の比較（電気）
V35: 7）区域内のエネルギー消費量に対する再エネ導入ポテンシャル（電気） | AB35: 8）区域内の再エネ導入ポテンシャルと再エネ導入量（電気）
V50: 区域のエネルギー消費量と再エネ導入ポテンシャル（電気） | AC50: 再エネ導入ポテンシャル［MWh/年］ | AD50: 再エネ導入量［MWh/年］ | AE50: 再エネポテンシャルに占める導入割合 | AI50: グラフ作成用
V51: 対電気使用量FIT・FIP導入比（再エネ自給率） | Z51: =R27 -> 14.3% | AI51: 区域の太陽光発電（10kW未満）設備の導入件数累積の経年変化
V52: 対電気使用量再エネ導入ポテンシャル比 ※9 | Z52: =AD19/R26 -> 347.8% | AB52: 太陽光発電 | AC52: =$AD6 -> 19,272,514 | AD52: =R19+R20 -> 872,872 | AE52: =IFERROR(AD52/AC52,"-") -> 4.5%
V53: 再エネ | W53: =IF($AD$19<$Q$26,"不足量","余剰量")&"[MWh/年]" -> 余剰量[MWh/年] | X53: ※10 | Y53: =IF($AD$19<$R$26,(-1)*($AD$19-$R$26),$AD$19-$R$26) -> 20,975,301 | AB53: 風力発電 | AC53: =$AD9 -> 9,329,421 | AD53: =R21 -> 239,898 | AE53: 2.6% | AJ53: 平成27年度 | AK53: 平成28年度 | AL53: 平成29年度 | AM53: 平成30年度 | AN53: 令和元年度 | AO53: 令和2年度 | AP53: 令和3年度 | AQ53: 令和4年度 | AR53: 令和5年度
AB54: 水力発電 | AC54: =$AD10 -> 827,147 | AD54: =R22 -> 13,174 | AE54: 1.6% | AI54: 導入件数 | AJ54: =VLOOKUP(年度マスタ!$K$4&"_"&AJ$53,データシート1!$A$1:$BT$2000,MATCH("ca_太陽光発電（10kW未満）",データシート1!$A$1:$BT$1,0),0) -> 9,492 | AK54: =VLOOKUP(年度マスタ!$K$4&"_"&AK$53,データシート1!$A$1:$BT$2000,MATCH("ca_太陽光発電（10kW未満）",データシート1!$A$1:$BT$1,0),0) -> 10,643 | AL54: =VLOOKUP(年度マスタ!$K$4&"_"&AL$53,データシート1!$A$1:$BT$2000,MATCH("ca_太陽光発電（10kW未満）",データシート1!$A$1:$BT$1,0),0) -> 11,627 | AM54: =VLOOKUP(年度マスタ!$K$4&"_"&AM$53,データシート1!$A$1:$BT$2000,MATCH("ca_太陽光発電（10kW未満）",データシート1!$A$1:$BT$1,0),0) -> 13,138 | AN54: =VLOOKUP(年度マスタ!$K$4&"_"&AN$53,データシート1!$A$1:$BT$2000,MATCH("ca_太陽光発電（10kW未満）",データシート1!$A$1:$BT$1,0),0) -> 13,730 | AO54: =VLOOKUP(年度マスタ!$K$4&"_"&AO$53,データシート1!$A$1:$BT$2000,MATCH("ca_太陽光発電（10kW未満）",データシート1!$A$1:$BT$1,0),0) -> 14,676 | AP54: =VLOOKUP(年度マスタ!$K$4&"_"&AP$53,データシート1!$A$1:$BT$2000,MATCH("ca_太陽光発電（10kW未満）",データシート1!$A$1:$BT$1,0),0) -> 16,182 | AQ54: =VLOOKUP(年度マスタ!$K$4&"_"&AQ$53,データシート1!$A$1:$BT$2000,MATCH("ca_太陽光発電（10kW未満）",データシート1!$A$1:$BT$1,0),0) -> 17,174 | AR54: =VLOOKUP(年度マスタ!$K$4&"_"&AR$53,データシート1!$A$1:$BT$2000,MATCH("ca_太陽光発電（10kW未満）",データシート1!$A$1:$BT$1,0),0) -> 18,436
AB55: 地熱発電 | AC55: =$AD13 -> 9,488 | AD55: =R23 -> 0 | AE55: =IFERROR(AD55/AC55,"-") -> 0.0%

Sheet 排出量比較シート
B1: 自治体排出量カルテ 他の地方公共団体との比較（部門・分野別排出量） | AT1: =AY12 -> 石川県
B2: ="1 部門・分野別排出量の比較（標準的手法）（" & $BC$14 & "（" & $BC$15 & "年度））" -> 1 部門・分野別排出量の比較（標準的手法）（令和3年度（2021年度）） | AC2: ="2 区域の排出量に占める特定事業所排出量比率の比較（"&BC14&"（"&BC15&"年度））" -> 2 区域の排出量に占める特定事業所排出量比率の比較（令和3年度（2021年度））
B3: 1）部門・分野別CO2排出量の比較 | O3: 2）部門・分野別CO2排出量構成比の比較 | AC3: 3）産業部門 | AL3: 4）業務その他部門
AX11: 年度マスタ | BC11: データ（排出量） | CW11: データ（特定事業所排出量） | DF11: データ（特定事業所件数）
AX12: =年度マスタ!$I4 -> 石川県 | AY12: =年度マスタ!$J4 -> 石川県 | AZ12: =年度マスタ!$K4 -> 17 | BC12: aa | CW12: ba | DF12: bb
AX13: =年度マスタ!$I5 -> A.現況推計データ | AY13: =年度マスタ!$J5 -> 2022 | AZ13: =年度マスタ!$K5 -> 令和4年度 | BC13: A.現況推計データ | CW13: B.SHKデータ | DF13: B.SHKデータ
AX14: =年度マスタ!$I6 -> B.SHKデータ | AY14: =年度マスタ!$J6 -> 2021 | AZ14: =年度マスタ!$K6 -> 令和3年度 | BC14: =AZ14 -> 令和3年度 | BD14: ←SHKデータと同じ年度を利用 | CW14: =VLOOKUP(CW13,$AX$12:$AZ$16,3,0) -> 令和3年度 | DF14: =VLOOKUP(DF13,$AX$12:$AZ$16,3,0) -> 令和3年度
AX15: =年度マスタ!$I7 -> C.FITデータ | AY15: =年度マスタ!$J7 -> 2023 | AZ15: =年度マスタ!$K7 -> 令和5年度 | BC15: =AY14 -> 2021 | CW15: =VLOOKUP(CW13,$AX$12:$AZ$16,2,0) -> 2021 | DF15: =VLOOKUP(DF13,$AX$12:$AZ$16,2,0) -> 2021
AX16: =年度マスタ!$I8 -> D.区域電力使用量データ | AY16: =年度マスタ!$J8 -> 2022 | AZ16: =年度マスタ!$K8 -> 令和4年度 | CK16: ３)産業部門
BB17: １）部門・分野別の温室効果ガス（CO2）排出量の比較 | BR17: 千t-CO2 | BT17: ２）部門・分野別の温室効果ガス（CO2）構成比の比較 | CK17: ４)業務その他部門 | CW17: ５)特定事業所排出量の比較 | DF17: ６)特定事業所数の比較 | DN17: ７)特定事業所排出量の部門別構成比の比較
BE18: 産業部門 | BI18: 業務その他部門 | BJ18: 家庭部門 | BK18: 運輸部門 | BQ18: 廃棄物分野（一般廃棄物） | BV18: 産業部門 | BZ18: 業務その他部門 | CA18: 家庭部門 | CB18: 運輸部門 | CH18: 廃棄物分野（一般廃棄物） | CL18: 標準的手法に基づく排出量（単位：千t-CO2) | CW18: 特定事業所排出量（産業別）（単位：千t-CO2) | DF18: 特定事業所数（産業別）（単位：箇所) | DN18: 特定事業所排出量の部門別構成比
BF19: 製造業 | BG19: 建設業・鉱業 | BH19: 農林水産業 | BL19: 自動車 | BO19: 鉄道 | BP19: 船舶 | BW19: 製造業 | BX19: 建設業・鉱業 | BY19: 農林水産業 | CC19: 自動車 | CF19: 鉄道 | CG19: 船舶 | CW19: 産業部門 | CX19: 製造業 | CY19: 建設業・鉱業 | CZ19: 農林水産業 | DA19: 業務その他部門 | DB19: エネルギー転換部門 | DC19: 分類不能 | DD19: 合計 | DF19: 製造業 | DG19: 建設業・鉱業 | DH19: 農林水産業 | DI19: 業務その他部門 | DJ19: エネルギー転換部門 | DK19: 分類不能 | DL19: 合計 | DN19: 製造業 | DO19: 建設業・鉱業 | DP19: 農林水産業 | DQ19: 業務その他部門 | DR19: エネルギー転換部門 | DS19: 分類不能
AX20: 該当コード | AY20: 該当地域名 | BC20: グラフ 作成用 | BD20: 合計 | BE20: 産業部門 | BF20: 製造業 | BG20: 建設業・鉱業 | BH20: 農林水産業 | BI20: 業務その他部門 | BJ20: 家庭部門 | BK20: 運輸部門 | BL20: 自動車 | BM20: 旅客 | BN20: 貨物 | BO20: 鉄道 | BP20: 船舶 | BQ20: 廃棄物分野（一般廃棄物） | BR20: 合計 | BU20: 合計 | BV20: 産業部門 | BW20: 製造業 | BX20: 建設業・鉱業 | BY20: 農林水産業 | BZ20: 業務その他部門 | CA20: 家庭部門 | CB20: 運輸部門 | CC20: 自動車 | CD20: 旅客 | CE20: 貨物 | CF20: 鉄道 | CG20: 船舶 | CH20: 廃棄物分野（一般廃棄物） | CI20: 合計 | CK20: グラフ 作成用 | CL20: 産業部門 | CM20: (カバー率) | CN20: 製造業 | CO20: (カバー率) | CP20: 建設業・鉱業 | CQ20: (カバー率) | CR20: 農林水産業 | CS20: (カバー率) | CT20: 業務その他部門 | CU20: (カバー率) | CW20: 産業部門 | CX20: 製造業 | CY20: 建設業・鉱業 | CZ20: 農林水産業 | DA20: 業務その他部門 | DB20: エネルギー転換部門 | DC20: 分類不能 | DD20: 合計 | DF20: 製造業 | DG20: 建設業・鉱業 | DH20: 農林水産業 | DI20: 業務その他部門 | DJ20: エネルギー転換部門 | DK20: 分類不能 | DL20: 合計 | DN20: 製造業 | DO20: 建設業・鉱業 | DP20: 農林水産業 | DQ20: 業務その他部門 | DR20: エネルギー転換部門 | DS20: 分類不能
AX21: =比較地域マスタ!$Y6 -> 01 | AY21: =IF(IFERROR(比較地域マスタ!$Z6,"")=0,"",IFERROR(比較地域マスタ!$Z6,"")) -> 北海道 | BB21: =AX21 -> 01 | BC21: 北海道 | BD21: =SUM(BE21,BI21:BK21,BQ21) -> 45,920 | BE21: =SUM(BF21:BH21) -> 15,483 | BF21: =VLOOKUP($AX21&"_"&$BC$14,データシート1!$A:$BT,MATCH($BC$12&"_"&BF$20,データシート1!$A$1:$BT$1,0),0) -> 12,816 | BG21: =VLOOKUP($AX21&"_"&$BC$14,データシート1!$A:$BT,MATCH($BC$12&"_"&BG$20,データシート1!$A$1:$BT$1,0),0) -> 518 | BH21: =VLOOKUP($AX21&"_"&$BC$14,データシート1!$A:$BT,MATCH($BC$12&"_"&BH$20,データシート1!$A$1:$BT$1,0),0) -> 2,149 | BI21: =VLOOKUP($AX21&"_"&$BC$14,データシート1!$A:$BT,MATCH($BC$12&"_"&BI$20,データシート1!$A$1:$BT$1,0),0) -> 9,009 | BJ21: =VLOOKUP($AX21&"_"&$BC$14,データシート1!$A:$BT,MATCH($BC$12&"_"&BJ$20,データシート1!$A$1:$BT$1,0),0) -> 12,282 | BK21: =SUM(BL21,BO21:BP21) -> 8,667 | BL21: =SUM(BM21:BN21) -> 7,407 | BM21: =VLOOKUP($AX21&"_"&$BC$14,データシート1!$A:$BT,MATCH($BC$12&"_"&BM$20,データシート1!$A$1:$BT$1,0),0) -> 3,905 | BN21: =VLOOKUP($AX21&"_"&$BC$14,データシート1!$A:$BT,MATCH($BC$12&"_"&BN$20,データシート1!$A$1:$BT$1,0),0) -> 3,502 | BO21: =VLOOKUP($AX21&"_"&$BC$14,データシート1!$A:$BT,MATCH($BC$12&"_"&BO$20,データシート1!$A$1:$BT$1,0),0) -> 303 | BP21: =VLOOKUP($AX21&"_"&$BC$14,データシート1!$A:$BT,MATCH($BC$12&"_"&BP$20,データシート1!$A$1:$BT$1,0),0) -> 957 | BQ21: =VLOOKUP($AX21&"_"&$BC$14,データシート1!$A:$BT,MATCH($BC$12&"_"&BQ$20,データシート1!$A$1:$BT$1,0),0) -> 479 | BR21: =BD21 -> 45,920 | BT21: =AY21 -> 北海道 | BU21: =BD21 -> 45,920 | BV21: =BE21/$BR21 -> 34% | BW21: =BF21/$BR21 -> 28% | BX21: 1% | BY21: 5% | BZ21: 20% | CA21: 27% | CB21: 19% | CC21: 16% | CD21: 9% | CE21: 8% | CF21: 1% | CG21: 2% | CH21: =BQ21/$BR21 -> 1% | CI21: =BR21/$BR21 -> 100% | CK21: =AY21 -> 北海道 | CL21: =CN21+CP21+CR21 -> 15,483 | CM21: =IF(IF(CL21=0,0,CW21/CL21)>1,1,IF(CL21=0,0,CW21/CL21)) -> (98%) | CN21: =BF21 -> 12,816 | CO21: =IF(IF(CN21=0,0,CX21/CN21)>1,1,IF(CN21=0,0,CX21/CN21)) -> (100%) | CP21: =BG21 -> 518 | CQ21: =IF(IF(CP21=0,0,CY21/CP21)>1,1,IF(CP21=0,0,CY21/CP21)) -> (16%) | CR21: =BH21 -> 2,149 | CS21: =IF(IF(CR21=0,0,CZ21/CR21)>1,1,IF(CR21=0,0,CZ21/CR21)) -> (2%) | CT21: =BI21 -> 9,009 | CU21: =IF(IF(CT21=0,0,DA21/CT21)>1,1,IF(CT21=0,0,DA21/CT21)) -> (20%) | CW21: =SUM(CX21:CZ21) -> 15138.856 | CX21: =VLOOKUP($AX21&"_"&$CW$14,データシート1!$A:$BT,MATCH($CW$12&"_"&CX$20,データシート1!$A$1:$BT$1,0),0) -> 15013.976 | CY21: =VLOOKUP($AX21&"_"&$CW$14,データシート1!$A:$BT,MATCH($CW$12&"_"&CY$20,データシート1!$A$1:$BT$1,0),0) -> 81.971 | CZ21: =VLOOKUP($AX21&"_"&$CW$14,データシート1!$A:$BT,MATCH($CW$12&"_"&CZ$20,データシート1!$A$1:$BT$1,0),0) -> 42.909 | DA21: =VLOOKUP($AX21&"_"&$CW$14,データシート1!$A:$BT,MATCH($CW$12&"_"&DA$20,データシート1!$A$1:$BT$1,0),0) -> 1840.241 | DB21: =VLOOKUP($AX21&"_"&$CW$14,データシート1!$A:$BT,MATCH($CW$12&"_"&DB$20,データシート1!$A$1:$BT$1,0),0) -> 2148.672 | DC21: =VLOOKUP($AX21&"_"&$CW$14,データシート1!$A:$BT,MATCH($CW$12&"_"&DC$20,データシート1!$A$1:$BT$1,0),0) -> 0 | DD21: =SUM(CX21:DC21) -> 19127.769 | DF21: =VLOOKUP($AX21&"_"&$DF$14,データシート1!$A:$BT,MATCH($DF$12&"_"&DF$20,データシート1!$A$1:$BT$1,0),0) -> 233 | DG21: =VLOOKUP($AX21&"_"&$DF$14,データシート1!$A:$BT,MATCH($DF$12&"_"&DG$20,データシート1!$A$1:$BT$1,0),0) -> 5 | DH21: =VLOOKUP($AX21&"_"&$DF$14,データシート1!$A:$BT,MATCH($DF$12&"_"&DH$20,データシート1!$A$1:$BT$1,0),0) -> 6 | DI21: =VLOOKUP($AX21&"_"&$DF$14,データシート1!$A:$BT,MATCH($DF$12&"_"&DI$20,データシート1!$A$1:$BT$1,0),0) -> 252 | DJ21: =VLOOKUP($AX21&"_"&$DF$14,データシート1!$A:$BT,MATCH($DF$12&"_"&DJ$20,データシート1!$A$1:$BT$1,0),0) -> 35 | DK21: =VLOOKUP($AX21&"_"&$DF$14,データシート1!$A:$BT,MATCH($DF$12&"_"&DK$20,データシート1!$A$1:$BT$1,0),0) -> 0 | DL21: =SUM(DF21:DK21) -> 531 | DN21: =IF($DD21=0,0,ROUND(CX21/$DD21,2)) -> 78.0% | DO21: =IF($DD21=0,0,ROUND(CY21/$DD21,2)) -> 0 | DP21: =IF($DD21=0,0,ROUND(CZ21/$DD21,2)) -> 0 | DQ21: 10.0% | DR21: 11.0% | DS21: =IF($DD21=0,0,ROUND(DC21/$DD21,2)) -> 0
AX22: =比較地域マスタ!$Y7 -> 02 | AY22: =IF(IFERROR(比較地域マスタ!$Z7,"")=0,"",IFERROR(比較地域マスタ!$Z7,"")) -> 青森県 | BB22: 02 | BC22: 青森県 | BD22: =SUM(BE22,BI22:BK22,BQ22) -> 11,533 | BE22: =SUM(BF22:BH22) -> 4,233 | BF22: =VLOOKUP($AX22&"_"&$BC$14,データシート1!$A:$BT,MATCH($BC$12&"_"&BF$20,データシート1!$A$1:$BT$1,0),0) -> 3,646 | BG22: =VLOOKUP($AX22&"_"&$BC$14,データシート1!$A:$BT,MATCH($BC$12&"_"&BG$20,データシート1!$A$1:$BT$1,0),0) -> 182 | BH22: =VLOOKUP($AX22&"_"&$BC$14,データシート1!$A:$BT,MATCH($BC$12&"_"&BH$20,データシート1!$A$1:$BT$1,0),0) -> 405 | BI22: =VLOOKUP($AX22&"_"&$BC$14,データシート1!$A:$BT,MATCH($BC$12&"_"&BI$20,データシート1!$A$1:$BT$1,0),0) -> 1,852 | BJ22: =VLOOKUP($AX22&"_"&$BC$14,データシート1!$A:$BT,MATCH($BC$12&"_"&BJ$20,データシート1!$A$1:$BT$1,0),0) -> 2,734 | BK22: 2,556 | BL22: 2,093 | BM22: =VLOOKUP($AX22&"_"&$BC$14,データシート1!$A:$BT,MATCH($BC$12&"_"&BM$20,データシート1!$A$1:$BT$1,0),0) -> 1,003 | BN22: =VLOOKUP($AX22&"_"&$BC$14,データシート1!$A:$BT,MATCH($BC$12&"_"&BN$20,データシート1!$A$1:$BT$1,0),0) -> 1,090 | BO22: =VLOOKUP($AX22&"_"&$BC$14,データシート1!$A:$BT,MATCH($BC$12&"_"&BO$20,データシート1!$A$1:$BT$1,0),0) -> 73 | BP22: =VLOOKUP($AX22&"_"&$BC$14,データシート1!$A:$BT,MATCH($BC$12&"_"&BP$20,データシート1!$A$1:$BT$1,0),0) -> 390 | BQ22: =VLOOKUP($AX22&"_"&$BC$14,データシート1!$A:$BT,MATCH($BC$12&"_"&BQ$20,データシート1!$A$1:$BT$1,0),0) -> 158 | BR22: 11,533 | BT22: 青森県 | BU22: =BD22 -> 11,533 | BV22: =BE22/$BR22 -> 37% | BW22: 32% | BX22: 2% | BY22: 4% | BZ22: 16% | CA22: 24% | CB22: 22% | CC22: 18% | CD22: 9% | CE22: 9% | CF22: 1% | CG22: 3% | CH22: 1% | CI22: 100% | CK22: 青森県 | CL22: =CN22+CP22+CR22 -> 4,233 | CM22: =IF(IF(CL22=0,0,CW22/CL22)>1,1,IF(CL22=0,0,CW22/CL22)) -> (100%) | CN22: =BF22 -> 3,646 | CO22: =IF(IF(CN22=0,0,CX22/CN22)>1,1,IF(CN22=0,0,CX22/CN22)) -> (100%) | CP22: 182 | CQ22: =IF(IF(CP22=0,0,CY22/CP22)>1,1,IF(CP22=0,0,CY22/CP22)) -> (23%) | CR22: 405 | CS22: =IF(IF(CR22=0,0,CZ22/CR22)>1,1,IF(CR22=0,0,CZ22/CR22)) -> (9%) | CT22: 1,852 | CU22: =IF(IF(CT22=0,0,DA22/CT22)>1,1,IF(CT22=0,0,DA22/CT22)) -> (39%) | CW22: =SUM(CX22:CZ22) -> 4289.116 | CX22: =VLOOKUP($AX22&"_"&$CW$14,データシート1!$A:$BT,MATCH($CW$12&"_"&CX$20,データシート1!$A$1:$BT$1,0),0) -> 4209.245 | CY22: =VLOOKUP($AX22&"_"&$CW$14,データシート1!$A:$BT,MATCH($CW$12&"_"&CY$20,データシート1!$A$1:$BT$1,0),0) -> 41.532 | CZ22: =VLOOKUP($AX22&"_"&$CW$14,データシート1!$A:$BT,MATCH($CW$12&"_"&CZ$20,データシート1!$A$1:$BT$1,0),0) -> 38.339 | DA22: =VLOOKUP($AX22&"_"&$CW$14,データシート1!$A:$BT,MATCH($CW$12&"_"&DA$20,データシート1!$A$1:$BT$1,0),0) -> 717.168 | DB22: =VLOOKUP($AX22&"_"&$CW$14,データシート1!$A:$BT,MATCH($CW$12&"_"&DB$20,データシート1!$A$1:$BT$1,0),0) -> 64.483 | DC22: =VLOOKUP($AX22&"_"&$CW$14,データシート1!$A:$BT,MATCH($CW$12&"_"&DC$20,データシート1!$A$1:$BT$1,0),0) -> 0 | DD22: 5070.767 | DF22: =VLOOKUP($AX22&"_"&$DF$14,データシート1!$A:$BT,MATCH($DF$12&"_"&DF$20,データシート1!$A$1:$BT$1,0),0) -> 59 | DG22: =VLOOKUP($AX22&"_"&$DF$14,データシート1!$A:$BT,MATCH($DF$12&"_"&DG$20,データシート1!$A$1:$BT$1,0),0) -> 2 | DH22: =VLOOKUP($AX22&"_"&$DF$14,データシート1!$A:$BT,MATCH($DF$12&"_"&DH$20,データシート1!$A$1:$BT$1,0),0) -> 2 | DI22: =VLOOKUP($AX22&"_"&$DF$14,データシート1!$A:$BT,MATCH($DF$12&"_"&DI$20,データシート1!$A$1:$BT$1,0),0) -> 55 | DJ22: =VLOOKUP($AX22&"_"&$DF$14,データシート1!$A:$BT,MATCH($DF$12&"_"&DJ$20,データシート1!$A$1:$BT$1,0),0) -> 3 | DK22: =VLOOKUP($AX22&"_"&$DF$14,データシート1!$A:$BT,MATCH($DF$12&"_"&DK$20,データシート1!$A$1:$BT$1,0),0) -> 0 | DL22: 121 | DN22: =IF($DD22=0,0,ROUND(CX22/$DD22,2)) -> 83.0% | DO22: =IF($DD22=0,0,ROUND(CY22/$DD22,2)) -> 1.0% | DP22: 1.0% | DQ22: 14.0% | DR22: 1.0% | DS22: =IF($DD22=0,0,ROUND(DC22/$DD22,2)) -> 0
AX23: =比較地域マスタ!$Y8 -> 03 | AY23: =IF(IFERROR(比較地域マスタ!$Z8,"")=0,"",IFERROR(比較地域マスタ!$Z8,"")) -> 岩手県 | BB23: 03 | BC23: 岩手県 | BD23: 9,795 | BE23: 3,506 | BF23: =VLOOKUP($AX23&"_"&$BC$14,データシート1!$A:$BT,MATCH($BC$12&"_"&BF$20,データシート1!$A$1:$BT$1,0),0) -> 2,865 | BG23: =VLOOKUP($AX23&"_"&$BC$14,データシート1!$A:$BT,MATCH($BC$12&"_"&BG$20,データシート1!$A$1:$BT$1,0),0) -> 160 | BH23: =VLOOKUP($AX23&"_"&$BC$14,データシート1!$A:$BT,MATCH($BC$12&"_"&BH$20,データシート1!$A$1:$BT$1,0),0) -> 482 | BI23: =VLOOKUP($AX23&"_"&$BC$14,データシート1!$A:$BT,MATCH($BC$12&"_"&BI$20,データシート1!$A$1:$BT$1,0),0) -> 1,746 | BJ23: =VLOOKUP($AX23&"_"&$BC$14,データシート1!$A:$BT,MATCH($BC$12&"_"&BJ$20,データシート1!$A$1:$BT$1,0),0) -> 2,116 | BK23: 2,259 | BL23: 2,167 | BM23: =VLOOKUP($AX23&"_"&$BC$14,データシート1!$A:$BT,MATCH($BC$12&"_"&BM$20,データシート1!$A$1:$BT$1,0),0) -> 1,033 | BN23: =VLOOKUP($AX23&"_"&$BC$14,データシート1!$A:$BT,MATCH($BC$12&"_"&BN$20,データシート1!$A$1:$BT$1,0),0) -> 1,134 | BO23: =VLOOKUP($AX23&"_"&$BC$14,データシート1!$A:$BT,MATCH($BC$12&"_"&BO$20,データシート1!$A$1:$BT$1,0),0) -> 70 | BP23: =VLOOKUP($AX23&"_"&$BC$14,データシート1!$A:$BT,MATCH($BC$12&"_"&BP$20,データシート1!$A$1:$BT$1,0),0) -> 21 | BQ23: =VLOOKUP($AX23&"_"&$BC$14,データシート1!$A:$BT,MATCH($BC$12&"_"&BQ$20,データシート1!$A$1:$BT$1,0),0) -> 168 | BR23: 9,795 | BT23: 岩手県 | BU23: =BD23 -> 9,795 | BV23: 36% | BW23: 29% | BX23: 2% | BY23: 5% | BZ23: 18% | CA23: 22% | CB23: 23% | CC23: 22% | CD23: 11% | CE23: 12% | CF23: 1% | CG23: 0% | CH23: 2% | CI23: 100% | CK23: 岩手県 | CL23: 3,506 | CM23: (100%) | CN23: 2,865 | CO23: (100%) | CP23: 160 | CQ23: (7%) | CR23: 482 | CS23: (2%) | CT23: 1,746 | CU23: (19%) | CW23: 4081.24 | CX23: =VLOOKUP($AX23&"_"&$CW$14,データシート1!$A:$BT,MATCH($CW$12&"_"&CX$20,データシート1!$A$1:$BT$1,0),0) -> 4060.845 | CY23: =VLOOKUP($AX23&"_"&$CW$14,データシート1!$A:$BT,MATCH($CW$12&"_"&CY$20,データシート1!$A$1:$BT$1,0),0) -> 11.424 | CZ23: =VLOOKUP($AX23&"_"&$CW$14,データシート1!$A:$BT,MATCH($CW$12&"_"&CZ$20,データシート1!$A$1:$BT$1,0),0) -> 8.971 | DA23: =VLOOKUP($AX23&"_"&$CW$14,データシート1!$A:$BT,MATCH($CW$12&"_"&DA$20,データシート1!$A$1:$BT$1,0),0) -> 340.07 | DB23: =VLOOKUP($AX23&"_"&$CW$14,データシート1!$A:$BT,MATCH($CW$12&"_"&DB$20,データシート1!$A$1:$BT$1,0),0) -> 0.143 | DC23: =VLOOKUP($AX23&"_"&$CW$14,データシート1!$A:$BT,MATCH($CW$12&"_"&DC$20,データシート1!$A$1:$BT$1,0),0) -> 0 | DD23: 4421.453 | DF23: =VLOOKUP($AX23&"_"&$DF$14,データシート1!$A:$BT,MATCH($DF$12&"_"&DF$20,データシート1!$A$1:$BT$1,0),0) -> 100 | DG23: =VLOOKUP($AX23&"_"&$DF$14,データシート1!$A:$BT,MATCH($DF$12&"_"&DG$20,データシート1!$A$1:$BT$1,0),0) -> 1 | DH23: =VLOOKUP($AX23&"_"&$DF$14,データシート1!$A:$BT,MATCH($DF$12&"_"&DH$20,データシート1!$A$1:$BT$1,0),0) -> 1 | DI23: =VLOOKUP($AX23&"_"&$DF$14,データシート1!$A:$BT,MATCH($DF$12&"_"&DI$20,データシート1!$A$1:$BT$1,0),0) -> 42 | DJ23: =VLOOKUP($AX23&"_"&$DF$14,データシート1!$A:$BT,MATCH($DF$12&"_"&DJ$20,データシート1!$A$1:$BT$1,0),0) -> 1 | DK23: =VLOOKUP($AX23&"_"&$DF$14,データシート1!$A:$BT,MATCH($DF$12&"_"&DK$20,データシート1!$A$1:$BT$1,0),0) -> 0 | DL23: 145 | DN23: =IF($DD23=0,0,ROUND(CX23/$DD23,2)) -> 92.0% | DO23: =IF($DD23=0,0,ROUND(CY23/$DD23,2)) -> 0 | DP23: 0 | DQ23: 8.0% | DR23: 0 | DS23: =IF($DD23=0,0,ROUND(DC23/$DD23,2)) -> 0
AX24: =比較地域マスタ!$Y9 -> 04 | AY24: =IF(IFERROR(比較地域マスタ!$Z9,"")=0,"",IFERROR(比較地域マスタ!$Z9,"")) -> 宮城県 | BB24: 04 | BC24: 宮城県 | BD24: 16,017 | BE24: 5,563 | BF24: =VLOOKUP($AX24&"_"&$BC$14,データシート1!$A:$BT,MATCH($BC$12&"_"&BF$20,データシート1!$A$1:$BT$1,0),0) -> 4,865 | BG24: =VLOOKUP($AX24&"_"&$BC$14,データシート1!$A:$BT,MATCH($BC$12&"_"&BG$20,データシート1!$A$1:$BT$1,0),0) -> 231 | BH24: =VLOOKUP($AX24&"_"&$BC$14,データシート1!$A:$BT,MATCH($BC$12&"_"&BH$20,データシート1!$A$1:$BT$1,0),0) -> 467 | BI24: =VLOOKUP($AX24&"_"&$BC$14,データシート1!$A:$BT,MATCH($BC$12&"_"&BI$20,データシート1!$A$1:$BT$1,0),0) -> 3,552 | BJ24: =VLOOKUP($AX24&"_"&$BC$14,データシート1!$A:$BT,MATCH($BC$12&"_"&BJ$20,データシート1!$A$1:$BT$1,0),0) -> 2,957 | BK24: 3,663 | BL24: 3,333 | BM24: =VLOOKUP($AX24&"_"&$BC$14,データシート1!$A:$BT,MATCH($BC$12&"_"&BM$20,データシート1!$A$1:$BT$1,0),0) -> 1,827 | BN24: =VLOOKUP($AX24&"_"&$BC$14,データシート1!$A:$BT,MATCH($BC$12&"_"&BN$20,データシート1!$A$1:$BT$1,0),0) -> 1,507 | BO24: =VLOOKUP($AX24&"_"&$BC$14,データシート1!$A:$BT,MATCH($BC$12&"_"&BO$20,データシート1!$A$1:$BT$1,0),0) -> 132 | BP24: =VLOOKUP($AX24&"_"&$BC$14,データシート1!$A:$BT,MATCH($BC$12&"_"&BP$20,データシート1!$A$1:$BT$1,0),0) -> 197 | BQ24: =VLOOKUP($AX24&"_"&$BC$14,データシート1!$A:$BT,MATCH($BC$12&"_"&BQ$20,データシート1!$A$1:$BT$1,0),0) -> 281 | BR24: 16,017 | BT24: 宮城県 | BU24: 16,017 | BV24: 35% | BW24: 30% | BX24: 1% | BY24: 3% | BZ24: 22% | CA24: 18% | CB24: 23% | CC24: 21% | CD24: 11% | CE24: 9% | CF24: 1% | CG24: 1% | CH24: 2% | CI24: 100% | CK24: 宮城県 | CL24: 5,563 | CM24: (62%) | CN24: 4,865 | CO24: (70%) | CP24: 231 | CQ24: (2%) | CR24: 467 | CS24: (2%) | CT24: 3,552 | CU24: (20%) | CW24: 3423.103 | CX24: =VLOOKUP($AX24&"_"&$CW$14,データシート1!$A:$BT,MATCH($CW$12&"_"&CX$20,データシート1!$A$1:$BT$1,0),0) -> 3412.269 | CY24: =VLOOKUP($AX24&"_"&$CW$14,データシート1!$A:$BT,MATCH($CW$12&"_"&CY$20,データシート1!$A$1:$BT$1,0),0) -> 3.483 | CZ24: =VLOOKUP($AX24&"_"&$CW$14,データシート1!$A:$BT,MATCH($CW$12&"_"&CZ$20,データシート1!$A$1:$BT$1,0),0) -> 7.351 | DA24: =VLOOKUP($AX24&"_"&$CW$14,データシート1!$A:$BT,MATCH($CW$12&"_"&DA$20,データシート1!$A$1:$BT$1,0),0) -> 697.169 | DB24: =VLOOKUP($AX24&"_"&$CW$14,データシート1!$A:$BT,MATCH($CW$12&"_"&DB$20,データシート1!$A$1:$BT$1,0),0) -> 1122.15 | DC24: =VLOOKUP($AX24&"_"&$CW$14,データシート1!$A:$BT,MATCH($CW$12&"_"&DC$20,データシート1!$A$1:$BT$1,0),0) -> 0 | DD24: 5242.422 | DF24: =VLOOKUP($AX24&"_"&$DF$14,データシート1!$A:$BT,MATCH($DF$12&"_"&DF$20,データシート1!$A$1:$BT$1,0),0) -> 127 | DG24: =VLOOKUP($AX24&"_"&$DF$14,データシート1!$A:$BT,MATCH($DF$12&"_"&DG$20,データシート1!$A$1:$BT$1,0),0) -> 1 | DH24: =VLOOKUP($AX24&"_"&$DF$14,データシート1!$A:$BT,MATCH($DF$12&"_"&DH$20,データシート1!$A$1:$BT$1,0),0) -> 2 | DI24: =VLOOKUP($AX24&"_"&$DF$14,データシート1!$A:$BT,MATCH($DF$12&"_"&DI$20,データシート1!$A$1:$BT$1,0),0) -> 78 | DJ24: =VLOOKUP($AX24&"_"&$DF$14,データシート1!$A:$BT,MATCH($DF$12&"_"&DJ$20,データシート1!$A$1:$BT$1,0),0) -> 9 | DK24: =VLOOKUP($AX24&"_"&$DF$14,データシート1!$A:$BT,MATCH($DF$12&"_"&DK$20,データシート1!$A$1:$BT$1,0),0) -> 0 | DL24: 217 | DN24: 65.0% | DO24: 0 | DP24: 0 | DQ24: 13.0% | DR24: 21.0% | DS24: 0
AX25: =比較地域マスタ!$Y10 -> 05 | AY25: =IF(IFERROR(比較地域マスタ!$Z10,"")=0,"",IFERROR(比較地域マスタ!$Z10,"")) -> 秋田県 | BB25: 05 | BC25: 秋田県 | BD25: 7,502 | BE25: 2,295 | BF25: =VLOOKUP($AX25&"_"&$BC$14,データシート1!$A:$BT,MATCH($BC$12&"_"&BF$20,データシート1!$A$1:$BT$1,0),0) -> 1,784 | BG25: =VLOOKUP($AX25&"_"&$BC$14,データシート1!$A:$BT,MATCH($BC$12&"_"&BG$20,データシート1!$A$1:$BT$1,0),0) -> 119 | BH25: =VLOOKUP($AX25&"_"&$BC$14,データシート1!$A:$BT,MATCH($BC$12&"_"&BH$20,データシート1!$A$1:$BT$1,0),0) -> 392 | BI25: =VLOOKUP($AX25&"_"&$BC$14,データシート1!$A:$BT,MATCH($BC$12&"_"&BI$20,データシート1!$A$1:$BT$1,0),0) -> 1,427 | BJ25: =VLOOKUP($AX25&"_"&$BC$14,データシート1!$A:$BT,MATCH($BC$12&"_"&BJ$20,データシート1!$A$1:$BT$1,0),0) -> 1,876 | BK25: 1,790 | BL25: 1,665 | BM25: =VLOOKUP($AX25&"_"&$BC$14,データシート1!$A:$BT,MATCH($BC$12&"_"&BM$20,データシート1!$A$1:$BT$1,0),0) -> 814 | BN25: =VLOOKUP($AX25&"_"&$BC$14,データシート1!$A:$BT,MATCH($BC$12&"_"&BN$20,データシート1!$A$1:$BT$1,0),0) -> 852 | BO25: =VLOOKUP($AX25&"_"&$BC$14,データシート1!$A:$BT,MATCH($BC$12&"_"&BO$20,データシート1!$A$1:$BT$1,0),0) -> 56 | BP25: =VLOOKUP($AX25&"_"&$BC$14,データシート1!$A:$BT,MATCH($BC$12&"_"&BP$20,データシート1!$A$1:$BT$1,0),0) -> 69 | BQ25: =VLOOKUP($AX25&"_"&$BC$14,データシート1!$A:$BT,MATCH($BC$12&"_"&BQ$20,データシート1!$A$1:$BT$1,0),0) -> 113 | BR25: 7,502 | BT25: 秋田県 | BU25: 7,502 | BV25: 31% | BW25: 24% | BX25: 2% | BY25: 5% | BZ25: 19% | CA25: 25% | CB25: 24% | CC25: 22% | CD25: 11% | CE25: 11% | CF25: 1% | CG25: 1% | CH25: 2% | CI25: 100% | CK25: 秋田県 | CL25: 2,295 | CM25: (69%) | CN25: 1,784 | CO25: (87%) | CP25: 119 | CQ25: (15%) | CR25: 392 | CS25: (5%) | CT25: 1,427 | CU25: (35%) | CW25: 1593.771 | CX25: =VLOOKUP($AX25&"_"&$CW$14,データシート1!$A:$BT,MATCH($CW$12&"_"&CX$20,データシート1!$A$1:$BT$1,0),0) -> 1556.578 | CY25: =VLOOKUP($AX25&"_"&$CW$14,データシート1!$A:$BT,MATCH($CW$12&"_"&CY$20,データシート1!$A$1:$BT$1,0),0) -> 18.435 | CZ25: =VLOOKUP($AX25&"_"&$CW$14,データシート1!$A:$BT,MATCH($CW$12&"_"&CZ$20,データシート1!$A$1:$BT$1,0),0) -> 18.758 | DA25: =VLOOKUP($AX25&"_"&$CW$14,データシート1!$A:$BT,MATCH($CW$12&"_"&DA$20,データシート1!$A$1:$BT$1,0),0) -> 496.005 | DB25: =VLOOKUP($AX25&"_"&$CW$14,データシート1!$A:$BT,MATCH($CW$12&"_"&DB$20,データシート1!$A$1:$BT$1,0),0) -> 645.115 | DC25: =VLOOKUP($AX25&"_"&$CW$14,データシート1!$A:$BT,MATCH($CW$12&"_"&DC$20,データシート1!$A$1:$BT$1,0),0) -> 0 | DD25: 2734.891 | DF25: =VLOOKUP($AX25&"_"&$DF$14,データシート1!$A:$BT,MATCH($DF$12&"_"&DF$20,データシート1!$A$1:$BT$1,0),0) -> 51 | DG25: =VLOOKUP($AX25&"_"&$DF$14,データシート1!$A:$BT,MATCH($DF$12&"_"&DG$20,データシート1!$A$1:$BT$1,0),0) -> 3 | DH25: =VLOOKUP($AX25&"_"&$DF$14,データシート1!$A:$BT,MATCH($DF$12&"_"&DH$20,データシート1!$A$1:$BT$1,0),0) -> 4 | DI25: =VLOOKUP($AX25&"_"&$DF$14,データシート1!$A:$BT,MATCH($DF$12&"_"&DI$20,データシート1!$A$1:$BT$1,0),0) -> 34 | DJ25: =VLOOKUP($AX25&"_"&$DF$14,データシート1!$A:$BT,MATCH($DF$12&"_"&DJ$20,データシート1!$A$1:$BT$1,0),0) -> 2 | DK25: =VLOOKUP($AX25&"_"&$DF$14,データシート1!$A:$BT,MATCH($DF$12&"_"&DK$20,データシート1!$A$1:$BT$1,0),0) -> 0 | DL25: 94 | DN25: 57.0% | DO25: 1.0% | DP25: 1.0% | DQ25: 18.0% | DR25: 24.0% | DS25: 0
AX26: =比較地域マスタ!$Y11 -> 06 | AY26: =IF(IFERROR(比較地域マスタ!$Z11,"")=0,"",IFERROR(比較地域マスタ!$Z11,"")) -> 山形県 | BB26: 06 | BC26: 山形県 | BD26: 7,031 | BE26: 1,785 | BF26: =VLOOKUP($AX26&"_"&$BC$14,データシート1!$A:$BT,MATCH($BC$12&"_"&BF$20,データシート1!$A$1:$BT$1,0),0) -> 1,447 | BG26: =VLOOKUP($AX26&"_"&$BC$14,データシート1!$A:$BT,MATCH($BC$12&"_"&BG$20,データシート1!$A$1:$BT$1,0),0) -> 100 | BH26: =VLOOKUP($AX26&"_"&$BC$14,データシート1!$A:$BT,MATCH($BC$12&"_"&BH$20,データシート1!$A$1:$BT$1,0),0) -> 239 | BI26: =VLOOKUP($AX26&"_"&$BC$14,データシート1!$A:$BT,MATCH($BC$12&"_"&BI$20,データシート1!$A$1:$BT$1,0),0) -> 1,421 | BJ26: =VLOOKUP($AX26&"_"&$BC$14,データシート1!$A:$BT,MATCH($BC$12&"_"&BJ$20,データシート1!$A$1:$BT$1,0),0) -> 1,747 | BK26: 1,953 | BL26: 1,884 | BM26: =VLOOKUP($AX26&"_"&$BC$14,データシート1!$A:$BT,MATCH($BC$12&"_"&BM$20,データシート1!$A$1:$BT$1,0),0) -> 962 | BN26: =VLOOKUP($AX26&"_"&$BC$14,データシート1!$A:$BT,MATCH($BC$12&"_"&BN$20,データシート1!$A$1:$BT$1,0),0) -> 922 | BO26: =VLOOKUP($AX26&"_"&$BC$14,データシート1!$A:$BT,MATCH($BC$12&"_"&BO$20,データシート1!$A$1:$BT$1,0),0) -> 62 | BP26: =VLOOKUP($AX26&"_"&$BC$14,データシート1!$A:$BT,MATCH($BC$12&"_"&BP$20,データシート1!$A$1:$BT$1,0),0) -> 7 | BQ26: =VLOOKUP($AX26&"_"&$BC$14,データシート1!$A:$BT,MATCH($BC$12&"_"&BQ$20,データシート1!$A$1:$BT$1,0),0) -> 125 | BR26: 7,031 | BT26: 山形県 | BU26: 7,031 | BV26: 25% | BW26: 21% | BX26: 1% | BY26: 3% | BZ26: 20% | CA26: 25% | CB26: 28% | CC26: 27% | CD26: 14% | CE26: 13% | CF26: 1% | CG26: 0% | CH26: 2% | CI26: 100% | CK26: 山形県 | CL26: 1,785 | CM26: (80%) | CN26: 1,447 | CO26: (99%) | CP26: 100 | CQ26: 0 | CR26: 239 | CS26: 0 | CT26: 1,421 | CU26: (20%) | CW26: 1432.476 | CX26: =VLOOKUP($AX26&"_"&$CW$14,データシート1!$A:$BT,MATCH($CW$12&"_"&CX$20,データシート1!$A$1:$BT$1,0),0) -> 1432.476 | CY26: =VLOOKUP($AX26&"_"&$CW$14,データシート1!$A:$BT,MATCH($CW$12&"_"&CY$20,データシート1!$A$1:$BT$1,0),0) -> 0 | CZ26: =VLOOKUP($AX26&"_"&$CW$14,データシート1!$A:$BT,MATCH($CW$12&"_"&CZ$20,データシート1!$A$1:$BT$1,0),0) -> 0 | DA26: =VLOOKUP($AX26&"_"&$CW$14,データシート1!$A:$BT,MATCH($CW$12&"_"&DA$20,データシート1!$A$1:$BT$1,0),0) -> 290.035 | DB26: =VLOOKUP($AX26&"_"&$CW$14,データシート1!$A:$BT,MATCH($CW$12&"_"&DB$20,データシート1!$A$1:$BT$1,0),0) -> 298.573 | DC26: =VLOOKUP($AX26&"_"&$CW$14,データシート1!$A:$BT,MATCH($CW$12&"_"&DC$20,データシート1!$A$1:$BT$1,0),0) -> 0 | DD26: 2021.084 | DF26: =VLOOKUP($AX26&"_"&$DF$14,データシート1!$A:$BT,MATCH($DF$12&"_"&DF$20,データシート1!$A$1:$BT$1,0),0) -> 97 | DG26: =VLOOKUP($AX26&"_"&$DF$14,データシート1!$A:$BT,MATCH($DF$12&"_"&DG$20,データシート1!$A$1:$BT$1,0),0) -> 0 | DH26: =VLOOKUP($AX26&"_"&$DF$14,データシート1!$A:$BT,MATCH($DF$12&"_"&DH$20,データシート1!$A$1:$BT$1,0),0) -> 0 | DI26: =VLOOKUP($AX26&"_"&$DF$14,データシート1!$A:$BT,MATCH($DF$12&"_"&DI$20,データシート1!$A$1:$BT$1,0),0) -> 25 | DJ26: =VLOOKUP($AX26&"_"&$DF$14,データシート1!$A:$BT,MATCH($DF$12&"_"&DJ$20,データシート1!$A$1:$BT$1,0),0) -> 3 | DK26: =VLOOKUP($AX26&"_"&$DF$14,データシート1!$A:$BT,MATCH($DF$12&"_"&DK$20,データシート1!$A$1:$BT$1,0),0) -> 0 | DL26: 125 | DN26: 71.0% | DO26: 0 | DP26: 0 | DQ26: 14.0% | DR26: 15.0% | DS26: 0
AX27: =比較地域マスタ!$Y12 -> 07 | AY27: =IF(IFERROR(比較地域マスタ!$Z12,"")=0,"",IFERROR(比較地域マスタ!$Z12,"")) -> 福島県 | BB27: 07 | BC27: 福島県 | BD27: 13,735 | BE27: 4,355 | BF27: =VLOOKUP($AX27&"_"&$BC$14,データシート1!$A:$BT,MATCH($BC$12&"_"&BF$20,データシート1!$A$1:$BT$1,0),0) -> 3,839 | BG27: =VLOOKUP($AX27&"_"&$BC$14,データシート1!$A:$BT,MATCH($BC$12&"_"&BG$20,データシート1!$A$1:$BT$1,0),0) -> 191 | BH27: =VLOOKUP($AX27&"_"&$BC$14,データシート1!$A:$BT,MATCH($BC$12&"_"&BH$20,データシート1!$A$1:$BT$1,0),0) -> 325 | BI27: =VLOOKUP($AX27&"_"&$BC$14,データシート1!$A:$BT,MATCH($BC$12&"_"&BI$20,データシート1!$A$1:$BT$1,0),0) -> 2,570 | BJ27: =VLOOKUP($AX27&"_"&$BC$14,データシート1!$A:$BT,MATCH($BC$12&"_"&BJ$20,データシート1!$A$1:$BT$1,0),0) -> 3,019 | BK27: 3,529 | BL27: 3,366 | BM27: =VLOOKUP($AX27&"_"&$BC$14,データシート1!$A:$BT,MATCH($BC$12&"_"&BM$20,データシート1!$A$1:$BT$1,0),0) -> 1,712 | BN27: =VLOOKUP($AX27&"_"&$BC$14,データシート1!$A:$BT,MATCH($BC$12&"_"&BN$20,データシート1!$A$1:$BT$1,0),0) -> 1,654 | BO27: =VLOOKUP($AX27&"_"&$BC$14,データシート1!$A:$BT,MATCH($BC$12&"_"&BO$20,データシート1!$A$1:$BT$1,0),0) -> 108 | BP27: =VLOOKUP($AX27&"_"&$BC$14,データシート1!$A:$BT,MATCH($BC$12&"_"&BP$20,データシート1!$A$1:$BT$1,0),0) -> 55 | BQ27: =VLOOKUP($AX27&"_"&$BC$14,データシート1!$A:$BT,MATCH($BC$12&"_"&BQ$20,データシート1!$A$1:$BT$1,0),0) -> 262 | BR27: 13,735 | BT27: 福島県 | BU27: 13,735 | BV27: 32% | BW27: 28% | BX27: 1% | BY27: 2% | BZ27: 19% | CA27: 22% | CB27: 26% | CC27: 25% | CD27: 12% | CE27: 12% | CF27: 1% | CG27: 0% | CH27: 2% | CI27: 100% | CK27: 福島県 | CL27: 4,355 | CM27: (100%) | CN27: 3,839 | CO27: (100%) | CP27: 191 | CQ27: 0 | CR27: 325 | CS27: (3%) | CT27: 2,570 | CU27: (38%) | CW27: 4700.316 | CX27: =VLOOKUP($AX27&"_"&$CW$14,データシート1!$A:$BT,MATCH($CW$12&"_"&CX$20,データシート1!$A$1:$BT$1,0),0) -> 4690.293 | CY27: =VLOOKUP($AX27&"_"&$CW$14,データシート1!$A:$BT,MATCH($CW$12&"_"&CY$20,データシート1!$A$1:$BT$1,0),0) -> 0 | CZ27: =VLOOKUP($AX27&"_"&$CW$14,データシート1!$A:$BT,MATCH($CW$12&"_"&CZ$20,データシート1!$A$1:$BT$1,0),0) -> 10.023 | DA27: =VLOOKUP($AX27&"_"&$CW$14,データシート1!$A:$BT,MATCH($CW$12&"_"&DA$20,データシート1!$A$1:$BT$1,0),0) -> 969.861 | DB27: =VLOOKUP($AX27&"_"&$CW$14,データシート1!$A:$BT,MATCH($CW$12&"_"&DB$20,データシート1!$A$1:$BT$1,0),0) -> 2257.088 | DC27: =VLOOKUP($AX27&"_"&$CW$14,データシート1!$A:$BT,MATCH($CW$12&"_"&DC$20,データシート1!$A$1:$BT$1,0),0) -> 0 | DD27: 7927.265 | DF27: =VLOOKUP($AX27&"_"&$DF$14,データシート1!$A:$BT,MATCH($DF$12&"_"&DF$20,データシート1!$A$1:$BT$1,0),0) -> 224 | DG27: =VLOOKUP($AX27&"_"&$DF$14,データシート1!$A:$BT,MATCH($DF$12&"_"&DG$20,データシート1!$A$1:$BT$1,0),0) -> 0 | DH27: =VLOOKUP($AX27&"_"&$DF$14,データシート1!$A:$BT,MATCH($DF$12&"_"&DH$20,データシート1!$A$1:$BT$1,0),0) -> 2 | DI27: =VLOOKUP($AX27&"_"&$DF$14,データシート1!$A:$BT,MATCH($DF$12&"_"&DI$20,データシート1!$A$1:$BT$1,0),0) -> 61 | DJ27: =VLOOKUP($AX27&"_"&$DF$14,データシート1!$A:$BT,MATCH($DF$12&"_"&DJ$20,データシート1!$A$1:$BT$1,0),0) -> 11 | DK27: =VLOOKUP($AX27&"_"&$DF$14,データシート1!$A:$BT,MATCH($DF$12&"_"&DK$20,データシート1!$A$1:$BT$1,0),0) -> 0 | DL27: 298 | DN27: 59.0% | DO27: 0 | DP27: 0 | DQ27: 12.0% | DR27: 28.0% | DS27: 0
AX28: =比較地域マスタ!$Y13 -> 08 | AY28: =IF(IFERROR(比較地域マスタ!$Z13,"")=0,"",IFERROR(比較地域マスタ!$Z13,"")) -> 茨城県 | BB28: 08 | BC28: 茨城県 | BD28: 37,431 | BE28: 23,356 | BF28: =VLOOKUP($AX28&"_"&$BC$14,データシート1!$A:$BT,MATCH($BC$12&"_"&BF$20,データシート1!$A$1:$BT$1,0),0) -> 22,622 | BG28: =VLOOKUP($AX28&"_"&$BC$14,データシート1!$A:$BT,MATCH($BC$12&"_"&BG$20,データシート1!$A$1:$BT$1,0),0) -> 195 | BH28: =VLOOKUP($AX28&"_"&$BC$14,データシート1!$A:$BT,MATCH($BC$12&"_"&BH$20,データシート1!$A$1:$BT$1,0),0) -> 539 | BI28: =VLOOKUP($AX28&"_"&$BC$14,データシート1!$A:$BT,MATCH($BC$12&"_"&BI$20,データシート1!$A$1:$BT$1,0),0) -> 3,969 | BJ28: =VLOOKUP($AX28&"_"&$BC$14,データシート1!$A:$BT,MATCH($BC$12&"_"&BJ$20,データシート1!$A$1:$BT$1,0),0) -> 4,125 | BK28: 5,592 | BL28: 5,244 | BM28: =VLOOKUP($AX28&"_"&$BC$14,データシート1!$A:$BT,MATCH($BC$12&"_"&BM$20,データシート1!$A$1:$BT$1,0),0) -> 2,795 | BN28: =VLOOKUP($AX28&"_"&$BC$14,データシート1!$A:$BT,MATCH($BC$12&"_"&BN$20,データシート1!$A$1:$BT$1,0),0) -> 2,449 | BO28: =VLOOKUP($AX28&"_"&$BC$14,データシート1!$A:$BT,MATCH($BC$12&"_"&BO$20,データシート1!$A$1:$BT$1,0),0) -> 169 | BP28: =VLOOKUP($AX28&"_"&$BC$14,データシート1!$A:$BT,MATCH($BC$12&"_"&BP$20,データシート1!$A$1:$BT$1,0),0) -> 179 | BQ28: =VLOOKUP($AX28&"_"&$BC$14,データシート1!$A:$BT,MATCH($BC$12&"_"&BQ$20,データシート1!$A$1:$BT$1,0),0) -> 390 | BR28: 37,431 | BT28: 茨城県 | BU28: 37,431 | BV28: 62% | BW28: 60% | BX28: 1% | BY28: 1% | BZ28: 11% | CA28: 11% | CB28: 15% | CC28: 14% | CD28: 7% | CE28: 7% | CF28: 0% | CG28: 0% | CH28: 1% | CI28: 100% | CK28: 茨城県 | CL28: 23,356 | CM28: (100%) | CN28: 22,622 | CO28: (100%) | CP28: 195 | CQ28: 0 | CR28: 539 | CS28: (2%) | CT28: 3,969 | CU28: (36%) | CW28: 24264.668 | CX28: =VLOOKUP($AX28&"_"&$CW$14,データシート1!$A:$BT,MATCH($CW$12&"_"&CX$20,データシート1!$A$1:$BT$1,0),0) -> 24255.015 | CY28: =VLOOKUP($AX28&"_"&$CW$14,データシート1!$A:$BT,MATCH($CW$12&"_"&CY$20,データシート1!$A$1:$BT$1,0),0) -> 0 | CZ28: =VLOOKUP($AX28&"_"&$CW$14,データシート1!$A:$BT,MATCH($CW$12&"_"&CZ$20,データシート1!$A$1:$BT$1,0),0) -> 9.653 | DA28: =VLOOKUP($AX28&"_"&$CW$14,データシート1!$A:$BT,MATCH($CW$12&"_"&DA$20,データシート1!$A$1:$BT$1,0),0) -> 1446.834 | DB28: =VLOOKUP($AX28&"_"&$CW$14,データシート1!$A:$BT,MATCH($CW$12&"_"&DB$20,データシート1!$A$1:$BT$1,0),0) -> 3329.851 | DC28: =VLOOKUP($AX28&"_"&$CW$14,データシート1!$A:$BT,MATCH($CW$12&"_"&DC$20,データシート1!$A$1:$BT$1,0),0) -> 0 | DD28: 29041.353 | DF28: =VLOOKUP($AX28&"_"&$DF$14,データシート1!$A:$BT,MATCH($DF$12&"_"&DF$20,データシート1!$A$1:$BT$1,0),0) -> 426 | DG28: =VLOOKUP($AX28&"_"&$DF$14,データシート1!$A:$BT,MATCH($DF$12&"_"&DG$20,データシート1!$A$1:$BT$1,0),0) -> 0 | DH28: =VLOOKUP($AX28&"_"&$DF$14,データシート1!$A:$BT,MATCH($DF$12&"_"&DH$20,データシート1!$A$1:$BT$1,0),0) -> 1 | DI28: =VLOOKUP($AX28&"_"&$DF$14,データシート1!$A:$BT,MATCH($DF$12&"_"&DI$20,データシート1!$A$1:$BT$1,0),0) -> 110 | DJ28: =VLOOKUP($AX28&"_"&$DF$14,データシート1!$A:$BT,MATCH($DF$12&"_"&DJ$20,データシート1!$A$1:$BT$1,0),0) -> 18 | DK28: =VLOOKUP($AX28&"_"&$DF$14,データシート1!$A:$BT,MATCH($DF$12&"_"&DK$20,データシート1!$A$1:$BT$1,0),0) -> 0 | DL28: 555 | DN28: 84.0% | DO28: 0 | DP28: 0 | DQ28: 5.0% | DR28: 11.0% | DS28: 0
AX29: =比較地域マスタ!$Y14 -> 09 | AY29: =IF(IFERROR(比較地域マスタ!$Z14,"")=0,"",IFERROR(比較地域マスタ!$Z14,"")) -> 栃木県 | BB29: 09 | BC29: 栃木県 | BD29: 13,933 | BE29: 5,039 | BF29: =VLOOKUP($AX29&"_"&$BC$14,データシート1!$A:$BT,MATCH($BC$12&"_"&BF$20,データシート1!$A$1:$BT$1,0),0) -> 4,604 | BG29: =VLOOKUP($AX29&"_"&$BC$14,データシート1!$A:$BT,MATCH($BC$12&"_"&BG$20,データシート1!$A$1:$BT$1,0),0) -> 169 | BH29: =VLOOKUP($AX29&"_"&$BC$14,データシート1!$A:$BT,MATCH($BC$12&"_"&BH$20,データシート1!$A$1:$BT$1,0),0) -> 266 | BI29: =VLOOKUP($AX29&"_"&$BC$14,データシート1!$A:$BT,MATCH($BC$12&"_"&BI$20,データシート1!$A$1:$BT$1,0),0) -> 2,742 | BJ29: =VLOOKUP($AX29&"_"&$BC$14,データシート1!$A:$BT,MATCH($BC$12&"_"&BJ$20,データシート1!$A$1:$BT$1,0),0) -> 2,431 | BK29: 3,463 | BL29: 3,349 | BM29: =VLOOKUP($AX29&"_"&$BC$14,データシート1!$A:$BT,MATCH($BC$12&"_"&BM$20,データシート1!$A$1:$BT$1,0),0) -> 1,889 | BN29: =VLOOKUP($AX29&"_"&$BC$14,データシート1!$A:$BT,MATCH($BC$12&"_"&BN$20,データシート1!$A$1:$BT$1,0),0) -> 1,461 | BO29: =VLOOKUP($AX29&"_"&$BC$14,データシート1!$A:$BT,MATCH($BC$12&"_"&BO$20,データシート1!$A$1:$BT$1,0),0) -> 113 | BP29: =VLOOKUP($AX29&"_"&$BC$14,データシート1!$A:$BT,MATCH($BC$12&"_"&BP$20,データシート1!$A$1:$BT$1,0),0) -> 0 | BQ29: =VLOOKUP($AX29&"_"&$BC$14,データシート1!$A:$BT,MATCH($BC$12&"_"&BQ$20,データシート1!$A$1:$BT$1,0),0) -> 258 | BR29: 13,933 | BT29: 栃木県 | BU29: 13,933 | BV29: 36% | BW29: 33% | BX29: 1% | BY29: 2% | BZ29: 20% | CA29: 17% | CB29: 25% | CC29: 24% | CD29: 14% | CE29: 10% | CF29: 1% | CG29: 0% | CH29: 2% | CI29: 100% | CK29: 栃木県 | CL29: 5,039 | CM29: (100%) | CN29: 4,604 | CO29: (100%) | CP29: 169 | CQ29: (49%) | CR29: 266 | CS29: (12%) | CT29: 2,742 | CU29: (21%) | CW29: 5062.373 | CX29: =VLOOKUP($AX29&"_"&$CW$14,データシート1!$A:$BT,MATCH($CW$12&"_"&CX$20,データシート1!$A$1:$BT$1,0),0) -> 4948.663 | CY29: =VLOOKUP($AX29&"_"&$CW$14,データシート1!$A:$BT,MATCH($CW$12&"_"&CY$20,データシート1!$A$1:$BT$1,0),0) -> 82.284 | CZ29: =VLOOKUP($AX29&"_"&$CW$14,データシート1!$A:$BT,MATCH($CW$12&"_"&CZ$20,データシート1!$A$1:$BT$1,0),0) -> 31.426 | DA29: =VLOOKUP($AX29&"_"&$CW$14,データシート1!$A:$BT,MATCH($CW$12&"_"&DA$20,データシート1!$A$1:$BT$1,0),0) -> 582.113 | DB29: =VLOOKUP($AX29&"_"&$CW$14,データシート1!$A:$BT,MATCH($CW$12&"_"&DB$20,データシート1!$A$1:$BT$1,0),0) -> 43.477 | DC29: =VLOOKUP($AX29&"_"&$CW$14,データシート1!$A:$BT,MATCH($CW$12&"_"&DC$20,データシート1!$A$1:$BT$1,0),0) -> 0 | DD29: 5687.963 | DF29: =VLOOKUP($AX29&"_"&$DF$14,データシート1!$A:$BT,MATCH($DF$12&"_"&DF$20,データシート1!$A$1:$BT$1,0),0) -> 284 | DG29: =VLOOKUP($AX29&"_"&$DF$14,データシート1!$A:$BT,MATCH($DF$12&"_"&DG$20,データシート1!$A$1:$BT$1,0),0) -> 3 | DH29: =VLOOKUP($AX29&"_"&$DF$14,データシート1!$A:$BT,MATCH($DF$12&"_"&DH$20,データシート1!$A$1:$BT$1,0),0) -> 3 | DI29: =VLOOKUP($AX29&"_"&$DF$14,データシート1!$A:$BT,MATCH($DF$12&"_"&DI$20,データシート1!$A$1:$BT$1,0),0) -> 73 | DJ29: =VLOOKUP($AX29&"_"&$DF$14,データシート1!$A:$BT,MATCH($DF$12&"_"&DJ$20,データシート1!$A$1:$BT$1,0),0) -> 2 | DK29: =VLOOKUP($AX29&"_"&$DF$14,データシート1!$A:$BT,MATCH($DF$12&"_"&DK$20,データシート1!$A$1:$BT$1,0),0) -> 0 | DL29: 365 | DN29: 87.0% | DO29: 1.0% | DP29: 1.0% | DQ29: 10.0% | DR29: 1.0% | DS29: 0
AX30: =比較地域マスタ!$Y15 -> 10 | AY30: =IF(IFERROR(比較地域マスタ!$Z15,"")=0,"",IFERROR(比較地域マスタ!$Z15,"")) -> 群馬県 | BB30: 10 | BC30: 群馬県 | BD30: 13,372 | BE30: 4,408 | BF30: =VLOOKUP($AX30&"_"&$BC$14,データシート1!$A:$BT,MATCH($BC$12&"_"&BF$20,データシート1!$A$1:$BT$1,0),0) -> 4,105 | BG30: =VLOOKUP($AX30&"_"&$BC$14,データシート1!$A:$BT,MATCH($BC$12&"_"&BG$20,データシート1!$A$1:$BT$1,0),0) -> 133 | BH30: =VLOOKUP($AX30&"_"&$BC$14,データシート1!$A:$BT,MATCH($BC$12&"_"&BH$20,データシート1!$A$1:$BT$1,0),0) -> 170 | BI30: =VLOOKUP($AX30&"_"&$BC$14,データシート1!$A:$BT,MATCH($BC$12&"_"&BI$20,データシート1!$A$1:$BT$1,0),0) -> 2,562 | BJ30: =VLOOKUP($AX30&"_"&$BC$14,データシート1!$A:$BT,MATCH($BC$12&"_"&BJ$20,データシート1!$A$1:$BT$1,0),0) -> 2,475 | BK30: 3,653 | BL30: 3,539 | BM30: =VLOOKUP($AX30&"_"&$BC$14,データシート1!$A:$BT,MATCH($BC$12&"_"&BM$20,データシート1!$A$1:$BT$1,0),0) -> 1,935 | BN30: =VLOOKUP($AX30&"_"&$BC$14,データシート1!$A:$BT,MATCH($BC$12&"_"&BN$20,データシート1!$A$1:$BT$1,0),0) -> 1,604 | BO30: =VLOOKUP($AX30&"_"&$BC$14,データシート1!$A:$BT,MATCH($BC$12&"_"&BO$20,データシート1!$A$1:$BT$1,0),0) -> 113 | BP30: =VLOOKUP($AX30&"_"&$BC$14,データシート1!$A:$BT,MATCH($BC$12&"_"&BP$20,データシート1!$A$1:$BT$1,0),0) -> 0 | BQ30: =VLOOKUP($AX30&"_"&$BC$14,データシート1!$A:$BT,MATCH($BC$12&"_"&BQ$20,データシート1!$A$1:$BT$1,0),0) -> 274 | BR30: 13,372 | BT30: 群馬県 | BU30: 13,372 | BV30: 33% | BW30: 31% | BX30: 1% | BY30: 1% | BZ30: 19% | CA30: 19% | CB30: 27% | CC30: 26% | CD30: 14% | CE30: 12% | CF30: 1% | CG30: 0% | CH30: 2% | CI30: 100% | CK30: 群馬県 | CL30: 4,408 | CM30: (83%) | CN30: 4,105 | CO30: (89%) | CP30: 133 | CQ30: 0 | CR30: 170 | CS30: (2%) | CT30: 2,562 | CU30: (15%) | CW30: 3662.878 | CX30: =VLOOKUP($AX30&"_"&$CW$14,データシート1!$A:$BT,MATCH($CW$12&"_"&CX$20,データシート1!$A$1:$BT$1,0),0) -> 3659.597 | CY30: =VLOOKUP($AX30&"_"&$CW$14,データシート1!$A:$BT,MATCH($CW$12&"_"&CY$20,データシート1!$A$1:$BT$1,0),0) -> 0 | CZ30: =VLOOKUP($AX30&"_"&$CW$14,データシート1!$A:$BT,MATCH($CW$12&"_"&CZ$20,データシート1!$A$1:$BT$1,0),0) -> 3.281 | DA30: =VLOOKUP($AX30&"_"&$CW$14,データシート1!$A:$BT,MATCH($CW$12&"_"&DA$20,データシート1!$A$1:$BT$1,0),0) -> 387.728 | DB30: =VLOOKUP($AX30&"_"&$CW$14,データシート1!$A:$BT,MATCH($CW$12&"_"&DB$20,データシート1!$A$1:$BT$1,0),0) -> 33.482 | DC30: =VLOOKUP($AX30&"_"&$CW$14,データシート1!$A:$BT,MATCH($CW$12&"_"&DC$20,データシート1!$A$1:$BT$1,0),0) -> 0 | DD30: 4084.088 | DF30: =VLOOKUP($AX30&"_"&$DF$14,データシート1!$A:$BT,MATCH($DF$12&"_"&DF$20,データシート1!$A$1:$BT$1,0),0) -> 282 | DG30: =VLOOKUP($AX30&"_"&$DF$14,データシート1!$A:$BT,MATCH($DF$12&"_"&DG$20,データシート1!$A$1:$BT$1,0),0) -> 0 | DH30: =VLOOKUP($AX30&"_"&$DF$14,データシート1!$A:$BT,MATCH($DF$12&"_"&DH$20,データシート1!$A$1:$BT$1,0),0) -> 1 | DI30: =VLOOKUP($AX30&"_"&$DF$14,データシート1!$A:$BT,MATCH($DF$12&"_"&DI$20,データシート1!$A$1:$BT$1,0),0) -> 56 | DJ30: =VLOOKUP($AX30&"_"&$DF$14,データシート1!$A:$BT,MATCH($DF$12&"_"&DJ$20,データシート1!$A$1:$BT$1,0),0) -> 1 | DK30: =VLOOKUP($AX30&"_"&$DF$14,データシート1!$A:$BT,MATCH($DF$12&"_"&DK$20,データシート1!$A$1:$BT$1,0),0) -> 0 | DL30: 340 | DN30: 90.0% | DO30: 0 | DP30: 0 | DQ30: 9.0% | DR30: 1.0% | DS30: 0
AX31: =比較地域マスタ!$Y16 -> 11 | AY31: =IF(IFERROR(比較地域マスタ!$Z16,"")=0,"",IFERROR(比較地域マスタ!$Z16,"")) -> 埼玉県 | BB31: 11 | BC31: 埼玉県 | BD31: 33,559 | BE31: 7,604 | BF31: =VLOOKUP($AX31&"_"&$BC$14,データシート1!$A:$BT,MATCH($BC$12&"_"&BF$20,データシート1!$A$1:$BT$1,0),0) -> 6,892 | BG31: =VLOOKUP($AX31&"_"&$BC$14,データシート1!$A:$BT,MATCH($BC$12&"_"&BG$20,データシート1!$A$1:$BT$1,0),0) -> 387 | BH31: =VLOOKUP($AX31&"_"&$BC$14,データシート1!$A:$BT,MATCH($BC$12&"_"&BH$20,データシート1!$A$1:$BT$1,0),0) -> 325 | BI31: =VLOOKUP($AX31&"_"&$BC$14,データシート1!$A:$BT,MATCH($BC$12&"_"&BI$20,データシート1!$A$1:$BT$1,0),0) -> 8,284 | BJ31: =VLOOKUP($AX31&"_"&$BC$14,データシート1!$A:$BT,MATCH($BC$12&"_"&BJ$20,データシート1!$A$1:$BT$1,0),0) -> 8,550 | BK31: 8,295 | BL31: 7,864 | BM31: =VLOOKUP($AX31&"_"&$BC$14,データシート1!$A:$BT,MATCH($BC$12&"_"&BM$20,データシート1!$A$1:$BT$1,0),0) -> 4,556 | BN31: =VLOOKUP($AX31&"_"&$BC$14,データシート1!$A:$BT,MATCH($BC$12&"_"&BN$20,データシート1!$A$1:$BT$1,0),0) -> 3,308 | BO31: =VLOOKUP($AX31&"_"&$BC$14,データシート1!$A:$BT,MATCH($BC$12&"_"&BO$20,データシート1!$A$1:$BT$1,0),0) -> 431 | BP31: =VLOOKUP($AX31&"_"&$BC$14,データシート1!$A:$BT,MATCH($BC$12&"_"&BP$20,データシート1!$A$1:$BT$1,0),0) -> 0 | BQ31: =VLOOKUP($AX31&"_"&$BC$14,データシート1!$A:$BT,MATCH($BC$12&"_"&BQ$20,データシート1!$A$1:$BT$1,0),0) -> 826 | BR31: 33,559 | BT31: 埼玉県 | BU31: 33,559 | BV31: 23% | BW31: 21% | BX31: 1% | BY31: 1% | BZ31: 25% | CA31: 25% | CB31: 25% | CC31: 23% | CD31: 14% | CE31: 10% | CF31: 1% | CG31: 0% | CH31: 2% | CI31: 100% | CK31: 埼玉県 | CL31: 7,604 | CM31: (100%) | CN31: 6,892 | CO31: (100%) | CP31: 387 | CQ31: (8%) | CR31: 325 | CS31: 0 | CT31: 8,284 | CU31: (25%) | CW31: 7828.206 | CX31: =VLOOKUP($AX31&"_"&$CW$14,データシート1!$A:$BT,MATCH($CW$12&"_"&CX$20,データシート1!$A$1:$BT$1,0),0) -> 7798.871 | CY31: =VLOOKUP($AX31&"_"&$CW$14,データシート1!$A:$BT,MATCH($CW$12&"_"&CY$20,データシート1!$A$1:$BT$1,0),0) -> 29.335 | CZ31: =VLOOKUP($AX31&"_"&$CW$14,データシート1!$A:$BT,MATCH($CW$12&"_"&CZ$20,データシート1!$A$1:$BT$1,0),0) -> 0 | DA31: =VLOOKUP($AX31&"_"&$CW$14,データシート1!$A:$BT,MATCH($CW$12&"_"&DA$20,データシート1!$A$1:$BT$1,0),0) -> 2102.881 | DB31: =VLOOKUP($AX31&"_"&$CW$14,データシート1!$A:$BT,MATCH($CW$12&"_"&DB$20,データシート1!$A$1:$BT$1,0),0) -> 10.403 | DC31: =VLOOKUP($AX31&"_"&$CW$14,データシート1!$A:$BT,MATCH($CW$12&"_"&DC$20,データシート1!$A$1:$BT$1,0),0) -> 0 | DD31: 9941.49 | DF31: =VLOOKUP($AX31&"_"&$DF$14,データシート1!$A:$BT,MATCH($DF$12&"_"&DF$20,データシート1!$A$1:$BT$1,0),0) -> 418 | DG31: =VLOOKUP($AX31&"_"&$DF$14,データシート1!$A:$BT,MATCH($DF$12&"_"&DG$20,データシート1!$A$1:$BT$1,0),0) -> 6 | DH31: =VLOOKUP($AX31&"_"&$DF$14,データシート1!$A:$BT,MATCH($DF$12&"_"&DH$20,データシート1!$A$1:$BT$1,0),0) -> 0 | DI31: =VLOOKUP($AX31&"_"&$DF$14,データシート1!$A:$BT,MATCH($DF$12&"_"&DI$20,データシート1!$A$1:$BT$1,0),0) -> 203 | DJ31: =VLOOKUP($AX31&"_"&$DF$14,データシート1!$A:$BT,MATCH($DF$12&"_"&DJ$20,データシート1!$A$1:$BT$1,0),0) -> 3 | DK31: =VLOOKUP($AX31&"_"&$DF$14,データシート1!$A:$BT,MATCH($DF$12&"_"&DK$20,データシート1!$A$1:$BT$1,0),0) -> 0 | DL31: 630 | DN31: 78.0% | DO31: 0 | DP31: 0 | DQ31: 21.0% | DR31: 0 | DS31: 0
AX32: =比較地域マスタ!$Y17 -> 12 | AY32: =IF(IFERROR(比較地域マスタ!$Z17,"")=0,"",IFERROR(比較地域マスタ!$Z17,"")) -> 千葉県 | BB32: 12 | BC32: 千葉県 | BD32: 65,056 | BE32: 40,443 | BF32: =VLOOKUP($AX32&"_"&$BC$14,データシート1!$A:$BT,MATCH($BC$12&"_"&BF$20,データシート1!$A$1:$BT$1,0),0) -> 39,386 | BG32: =VLOOKUP($AX32&"_"&$BC$14,データシート1!$A:$BT,MATCH($BC$12&"_"&BG$20,データシート1!$A$1:$BT$1,0),0) -> 336 | BH32: =VLOOKUP($AX32&"_"&$BC$14,データシート1!$A:$BT,MATCH($BC$12&"_"&BH$20,データシート1!$A$1:$BT$1,0),0) -> 720 | BI32: =VLOOKUP($AX32&"_"&$BC$14,データシート1!$A:$BT,MATCH($BC$12&"_"&BI$20,データシート1!$A$1:$BT$1,0),0) -> 8,753 | BJ32: =VLOOKUP($AX32&"_"&$BC$14,データシート1!$A:$BT,MATCH($BC$12&"_"&BJ$20,データシート1!$A$1:$BT$1,0),0) -> 7,185 | BK32: 7,937 | BL32: 7,160 | BM32: =VLOOKUP($AX32&"_"&$BC$14,データシート1!$A:$BT,MATCH($BC$12&"_"&BM$20,データシート1!$A$1:$BT$1,0),0) -> 3,994 | BN32: =VLOOKUP($AX32&"_"&$BC$14,データシート1!$A:$BT,MATCH($BC$12&"_"&BN$20,データシート1!$A$1:$BT$1,0),0) -> 3,166 | BO32: =VLOOKUP($AX32&"_"&$BC$14,データシート1!$A:$BT,MATCH($BC$12&"_"&BO$20,データシート1!$A$1:$BT$1,0),0) -> 368 | BP32: =VLOOKUP($AX32&"_"&$BC$14,データシート1!$A:$BT,MATCH($BC$12&"_"&BP$20,データシート1!$A$1:$BT$1,0),0) -> 408 | BQ32: =VLOOKUP($AX32&"_"&$BC$14,データシート1!$A:$BT,MATCH($BC$12&"_"&BQ$20,データシート1!$A$1:$BT$1,0),0) -> 739 | BR32: 65,056 | BT32: 千葉県 | BU32: 65,056 | BV32: 62% | BW32: 61% | BX32: 1% | BY32: 1% | BZ32: 13% | CA32: 11% | CB32: 12% | CC32: 11% | CD32: 6% | CE32: 5% | CF32: 1% | CG32: 1% | CH32: 1% | CI32: 100% | CK32: 千葉県 | CL32: 40,443 | CM32: (90%) | CN32: 39,386 | CO32: (92%) | CP32: 336 | CQ32: (15%) | CR32: 720 | CS32: (2%) | CT32: 8,753 | CU32: (38%) | CW32: 36284.824 | CX32: =VLOOKUP($AX32&"_"&$CW$14,データシート1!$A:$BT,MATCH($CW$12&"_"&CX$20,データシート1!$A$1:$BT$1,0),0) -> 36218.054 | CY32: =VLOOKUP($AX32&"_"&$CW$14,データシート1!$A:$BT,MATCH($CW$12&"_"&CY$20,データシート1!$A$1:$BT$1,0),0) -> 50.49 | CZ32: =VLOOKUP($AX32&"_"&$CW$14,データシート1!$A:$BT,MATCH($CW$12&"_"&CZ$20,データシート1!$A$1:$BT$1,0),0) -> 16.28 | DA32: =VLOOKUP($AX32&"_"&$CW$14,データシート1!$A:$BT,MATCH($CW$12&"_"&DA$20,データシート1!$A$1:$BT$1,0),0) -> 3299.743 | DB32: =VLOOKUP($AX32&"_"&$CW$14,データシート1!$A:$BT,MATCH($CW$12&"_"&DB$20,データシート1!$A$1:$BT$1,0),0) -> 6530.602 | DC32: =VLOOKUP($AX32&"_"&$CW$14,データシート1!$A:$BT,MATCH($CW$12&"_"&DC$20,データシート1!$A$1:$BT$1,0),0) -> 0 | DD32: 46115.169 | DF32: =VLOOKUP($AX32&"_"&$DF$14,データシート1!$A:$BT,MATCH($DF$12&"_"&DF$20,データシート1!$A$1:$BT$1,0),0) -> 342 | DG32: =VLOOKUP($AX32&"_"&$DF$14,データシート1!$A:$BT,MATCH($DF$12&"_"&DG$20,データシート1!$A$1:$BT$1,0),0) -> 4 | DH32: =VLOOKUP($AX32&"_"&$DF$14,データシート1!$A:$BT,MATCH($DF$12&"_"&DH$20,データシート1!$A$1:$BT$1,0),0) -> 6 | DI32: =VLOOKUP($AX32&"_"&$DF$14,データシート1!$A:$BT,MATCH($DF$12&"_"&DI$20,データシート1!$A$1:$BT$1,0),0) -> 296 | DJ32: =VLOOKUP($AX32&"_"&$DF$14,データシート1!$A:$BT,MATCH($DF$12&"_"&DJ$20,データシート1!$A$1:$BT$1,0),0) -> 24 | DK32: =VLOOKUP($AX32&"_"&$DF$14,データシート1!$A:$BT,MATCH($DF$12&"_"&DK$20,データシート1!$A$1:$BT$1,0),0) -> 0 | DL32: 672 | DN32: 79.0% | DO32: 0 | DP32: 0 | DQ32: 7.0% | DR32: 14.0% | DS32: 0
AX33: =比較地域マスタ!$Y18 -> 13 | AY33: =IF(IFERROR(比較地域マスタ!$Z18,"")=0,"",IFERROR(比較地域マスタ!$Z18,"")) -> 東京都 | BB33: 13 | BC33: 東京都 | BD33: 63,764 | BE33: 5,379 | BF33: =VLOOKUP($AX33&"_"&$BC$14,データシート1!$A:$BT,MATCH($BC$12&"_"&BF$20,データシート1!$A$1:$BT$1,0),0) -> 3,914 | BG33: =VLOOKUP($AX33&"_"&$BC$14,データシート1!$A:$BT,MATCH($BC$12&"_"&BG$20,データシート1!$A$1:$BT$1,0),0) -> 1,052 | BH33: =VLOOKUP($AX33&"_"&$BC$14,データシート1!$A:$BT,MATCH($BC$12&"_"&BH$20,データシート1!$A$1:$BT$1,0),0) -> 413 | BI33: =VLOOKUP($AX33&"_"&$BC$14,データシート1!$A:$BT,MATCH($BC$12&"_"&BI$20,データシート1!$A$1:$BT$1,0),0) -> 30,396 | BJ33: =VLOOKUP($AX33&"_"&$BC$14,データシート1!$A:$BT,MATCH($BC$12&"_"&BJ$20,データシート1!$A$1:$BT$1,0),0) -> 16,999 | BK33: 9,246 | BL33: 8,048 | BM33: =VLOOKUP($AX33&"_"&$BC$14,データシート1!$A:$BT,MATCH($BC$12&"_"&BM$20,データシート1!$A$1:$BT$1,0),0) -> 4,526 | BN33: =VLOOKUP($AX33&"_"&$BC$14,データシート1!$A:$BT,MATCH($BC$12&"_"&BN$20,データシート1!$A$1:$BT$1,0),0) -> 3,522 | BO33: =VLOOKUP($AX33&"_"&$BC$14,データシート1!$A:$BT,MATCH($BC$12&"_"&BO$20,データシート1!$A$1:$BT$1,0),0) -> 805 | BP33: =VLOOKUP($AX33&"_"&$BC$14,データシート1!$A:$BT,MATCH($BC$12&"_"&BP$20,データシート1!$A$1:$BT$1,0),0) -> 393 | BQ33: =VLOOKUP($AX33&"_"&$BC$14,データシート1!$A:$BT,MATCH($BC$12&"_"&BQ$20,データシート1!$A$1:$BT$1,0),0) -> 1,743 | BR33: 63,764 | BT33: 東京都 | BU33: 63,764 | BV33: 8% | BW33: 6% | BX33: 2% | BY33: 1% | BZ33: 48% | CA33: 27% | CB33: 15% | CC33: 13% | CD33: 7% | CE33: 6% | CF33: 1% | CG33: 1% | CH33: 3% | CI33: 100% | CK33: 東京都 | CL33: 5,379 | CM33: (32%) | CN33: 3,914 | CO33: (43%) | CP33: 1,052 | CQ33: (2%) | CR33: 413 | CS33: 0 | CT33: 30,396 | CU33: (32%) | CW33: 1704.081 | CX33: =VLOOKUP($AX33&"_"&$CW$14,データシート1!$A:$BT,MATCH($CW$12&"_"&CX$20,データシート1!$A$1:$BT$1,0),0) -> 1683.64 | CY33: =VLOOKUP($AX33&"_"&$CW$14,データシート1!$A:$BT,MATCH($CW$12&"_"&CY$20,データシート1!$A$1:$BT$1,0),0) -> 20.441 | CZ33: =VLOOKUP($AX33&"_"&$CW$14,データシート1!$A:$BT,MATCH($CW$12&"_"&CZ$20,データシート1!$A$1:$BT$1,0),0) -> 0 | DA33: =VLOOKUP($AX33&"_"&$CW$14,データシート1!$A:$BT,MATCH($CW$12&"_"&DA$20,データシート1!$A$1:$BT$1,0),0) -> 9738.397 | DB33: =VLOOKUP($AX33&"_"&$CW$14,データシート1!$A:$BT,MATCH($CW$12&"_"&DB$20,データシート1!$A$1:$BT$1,0),0) -> 178.438 | DC33: =VLOOKUP($AX33&"_"&$CW$14,データシート1!$A:$BT,MATCH($CW$12&"_"&DC$20,データシート1!$A$1:$BT$1,0),0) -> 0 | DD33: 11620.916 | DF33: =VLOOKUP($AX33&"_"&$DF$14,データシート1!$A:$BT,MATCH($DF$12&"_"&DF$20,データシート1!$A$1:$BT$1,0),0) -> 137 | DG33: =VLOOKUP($AX33&"_"&$DF$14,データシート1!$A:$BT,MATCH($DF$12&"_"&DG$20,データシート1!$A$1:$BT$1,0),0) -> 5 | DH33: =VLOOKUP($AX33&"_"&$DF$14,データシート1!$A:$BT,MATCH($DF$12&"_"&DH$20,データシート1!$A$1:$BT$1,0),0) -> 0 | DI33: =VLOOKUP($AX33&"_"&$DF$14,データシート1!$A:$BT,MATCH($DF$12&"_"&DI$20,データシート1!$A$1:$BT$1,0),0) -> 1,109 | DJ33: =VLOOKUP($AX33&"_"&$DF$14,データシート1!$A:$BT,MATCH($DF$12&"_"&DJ$20,データシート1!$A$1:$BT$1,0),0) -> 70 | DK33: =VLOOKUP($AX33&"_"&$DF$14,データシート1!$A:$BT,MATCH($DF$12&"_"&DK$20,データシート1!$A$1:$BT$1,0),0) -> 0 | DL33: 1,321 | DN33: 14.0% | DO33: 0 | DP33: 0 | DQ33: 84.0% | DR33: 2.0% | DS33: 0
AX34: =比較地域マスタ!$Y19 -> 14 | AY34: =IF(IFERROR(比較地域マスタ!$Z19,"")=0,"",IFERROR(比較地域マスタ!$Z19,"")) -> 神奈川県 | BB34: 14 | BC34: 神奈川県 | BD34: 56,216 | BE34: 23,973 | BF34: =VLOOKUP($AX34&"_"&$BC$14,データシート1!$A:$BT,MATCH($BC$12&"_"&BF$20,データシート1!$A$1:$BT$1,0),0) -> 23,111 | BG34: =VLOOKUP($AX34&"_"&$BC$14,データシート1!$A:$BT,MATCH($BC$12&"_"&BG$20,データシート1!$A$1:$BT$1,0),0) -> 477 | BH34: =VLOOKUP($AX34&"_"&$BC$14,データシート1!$A:$BT,MATCH($BC$12&"_"&BH$20,データシート1!$A$1:$BT$1,0),0) -> 385 | BI34: =VLOOKUP($AX34&"_"&$BC$14,データシート1!$A:$BT,MATCH($BC$12&"_"&BI$20,データシート1!$A$1:$BT$1,0),0) -> 12,067 | BJ34: =VLOOKUP($AX34&"_"&$BC$14,データシート1!$A:$BT,MATCH($BC$12&"_"&BJ$20,データシート1!$A$1:$BT$1,0),0) -> 10,977 | BK34: 8,373 | BL34: 7,324 | BM34: =VLOOKUP($AX34&"_"&$BC$14,データシート1!$A:$BT,MATCH($BC$12&"_"&BM$20,データシート1!$A$1:$BT$1,0),0) -> 4,355 | BN34: =VLOOKUP($AX34&"_"&$BC$14,データシート1!$A:$BT,MATCH($BC$12&"_"&BN$20,データシート1!$A$1:$BT$1,0),0) -> 2,969 | BO34: =VLOOKUP($AX34&"_"&$BC$14,データシート1!$A:$BT,MATCH($BC$12&"_"&BO$20,データシート1!$A$1:$BT$1,0),0) -> 538 | BP34: =VLOOKUP($AX34&"_"&$BC$14,データシート1!$A:$BT,MATCH($BC$12&"_"&BP$20,データシート1!$A$1:$BT$1,0),0) -> 511 | BQ34: =VLOOKUP($AX34&"_"&$BC$14,データシート1!$A:$BT,MATCH($BC$12&"_"&BQ$20,データシート1!$A$1:$BT$1,0),0) -> 826 | BR34: 56,216 | BT34: 神奈川県 | BU34: 56,216 | BV34: 43% | BW34: 41% | BX34: 1% | BY34: 1% | BZ34: 21% | CA34: 20% | CB34: 15% | CC34: 13% | CD34: 8% | CE34: 5% | CF34: 1% | CG34: 1% | CH34: 1% | CI34: 100% | CK34: 神奈川県 | CL34: 23,973 | CM34: (68%) | CN34: 23,111 | CO34: (70%) | CP34: 477 | CQ34: (2%) | CR34: 385 | CS34: (1%) | CT34: 12,067 | CU34: (30%) | CW34: 16242.105 | CX34: =VLOOKUP($AX34&"_"&$CW$14,データシート1!$A:$BT,MATCH($CW$12&"_"&CX$20,データシート1!$A$1:$BT$1,0),0) -> 16230.575 | CY34: =VLOOKUP($AX34&"_"&$CW$14,データシート1!$A:$BT,MATCH($CW$12&"_"&CY$20,データシート1!$A$1:$BT$1,0),0) -> 7.991 | CZ34: =VLOOKUP($AX34&"_"&$CW$14,データシート1!$A:$BT,MATCH($CW$12&"_"&CZ$20,データシート1!$A$1:$BT$1,0),0) -> 3.539 | DA34: =VLOOKUP($AX34&"_"&$CW$14,データシート1!$A:$BT,MATCH($CW$12&"_"&DA$20,データシート1!$A$1:$BT$1,0),0) -> 3621.587 | DB34: =VLOOKUP($AX34&"_"&$CW$14,データシート1!$A:$BT,MATCH($CW$12&"_"&DB$20,データシート1!$A$1:$BT$1,0),0) -> 5058.264 | DC34: =VLOOKUP($AX34&"_"&$CW$14,データシート1!$A:$BT,MATCH($CW$12&"_"&DC$20,データシート1!$A$1:$BT$1,0),0) -> 0 | DD34: 24921.956 | DF34: =VLOOKUP($AX34&"_"&$DF$14,データシート1!$A:$BT,MATCH($DF$12&"_"&DF$20,データシート1!$A$1:$BT$1,0),0) -> 414 | DG34: =VLOOKUP($AX34&"_"&$DF$14,データシート1!$A:$BT,MATCH($DF$12&"_"&DG$20,データシート1!$A$1:$BT$1,0),0) -> 2 | DH34: =VLOOKUP($AX34&"_"&$DF$14,データシート1!$A:$BT,MATCH($DF$12&"_"&DH$20,データシート1!$A$1:$BT$1,0),0) -> 1 | DI34: =VLOOKUP($AX34&"_"&$DF$14,データシート1!$A:$BT,MATCH($DF$12&"_"&DI$20,データシート1!$A$1:$BT$1,0),0) -> 409 | DJ34: =VLOOKUP($AX34&"_"&$DF$14,データシート1!$A:$BT,MATCH($DF$12&"_"&DJ$20,データシート1!$A$1:$BT$1,0),0) -> 21 | DK34: =VLOOKUP($AX34&"_"&$DF$14,データシート1!$A:$BT,MATCH($DF$12&"_"&DK$20,データシート1!$A$1:$BT$1,0),0) -> 0 | DL34: 847 | DN34: 65.0% | DO34: 0 | DP34: 0 | DQ34: 15.0% | DR34: 20.0% | DS34: 0
AX35: =比較地域マスタ!$Y20 -> 15 | AY35: =IF(IFERROR(比較地域マスタ!$Z20,"")=0,"",IFERROR(比較地域マスタ!$Z20,"")) -> 新潟県 | BB35: 15 | BC35: 新潟県 | BD35: 16,701 | BE35: 6,084 | BF35: =VLOOKUP($AX35&"_"&$BC$14,データシート1!$A:$BT,MATCH($BC$12&"_"&BF$20,データシート1!$A$1:$BT$1,0),0) -> 5,312 | BG35: =VLOOKUP($AX35&"_"&$BC$14,データシート1!$A:$BT,MATCH($BC$12&"_"&BG$20,データシート1!$A$1:$BT$1,0),0) -> 311 | BH35: =VLOOKUP($AX35&"_"&$BC$14,データシート1!$A:$BT,MATCH($BC$12&"_"&BH$20,データシート1!$A$1:$BT$1,0),0) -> 461 | BI35: =VLOOKUP($AX35&"_"&$BC$14,データシート1!$A:$BT,MATCH($BC$12&"_"&BI$20,データシート1!$A$1:$BT$1,0),0) -> 3,238 | BJ35: =VLOOKUP($AX35&"_"&$BC$14,データシート1!$A:$BT,MATCH($BC$12&"_"&BJ$20,データシート1!$A$1:$BT$1,0),0) -> 3,148 | BK35: 3,996 | BL35: 3,623 | BM35: =VLOOKUP($AX35&"_"&$BC$14,データシート1!$A:$BT,MATCH($BC$12&"_"&BM$20,データシート1!$A$1:$BT$1,0),0) -> 1,936 | BN35: =VLOOKUP($AX35&"_"&$BC$14,データシート1!$A:$BT,MATCH($BC$12&"_"&BN$20,データシート1!$A$1:$BT$1,0),0) -> 1,687 | BO35: =VLOOKUP($AX35&"_"&$BC$14,データシート1!$A:$BT,MATCH($BC$12&"_"&BO$20,データシート1!$A$1:$BT$1,0),0) -> 128 | BP35: =VLOOKUP($AX35&"_"&$BC$14,データシート1!$A:$BT,MATCH($BC$12&"_"&BP$20,データシート1!$A$1:$BT$1,0),0) -> 245 | BQ35: =VLOOKUP($AX35&"_"&$BC$14,データシート1!$A:$BT,MATCH($BC$12&"_"&BQ$20,データシート1!$A$1:$BT$1,0),0) -> 235 | BR35: 16,701 | BT35: 新潟県 | BU35: 16,701 | BV35: 36% | BW35: 32% | BX35: 2% | BY35: 3% | BZ35: 19% | CA35: 19% | CB35: 24% | CC35: 22% | CD35: 12% | CE35: 10% | CF35: 1% | CG35: 1% | CH35: 1% | CI35: 100% | CK35: 新潟県 | CL35: 6,084 | CM35: (100%) | CN35: 5,312 | CO35: (100%) | CP35: 311 | CQ35: (100%) | CR35: 461 | CS35: (20%) | CT35: 3,238 | CU35: (16%) | CW35: 6720.163 | CX35: =VLOOKUP($AX35&"_"&$CW$14,データシート1!$A:$BT,MATCH($CW$12&"_"&CX$20,データシート1!$A$1:$BT$1,0),0) -> 6310.745 | CY35: =VLOOKUP($AX35&"_"&$CW$14,データシート1!$A:$BT,MATCH($CW$12&"_"&CY$20,データシート1!$A$1:$BT$1,0),0) -> 316.494 | CZ35: =VLOOKUP($AX35&"_"&$CW$14,データシート1!$A:$BT,MATCH($CW$12&"_"&CZ$20,データシート1!$A$1:$BT$1,0),0) -> 92.924 | DA35: =VLOOKUP($AX35&"_"&$CW$14,データシート1!$A:$BT,MATCH($CW$12&"_"&DA$20,データシート1!$A$1:$BT$1,0),0) -> 510.996 | DB35: =VLOOKUP($AX35&"_"&$CW$14,データシート1!$A:$BT,MATCH($CW$12&"_"&DB$20,データシート1!$A$1:$BT$1,0),0) -> 867.468 | DC35: =VLOOKUP($AX35&"_"&$CW$14,データシート1!$A:$BT,MATCH($CW$12&"_"&DC$20,データシート1!$A$1:$BT$1,0),0) -> 0 | DD35: 8098.627 | DF35: =VLOOKUP($AX35&"_"&$DF$14,データシート1!$A:$BT,MATCH($DF$12&"_"&DF$20,データシート1!$A$1:$BT$1,0),0) -> 184 | DG35: =VLOOKUP($AX35&"_"&$DF$14,データシート1!$A:$BT,MATCH($DF$12&"_"&DG$20,データシート1!$A$1:$BT$1,0),0) -> 7 | DH35: =VLOOKUP($AX35&"_"&$DF$14,データシート1!$A:$BT,MATCH($DF$12&"_"&DH$20,データシート1!$A$1:$BT$1,0),0) -> 9 | DI35: =VLOOKUP($AX35&"_"&$DF$14,データシート1!$A:$BT,MATCH($DF$12&"_"&DI$20,データシート1!$A$1:$BT$1,0),0) -> 68 | DJ35: =VLOOKUP($AX35&"_"&$DF$14,データシート1!$A:$BT,MATCH($DF$12&"_"&DJ$20,データシート1!$A$1:$BT$1,0),0) -> 16 | DK35: =VLOOKUP($AX35&"_"&$DF$14,データシート1!$A:$BT,MATCH($DF$12&"_"&DK$20,データシート1!$A$1:$BT$1,0),0) -> 0 | DL35: 284 | DN35: 78.0% | DO35: 4.0% | DP35: 1.0% | DQ35: 6.0% | DR35: 11.0% | DS35: 0
AX36: =比較地域マスタ!$Y21 -> 16 | AY36: =IF(IFERROR(比較地域マスタ!$Z21,"")=0,"",IFERROR(比較地域マスタ!$Z21,"")) -> 富山県 | BB36: 16 | BC36: 富山県 | BD36: 8,936 | BE36: 3,518 | BF36: =VLOOKUP($AX36&"_"&$BC$14,データシート1!$A:$BT,MATCH($BC$12&"_"&BF$20,データシート1!$A$1:$BT$1,0),0) -> 3,138 | BG36: =VLOOKUP($AX36&"_"&$BC$14,データシート1!$A:$BT,MATCH($BC$12&"_"&BG$20,データシート1!$A$1:$BT$1,0),0) -> 89 | BH36: =VLOOKUP($AX36&"_"&$BC$14,データシート1!$A:$BT,MATCH($BC$12&"_"&BH$20,データシート1!$A$1:$BT$1,0),0) -> 291 | BI36: =VLOOKUP($AX36&"_"&$BC$14,データシート1!$A:$BT,MATCH($BC$12&"_"&BI$20,データシート1!$A$1:$BT$1,0),0) -> 1,486 | BJ36: =VLOOKUP($AX36&"_"&$BC$14,データシート1!$A:$BT,MATCH($BC$12&"_"&BJ$20,データシート1!$A$1:$BT$1,0),0) -> 2,022 | BK36: 1,790 | BL36: 1,720 | BM36: =VLOOKUP($AX36&"_"&$BC$14,データシート1!$A:$BT,MATCH($BC$12&"_"&BM$20,データシート1!$A$1:$BT$1,0),0) -> 984 | BN36: =VLOOKUP($AX36&"_"&$BC$14,データシート1!$A:$BT,MATCH($BC$12&"_"&BN$20,データシート1!$A$1:$BT$1,0),0) -> 736 | BO36: =VLOOKUP($AX36&"_"&$BC$14,データシート1!$A:$BT,MATCH($BC$12&"_"&BO$20,データシート1!$A$1:$BT$1,0),0) -> 61 | BP36: =VLOOKUP($AX36&"_"&$BC$14,データシート1!$A:$BT,MATCH($BC$12&"_"&BP$20,データシート1!$A$1:$BT$1,0),0) -> 10 | BQ36: =VLOOKUP($AX36&"_"&$BC$14,データシート1!$A:$BT,MATCH($BC$12&"_"&BQ$20,データシート1!$A$1:$BT$1,0),0) -> 120 | BR36: 8,936 | BT36: 富山県 | BU36: 8,936 | BV36: 39% | BW36: 35% | BX36: 1% | BY36: 3% | BZ36: 17% | CA36: 23% | CB36: 20% | CC36: 19% | CD36: 11% | CE36: 8% | CF36: 1% | CG36: 0% | CH36: 1% | CI36: 100% | CK36: 富山県 | CL36: 3,518 | CM36: (91%) | CN36: 3,138 | CO36: (100%) | CP36: 89 | CQ36: 0 | CR36: 291 | CS36: (2%) | CT36: 1,486 | CU36: (22%) | CW36: 3201.522 | CX36: =VLOOKUP($AX36&"_"&$CW$14,データシート1!$A:$BT,MATCH($CW$12&"_"&CX$20,データシート1!$A$1:$BT$1,0),0) -> 3196.724 | CY36: =VLOOKUP($AX36&"_"&$CW$14,データシート1!$A:$BT,MATCH($CW$12&"_"&CY$20,データシート1!$A$1:$BT$1,0),0) -> 0 | CZ36: =VLOOKUP($AX36&"_"&$CW$14,データシート1!$A:$BT,MATCH($CW$12&"_"&CZ$20,データシート1!$A$1:$BT$1,0),0) -> 4.798 | DA36: =VLOOKUP($AX36&"_"&$CW$14,データシート1!$A:$BT,MATCH($CW$12&"_"&DA$20,データシート1!$A$1:$BT$1,0),0) -> 332.071 | DB36: =VLOOKUP($AX36&"_"&$CW$14,データシート1!$A:$BT,MATCH($CW$12&"_"&DB$20,データシート1!$A$1:$BT$1,0),0) -> 263.9 | DC36: =VLOOKUP($AX36&"_"&$CW$14,データシート1!$A:$BT,MATCH($CW$12&"_"&DC$20,データシート1!$A$1:$BT$1,0),0) -> 0 | DD36: 3797.493 | DF36: =VLOOKUP($AX36&"_"&$DF$14,データシート1!$A:$BT,MATCH($DF$12&"_"&DF$20,データシート1!$A$1:$BT$1,0),0) -> 164 | DG36: =VLOOKUP($AX36&"_"&$DF$14,データシート1!$A:$BT,MATCH($DF$12&"_"&DG$20,データシート1!$A$1:$BT$1,0),0) -> 0 | DH36: =VLOOKUP($AX36&"_"&$DF$14,データシート1!$A:$BT,MATCH($DF$12&"_"&DH$20,データシート1!$A$1:$BT$1,0),0) -> 1 | DI36: =VLOOKUP($AX36&"_"&$DF$14,データシート1!$A:$BT,MATCH($DF$12&"_"&DI$20,データシート1!$A$1:$BT$1,0),0) -> 32 | DJ36: =VLOOKUP($AX36&"_"&$DF$14,データシート1!$A:$BT,MATCH($DF$12&"_"&DJ$20,データシート1!$A$1:$BT$1,0),0) -> 2 | DK36: =VLOOKUP($AX36&"_"&$DF$14,データシート1!$A:$BT,MATCH($DF$12&"_"&DK$20,データシート1!$A$1:$BT$1,0),0) -> 0 | DL36: 199 | DN36: 84.0% | DO36: 0 | DP36: 0 | DQ36: 9.0% | DR36: 7.0% | DS36: 0
AX37: =比較地域マスタ!$Y22 -> 17 | AY37: =IF(IFERROR(比較地域マスタ!$Z22,"")=0,"",IFERROR(比較地域マスタ!$Z22,"")) -> 石川県 | BB37: 17 | BC37: 石川県 | BD37: 8,077 | BE37: 2,457 | BF37: =VLOOKUP($AX37&"_"&$BC$14,データシート1!$A:$BT,MATCH($BC$12&"_"&BF$20,データシート1!$A$1:$BT$1,0),0) -> 2,064 | BG37: =VLOOKUP($AX37&"_"&$BC$14,データシート1!$A:$BT,MATCH($BC$12&"_"&BG$20,データシート1!$A$1:$BT$1,0),0) -> 85 | BH37: =VLOOKUP($AX37&"_"&$BC$14,データシート1!$A:$BT,MATCH($BC$12&"_"&BH$20,データシート1!$A$1:$BT$1,0),0) -> 307 | BI37: =VLOOKUP($AX37&"_"&$BC$14,データシート1!$A:$BT,MATCH($BC$12&"_"&BI$20,データシート1!$A$1:$BT$1,0),0) -> 1,785 | BJ37: =VLOOKUP($AX37&"_"&$BC$14,データシート1!$A:$BT,MATCH($BC$12&"_"&BJ$20,データシート1!$A$1:$BT$1,0),0) -> 1,868 | BK37: 1,834 | BL37: 1,748 | BM37: =VLOOKUP($AX37&"_"&$BC$14,データシート1!$A:$BT,MATCH($BC$12&"_"&BM$20,データシート1!$A$1:$BT$1,0),0) -> 1,011 | BN37: =VLOOKUP($AX37&"_"&$BC$14,データシート1!$A:$BT,MATCH($BC$12&"_"&BN$20,データシート1!$A$1:$BT$1,0),0) -> 737 | BO37: =VLOOKUP($AX37&"_"&$BC$14,データシート1!$A:$BT,MATCH($BC$12&"_"&BO$20,データシート1!$A$1:$BT$1,0),0) -> 66 | BP37: =VLOOKUP($AX37&"_"&$BC$14,データシート1!$A:$BT,MATCH($BC$12&"_"&BP$20,データシート1!$A$1:$BT$1,0),0) -> 20 | BQ37: =VLOOKUP($AX37&"_"&$BC$14,データシート1!$A:$BT,MATCH($BC$12&"_"&BQ$20,データシート1!$A$1:$BT$1,0),0) -> 134 | BR37: 8,077 | BT37: 石川県 | BU37: 8,077 | BV37: 30% | BW37: 26% | BX37: 1% | BY37: 4% | BZ37: 22% | CA37: 23% | CB37: 23% | CC37: 22% | CD37: 13% | CE37: 9% | CF37: 1% | CG37: 0% | CH37: 2% | CI37: 100% | CK37: 石川県 | CL37: 2,457 | CM37: (56%) | CN37: 2,064 | CO37: (66%) | CP37: 85 | CQ37: 0 | CR37: 307 | CS37: (2%) | CT37: 1,785 | CU37: (18%) | CW37: 1376.995 | CX37: =VLOOKUP($AX37&"_"&$CW$14,データシート1!$A:$BT,MATCH($CW$12&"_"&CX$20,データシート1!$A$1:$BT$1,0),0) -> 1371.448 | CY37: =VLOOKUP($AX37&"_"&$CW$14,データシート1!$A:$BT,MATCH($CW$12&"_"&CY$20,データシート1!$A$1:$BT$1,0),0) -> 0 | CZ37: =VLOOKUP($AX37&"_"&$CW$14,データシート1!$A:$BT,MATCH($CW$12&"_"&CZ$20,データシート1!$A$1:$BT$1,0),0) -> 5.547 | DA37: =VLOOKUP($AX37&"_"&$CW$14,データシート1!$A:$BT,MATCH($CW$12&"_"&DA$20,データシート1!$A$1:$BT$1,0),0) -> 322.67 | DB37: =VLOOKUP($AX37&"_"&$CW$14,データシート1!$A:$BT,MATCH($CW$12&"_"&DB$20,データシート1!$A$1:$BT$1,0),0) -> 437.872 | DC37: =VLOOKUP($AX37&"_"&$CW$14,データシート1!$A:$BT,MATCH($CW$12&"_"&DC$20,データシート1!$A$1:$BT$1,0),0) -> 0 | DD37: 2137.537 | DF37: =VLOOKUP($AX37&"_"&$DF$14,データシート1!$A:$BT,MATCH($DF$12&"_"&DF$20,データシート1!$A$1:$BT$1,0),0) -> 112 | DG37: =VLOOKUP($AX37&"_"&$DF$14,データシート1!$A:$BT,MATCH($DF$12&"_"&DG$20,データシート1!$A$1:$BT$1,0),0) -> 0 | DH37: =VLOOKUP($AX37&"_"&$DF$14,データシート1!$A:$BT,MATCH($DF$12&"_"&DH$20,データシート1!$A$1:$BT$1,0),0) -> 2 | DI37: =VLOOKUP($AX37&"_"&$DF$14,データシート1!$A:$BT,MATCH($DF$12&"_"&DI$20,データシート1!$A$1:$BT$1,0),0) -> 44 | DJ37: =VLOOKUP($AX37&"_"&$DF$14,データシート1!$A:$BT,MATCH($DF$12&"_"&DJ$20,データシート1!$A$1:$BT$1,0),0) -> 3 | DK37: =VLOOKUP($AX37&"_"&$DF$14,データシート1!$A:$BT,MATCH($DF$12&"_"&DK$20,データシート1!$A$1:$BT$1,0),0) -> 0 | DL37: 161 | DN37: 64.0% | DO37: 0 | DP37: =IF($DD37=0,0,ROUND(CZ37/$DD37,2)) -> 0 | DQ37: =IF($DD37=0,0,ROUND(DA37/$DD37,2)) -> 15.0% | DR37: =IF($DD37=0,0,ROUND(DB37/$DD37,2)) -> 20.0% | DS37: 0
AX38: =比較地域マスタ!$Y23 -> 18 | AY38: =IF(IFERROR(比較地域マスタ!$Z23,"")=0,"",IFERROR(比較地域マスタ!$Z23,"")) -> 福井県 | BB38: 18 | BC38: 福井県 | BD38: 6,660 | BE38: 2,513 | BF38: =VLOOKUP($AX38&"_"&$BC$14,データシート1!$A:$BT,MATCH($BC$12&"_"&BF$20,データシート1!$A$1:$BT$1,0),0) -> 2,250 | BG38: =VLOOKUP($AX38&"_"&$BC$14,データシート1!$A:$BT,MATCH($BC$12&"_"&BG$20,データシート1!$A$1:$BT$1,0),0) -> 69 | BH38: =VLOOKUP($AX38&"_"&$BC$14,データシート1!$A:$BT,MATCH($BC$12&"_"&BH$20,データシート1!$A$1:$BT$1,0),0) -> 194 | BI38: =VLOOKUP($AX38&"_"&$BC$14,データシート1!$A:$BT,MATCH($BC$12&"_"&BI$20,データシート1!$A$1:$BT$1,0),0) -> 1,162 | BJ38: =VLOOKUP($AX38&"_"&$BC$14,データシート1!$A:$BT,MATCH($BC$12&"_"&BJ$20,データシート1!$A$1:$BT$1,0),0) -> 1,425 | BK38: 1,456 | BL38: 1,331 | BM38: =VLOOKUP($AX38&"_"&$BC$14,データシート1!$A:$BT,MATCH($BC$12&"_"&BM$20,データシート1!$A$1:$BT$1,0),0) -> 713 | BN38: =VLOOKUP($AX38&"_"&$BC$14,データシート1!$A:$BT,MATCH($BC$12&"_"&BN$20,データシート1!$A$1:$BT$1,0),0) -> 618 | BO38: =VLOOKUP($AX38&"_"&$BC$14,データシート1!$A:$BT,MATCH($BC$12&"_"&BO$20,データシート1!$A$1:$BT$1,0),0) -> 45 | BP38: =VLOOKUP($AX38&"_"&$BC$14,データシート1!$A:$BT,MATCH($BC$12&"_"&BP$20,データシート1!$A$1:$BT$1,0),0) -> 80 | BQ38: =VLOOKUP($AX38&"_"&$BC$14,データシート1!$A:$BT,MATCH($BC$12&"_"&BQ$20,データシート1!$A$1:$BT$1,0),0) -> 104 | BR38: 6,660 | BT38: 福井県 | BU38: 6,660 | BV38: 38% | BW38: 34% | BX38: 1% | BY38: 3% | BZ38: 17% | CA38: 21% | CB38: 22% | CC38: 20% | CD38: 11% | CE38: 9% | CF38: 1% | CG38: 1% | CH38: 2% | CI38: 100% | CK38: 福井県 | CL38: 2,513 | CM38: (100%) | CN38: 2,250 | CO38: (100%) | CP38: 69 | CQ38: 0 | CR38: 194 | CS38: 0 | CT38: 1,162 | CU38: (15%) | CW38: 2774.297 | CX38: =VLOOKUP($AX38&"_"&$CW$14,データシート1!$A:$BT,MATCH($CW$12&"_"&CX$20,データシート1!$A$1:$BT$1,0),0) -> 2774.297 | CY38: =VLOOKUP($AX38&"_"&$CW$14,データシート1!$A:$BT,MATCH($CW$12&"_"&CY$20,データシート1!$A$1:$BT$1,0),0) -> 0 | CZ38: =VLOOKUP($AX38&"_"&$CW$14,データシート1!$A:$BT,MATCH($CW$12&"_"&CZ$20,データシート1!$A$1:$BT$1,0),0) -> 0 | DA38: =VLOOKUP($AX38&"_"&$CW$14,データシート1!$A:$BT,MATCH($CW$12&"_"&DA$20,データシート1!$A$1:$BT$1,0),0) -> 173.202 | DB38: =VLOOKUP($AX38&"_"&$CW$14,データシート1!$A:$BT,MATCH($CW$12&"_"&DB$20,データシート1!$A$1:$BT$1,0),0) -> 487.263 | DC38: =VLOOKUP($AX38&"_"&$CW$14,データシート1!$A:$BT,MATCH($CW$12&"_"&DC$20,データシート1!$A$1:$BT$1,0),0) -> 0 | DD38: 3434.762 | DF38: =VLOOKUP($AX38&"_"&$DF$14,データシート1!$A:$BT,MATCH($DF$12&"_"&DF$20,データシート1!$A$1:$BT$1,0),0) -> 105 | DG38: =VLOOKUP($AX38&"_"&$DF$14,データシート1!$A:$BT,MATCH($DF$12&"_"&DG$20,データシート1!$A$1:$BT$1,0),0) -> 0 | DH38: =VLOOKUP($AX38&"_"&$DF$14,データシート1!$A:$BT,MATCH($DF$12&"_"&DH$20,データシート1!$A$1:$BT$1,0),0) -> 0 | DI38: =VLOOKUP($AX38&"_"&$DF$14,データシート1!$A:$BT,MATCH($DF$12&"_"&DI$20,データシート1!$A$1:$BT$1,0),0) -> 26 | DJ38: =VLOOKUP($AX38&"_"&$DF$14,データシート1!$A:$BT,MATCH($DF$12&"_"&DJ$20,データシート1!$A$1:$BT$1,0),0) -> 6 | DK38: =VLOOKUP($AX38&"_"&$DF$14,データシート1!$A:$BT,MATCH($DF$12&"_"&DK$20,データシート1!$A$1:$BT$1,0),0) -> 0 | DL38: 137 | DN38: 81.0% | DO38: 0 | DP38: 0 | DQ38: 5.0% | DR38: 14.0% | DS38: 0
AX39: =比較地域マスタ!$Y24 -> 19 | AY39: =IF(IFERROR(比較地域マスタ!$Z24,"")=0,"",IFERROR(比較地域マスタ!$Z24,"")) -> 山梨県 | BB39: 19 | BC39: 山梨県 | BD39: 5,160 | BE39: 1,175 | BF39: =VLOOKUP($AX39&"_"&$BC$14,データシート1!$A:$BT,MATCH($BC$12&"_"&BF$20,データシート1!$A$1:$BT$1,0),0) -> 1,018 | BG39: =VLOOKUP($AX39&"_"&$BC$14,データシート1!$A:$BT,MATCH($BC$12&"_"&BG$20,データシート1!$A$1:$BT$1,0),0) -> 70 | BH39: =VLOOKUP($AX39&"_"&$BC$14,データシート1!$A:$BT,MATCH($BC$12&"_"&BH$20,データシート1!$A$1:$BT$1,0),0) -> 86 | BI39: =VLOOKUP($AX39&"_"&$BC$14,データシート1!$A:$BT,MATCH($BC$12&"_"&BI$20,データシート1!$A$1:$BT$1,0),0) -> 1,228 | BJ39: =VLOOKUP($AX39&"_"&$BC$14,データシート1!$A:$BT,MATCH($BC$12&"_"&BJ$20,データシート1!$A$1:$BT$1,0),0) -> 1,037 | BK39: 1,610 | BL39: 1,563 | BM39: =VLOOKUP($AX39&"_"&$BC$14,データシート1!$A:$BT,MATCH($BC$12&"_"&BM$20,データシート1!$A$1:$BT$1,0),0) -> 786 | BN39: =VLOOKUP($AX39&"_"&$BC$14,データシート1!$A:$BT,MATCH($BC$12&"_"&BN$20,データシート1!$A$1:$BT$1,0),0) -> 776 | BO39: =VLOOKUP($AX39&"_"&$BC$14,データシート1!$A:$BT,MATCH($BC$12&"_"&BO$20,データシート1!$A$1:$BT$1,0),0) -> 48 | BP39: =VLOOKUP($AX39&"_"&$BC$14,データシート1!$A:$BT,MATCH($BC$12&"_"&BP$20,データシート1!$A$1:$BT$1,0),0) -> 0 | BQ39: =VLOOKUP($AX39&"_"&$BC$14,データシート1!$A:$BT,MATCH($BC$12&"_"&BQ$20,データシート1!$A$1:$BT$1,0),0) -> 110 | BR39: 5,160 | BT39: 山梨県 | BU39: 5,160 | BV39: 23% | BW39: 20% | BX39: 1% | BY39: 2% | BZ39: 24% | CA39: 20% | CB39: 31% | CC39: 30% | CD39: 15% | CE39: 15% | CF39: 1% | CG39: 0% | CH39: 2% | CI39: 100% | CK39: 山梨県 | CL39: 1,175 | CM39: (75%) | CN39: 1,018 | CO39: (86%) | CP39: 70 | CQ39: (8%) | CR39: 86 | CS39: 0 | CT39: 1,228 | CU39: (14%) | CW39: 883.406 | CX39: =VLOOKUP($AX39&"_"&$CW$14,データシート1!$A:$BT,MATCH($CW$12&"_"&CX$20,データシート1!$A$1:$BT$1,0),0) -> 878.093 | CY39: =VLOOKUP($AX39&"_"&$CW$14,データシート1!$A:$BT,MATCH($CW$12&"_"&CY$20,データシート1!$A$1:$BT$1,0),0) -> 5.313 | CZ39: =VLOOKUP($AX39&"_"&$CW$14,データシート1!$A:$BT,MATCH($CW$12&"_"&CZ$20,データシート1!$A$1:$BT$1,0),0) -> 0 | DA39: =VLOOKUP($AX39&"_"&$CW$14,データシート1!$A:$BT,MATCH($CW$12&"_"&DA$20,データシート1!$A$1:$BT$1,0),0) -> 171.541 | DB39: =VLOOKUP($AX39&"_"&$CW$14,データシート1!$A:$BT,MATCH($CW$12&"_"&DB$20,データシート1!$A$1:$BT$1,0),0) -> 0 | DC39: =VLOOKUP($AX39&"_"&$CW$14,データシート1!$A:$BT,MATCH($CW$12&"_"&DC$20,データシート1!$A$1:$BT$1,0),0) -> 0 | DD39: 1054.947 | DF39: =VLOOKUP($AX39&"_"&$DF$14,データシート1!$A:$BT,MATCH($DF$12&"_"&DF$20,データシート1!$A$1:$BT$1,0),0) -> 89 | DG39: =VLOOKUP($AX39&"_"&$DF$14,データシート1!$A:$BT,MATCH($DF$12&"_"&DG$20,データシート1!$A$1:$BT$1,0),0) -> 1 | DH39: =VLOOKUP($AX39&"_"&$DF$14,データシート1!$A:$BT,MATCH($DF$12&"_"&DH$20,データシート1!$A$1:$BT$1,0),0) -> 0 | DI39: =VLOOKUP($AX39&"_"&$DF$14,データシート1!$A:$BT,MATCH($DF$12&"_"&DI$20,データシート1!$A$1:$BT$1,0),0) -> 25 | DJ39: =VLOOKUP($AX39&"_"&$DF$14,データシート1!$A:$BT,MATCH($DF$12&"_"&DJ$20,データシート1!$A$1:$BT$1,0),0) -> 0 | DK39: =VLOOKUP($AX39&"_"&$DF$14,データシート1!$A:$BT,MATCH($DF$12&"_"&DK$20,データシート1!$A$1:$BT$1,0),0) -> 0 | DL39: 115 | DN39: 83.0% | DO39: 1.0% | DP39: 0 | DQ39: 16.0% | DR39: 0 | DS39: 0
AX40: =比較地域マスタ!$Y25 -> 20 | AY40: =IF(IFERROR(比較地域マスタ!$Z25,"")=0,"",IFERROR(比較地域マスタ!$Z25,"")) -> 長野県 | BB40: 20 | BC40: 長野県 | BD40: 13,612 | BE40: 3,181 | BF40: =VLOOKUP($AX40&"_"&$BC$14,データシート1!$A:$BT,MATCH($BC$12&"_"&BF$20,データシート1!$A$1:$BT$1,0),0) -> 2,539 | BG40: =VLOOKUP($AX40&"_"&$BC$14,データシート1!$A:$BT,MATCH($BC$12&"_"&BG$20,データシート1!$A$1:$BT$1,0),0) -> 150 | BH40: =VLOOKUP($AX40&"_"&$BC$14,データシート1!$A:$BT,MATCH($BC$12&"_"&BH$20,データシート1!$A$1:$BT$1,0),0) -> 491 | BI40: =VLOOKUP($AX40&"_"&$BC$14,データシート1!$A:$BT,MATCH($BC$12&"_"&BI$20,データシート1!$A$1:$BT$1,0),0) -> 2,726 | BJ40: =VLOOKUP($AX40&"_"&$BC$14,データシート1!$A:$BT,MATCH($BC$12&"_"&BJ$20,データシート1!$A$1:$BT$1,0),0) -> 3,383 | BK40: 4,124 | BL40: 4,004 | BM40: =VLOOKUP($AX40&"_"&$BC$14,データシート1!$A:$BT,MATCH($BC$12&"_"&BM$20,データシート1!$A$1:$BT$1,0),0) -> 1,932 | BN40: =VLOOKUP($AX40&"_"&$BC$14,データシート1!$A:$BT,MATCH($BC$12&"_"&BN$20,データシート1!$A$1:$BT$1,0),0) -> 2,072 | BO40: =VLOOKUP($AX40&"_"&$BC$14,データシート1!$A:$BT,MATCH($BC$12&"_"&BO$20,データシート1!$A$1:$BT$1,0),0) -> 120 | BP40: =VLOOKUP($AX40&"_"&$BC$14,データシート1!$A:$BT,MATCH($BC$12&"_"&BP$20,データシート1!$A$1:$BT$1,0),0) -> 0 | BQ40: =VLOOKUP($AX40&"_"&$BC$14,データシート1!$A:$BT,MATCH($BC$12&"_"&BQ$20,データシート1!$A$1:$BT$1,0),0) -> 199 | BR40: 13,612 | BT40: 長野県 | BU40: 13,612 | BV40: 23% | BW40: 19% | BX40: 1% | BY40: 4% | BZ40: 20% | CA40: 25% | CB40: 30% | CC40: 29% | CD40: 14% | CE40: 15% | CF40: 1% | CG40: 0% | CH40: 1% | CI40: 100% | CK40: 長野県 | CL40: 3,181 | CM40: (60%) | CN40: 2,539 | CO40: (73%) | CP40: 150 | CQ40: 0 | CR40: 491 | CS40: (10%) | CT40: 2,726 | CU40: (14%) | CW40: 1895.366 | CX40: =VLOOKUP($AX40&"_"&$CW$14,データシート1!$A:$BT,MATCH($CW$12&"_"&CX$20,データシート1!$A$1:$BT$1,0),0) -> 1844.668 | CY40: =VLOOKUP($AX40&"_"&$CW$14,データシート1!$A:$BT,MATCH($CW$12&"_"&CY$20,データシート1!$A$1:$BT$1,0),0) -> 0 | CZ40: =VLOOKUP($AX40&"_"&$CW$14,データシート1!$A:$BT,MATCH($CW$12&"_"&CZ$20,データシート1!$A$1:$BT$1,0),0) -> 50.698 | DA40: =VLOOKUP($AX40&"_"&$CW$14,データシート1!$A:$BT,MATCH($CW$12&"_"&DA$20,データシート1!$A$1:$BT$1,0),0) -> 385.451 | DB40: =VLOOKUP($AX40&"_"&$CW$14,データシート1!$A:$BT,MATCH($CW$12&"_"&DB$20,データシート1!$A$1:$BT$1,0),0) -> 0 | DC40: =VLOOKUP($AX40&"_"&$CW$14,データシート1!$A:$BT,MATCH($CW$12&"_"&DC$20,データシート1!$A$1:$BT$1,0),0) -> 0 | DD40: 2280.817 | DF40: =VLOOKUP($AX40&"_"&$DF$14,データシート1!$A:$BT,MATCH($DF$12&"_"&DF$20,データシート1!$A$1:$BT$1,0),0) -> 212 | DG40: =VLOOKUP($AX40&"_"&$DF$14,データシート1!$A:$BT,MATCH($DF$12&"_"&DG$20,データシート1!$A$1:$BT$1,0),0) -> 0 | DH40: =VLOOKUP($AX40&"_"&$DF$14,データシート1!$A:$BT,MATCH($DF$12&"_"&DH$20,データシート1!$A$1:$BT$1,0),0) -> 7 | DI40: =VLOOKUP($AX40&"_"&$DF$14,データシート1!$A:$BT,MATCH($DF$12&"_"&DI$20,データシート1!$A$1:$BT$1,0),0) -> 59 | DJ40: =VLOOKUP($AX40&"_"&$DF$14,データシート1!$A:$BT,MATCH($DF$12&"_"&DJ$20,データシート1!$A$1:$BT$1,0),0) -> 0 | DK40: =VLOOKUP($AX40&"_"&$DF$14,データシート1!$A:$BT,MATCH($DF$12&"_"&DK$20,データシート1!$A$1:$BT$1,0),0) -> 0 | DL40: 278 | DN40: 81.0% | DO40: 0 | DP40: 2.0% | DQ40: 17.0% | DR40: 0 | DS40: 0
AX41: =比較地域マスタ!$Y26 -> 21 | AY41: =IF(IFERROR(比較地域マスタ!$Z26,"")=0,"",IFERROR(比較地域マスタ!$Z26,"")) -> 岐阜県 | BB41: 21 | BC41: 岐阜県 | BD41: 13,894 | BE41: 4,869 | BF41: =VLOOKUP($AX41&"_"&$BC$14,データシート1!$A:$BT,MATCH($BC$12&"_"&BF$20,データシート1!$A$1:$BT$1,0),0) -> 4,499 | BG41: =VLOOKUP($AX41&"_"&$BC$14,データシート1!$A:$BT,MATCH($BC$12&"_"&BG$20,データシート1!$A$1:$BT$1,0),0) -> 151 | BH41: =VLOOKUP($AX41&"_"&$BC$14,データシート1!$A:$BT,MATCH($BC$12&"_"&BH$20,データシート1!$A$1:$BT$1,0),0) -> 219 | BI41: =VLOOKUP($AX41&"_"&$BC$14,データシート1!$A:$BT,MATCH($BC$12&"_"&BI$20,データシート1!$A$1:$BT$1,0),0) -> 2,744 | BJ41: =VLOOKUP($AX41&"_"&$BC$14,データシート1!$A:$BT,MATCH($BC$12&"_"&BJ$20,データシート1!$A$1:$BT$1,0),0) -> 2,608 | BK41: 3,418 | BL41: 3,301 | BM41: =VLOOKUP($AX41&"_"&$BC$14,データシート1!$A:$BT,MATCH($BC$12&"_"&BM$20,データシート1!$A$1:$BT$1,0),0) -> 1,809 | BN41: =VLOOKUP($AX41&"_"&$BC$14,データシート1!$A:$BT,MATCH($BC$12&"_"&BN$20,データシート1!$A$1:$BT$1,0),0) -> 1,492 | BO41: =VLOOKUP($AX41&"_"&$BC$14,データシート1!$A:$BT,MATCH($BC$12&"_"&BO$20,データシート1!$A$1:$BT$1,0),0) -> 117 | BP41: =VLOOKUP($AX41&"_"&$BC$14,データシート1!$A:$BT,MATCH($BC$12&"_"&BP$20,データシート1!$A$1:$BT$1,0),0) -> 0 | BQ41: =VLOOKUP($AX41&"_"&$BC$14,データシート1!$A:$BT,MATCH($BC$12&"_"&BQ$20,データシート1!$A$1:$BT$1,0),0) -> 256 | BR41: 13,894 | BT41: 岐阜県 | BU41: 13,894 | BV41: 35% | BW41: 32% | BX41: 1% | BY41: 2% | BZ41: 20% | CA41: 19% | CB41: 25% | CC41: 24% | CD41: 13% | CE41: 11% | CF41: 1% | CG41: 0% | CH41: 2% | CI41: 100% | CK41: 岐阜県 | CL41: 4,869 | CM41: (98%) | CN41: 4,499 | CO41: (100%) | CP41: 151 | CQ41: (100%) | CR41: 219 | CS41: (5%) | CT41: 2,744 | CU41: (16%) | CW41: 4776.041 | CX41: =VLOOKUP($AX41&"_"&$CW$14,データシート1!$A:$BT,MATCH($CW$12&"_"&CX$20,データシート1!$A$1:$BT$1,0),0) -> 4545.377 | CY41: =VLOOKUP($AX41&"_"&$CW$14,データシート1!$A:$BT,MATCH($CW$12&"_"&CY$20,データシート1!$A$1:$BT$1,0),0) -> 220.48 | CZ41: =VLOOKUP($AX41&"_"&$CW$14,データシート1!$A:$BT,MATCH($CW$12&"_"&CZ$20,データシート1!$A$1:$BT$1,0),0) -> 10.184 | DA41: =VLOOKUP($AX41&"_"&$CW$14,データシート1!$A:$BT,MATCH($CW$12&"_"&DA$20,データシート1!$A$1:$BT$1,0),0) -> 445.345 | DB41: =VLOOKUP($AX41&"_"&$CW$14,データシート1!$A:$BT,MATCH($CW$12&"_"&DB$20,データシート1!$A$1:$BT$1,0),0) -> 0 | DC41: =VLOOKUP($AX41&"_"&$CW$14,データシート1!$A:$BT,MATCH($CW$12&"_"&DC$20,データシート1!$A$1:$BT$1,0),0) -> 0 | DD41: 5221.386 | DF41: =VLOOKUP($AX41&"_"&$DF$14,データシート1!$A:$BT,MATCH($DF$12&"_"&DF$20,データシート1!$A$1:$BT$1,0),0) -> 282 | DG41: =VLOOKUP($AX41&"_"&$DF$14,データシート1!$A:$BT,MATCH($DF$12&"_"&DG$20,データシート1!$A$1:$BT$1,0),0) -> 2 | DH41: =VLOOKUP($AX41&"_"&$DF$14,データシート1!$A:$BT,MATCH($DF$12&"_"&DH$20,データシート1!$A$1:$BT$1,0),0) -> 2 | DI41: =VLOOKUP($AX41&"_"&$DF$14,データシート1!$A:$BT,MATCH($DF$12&"_"&DI$20,データシート1!$A$1:$BT$1,0),0) -> 63 | DJ41: =VLOOKUP($AX41&"_"&$DF$14,データシート1!$A:$BT,MATCH($DF$12&"_"&DJ$20,データシート1!$A$1:$BT$1,0),0) -> 0 | DK41: =VLOOKUP($AX41&"_"&$DF$14,データシート1!$A:$BT,MATCH($DF$12&"_"&DK$20,データシート1!$A$1:$BT$1,0),0) -> 0 | DL41: 349 | DN41: 87.0% | DO41: 4.0% | DP41: 0 | DQ41: 9.0% | DR41: 0 | DS41: 0
AX42: =比較地域マスタ!$Y27 -> 22 | AY42: =IF(IFERROR(比較地域マスタ!$Z27,"")=0,"",IFERROR(比較地域マスタ!$Z27,"")) -> 静岡県 | BB42: 22 | BC42: 静岡県 | BD42: 24,548 | BE42: 8,926 | BF42: =VLOOKUP($AX42&"_"&$BC$14,データシート1!$A:$BT,MATCH($BC$12&"_"&BF$20,データシート1!$A$1:$BT$1,0),0) -> 8,204 | BG42: =VLOOKUP($AX42&"_"&$BC$14,データシート1!$A:$BT,MATCH($BC$12&"_"&BG$20,データシート1!$A$1:$BT$1,0),0) -> 228 | BH42: =VLOOKUP($AX42&"_"&$BC$14,データシート1!$A:$BT,MATCH($BC$12&"_"&BH$20,データシート1!$A$1:$BT$1,0),0) -> 494 | BI42: =VLOOKUP($AX42&"_"&$BC$14,データシート1!$A:$BT,MATCH($BC$12&"_"&BI$20,データシート1!$A$1:$BT$1,0),0) -> 4,912 | BJ42: =VLOOKUP($AX42&"_"&$BC$14,データシート1!$A:$BT,MATCH($BC$12&"_"&BJ$20,データシート1!$A$1:$BT$1,0),0) -> 4,390 | BK42: 5,885 | BL42: 5,562 | BM42: =VLOOKUP($AX42&"_"&$BC$14,データシート1!$A:$BT,MATCH($BC$12&"_"&BM$20,データシート1!$A$1:$BT$1,0),0) -> 3,126 | BN42: =VLOOKUP($AX42&"_"&$BC$14,データシート1!$A:$BT,MATCH($BC$12&"_"&BN$20,データシート1!$A$1:$BT$1,0),0) -> 2,436 | BO42: =VLOOKUP($AX42&"_"&$BC$14,データシート1!$A:$BT,MATCH($BC$12&"_"&BO$20,データシート1!$A$1:$BT$1,0),0) -> 214 | BP42: =VLOOKUP($AX42&"_"&$BC$14,データシート1!$A:$BT,MATCH($BC$12&"_"&BP$20,データシート1!$A$1:$BT$1,0),0) -> 109 | BQ42: =VLOOKUP($AX42&"_"&$BC$14,データシート1!$A:$BT,MATCH($BC$12&"_"&BQ$20,データシート1!$A$1:$BT$1,0),0) -> 435 | BR42: 24,548 | BT42: 静岡県 | BU42: 24,548 | BV42: 36% | BW42: 33% | BX42: 1% | BY42: 2% | BZ42: 20% | CA42: =BJ42/$BR42 -> 18% | CB42: 24% | CC42: 23% | CD42: 13% | CE42: 10% | CF42: 1% | CG42: 0% | CH42: 2% | CI42: 100% | CK42: 静岡県 | CL42: 8,926 | CM42: (91%) | CN42: 8,204 | CO42: (99%) | CP42: 228 | CQ42: 0 | CR42: 494 | CS42: (5%) | CT42: 4,912 | CU42: (17%) | CW42: 8109.255 | CX42: =VLOOKUP($AX42&"_"&$CW$14,データシート1!$A:$BT,MATCH($CW$12&"_"&CX$20,データシート1!$A$1:$BT$1,0),0) -> 8083.728 | CY42: =VLOOKUP($AX42&"_"&$CW$14,データシート1!$A:$BT,MATCH($CW$12&"_"&CY$20,データシート1!$A$1:$BT$1,0),0) -> 0 | CZ42: =VLOOKUP($AX42&"_"&$CW$14,データシート1!$A:$BT,MATCH($CW$12&"_"&CZ$20,データシート1!$A$1:$BT$1,0),0) -> 25.527 | DA42: =VLOOKUP($AX42&"_"&$CW$14,データシート1!$A:$BT,MATCH($CW$12&"_"&DA$20,データシート1!$A$1:$BT$1,0),0) -> 838.607 | DB42: =VLOOKUP($AX42&"_"&$CW$14,データシート1!$A:$BT,MATCH($CW$12&"_"&DB$20,データシート1!$A$1:$BT$1,0),0) -> 306.408 | DC42: =VLOOKUP($AX42&"_"&$CW$14,データシート1!$A:$BT,MATCH($CW$12&"_"&DC$20,データシート1!$A$1:$BT$1,0),0) -> 0 | DD42: 9254.27 | DF42: =VLOOKUP($AX42&"_"&$DF$14,データシート1!$A:$BT,MATCH($DF$12&"_"&DF$20,データシート1!$A$1:$BT$1,0),0) -> 527 | DG42: =VLOOKUP($AX42&"_"&$DF$14,データシート1!$A:$BT,MATCH($DF$12&"_"&DG$20,データシート1!$A$1:$BT$1,0),0) -> 0 | DH42: =VLOOKUP($AX42&"_"&$DF$14,データシート1!$A:$BT,MATCH($DF$12&"_"&DH$20,データシート1!$A$1:$BT$1,0),0) -> 4 | DI42: =VLOOKUP($AX42&"_"&$DF$14,データシート1!$A:$BT,MATCH($DF$12&"_"&DI$20,データシート1!$A$1:$BT$1,0),0) -> 127 | DJ42: =VLOOKUP($AX42&"_"&$DF$14,データシート1!$A:$BT,MATCH($DF$12&"_"&DJ$20,データシート1!$A$1:$BT$1,0),0) -> 7 | DK42: =VLOOKUP($AX42&"_"&$DF$14,データシート1!$A:$BT,MATCH($DF$12&"_"&DK$20,データシート1!$A$1:$BT$1,0),0) -> 0 | DL42: 665 | DN42: 87.0% | DO42: 0 | DP42: 0 | DQ42: 9.0% | DR42: 3.0% | DS42: 0
AX43: =比較地域マスタ!$Y28 -> 23 | AY43: =IF(IFERROR(比較地域マスタ!$Z28,"")=0,"",IFERROR(比較地域マスタ!$Z28,"")) -> 愛知県 | BB43: 23 | BC43: 愛知県 | BD43: 62,431 | BE43: 31,486 | BF43: =VLOOKUP($AX43&"_"&$BC$14,データシート1!$A:$BT,MATCH($BC$12&"_"&BF$20,データシート1!$A$1:$BT$1,0),0) -> 30,519 | BG43: =VLOOKUP($AX43&"_"&$BC$14,データシート1!$A:$BT,MATCH($BC$12&"_"&BG$20,データシート1!$A$1:$BT$1,0),0) -> 456 | BH43: =VLOOKUP($AX43&"_"&$BC$14,データシート1!$A:$BT,MATCH($BC$12&"_"&BH$20,データシート1!$A$1:$BT$1,0),0) -> 510 | BI43: =VLOOKUP($AX43&"_"&$BC$14,データシート1!$A:$BT,MATCH($BC$12&"_"&BI$20,データシート1!$A$1:$BT$1,0),0) -> 10,808 | BJ43: =VLOOKUP($AX43&"_"&$BC$14,データシート1!$A:$BT,MATCH($BC$12&"_"&BJ$20,データシート1!$A$1:$BT$1,0),0) -> 8,628 | BK43: 10,681 | BL43: 9,872 | BM43: =VLOOKUP($AX43&"_"&$BC$14,データシート1!$A:$BT,MATCH($BC$12&"_"&BM$20,データシート1!$A$1:$BT$1,0),0) -> 5,894 | BN43: =VLOOKUP($AX43&"_"&$BC$14,データシート1!$A:$BT,MATCH($BC$12&"_"&BN$20,データシート1!$A$1:$BT$1,0),0) -> 3,978 | BO43: =VLOOKUP($AX43&"_"&$BC$14,データシート1!$A:$BT,MATCH($BC$12&"_"&BO$20,データシート1!$A$1:$BT$1,0),0) -> 440 | BP43: =VLOOKUP($AX43&"_"&$BC$14,データシート1!$A:$BT,MATCH($BC$12&"_"&BP$20,データシート1!$A$1:$BT$1,0),0) -> 370 | BQ43: =VLOOKUP($AX43&"_"&$BC$14,データシート1!$A:$BT,MATCH($BC$12&"_"&BQ$20,データシート1!$A$1:$BT$1,0),0) -> 828 | BR43: 62,431 | BT43: 愛知県 | BU43: 62,431 | BV43: 50% | BW43: 49% | BX43: 1% | BY43: 1% | BZ43: 17% | CA43: 14% | CB43: 17% | CC43: 16% | CD43: 9% | CE43: 6% | CF43: 1% | CG43: 1% | CH43: 1% | CI43: 100% | CK43: 愛知県 | CL43: 31,486 | CM43: (94%) | CN43: 30,519 | CO43: (97%) | CP43: 456 | CQ43: 0 | CR43: 510 | CS43: 0 | CT43: 10,808 | CU43: (23%) | CW43: 29608.969 | CX43: =VLOOKUP($AX43&"_"&$CW$14,データシート1!$A:$BT,MATCH($CW$12&"_"&CX$20,データシート1!$A$1:$BT$1,0),0) -> 29608.969 | CY43: =VLOOKUP($AX43&"_"&$CW$14,データシート1!$A:$BT,MATCH($CW$12&"_"&CY$20,データシート1!$A$1:$BT$1,0),0) -> 0 | CZ43: =VLOOKUP($AX43&"_"&$CW$14,データシート1!$A:$BT,MATCH($CW$12&"_"&CZ$20,データシート1!$A$1:$BT$1,0),0) -> 0 | DA43: =VLOOKUP($AX43&"_"&$CW$14,データシート1!$A:$BT,MATCH($CW$12&"_"&DA$20,データシート1!$A$1:$BT$1,0),0) -> 2539.219 | DB43: =VLOOKUP($AX43&"_"&$CW$14,データシート1!$A:$BT,MATCH($CW$12&"_"&DB$20,データシート1!$A$1:$BT$1,0),0) -> 3510.698 | DC43: =VLOOKUP($AX43&"_"&$CW$14,データシート1!$A:$BT,MATCH($CW$12&"_"&DC$20,データシート1!$A$1:$BT$1,0),0) -> 0 | DD43: 35658.886 | DF43: =VLOOKUP($AX43&"_"&$DF$14,データシート1!$A:$BT,MATCH($DF$12&"_"&DF$20,データシート1!$A$1:$BT$1,0),0) -> 763 | DG43: =VLOOKUP($AX43&"_"&$DF$14,データシート1!$A:$BT,MATCH($DF$12&"_"&DG$20,データシート1!$A$1:$BT$1,0),0) -> 0 | DH43: =VLOOKUP($AX43&"_"&$DF$14,データシート1!$A:$BT,MATCH($DF$12&"_"&DH$20,データシート1!$A$1:$BT$1,0),0) -> 0 | DI43: =VLOOKUP($AX43&"_"&$DF$14,データシート1!$A:$BT,MATCH($DF$12&"_"&DI$20,データシート1!$A$1:$BT$1,0),0) -> 296 | DJ43: =VLOOKUP($AX43&"_"&$DF$14,データシート1!$A:$BT,MATCH($DF$12&"_"&DJ$20,データシート1!$A$1:$BT$1,0),0) -> 29 | DK43: =VLOOKUP($AX43&"_"&$DF$14,データシート1!$A:$BT,MATCH($DF$12&"_"&DK$20,データシート1!$A$1:$BT$1,0),0) -> 0 | DL43: 1,088 | DN43: 83.0% | DO43: 0 | DP43: 0 | DQ43: 7.0% | DR43: 10.0% | DS43: 0
AX44: =比較地域マスタ!$Y29 -> 24 | AY44: =IF(IFERROR(比較地域マスタ!$Z29,"")=0,"",IFERROR(比較地域マスタ!$Z29,"")) -> 三重県 | BB44: 24 | BC44: 三重県 | BD44: 21,324 | BE44: 13,035 | BF44: =VLOOKUP($AX44&"_"&$BC$14,データシート1!$A:$BT,MATCH($BC$12&"_"&BF$20,データシート1!$A$1:$BT$1,0),0) -> 12,549 | BG44: =VLOOKUP($AX44&"_"&$BC$14,データシート1!$A:$BT,MATCH($BC$12&"_"&BG$20,データシート1!$A$1:$BT$1,0),0) -> 122 | BH44: =VLOOKUP($AX44&"_"&$BC$14,データシート1!$A:$BT,MATCH($BC$12&"_"&BH$20,データシート1!$A$1:$BT$1,0),0) -> 364 | BI44: =VLOOKUP($AX44&"_"&$BC$14,データシート1!$A:$BT,MATCH($BC$12&"_"&BI$20,データシート1!$A$1:$BT$1,0),0) -> 2,444 | BJ44: =VLOOKUP($AX44&"_"&$BC$14,データシート1!$A:$BT,MATCH($BC$12&"_"&BJ$20,データシート1!$A$1:$BT$1,0),0) -> 2,383 | BK44: 3,274 | BL44: 3,018 | BM44: =VLOOKUP($AX44&"_"&$BC$14,データシート1!$A:$BT,MATCH($BC$12&"_"&BM$20,データシート1!$A$1:$BT$1,0),0) -> 1,623 | BN44: =VLOOKUP($AX44&"_"&$BC$14,データシート1!$A:$BT,MATCH($BC$12&"_"&BN$20,データシート1!$A$1:$BT$1,0),0) -> 1,394 | BO44: =VLOOKUP($AX44&"_"&$BC$14,データシート1!$A:$BT,MATCH($BC$12&"_"&BO$20,データシート1!$A$1:$BT$1,0),0) -> 104 | BP44: =VLOOKUP($AX44&"_"&$BC$14,データシート1!$A:$BT,MATCH($BC$12&"_"&BP$20,データシート1!$A$1:$BT$1,0),0) -> 152 | BQ44: =VLOOKUP($AX44&"_"&$BC$14,データシート1!$A:$BT,MATCH($BC$12&"_"&BQ$20,データシート1!$A$1:$BT$1,0),0) -> 186 | BR44: 21,324 | BT44: 三重県 | BU44: 21,324 | BV44: 61% | BW44: 59% | BX44: 1% | BY44: 2% | BZ44: 11% | CA44: 11% | CB44: 15% | CC44: 14% | CD44: 8% | CE44: 7% | CF44: 0% | CG44: 1% | CH44: 1% | CI44: 100% | CK44: 三重県 | CL44: 13,035 | CM44: (89%) | CN44: 12,549 | CO44: (92%) | CP44: 122 | CQ44: (13%) | CR44: 364 | CS44: (9%) | CT44: 2,444 | CU44: (24%) | CW44: 11553.87 | CX44: =VLOOKUP($AX44&"_"&$CW$14,データシート1!$A:$BT,MATCH($CW$12&"_"&CX$20,データシート1!$A$1:$BT$1,0),0) -> 11505.094 | CY44: =VLOOKUP($AX44&"_"&$CW$14,データシート1!$A:$BT,MATCH($CW$12&"_"&CY$20,データシート1!$A$1:$BT$1,0),0) -> 15.578 | CZ44: =VLOOKUP($AX44&"_"&$CW$14,データシート1!$A:$BT,MATCH($CW$12&"_"&CZ$20,データシート1!$A$1:$BT$1,0),0) -> 33.198 | DA44: =VLOOKUP($AX44&"_"&$CW$14,データシート1!$A:$BT,MATCH($CW$12&"_"&DA$20,データシート1!$A$1:$BT$1,0),0) -> 582.027 | DB44: =VLOOKUP($AX44&"_"&$CW$14,データシート1!$A:$BT,MATCH($CW$12&"_"&DB$20,データシート1!$A$1:$BT$1,0),0) -> 2729.729 | DC44: =VLOOKUP($AX44&"_"&$CW$14,データシート1!$A:$BT,MATCH($CW$12&"_"&DC$20,データシート1!$A$1:$BT$1,0),0) -> 0 | DD44: 14865.626 | DF44: =VLOOKUP($AX44&"_"&$DF$14,データシート1!$A:$BT,MATCH($DF$12&"_"&DF$20,データシート1!$A$1:$BT$1,0),0) -> 274 | DG44: =VLOOKUP($AX44&"_"&$DF$14,データシート1!$A:$BT,MATCH($DF$12&"_"&DG$20,データシート1!$A$1:$BT$1,0),0) -> 2 | DH44: =VLOOKUP($AX44&"_"&$DF$14,データシート1!$A:$BT,MATCH($DF$12&"_"&DH$20,データシート1!$A$1:$BT$1,0),0) -> 6 | DI44: =VLOOKUP($AX44&"_"&$DF$14,データシート1!$A:$BT,MATCH($DF$12&"_"&DI$20,データシート1!$A$1:$BT$1,0),0) -> 61 | DJ44: =VLOOKUP($AX44&"_"&$DF$14,データシート1!$A:$BT,MATCH($DF$12&"_"&DJ$20,データシート1!$A$1:$BT$1,0),0) -> 11 | DK44: =VLOOKUP($AX44&"_"&$DF$14,データシート1!$A:$BT,MATCH($DF$12&"_"&DK$20,データシート1!$A$1:$BT$1,0),0) -> 0 | DL44: 354 | DN44: 77.0% | DO44: 0 | DP44: 0 | DQ44: 4.0% | DR44: 18.0% | DS44: 0
AX45: =比較地域マスタ!$Y30 -> 25 | AY45: =IF(IFERROR(比較地域マスタ!$Z30,"")=0,"",IFERROR(比較地域マスタ!$Z30,"")) -> 滋賀県 | BB45: 25 | BC45: 滋賀県 | BD45: 8,193 | BE45: 3,098 | BF45: =VLOOKUP($AX45&"_"&$BC$14,データシート1!$A:$BT,MATCH($BC$12&"_"&BF$20,データシート1!$A$1:$BT$1,0),0) -> 2,846 | BG45: =VLOOKUP($AX45&"_"&$BC$14,データシート1!$A:$BT,MATCH($BC$12&"_"&BG$20,データシート1!$A$1:$BT$1,0),0) -> 66 | BH45: =VLOOKUP($AX45&"_"&$BC$14,データシート1!$A:$BT,MATCH($BC$12&"_"&BH$20,データシート1!$A$1:$BT$1,0),0) -> 186 | BI45: =VLOOKUP($AX45&"_"&$BC$14,データシート1!$A:$BT,MATCH($BC$12&"_"&BI$20,データシート1!$A$1:$BT$1,0),0) -> 1,418 | BJ45: =VLOOKUP($AX45&"_"&$BC$14,データシート1!$A:$BT,MATCH($BC$12&"_"&BJ$20,データシート1!$A$1:$BT$1,0),0) -> 1,373 | BK45: 2,126 | BL45: 2,031 | BM45: =VLOOKUP($AX45&"_"&$BC$14,データシート1!$A:$BT,MATCH($BC$12&"_"&BM$20,データシート1!$A$1:$BT$1,0),0) -> 1,137 | BN45: =VLOOKUP($AX45&"_"&$BC$14,データシート1!$A:$BT,MATCH($BC$12&"_"&BN$20,データシート1!$A$1:$BT$1,0),0) -> 894 | BO45: =VLOOKUP($AX45&"_"&$BC$14,データシート1!$A:$BT,MATCH($BC$12&"_"&BO$20,データシート1!$A$1:$BT$1,0),0) -> 83 | BP45: =VLOOKUP($AX45&"_"&$BC$14,データシート1!$A:$BT,MATCH($BC$12&"_"&BP$20,データシート1!$A$1:$BT$1,0),0) -> 13 | BQ45: =VLOOKUP($AX45&"_"&$BC$14,データシート1!$A:$BT,MATCH($BC$12&"_"&BQ$20,データシート1!$A$1:$BT$1,0),0) -> 178 | BR45: 8,193 | BT45: 滋賀県 | BU45: 8,193 | BV45: 38% | BW45: 35% | BX45: 1% | BY45: 2% | BZ45: 17% | CA45: 17% | CB45: 26% | CC45: 25% | CD45: 14% | CE45: 11% | CF45: 1% | CG45: 0% | CH45: 2% | CI45: 100% | CK45: 滋賀県 | CL45: 3,098 | CM45: (100%) | CN45: 2,846 | CO45: (100%) | CP45: 66 | CQ45: (5%) | CR45: 186 | CS45: (1%) | CT45: 1,418 | CU45: (18%) | CW45: 3422.04 | CX45: =VLOOKUP($AX45&"_"&$CW$14,データシート1!$A:$BT,MATCH($CW$12&"_"&CX$20,データシート1!$A$1:$BT$1,0),0) -> 3415.802 | CY45: =VLOOKUP($AX45&"_"&$CW$14,データシート1!$A:$BT,MATCH($CW$12&"_"&CY$20,データシート1!$A$1:$BT$1,0),0) -> 3.581 | CZ45: =VLOOKUP($AX45&"_"&$CW$14,データシート1!$A:$BT,MATCH($CW$12&"_"&CZ$20,データシート1!$A$1:$BT$1,0),0) -> 2.657 | DA45: =VLOOKUP($AX45&"_"&$CW$14,データシート1!$A:$BT,MATCH($CW$12&"_"&DA$20,データシート1!$A$1:$BT$1,0),0) -> 261.814 | DB45: =VLOOKUP($AX45&"_"&$CW$14,データシート1!$A:$BT,MATCH($CW$12&"_"&DB$20,データシート1!$A$1:$BT$1,0),0) -> 0.115 | DC45: =VLOOKUP($AX45&"_"&$CW$14,データシート1!$A:$BT,MATCH($CW$12&"_"&DC$20,データシート1!$A$1:$BT$1,0),0) -> 0 | DD45: 3683.969 | DF45: =VLOOKUP($AX45&"_"&$DF$14,データシート1!$A:$BT,MATCH($DF$12&"_"&DF$20,データシート1!$A$1:$BT$1,0),0) -> 258 | DG45: =VLOOKUP($AX45&"_"&$DF$14,データシート1!$A:$BT,MATCH($DF$12&"_"&DG$20,データシート1!$A$1:$BT$1,0),0) -> 1 | DH45: =VLOOKUP($AX45&"_"&$DF$14,データシート1!$A:$BT,MATCH($DF$12&"_"&DH$20,データシート1!$A$1:$BT$1,0),0) -> 1 | DI45: =VLOOKUP($AX45&"_"&$DF$14,データシート1!$A:$BT,MATCH($DF$12&"_"&DI$20,データシート1!$A$1:$BT$1,0),0) -> 45 | DJ45: =VLOOKUP($AX45&"_"&$DF$14,データシート1!$A:$BT,MATCH($DF$12&"_"&DJ$20,データシート1!$A$1:$BT$1,0),0) -> 1 | DK45: =VLOOKUP($AX45&"_"&$DF$14,データシート1!$A:$BT,MATCH($DF$12&"_"&DK$20,データシート1!$A$1:$BT$1,0),0) -> 0 | DL45: 306 | DN45: 93.0% | DO45: 0 | DP45: 0 | DQ45: 7.0% | DR45: 0 | DS45: 0
AX46: =比較地域マスタ!$Y31 -> 26 | AY46: =IF(IFERROR(比較地域マスタ!$Z31,"")=0,"",IFERROR(比較地域マスタ!$Z31,"")) -> 京都府 | BB46: 26 | BC46: 京都府 | BD46: 11,201 | BE46: 2,318 | BF46: =VLOOKUP($AX46&"_"&$BC$14,データシート1!$A:$BT,MATCH($BC$12&"_"&BF$20,データシート1!$A$1:$BT$1,0),0) -> 2,013 | BG46: =VLOOKUP($AX46&"_"&$BC$14,データシート1!$A:$BT,MATCH($BC$12&"_"&BG$20,データシート1!$A$1:$BT$1,0),0) -> 114 | BH46: =VLOOKUP($AX46&"_"&$BC$14,データシート1!$A:$BT,MATCH($BC$12&"_"&BH$20,データシート1!$A$1:$BT$1,0),0) -> 191 | BI46: =VLOOKUP($AX46&"_"&$BC$14,データシート1!$A:$BT,MATCH($BC$12&"_"&BI$20,データシート1!$A$1:$BT$1,0),0) -> 3,103 | BJ46: =VLOOKUP($AX46&"_"&$BC$14,データシート1!$A:$BT,MATCH($BC$12&"_"&BJ$20,データシート1!$A$1:$BT$1,0),0) -> 2,687 | BK46: 2,816 | BL46: 2,629 | BM46: =VLOOKUP($AX46&"_"&$BC$14,データシート1!$A:$BT,MATCH($BC$12&"_"&BM$20,データシート1!$A$1:$BT$1,0),0) -> 1,415 | BN46: =VLOOKUP($AX46&"_"&$BC$14,データシート1!$A:$BT,MATCH($BC$12&"_"&BN$20,データシート1!$A$1:$BT$1,0),0) -> 1,214 | BO46: =VLOOKUP($AX46&"_"&$BC$14,データシート1!$A:$BT,MATCH($BC$12&"_"&BO$20,データシート1!$A$1:$BT$1,0),0) -> 147 | BP46: =VLOOKUP($AX46&"_"&$BC$14,データシート1!$A:$BT,MATCH($BC$12&"_"&BP$20,データシート1!$A$1:$BT$1,0),0) -> 41 | BQ46: =VLOOKUP($AX46&"_"&$BC$14,データシート1!$A:$BT,MATCH($BC$12&"_"&BQ$20,データシート1!$A$1:$BT$1,0),0) -> 277 | BR46: 11,201 | BT46: 京都府 | BU46: 11,201 | BV46: 21% | BW46: 18% | BX46: 1% | BY46: 2% | BZ46: 28% | CA46: 24% | CB46: 25% | CC46: 23% | CD46: 13% | CE46: 11% | CF46: 1% | CG46: 0% | CH46: 2% | CI46: 100% | CK46: 京都府 | CL46: 2,318 | CM46: (75%) | CN46: 2,013 | CO46: (85%) | CP46: 114 | CQ46: (3%) | CR46: 191 | CS46: (4%) | CT46: 3,103 | CU46: (28%) | CW46: 1727.416 | CX46: =VLOOKUP($AX46&"_"&$CW$14,データシート1!$A:$BT,MATCH($CW$12&"_"&CX$20,データシート1!$A$1:$BT$1,0),0) -> 1717.217 | CY46: =VLOOKUP($AX46&"_"&$CW$14,データシート1!$A:$BT,MATCH($CW$12&"_"&CY$20,データシート1!$A$1:$BT$1,0),0) -> 3.226 | CZ46: =VLOOKUP($AX46&"_"&$CW$14,データシート1!$A:$BT,MATCH($CW$12&"_"&CZ$20,データシート1!$A$1:$BT$1,0),0) -> 6.973 | DA46: =VLOOKUP($AX46&"_"&$CW$14,データシート1!$A:$BT,MATCH($CW$12&"_"&DA$20,データシート1!$A$1:$BT$1,0),0) -> 854.608 | DB46: =VLOOKUP($AX46&"_"&$CW$14,データシート1!$A:$BT,MATCH($CW$12&"_"&DB$20,データシート1!$A$1:$BT$1,0),0) -> 683.528 | DC46: =VLOOKUP($AX46&"_"&$CW$14,データシート1!$A:$BT,MATCH($CW$12&"_"&DC$20,データシート1!$A$1:$BT$1,0),0) -> 0 | DD46: 3265.552 | DF46: =VLOOKUP($AX46&"_"&$DF$14,データシート1!$A:$BT,MATCH($DF$12&"_"&DF$20,データシート1!$A$1:$BT$1,0),0) -> 137 | DG46: =VLOOKUP($AX46&"_"&$DF$14,データシート1!$A:$BT,MATCH($DF$12&"_"&DG$20,データシート1!$A$1:$BT$1,0),0) -> 1 | DH46: =VLOOKUP($AX46&"_"&$DF$14,データシート1!$A:$BT,MATCH($DF$12&"_"&DH$20,データシート1!$A$1:$BT$1,0),0) -> 2 | DI46: =VLOOKUP($AX46&"_"&$DF$14,データシート1!$A:$BT,MATCH($DF$12&"_"&DI$20,データシート1!$A$1:$BT$1,0),0) -> 103 | DJ46: =VLOOKUP($AX46&"_"&$DF$14,データシート1!$A:$BT,MATCH($DF$12&"_"&DJ$20,データシート1!$A$1:$BT$1,0),0) -> 1 | DK46: =VLOOKUP($AX46&"_"&$DF$14,データシート1!$A:$BT,MATCH($DF$12&"_"&DK$20,データシート1!$A$1:$BT$1,0),0) -> 0 | DL46: 244 | DN46: 53.0% | DO46: 0 | DP46: 0 | DQ46: 26.0% | DR46: 21.0% | DS46: 0
AX47: =比較地域マスタ!$Y32 -> 27 | AY47: =IF(IFERROR(比較地域マスタ!$Z32,"")=0,"",IFERROR(比較地域マスタ!$Z32,"")) -> 大阪府 | BB47: 27 | BC47: 大阪府 | BD47: 38,834 | BE47: 9,507 | BF47: =VLOOKUP($AX47&"_"&$BC$14,データシート1!$A:$BT,MATCH($BC$12&"_"&BF$20,データシート1!$A$1:$BT$1,0),0) -> 8,902 | BG47: =VLOOKUP($AX47&"_"&$BC$14,データシート1!$A:$BT,MATCH($BC$12&"_"&BG$20,データシート1!$A$1:$BT$1,0),0) -> 400 | BH47: =VLOOKUP($AX47&"_"&$BC$14,データシート1!$A:$BT,MATCH($BC$12&"_"&BH$20,データシート1!$A$1:$BT$1,0),0) -> 204 | BI47: =VLOOKUP($AX47&"_"&$BC$14,データシート1!$A:$BT,MATCH($BC$12&"_"&BI$20,データシート1!$A$1:$BT$1,0),0) -> 11,085 | BJ47: =VLOOKUP($AX47&"_"&$BC$14,データシート1!$A:$BT,MATCH($BC$12&"_"&BJ$20,データシート1!$A$1:$BT$1,0),0) -> 8,645 | BK47: 8,336 | BL47: 7,396 | BM47: =VLOOKUP($AX47&"_"&$BC$14,データシート1!$A:$BT,MATCH($BC$12&"_"&BM$20,データシート1!$A$1:$BT$1,0),0) -> 3,954 | BN47: =VLOOKUP($AX47&"_"&$BC$14,データシート1!$A:$BT,MATCH($BC$12&"_"&BN$20,データシート1!$A$1:$BT$1,0),0) -> 3,442 | BO47: =VLOOKUP($AX47&"_"&$BC$14,データシート1!$A:$BT,MATCH($BC$12&"_"&BO$20,データシート1!$A$1:$BT$1,0),0) -> 514 | BP47: =VLOOKUP($AX47&"_"&$BC$14,データシート1!$A:$BT,MATCH($BC$12&"_"&BP$20,データシート1!$A$1:$BT$1,0),0) -> 426 | BQ47: =VLOOKUP($AX47&"_"&$BC$14,データシート1!$A:$BT,MATCH($BC$12&"_"&BQ$20,データシート1!$A$1:$BT$1,0),0) -> 1,262 | BR47: 38,834 | BT47: 大阪府 | BU47: 38,834 | BV47: 24% | BW47: 23% | BX47: 1% | BY47: 1% | BZ47: 29% | CA47: 22% | CB47: 21% | CC47: 19% | CD47: 10% | CE47: 9% | CF47: 1% | CG47: 1% | CH47: 3% | CI47: 100% | CK47: 大阪府 | CL47: 9,507 | CM47: (76%) | CN47: 8,902 | CO47: (81%) | CP47: 400 | CQ47: 0 | CR47: 204 | CS47: 0 | CT47: 11,085 | CU47: (37%) | CW47: 7235.317 | CX47: =VLOOKUP($AX47&"_"&$CW$14,データシート1!$A:$BT,MATCH($CW$12&"_"&CX$20,データシート1!$A$1:$BT$1,0),0) -> 7235.317 | CY47: =VLOOKUP($AX47&"_"&$CW$14,データシート1!$A:$BT,MATCH($CW$12&"_"&CY$20,データシート1!$A$1:$BT$1,0),0) -> 0 | CZ47: =VLOOKUP($AX47&"_"&$CW$14,データシート1!$A:$BT,MATCH($CW$12&"_"&CZ$20,データシート1!$A$1:$BT$1,0),0) -> 0 | DA47: =VLOOKUP($AX47&"_"&$CW$14,データシート1!$A:$BT,MATCH($CW$12&"_"&DA$20,データシート1!$A$1:$BT$1,0),0) -> 4059.285 | DB47: =VLOOKUP($AX47&"_"&$CW$14,データシート1!$A:$BT,MATCH($CW$12&"_"&DB$20,データシート1!$A$1:$BT$1,0),0) -> 1944.206 | DC47: =VLOOKUP($AX47&"_"&$CW$14,データシート1!$A:$BT,MATCH($CW$12&"_"&DC$20,データシート1!$A$1:$BT$1,0),0) -> 0 | DD47: 13238.808 | DF47: =VLOOKUP($AX47&"_"&$DF$14,データシート1!$A:$BT,MATCH($DF$12&"_"&DF$20,データシート1!$A$1:$BT$1,0),0) -> 374 | DG47: =VLOOKUP($AX47&"_"&$DF$14,データシート1!$A:$BT,MATCH($DF$12&"_"&DG$20,データシート1!$A$1:$BT$1,0),0) -> 0 | DH47: =VLOOKUP($AX47&"_"&$DF$14,データシート1!$A:$BT,MATCH($DF$12&"_"&DH$20,データシート1!$A$1:$BT$1,0),0) -> 0 | DI47: =VLOOKUP($AX47&"_"&$DF$14,データシート1!$A:$BT,MATCH($DF$12&"_"&DI$20,データシート1!$A$1:$BT$1,0),0) -> 465 | DJ47: =VLOOKUP($AX47&"_"&$DF$14,データシート1!$A:$BT,MATCH($DF$12&"_"&DJ$20,データシート1!$A$1:$BT$1,0),0) -> 24 | DK47: =VLOOKUP($AX47&"_"&$DF$14,データシート1!$A:$BT,MATCH($DF$12&"_"&DK$20,データシート1!$A$1:$BT$1,0),0) -> 0 | DL47: 863 | DN47: 55.0% | DO47: 0 | DP47: 0 | DQ47: 31.0% | DR47: 15.0% | DS47: 0
AX48: =比較地域マスタ!$Y33 -> 28 | AY48: =IF(IFERROR(比較地域マスタ!$Z33,"")=0,"",IFERROR(比較地域マスタ!$Z33,"")) -> 兵庫県 | BB48: 28 | BC48: 兵庫県 | BD48: 44,738 | BE48: 27,274 | BF48: =VLOOKUP($AX48&"_"&$BC$14,データシート1!$A:$BT,MATCH($BC$12&"_"&BF$20,データシート1!$A$1:$BT$1,0),0) -> 26,698 | BG48: =VLOOKUP($AX48&"_"&$BC$14,データシート1!$A:$BT,MATCH($BC$12&"_"&BG$20,データシート1!$A$1:$BT$1,0),0) -> 213 | BH48: =VLOOKUP($AX48&"_"&$BC$14,データシート1!$A:$BT,MATCH($BC$12&"_"&BH$20,データシート1!$A$1:$BT$1,0),0) -> 364 | BI48: =VLOOKUP($AX48&"_"&$BC$14,データシート1!$A:$BT,MATCH($BC$12&"_"&BI$20,データシート1!$A$1:$BT$1,0),0) -> 5,412 | BJ48: =VLOOKUP($AX48&"_"&$BC$14,データシート1!$A:$BT,MATCH($BC$12&"_"&BJ$20,データシート1!$A$1:$BT$1,0),0) -> 4,645 | BK48: 6,564 | BL48: 5,778 | BM48: =VLOOKUP($AX48&"_"&$BC$14,データシート1!$A:$BT,MATCH($BC$12&"_"&BM$20,データシート1!$A$1:$BT$1,0),0) -> 3,262 | BN48: =VLOOKUP($AX48&"_"&$BC$14,データシート1!$A:$BT,MATCH($BC$12&"_"&BN$20,データシート1!$A$1:$BT$1,0),0) -> 2,516 | BO48: =VLOOKUP($AX48&"_"&$BC$14,データシート1!$A:$BT,MATCH($BC$12&"_"&BO$20,データシート1!$A$1:$BT$1,0),0) -> 320 | BP48: =VLOOKUP($AX48&"_"&$BC$14,データシート1!$A:$BT,MATCH($BC$12&"_"&BP$20,データシート1!$A$1:$BT$1,0),0) -> 465 | BQ48: =VLOOKUP($AX48&"_"&$BC$14,データシート1!$A:$BT,MATCH($BC$12&"_"&BQ$20,データシート1!$A$1:$BT$1,0),0) -> 843 | BR48: 44,738 | BT48: 兵庫県 | BU48: 44,738 | BV48: 61% | BW48: 60% | BX48: 0% | BY48: 1% | BZ48: 12% | CA48: 10% | CB48: 15% | CC48: 13% | CD48: 7% | CE48: 6% | CF48: 1% | CG48: 1% | CH48: 2% | CI48: 100% | CK48: 兵庫県 | CL48: 27,274 | CM48: (100%) | CN48: 26,698 | CO48: (100%) | CP48: 213 | CQ48: (2%) | CR48: 364 | CS48: (2%) | CT48: 5,412 | CU48: (35%) | CW48: 27219.025 | CX48: =VLOOKUP($AX48&"_"&$CW$14,データシート1!$A:$BT,MATCH($CW$12&"_"&CX$20,データシート1!$A$1:$BT$1,0),0) -> 27208.566 | CY48: =VLOOKUP($AX48&"_"&$CW$14,データシート1!$A:$BT,MATCH($CW$12&"_"&CY$20,データシート1!$A$1:$BT$1,0),0) -> 4.956 | CZ48: =VLOOKUP($AX48&"_"&$CW$14,データシート1!$A:$BT,MATCH($CW$12&"_"&CZ$20,データシート1!$A$1:$BT$1,0),0) -> 5.503 | DA48: =VLOOKUP($AX48&"_"&$CW$14,データシート1!$A:$BT,MATCH($CW$12&"_"&DA$20,データシート1!$A$1:$BT$1,0),0) -> 1918.742 | DB48: =VLOOKUP($AX48&"_"&$CW$14,データシート1!$A:$BT,MATCH($CW$12&"_"&DB$20,データシート1!$A$1:$BT$1,0),0) -> 1481.872 | DC48: =VLOOKUP($AX48&"_"&$CW$14,データシート1!$A:$BT,MATCH($CW$12&"_"&DC$20,データシート1!$A$1:$BT$1,0),0) -> 0 | DD48: 30619.639 | DF48: =VLOOKUP($AX48&"_"&$DF$14,データシート1!$A:$BT,MATCH($DF$12&"_"&DF$20,データシート1!$A$1:$BT$1,0),0) -> 466 | DG48: =VLOOKUP($AX48&"_"&$DF$14,データシート1!$A:$BT,MATCH($DF$12&"_"&DG$20,データシート1!$A$1:$BT$1,0),0) -> 1 | DH48: =VLOOKUP($AX48&"_"&$DF$14,データシート1!$A:$BT,MATCH($DF$12&"_"&DH$20,データシート1!$A$1:$BT$1,0),0) -> 1 | DI48: =VLOOKUP($AX48&"_"&$DF$14,データシート1!$A:$BT,MATCH($DF$12&"_"&DI$20,データシート1!$A$1:$BT$1,0),0) -> 221 | DJ48: =VLOOKUP($AX48&"_"&$DF$14,データシート1!$A:$BT,MATCH($DF$12&"_"&DJ$20,データシート1!$A$1:$BT$1,0),0) -> 18 | DK48: =VLOOKUP($AX48&"_"&$DF$14,データシート1!$A:$BT,MATCH($DF$12&"_"&DK$20,データシート1!$A$1:$BT$1,0),0) -> 0 | DL48: 707 | DN48: 89.0% | DO48: 0 | DP48: 0 | DQ48: 6.0% | DR48: 5.0% | DS48: 0
AX49: =比較地域マスタ!$Y34 -> 29 | AY49: =IF(IFERROR(比較地域マスタ!$Z34,"")=0,"",IFERROR(比較地域マスタ!$Z34,"")) -> 奈良県 | BB49: 29 | BC49: 奈良県 | BD49: 5,046 | BE49: 623 | BF49: =VLOOKUP($AX49&"_"&$BC$14,データシート1!$A:$BT,MATCH($BC$12&"_"&BF$20,データシート1!$A$1:$BT$1,0),0) -> 517 | BG49: =VLOOKUP($AX49&"_"&$BC$14,データシート1!$A:$BT,MATCH($BC$12&"_"&BG$20,データシート1!$A$1:$BT$1,0),0) -> 46 | BH49: =VLOOKUP($AX49&"_"&$BC$14,データシート1!$A:$BT,MATCH($BC$12&"_"&BH$20,データシート1!$A$1:$BT$1,0),0) -> 59 | BI49: =VLOOKUP($AX49&"_"&$BC$14,データシート1!$A:$BT,MATCH($BC$12&"_"&BI$20,データシート1!$A$1:$BT$1,0),0) -> 1,170 | BJ49: =VLOOKUP($AX49&"_"&$BC$14,データシート1!$A:$BT,MATCH($BC$12&"_"&BJ$20,データシート1!$A$1:$BT$1,0),0) -> 1,429 | BK49: 1,672 | BL49: 1,594 | BM49: =VLOOKUP($AX49&"_"&$BC$14,データシート1!$A:$BT,MATCH($BC$12&"_"&BM$20,データシート1!$A$1:$BT$1,0),0) -> 911 | BN49: =VLOOKUP($AX49&"_"&$BC$14,データシート1!$A:$BT,MATCH($BC$12&"_"&BN$20,データシート1!$A$1:$BT$1,0),0) -> 683 | BO49: =VLOOKUP($AX49&"_"&$BC$14,データシート1!$A:$BT,MATCH($BC$12&"_"&BO$20,データシート1!$A$1:$BT$1,0),0) -> 78 | BP49: =VLOOKUP($AX49&"_"&$BC$14,データシート1!$A:$BT,MATCH($BC$12&"_"&BP$20,データシート1!$A$1:$BT$1,0),0) -> 0 | BQ49: =VLOOKUP($AX49&"_"&$BC$14,データシート1!$A:$BT,MATCH($BC$12&"_"&BQ$20,データシート1!$A$1:$BT$1,0),0) -> 153 | BR49: 5,046 | BT49: 奈良県 | BU49: 5,046 | BV49: 12% | BW49: 10% | BX49: 1% | BY49: 1% | BZ49: 23% | CA49: 28% | CB49: 33% | CC49: 32% | CD49: 18% | CE49: 14% | CF49: 2% | CG49: 0% | CH49: 3% | CI49: 100% | CK49: 奈良県 | CL49: 623 | CM49: (70%) | CN49: 517 | CO49: (84%) | CP49: 46 | CQ49: 0 | CR49: 59 | CS49: 0 | CT49: 1,170 | CU49: (17%) | CW49: 434.672 | CX49: =VLOOKUP($AX49&"_"&$CW$14,データシート1!$A:$BT,MATCH($CW$12&"_"&CX$20,データシート1!$A$1:$BT$1,0),0) -> 434.672 | CY49: =VLOOKUP($AX49&"_"&$CW$14,データシート1!$A:$BT,MATCH($CW$12&"_"&CY$20,データシート1!$A$1:$BT$1,0),0) -> 0 | CZ49: =VLOOKUP($AX49&"_"&$CW$14,データシート1!$A:$BT,MATCH($CW$12&"_"&CZ$20,データシート1!$A$1:$BT$1,0),0) -> 0 | DA49: =VLOOKUP($AX49&"_"&$CW$14,データシート1!$A:$BT,MATCH($CW$12&"_"&DA$20,データシート1!$A$1:$BT$1,0),0) -> 194.855 | DB49: =VLOOKUP($AX49&"_"&$CW$14,データシート1!$A:$BT,MATCH($CW$12&"_"&DB$20,データシート1!$A$1:$BT$1,0),0) -> 0 | DC49: =VLOOKUP($AX49&"_"&$CW$14,データシート1!$A:$BT,MATCH($CW$12&"_"&DC$20,データシート1!$A$1:$BT$1,0),0) -> 0 | DD49: 629.527 | DF49: =VLOOKUP($AX49&"_"&$DF$14,データシート1!$A:$BT,MATCH($DF$12&"_"&DF$20,データシート1!$A$1:$BT$1,0),0) -> 55 | DG49: =VLOOKUP($AX49&"_"&$DF$14,データシート1!$A:$BT,MATCH($DF$12&"_"&DG$20,データシート1!$A$1:$BT$1,0),0) -> 0 | DH49: =VLOOKUP($AX49&"_"&$DF$14,データシート1!$A:$BT,MATCH($DF$12&"_"&DH$20,データシート1!$A$1:$BT$1,0),0) -> 0 | DI49: =VLOOKUP($AX49&"_"&$DF$14,データシート1!$A:$BT,MATCH($DF$12&"_"&DI$20,データシート1!$A$1:$BT$1,0),0) -> 36 | DJ49: =VLOOKUP($AX49&"_"&$DF$14,データシート1!$A:$BT,MATCH($DF$12&"_"&DJ$20,データシート1!$A$1:$BT$1,0),0) -> 0 | DK49: =VLOOKUP($AX49&"_"&$DF$14,データシート1!$A:$BT,MATCH($DF$12&"_"&DK$20,データシート1!$A$1:$BT$1,0),0) -> 0 | DL49: 91 | DN49: 69.0% | DO49: 0 | DP49: 0 | DQ49: 31.0% | DR49: 0 | DS49: 0
AX50: =比較地域マスタ!$Y35 -> 30 | AY50: =IF(IFERROR(比較地域マスタ!$Z35,"")=0,"",IFERROR(比較地域マスタ!$Z35,"")) -> 和歌山県 | BB50: 30 | BC50: 和歌山県 | BD50: 11,227 | BE50: 7,487 | BF50: =VLOOKUP($AX50&"_"&$BC$14,データシート1!$A:$BT,MATCH($BC$12&"_"&BF$20,データシート1!$A$1:$BT$1,0),0) -> 7,245 | BG50: =VLOOKUP($AX50&"_"&$BC$14,データシート1!$A:$BT,MATCH($BC$12&"_"&BG$20,データシート1!$A$1:$BT$1,0),0) -> 51 | BH50: =VLOOKUP($AX50&"_"&$BC$14,データシート1!$A:$BT,MATCH($BC$12&"_"&BH$20,データシート1!$A$1:$BT$1,0),0) -> 191 | BI50: =VLOOKUP($AX50&"_"&$BC$14,データシート1!$A:$BT,MATCH($BC$12&"_"&BI$20,データシート1!$A$1:$BT$1,0),0) -> 929 | BJ50: =VLOOKUP($AX50&"_"&$BC$14,データシート1!$A:$BT,MATCH($BC$12&"_"&BJ$20,データシート1!$A$1:$BT$1,0),0) -> 935 | BK50: 1,738 | BL50: 1,568 | BM50: =VLOOKUP($AX50&"_"&$BC$14,データシート1!$A:$BT,MATCH($BC$12&"_"&BM$20,データシート1!$A$1:$BT$1,0),0) -> 758 | BN50: =VLOOKUP($AX50&"_"&$BC$14,データシート1!$A:$BT,MATCH($BC$12&"_"&BN$20,データシート1!$A$1:$BT$1,0),0) -> 810 | BO50: =VLOOKUP($AX50&"_"&$BC$14,データシート1!$A:$BT,MATCH($BC$12&"_"&BO$20,データシート1!$A$1:$BT$1,0),0) -> 55 | BP50: =VLOOKUP($AX50&"_"&$BC$14,データシート1!$A:$BT,MATCH($BC$12&"_"&BP$20,データシート1!$A$1:$BT$1,0),0) -> 115 | BQ50: =VLOOKUP($AX50&"_"&$BC$14,データシート1!$A:$BT,MATCH($BC$12&"_"&BQ$20,データシート1!$A$1:$BT$1,0),0) -> 139 | BR50: 11,227 | BT50: 和歌山県 | BU50: 11,227 | BV50: 67% | BW50: 65% | BX50: 0% | BY50: 2% | BZ50: 8% | CA50: 8% | CB50: 15% | CC50: 14% | CD50: 7% | CE50: 7% | CF50: 0% | CG50: 1% | CH50: 1% | CI50: 100% | CK50: 和歌山県 | CL50: 7,487 | CM50: (95%) | CN50: 7,245 | CO50: (98%) | CP50: 51 | CQ50: 0 | CR50: 191 | CS50: 0 | CT50: 929 | CU50: (20%) | CW50: 7079.747 | CX50: =VLOOKUP($AX50&"_"&$CW$14,データシート1!$A:$BT,MATCH($CW$12&"_"&CX$20,データシート1!$A$1:$BT$1,0),0) -> 7079.747 | CY50: =VLOOKUP($AX50&"_"&$CW$14,データシート1!$A:$BT,MATCH($CW$12&"_"&CY$20,データシート1!$A$1:$BT$1,0),0) -> 0 | CZ50: =VLOOKUP($AX50&"_"&$CW$14,データシート1!$A:$BT,MATCH($CW$12&"_"&CZ$20,データシート1!$A$1:$BT$1,0),0) -> 0 | DA50: =VLOOKUP($AX50&"_"&$CW$14,データシート1!$A:$BT,MATCH($CW$12&"_"&DA$20,データシート1!$A$1:$BT$1,0),0) -> 189.064 | DB50: =VLOOKUP($AX50&"_"&$CW$14,データシート1!$A:$BT,MATCH($CW$12&"_"&DB$20,データシート1!$A$1:$BT$1,0),0) -> 1129.39 | DC50: =VLOOKUP($AX50&"_"&$CW$14,データシート1!$A:$BT,MATCH($CW$12&"_"&DC$20,データシート1!$A$1:$BT$1,0),0) -> 0 | DD50: 8398.201 | DF50: =VLOOKUP($AX50&"_"&$DF$14,データシート1!$A:$BT,MATCH($DF$12&"_"&DF$20,データシート1!$A$1:$BT$1,0),0) -> 58 | DG50: =VLOOKUP($AX50&"_"&$DF$14,データシート1!$A:$BT,MATCH($DF$12&"_"&DG$20,データシート1!$A$1:$BT$1,0),0) -> 0 | DH50: =VLOOKUP($AX50&"_"&$DF$14,データシート1!$A:$BT,MATCH($DF$12&"_"&DH$20,データシート1!$A$1:$BT$1,0),0) -> 0 | DI50: =VLOOKUP($AX50&"_"&$DF$14,データシート1!$A:$BT,MATCH($DF$12&"_"&DI$20,データシート1!$A$1:$BT$1,0),0) -> 27 | DJ50: =VLOOKUP($AX50&"_"&$DF$14,データシート1!$A:$BT,MATCH($DF$12&"_"&DJ$20,データシート1!$A$1:$BT$1,0),0) -> 5 | DK50: =VLOOKUP($AX50&"_"&$DF$14,データシート1!$A:$BT,MATCH($DF$12&"_"&DK$20,データシート1!$A$1:$BT$1,0),0) -> 0 | DL50: 90 | DN50: 84.0% | DO50: 0 | DP50: 0 | DQ50: 2.0% | DR50: 13.0% | DS50: 0
AX51: =比較地域マスタ!$Y36 -> 31 | AY51: =IF(IFERROR(比較地域マスタ!$Z36,"")=0,"",IFERROR(比較地域マスタ!$Z36,"")) -> 鳥取県 | BB51: 31 | BC51: 鳥取県 | BD51: 3,777 | BE51: 903 | BF51: =VLOOKUP($AX51&"_"&$BC$14,データシート1!$A:$BT,MATCH($BC$12&"_"&BF$20,データシート1!$A$1:$BT$1,0),0) -> 656 | BG51: =VLOOKUP($AX51&"_"&$BC$14,データシート1!$A:$BT,MATCH($BC$12&"_"&BG$20,データシート1!$A$1:$BT$1,0),0) -> 40 | BH51: =VLOOKUP($AX51&"_"&$BC$14,データシート1!$A:$BT,MATCH($BC$12&"_"&BH$20,データシート1!$A$1:$BT$1,0),0) -> 206 | BI51: =VLOOKUP($AX51&"_"&$BC$14,データシート1!$A:$BT,MATCH($BC$12&"_"&BI$20,データシート1!$A$1:$BT$1,0),0) -> 931 | BJ51: =VLOOKUP($AX51&"_"&$BC$14,データシート1!$A:$BT,MATCH($BC$12&"_"&BJ$20,データシート1!$A$1:$BT$1,0),0) -> 864 | BK51: 1,017 | BL51: 975 | BM51: =VLOOKUP($AX51&"_"&$BC$14,データシート1!$A:$BT,MATCH($BC$12&"_"&BM$20,データシート1!$A$1:$BT$1,0),0) -> 481 | BN51: =VLOOKUP($AX51&"_"&$BC$14,データシート1!$A:$BT,MATCH($BC$12&"_"&BN$20,データシート1!$A$1:$BT$1,0),0) -> 494 | BO51: =VLOOKUP($AX51&"_"&$BC$14,データシート1!$A:$BT,MATCH($BC$12&"_"&BO$20,データシート1!$A$1:$BT$1,0),0) -> 32 | BP51: =VLOOKUP($AX51&"_"&$BC$14,データシート1!$A:$BT,MATCH($BC$12&"_"&BP$20,データシート1!$A$1:$BT$1,0),0) -> 10 | BQ51: =VLOOKUP($AX51&"_"&$BC$14,データシート1!$A:$BT,MATCH($BC$12&"_"&BQ$20,データシート1!$A$1:$BT$1,0),0) -> 61 | BR51: 3,777 | BT51: 鳥取県 | BU51: 3,777 | BV51: 24% | BW51: 17% | BX51: 1% | BY51: 5% | BZ51: 25% | CA51: 23% | CB51: 27% | CC51: 26% | CD51: 13% | CE51: 13% | CF51: 1% | CG51: 0% | CH51: 2% | CI51: 100% | CK51: 鳥取県 | CL51: 903 | CM51: (81%) | CN51: 656 | CO51: (100%) | CP51: 40 | CQ51: 0 | CR51: 206 | CS51: 0 | CT51: 931 | CU51: (17%) | CW51: 735.121 | CX51: =VLOOKUP($AX51&"_"&$CW$14,データシート1!$A:$BT,MATCH($CW$12&"_"&CX$20,データシート1!$A$1:$BT$1,0),0) -> 735.121 | CY51: =VLOOKUP($AX51&"_"&$CW$14,データシート1!$A:$BT,MATCH($CW$12&"_"&CY$20,データシート1!$A$1:$BT$1,0),0) -> 0 | CZ51: =VLOOKUP($AX51&"_"&$CW$14,データシート1!$A:$BT,MATCH($CW$12&"_"&CZ$20,データシート1!$A$1:$BT$1,0),0) -> 0 | DA51: =VLOOKUP($AX51&"_"&$CW$14,データシート1!$A:$BT,MATCH($CW$12&"_"&DA$20,データシート1!$A$1:$BT$1,0),0) -> 158.394 | DB51: =VLOOKUP($AX51&"_"&$CW$14,データシート1!$A:$BT,MATCH($CW$12&"_"&DB$20,データシート1!$A$1:$BT$1,0),0) -> 0 | DC51: =VLOOKUP($AX51&"_"&$CW$14,データシート1!$A:$BT,MATCH($CW$12&"_"&DC$20,データシート1!$A$1:$BT$1,0),0) -> 0 | DD51: 893.515 | DF51: =VLOOKUP($AX51&"_"&$DF$14,データシート1!$A:$BT,MATCH($DF$12&"_"&DF$20,データシート1!$A$1:$BT$1,0),0) -> 32 | DG51: =VLOOKUP($AX51&"_"&$DF$14,データシート1!$A:$BT,MATCH($DF$12&"_"&DG$20,データシート1!$A$1:$BT$1,0),0) -> 0 | DH51: =VLOOKUP($AX51&"_"&$DF$14,データシート1!$A:$BT,MATCH($DF$12&"_"&DH$20,データシート1!$A$1:$BT$1,0),0) -> 0 | DI51: =VLOOKUP($AX51&"_"&$DF$14,データシート1!$A:$BT,MATCH($DF$12&"_"&DI$20,データシート1!$A$1:$BT$1,0),0) -> 21 | DJ51: =VLOOKUP($AX51&"_"&$DF$14,データシート1!$A:$BT,MATCH($DF$12&"_"&DJ$20,データシート1!$A$1:$BT$1,0),0) -> 0 | DK51: =VLOOKUP($AX51&"_"&$DF$14,データシート1!$A:$BT,MATCH($DF$12&"_"&DK$20,データシート1!$A$1:$BT$1,0),0) -> 0 | DL51: 53 | DN51: 82.0% | DO51: 0 | DP51: 0 | DQ51: 18.0% | DR51: 0 | DS51: 0
AX52: =比較地域マスタ!$Y37 -> 32 | AY52: =IF(IFERROR(比較地域マスタ!$Z37,"")=0,"",IFERROR(比較地域マスタ!$Z37,"")) -> 島根県 | BB52: 32 | BC52: 島根県 | BD52: 5,314 | BE52: 1,725 | BF52: =VLOOKUP($AX52&"_"&$BC$14,データシート1!$A:$BT,MATCH($BC$12&"_"&BF$20,データシート1!$A$1:$BT$1,0),0) -> 1,334 | BG52: =VLOOKUP($AX52&"_"&$BC$14,データシート1!$A:$BT,MATCH($BC$12&"_"&BG$20,データシート1!$A$1:$BT$1,0),0) -> 69 | BH52: =VLOOKUP($AX52&"_"&$BC$14,データシート1!$A:$BT,MATCH($BC$12&"_"&BH$20,データシート1!$A$1:$BT$1,0),0) -> 322 | BI52: =VLOOKUP($AX52&"_"&$BC$14,データシート1!$A:$BT,MATCH($BC$12&"_"&BI$20,データシート1!$A$1:$BT$1,0),0) -> 1,181 | BJ52: =VLOOKUP($AX52&"_"&$BC$14,データシート1!$A:$BT,MATCH($BC$12&"_"&BJ$20,データシート1!$A$1:$BT$1,0),0) -> 1,076 | BK52: 1,272 | BL52: 1,157 | BM52: =VLOOKUP($AX52&"_"&$BC$14,データシート1!$A:$BT,MATCH($BC$12&"_"&BM$20,データシート1!$A$1:$BT$1,0),0) -> 567 | BN52: =VLOOKUP($AX52&"_"&$BC$14,データシート1!$A:$BT,MATCH($BC$12&"_"&BN$20,データシート1!$A$1:$BT$1,0),0) -> 590 | BO52: =VLOOKUP($AX52&"_"&$BC$14,データシート1!$A:$BT,MATCH($BC$12&"_"&BO$20,データシート1!$A$1:$BT$1,0),0) -> 39 | BP52: =VLOOKUP($AX52&"_"&$BC$14,データシート1!$A:$BT,MATCH($BC$12&"_"&BP$20,データシート1!$A$1:$BT$1,0),0) -> 76 | BQ52: =VLOOKUP($AX52&"_"&$BC$14,データシート1!$A:$BT,MATCH($BC$12&"_"&BQ$20,データシート1!$A$1:$BT$1,0),0) -> 61 | BR52: 5,314 | BT52: 島根県 | BU52: 5,314 | BV52: 32% | BW52: 25% | BX52: 1% | BY52: 6% | BZ52: 22% | CA52: 20% | CB52: 24% | CC52: 22% | CD52: 11% | CE52: 11% | CF52: 1% | CG52: 1% | CH52: 1% | CI52: 100% | CK52: 島根県 | CL52: 1,725 | CM52: (79%) | CN52: 1,334 | CO52: (100%) | CP52: 69 | CQ52: 0 | CR52: 322 | CS52: 0 | CT52: 1,181 | CU52: (14%) | CW52: 1354.961 | CX52: =VLOOKUP($AX52&"_"&$CW$14,データシート1!$A:$BT,MATCH($CW$12&"_"&CX$20,データシート1!$A$1:$BT$1,0),0) -> 1354.961 | CY52: =VLOOKUP($AX52&"_"&$CW$14,データシート1!$A:$BT,MATCH($CW$12&"_"&CY$20,データシート1!$A$1:$BT$1,0),0) -> 0 | CZ52: =VLOOKUP($AX52&"_"&$CW$14,データシート1!$A:$BT,MATCH($CW$12&"_"&CZ$20,データシート1!$A$1:$BT$1,0),0) -> 0 | DA52: =VLOOKUP($AX52&"_"&$CW$14,データシート1!$A:$BT,MATCH($CW$12&"_"&DA$20,データシート1!$A$1:$BT$1,0),0) -> 164.176 | DB52: =VLOOKUP($AX52&"_"&$CW$14,データシート1!$A:$BT,MATCH($CW$12&"_"&DB$20,データシート1!$A$1:$BT$1,0),0) -> 318.809 | DC52: =VLOOKUP($AX52&"_"&$CW$14,データシート1!$A:$BT,MATCH($CW$12&"_"&DC$20,データシート1!$A$1:$BT$1,0),0) -> 0 | DD52: 1837.946 | DF52: =VLOOKUP($AX52&"_"&$DF$14,データシート1!$A:$BT,MATCH($DF$12&"_"&DF$20,データシート1!$A$1:$BT$1,0),0) -> 47 | DG52: =VLOOKUP($AX52&"_"&$DF$14,データシート1!$A:$BT,MATCH($DF$12&"_"&DG$20,データシート1!$A$1:$BT$1,0),0) -> 0 | DH52: =VLOOKUP($AX52&"_"&$DF$14,データシート1!$A:$BT,MATCH($DF$12&"_"&DH$20,データシート1!$A$1:$BT$1,0),0) -> 0 | DI52: =VLOOKUP($AX52&"_"&$DF$14,データシート1!$A:$BT,MATCH($DF$12&"_"&DI$20,データシート1!$A$1:$BT$1,0),0) -> 19 | DJ52: =VLOOKUP($AX52&"_"&$DF$14,データシート1!$A:$BT,MATCH($DF$12&"_"&DJ$20,データシート1!$A$1:$BT$1,0),0) -> 4 | DK52: =VLOOKUP($AX52&"_"&$DF$14,データシート1!$A:$BT,MATCH($DF$12&"_"&DK$20,データシート1!$A$1:$BT$1,0),0) -> 0 | DL52: 70 | DN52: 74.0% | DO52: 0 | DP52: 0 | DQ52: 9.0% | DR52: 17.0% | DS52: 0
AX53: =比較地域マスタ!$Y38 -> 33 | AY53: =IF(IFERROR(比較地域マスタ!$Z38,"")=0,"",IFERROR(比較地域マスタ!$Z38,"")) -> 岡山県 | BB53: 33 | BC53: 岡山県 | BD53: 37,144 | BE53: 27,828 | BF53: =VLOOKUP($AX53&"_"&$BC$14,データシート1!$A:$BT,MATCH($BC$12&"_"&BF$20,データシート1!$A$1:$BT$1,0),0) -> 27,470 | BG53: =VLOOKUP($AX53&"_"&$BC$14,データシート1!$A:$BT,MATCH($BC$12&"_"&BG$20,データシート1!$A$1:$BT$1,0),0) -> 153 | BH53: =VLOOKUP($AX53&"_"&$BC$14,データシート1!$A:$BT,MATCH($BC$12&"_"&BH$20,データシート1!$A$1:$BT$1,0),0) -> 204 | BI53: =VLOOKUP($AX53&"_"&$BC$14,データシート1!$A:$BT,MATCH($BC$12&"_"&BI$20,データシート1!$A$1:$BT$1,0),0) -> 2,849 | BJ53: =VLOOKUP($AX53&"_"&$BC$14,データシート1!$A:$BT,MATCH($BC$12&"_"&BJ$20,データシート1!$A$1:$BT$1,0),0) -> 2,731 | BK53: 3,497 | BL53: 3,127 | BM53: =VLOOKUP($AX53&"_"&$BC$14,データシート1!$A:$BT,MATCH($BC$12&"_"&BM$20,データシート1!$A$1:$BT$1,0),0) -> 1,627 | BN53: =VLOOKUP($AX53&"_"&$BC$14,データシート1!$A:$BT,MATCH($BC$12&"_"&BN$20,データシート1!$A$1:$BT$1,0),0) -> 1,499 | BO53: =VLOOKUP($AX53&"_"&$BC$14,データシート1!$A:$BT,MATCH($BC$12&"_"&BO$20,データシート1!$A$1:$BT$1,0),0) -> 110 | BP53: =VLOOKUP($AX53&"_"&$BC$14,データシート1!$A:$BT,MATCH($BC$12&"_"&BP$20,データシート1!$A$1:$BT$1,0),0) -> 261 | BQ53: =VLOOKUP($AX53&"_"&$BC$14,データシート1!$A:$BT,MATCH($BC$12&"_"&BQ$20,データシート1!$A$1:$BT$1,0),0) -> 238 | BR53: 37,144 | BT53: 岡山県 | BU53: 37,144 | BV53: 75% | BW53: 74% | BX53: 0% | BY53: 1% | BZ53: 8% | CA53: 7% | CB53: 9% | CC53: 8% | CD53: 4% | CE53: 4% | CF53: 0% | CG53: 1% | CH53: 1% | CI53: 100% | CK53: 岡山県 | CL53: 27,828 | CM53: (90%) | CN53: 27,470 | CO53: (91%) | CP53: 153 | CQ53: (5%) | CR53: 204 | CS53: (2%) | CT53: 2,849 | CU53: (21%) | CW53: 24938.435 | CX53: =VLOOKUP($AX53&"_"&$CW$14,データシート1!$A:$BT,MATCH($CW$12&"_"&CX$20,データシート1!$A$1:$BT$1,0),0) -> 24926.585 | CY53: =VLOOKUP($AX53&"_"&$CW$14,データシート1!$A:$BT,MATCH($CW$12&"_"&CY$20,データシート1!$A$1:$BT$1,0),0) -> 7.445 | CZ53: =VLOOKUP($AX53&"_"&$CW$14,データシート1!$A:$BT,MATCH($CW$12&"_"&CZ$20,データシート1!$A$1:$BT$1,0),0) -> 4.405 | DA53: =VLOOKUP($AX53&"_"&$CW$14,データシート1!$A:$BT,MATCH($CW$12&"_"&DA$20,データシート1!$A$1:$BT$1,0),0) -> 587.197 | DB53: =VLOOKUP($AX53&"_"&$CW$14,データシート1!$A:$BT,MATCH($CW$12&"_"&DB$20,データシート1!$A$1:$BT$1,0),0) -> 4212.151 | DC53: =VLOOKUP($AX53&"_"&$CW$14,データシート1!$A:$BT,MATCH($CW$12&"_"&DC$20,データシート1!$A$1:$BT$1,0),0) -> 0 | DD53: 29737.783 | DF53: =VLOOKUP($AX53&"_"&$DF$14,データシート1!$A:$BT,MATCH($DF$12&"_"&DF$20,データシート1!$A$1:$BT$1,0),0) -> 231 | DG53: =VLOOKUP($AX53&"_"&$DF$14,データシート1!$A:$BT,MATCH($DF$12&"_"&DG$20,データシート1!$A$1:$BT$1,0),0) -> 1 | DH53: =VLOOKUP($AX53&"_"&$DF$14,データシート1!$A:$BT,MATCH($DF$12&"_"&DH$20,データシート1!$A$1:$BT$1,0),0) -> 1 | DI53: =VLOOKUP($AX53&"_"&$DF$14,データシート1!$A:$BT,MATCH($DF$12&"_"&DI$20,データシート1!$A$1:$BT$1,0),0) -> 53 | DJ53: =VLOOKUP($AX53&"_"&$DF$14,データシート1!$A:$BT,MATCH($DF$12&"_"&DJ$20,データシート1!$A$1:$BT$1,0),0) -> 6 | DK53: =VLOOKUP($AX53&"_"&$DF$14,データシート1!$A:$BT,MATCH($DF$12&"_"&DK$20,データシート1!$A$1:$BT$1,0),0) -> 0 | DL53: 292 | DN53: 84.0% | DO53: 0 | DP53: 0 | DQ53: 2.0% | DR53: 14.0% | DS53: 0
AX54: =比較地域マスタ!$Y39 -> 34 | AY54: =IF(IFERROR(比較地域マスタ!$Z39,"")=0,"",IFERROR(比較地域マスタ!$Z39,"")) -> 広島県 | BB54: 34 | BC54: 広島県 | BD54: 41,130 | BE54: 27,643 | BF54: =VLOOKUP($AX54&"_"&$BC$14,データシート1!$A:$BT,MATCH($BC$12&"_"&BF$20,データシート1!$A$1:$BT$1,0),0) -> 27,161 | BG54: =VLOOKUP($AX54&"_"&$BC$14,データシート1!$A:$BT,MATCH($BC$12&"_"&BG$20,データシート1!$A$1:$BT$1,0),0) -> 184 | BH54: =VLOOKUP($AX54&"_"&$BC$14,データシート1!$A:$BT,MATCH($BC$12&"_"&BH$20,データシート1!$A$1:$BT$1,0),0) -> 298 | BI54: =VLOOKUP($AX54&"_"&$BC$14,データシート1!$A:$BT,MATCH($BC$12&"_"&BI$20,データシート1!$A$1:$BT$1,0),0) -> 4,927 | BJ54: =VLOOKUP($AX54&"_"&$BC$14,データシート1!$A:$BT,MATCH($BC$12&"_"&BJ$20,データシート1!$A$1:$BT$1,0),0) -> 3,880 | BK54: 4,428 | BL54: 3,698 | BM54: =VLOOKUP($AX54&"_"&$BC$14,データシート1!$A:$BT,MATCH($BC$12&"_"&BM$20,データシート1!$A$1:$BT$1,0),0) -> 2,052 | BN54: =VLOOKUP($AX54&"_"&$BC$14,データシート1!$A:$BT,MATCH($BC$12&"_"&BN$20,データシート1!$A$1:$BT$1,0),0) -> 1,646 | BO54: =VLOOKUP($AX54&"_"&$BC$14,データシート1!$A:$BT,MATCH($BC$12&"_"&BO$20,データシート1!$A$1:$BT$1,0),0) -> 163 | BP54: =VLOOKUP($AX54&"_"&$BC$14,データシート1!$A:$BT,MATCH($BC$12&"_"&BP$20,データシート1!$A$1:$BT$1,0),0) -> 568 | BQ54: =VLOOKUP($AX54&"_"&$BC$14,データシート1!$A:$BT,MATCH($BC$12&"_"&BQ$20,データシート1!$A$1:$BT$1,0),0) -> 251 | BR54: 41,130 | BT54: 広島県 | BU54: 41,130 | BV54: 67% | BW54: 66% | BX54: 0% | BY54: 1% | BZ54: 12% | CA54: 9% | CB54: 11% | CC54: 9% | CD54: 5% | CE54: 4% | CF54: 0% | CG54: 1% | CH54: 1% | CI54: 100% | CK54: 広島県 | CL54: 27,643 | CM54: (100%) | CN54: 27,161 | CO54: (100%) | CP54: 184 | CQ54: 0 | CR54: 298 | CS54: (8%) | CT54: 4,927 | CU54: (22%) | CW54: 32211.797 | CX54: =VLOOKUP($AX54&"_"&$CW$14,データシート1!$A:$BT,MATCH($CW$12&"_"&CX$20,データシート1!$A$1:$BT$1,0),0) -> 32188.339 | CY54: =VLOOKUP($AX54&"_"&$CW$14,データシート1!$A:$BT,MATCH($CW$12&"_"&CY$20,データシート1!$A$1:$BT$1,0),0) -> 0 | CZ54: =VLOOKUP($AX54&"_"&$CW$14,データシート1!$A:$BT,MATCH($CW$12&"_"&CZ$20,データシート1!$A$1:$BT$1,0),0) -> 23.458 | DA54: =VLOOKUP($AX54&"_"&$CW$14,データシート1!$A:$BT,MATCH($CW$12&"_"&DA$20,データシート1!$A$1:$BT$1,0),0) -> 1104.831 | DB54: =VLOOKUP($AX54&"_"&$CW$14,データシート1!$A:$BT,MATCH($CW$12&"_"&DB$20,データシート1!$A$1:$BT$1,0),0) -> 858.84 | DC54: =VLOOKUP($AX54&"_"&$CW$14,データシート1!$A:$BT,MATCH($CW$12&"_"&DC$20,データシート1!$A$1:$BT$1,0),0) -> 0 | DD54: 34175.468 | DF54: =VLOOKUP($AX54&"_"&$DF$14,データシート1!$A:$BT,MATCH($DF$12&"_"&DF$20,データシート1!$A$1:$BT$1,0),0) -> 200 | DG54: =VLOOKUP($AX54&"_"&$DF$14,データシート1!$A:$BT,MATCH($DF$12&"_"&DG$20,データシート1!$A$1:$BT$1,0),0) -> 0 | DH54: =VLOOKUP($AX54&"_"&$DF$14,データシート1!$A:$BT,MATCH($DF$12&"_"&DH$20,データシート1!$A$1:$BT$1,0),0) -> 4 | DI54: =VLOOKUP($AX54&"_"&$DF$14,データシート1!$A:$BT,MATCH($DF$12&"_"&DI$20,データシート1!$A$1:$BT$1,0),0) -> 123 | DJ54: =VLOOKUP($AX54&"_"&$DF$14,データシート1!$A:$BT,MATCH($DF$12&"_"&DJ$20,データシート1!$A$1:$BT$1,0),0) -> 6 | DK54: =VLOOKUP($AX54&"_"&$DF$14,データシート1!$A:$BT,MATCH($DF$12&"_"&DK$20,データシート1!$A$1:$BT$1,0),0) -> 0 | DL54: 333 | DN54: 94.0% | DO54: 0 | DP54: 0 | DQ54: 3.0% | DR54: 3.0% | DS54: 0
AX55: =比較地域マスタ!$Y40 -> 35 | AY55: =IF(IFERROR(比較地域マスタ!$Z40,"")=0,"",IFERROR(比較地域マスタ!$Z40,"")) -> 山口県 | BB55: 35 | BC55: 山口県 | BD55: 27,191 | BE55: 20,245 | BF55: =VLOOKUP($AX55&"_"&$BC$14,データシート1!$A:$BT,MATCH($BC$12&"_"&BF$20,データシート1!$A$1:$BT$1,0),0) -> 19,855 | BG55: =VLOOKUP($AX55&"_"&$BC$14,データシート1!$A:$BT,MATCH($BC$12&"_"&BG$20,データシート1!$A$1:$BT$1,0),0) -> 155 | BH55: =VLOOKUP($AX55&"_"&$BC$14,データシート1!$A:$BT,MATCH($BC$12&"_"&BH$20,データシート1!$A$1:$BT$1,0),0) -> 236 | BI55: =VLOOKUP($AX55&"_"&$BC$14,データシート1!$A:$BT,MATCH($BC$12&"_"&BI$20,データシート1!$A$1:$BT$1,0),0) -> 1,946 | BJ55: =VLOOKUP($AX55&"_"&$BC$14,データシート1!$A:$BT,MATCH($BC$12&"_"&BJ$20,データシート1!$A$1:$BT$1,0),0) -> 2,354 | BK55: 2,502 | BL55: 2,110 | BM55: =VLOOKUP($AX55&"_"&$BC$14,データシート1!$A:$BT,MATCH($BC$12&"_"&BM$20,データシート1!$A$1:$BT$1,0),0) -> 1,133 | BN55: =VLOOKUP($AX55&"_"&$BC$14,データシート1!$A:$BT,MATCH($BC$12&"_"&BN$20,データシート1!$A$1:$BT$1,0),0) -> 977 | BO55: =VLOOKUP($AX55&"_"&$BC$14,データシート1!$A:$BT,MATCH($BC$12&"_"&BO$20,データシート1!$A$1:$BT$1,0),0) -> 78 | BP55: =VLOOKUP($AX55&"_"&$BC$14,データシート1!$A:$BT,MATCH($BC$12&"_"&BP$20,データシート1!$A$1:$BT$1,0),0) -> 313 | BQ55: =VLOOKUP($AX55&"_"&$BC$14,データシート1!$A:$BT,MATCH($BC$12&"_"&BQ$20,データシート1!$A$1:$BT$1,0),0) -> 143 | BR55: 27,191 | BT55: 山口県 | BU55: 27,191 | BV55: 74% | BW55: 73% | BX55: 1% | BY55: 1% | BZ55: 7% | CA55: 9% | CB55: 9% | CC55: 8% | CD55: 4% | CE55: 4% | CF55: 0% | CG55: 1% | CH55: 1% | CI55: 100% | CK55: 山口県 | CL55: 20,245 | CM55: (100%) | CN55: 19,855 | CO55: (100%) | CP55: 155 | CQ55: (23%) | CR55: 236 | CS55: 0 | CT55: 1,946 | CU55: (19%) | CW55: 27215.917 | CX55: =VLOOKUP($AX55&"_"&$CW$14,データシート1!$A:$BT,MATCH($CW$12&"_"&CX$20,データシート1!$A$1:$BT$1,0),0) -> 27179.746 | CY55: =VLOOKUP($AX55&"_"&$CW$14,データシート1!$A:$BT,MATCH($CW$12&"_"&CY$20,データシート1!$A$1:$BT$1,0),0) -> 36.171 | CZ55: =VLOOKUP($AX55&"_"&$CW$14,データシート1!$A:$BT,MATCH($CW$12&"_"&CZ$20,データシート1!$A$1:$BT$1,0),0) -> 0 | DA55: =VLOOKUP($AX55&"_"&$CW$14,データシート1!$A:$BT,MATCH($CW$12&"_"&DA$20,データシート1!$A$1:$BT$1,0),0) -> 371.003 | DB55: =VLOOKUP($AX55&"_"&$CW$14,データシート1!$A:$BT,MATCH($CW$12&"_"&DB$20,データシート1!$A$1:$BT$1,0),0) -> 2974.613 | DC55: =VLOOKUP($AX55&"_"&$CW$14,データシート1!$A:$BT,MATCH($CW$12&"_"&DC$20,データシート1!$A$1:$BT$1,0),0) -> 0 | DD55: 30561.533 | DF55: =VLOOKUP($AX55&"_"&$DF$14,データシート1!$A:$BT,MATCH($DF$12&"_"&DF$20,データシート1!$A$1:$BT$1,0),0) -> 158 | DG55: =VLOOKUP($AX55&"_"&$DF$14,データシート1!$A:$BT,MATCH($DF$12&"_"&DG$20,データシート1!$A$1:$BT$1,0),0) -> 2 | DH55: =VLOOKUP($AX55&"_"&$DF$14,データシート1!$A:$BT,MATCH($DF$12&"_"&DH$20,データシート1!$A$1:$BT$1,0),0) -> 0 | DI55: =VLOOKUP($AX55&"_"&$DF$14,データシート1!$A:$BT,MATCH($DF$12&"_"&DI$20,データシート1!$A$1:$BT$1,0),0) -> 43 | DJ55: =VLOOKUP($AX55&"_"&$DF$14,データシート1!$A:$BT,MATCH($DF$12&"_"&DJ$20,データシート1!$A$1:$BT$1,0),0) -> 14 | DK55: =VLOOKUP($AX55&"_"&$DF$14,データシート1!$A:$BT,MATCH($DF$12&"_"&DK$20,データシート1!$A$1:$BT$1,0),0) -> 0 | DL55: 217 | DN55: 89.0% | DO55: 0 | DP55: 0 | DQ55: 1.0% | DR55: 10.0% | DS55: 0
AX56: =比較地域マスタ!$Y41 -> 36 | AY56: =IF(IFERROR(比較地域マスタ!$Z41,"")=0,"",IFERROR(比較地域マスタ!$Z41,"")) -> 徳島県 | BB56: 36 | BC56: 徳島県 | BD56: 5,826 | BE56: 2,077 | BF56: =VLOOKUP($AX56&"_"&$BC$14,データシート1!$A:$BT,MATCH($BC$12&"_"&BF$20,データシート1!$A$1:$BT$1,0),0) -> 1,855 | BG56: =VLOOKUP($AX56&"_"&$BC$14,データシート1!$A:$BT,MATCH($BC$12&"_"&BG$20,データシート1!$A$1:$BT$1,0),0) -> 52 | BH56: =VLOOKUP($AX56&"_"&$BC$14,データシート1!$A:$BT,MATCH($BC$12&"_"&BH$20,データシート1!$A$1:$BT$1,0),0) -> 170 | BI56: =VLOOKUP($AX56&"_"&$BC$14,データシート1!$A:$BT,MATCH($BC$12&"_"&BI$20,データシート1!$A$1:$BT$1,0),0) -> 1,107 | BJ56: =VLOOKUP($AX56&"_"&$BC$14,データシート1!$A:$BT,MATCH($BC$12&"_"&BJ$20,データシート1!$A$1:$BT$1,0),0) -> 1,145 | BK56: 1,427 | BL56: 1,282 | BM56: =VLOOKUP($AX56&"_"&$BC$14,データシート1!$A:$BT,MATCH($BC$12&"_"&BM$20,データシート1!$A$1:$BT$1,0),0) -> 637 | BN56: =VLOOKUP($AX56&"_"&$BC$14,データシート1!$A:$BT,MATCH($BC$12&"_"&BN$20,データシート1!$A$1:$BT$1,0),0) -> 644 | BO56: =VLOOKUP($AX56&"_"&$BC$14,データシート1!$A:$BT,MATCH($BC$12&"_"&BO$20,データシート1!$A$1:$BT$1,0),0) -> 42 | BP56: =VLOOKUP($AX56&"_"&$BC$14,データシート1!$A:$BT,MATCH($BC$12&"_"&BP$20,データシート1!$A$1:$BT$1,0),0) -> 103 | BQ56: =VLOOKUP($AX56&"_"&$BC$14,データシート1!$A:$BT,MATCH($BC$12&"_"&BQ$20,データシート1!$A$1:$BT$1,0),0) -> 71 | BR56: 5,826 | BT56: 徳島県 | BU56: 5,826 | BV56: 36% | BW56: 32% | BX56: 1% | BY56: 3% | BZ56: 19% | CA56: 20% | CB56: 24% | CC56: 22% | CD56: 11% | CE56: 11% | CF56: 1% | CG56: 2% | CH56: 1% | CI56: 100% | CK56: 徳島県 | CL56: 2,077 | CM56: (100%) | CN56: 1,855 | CO56: (100%) | CP56: 52 | CQ56: 0 | CR56: 170 | CS56: 0 | CT56: 1,107 | CU56: (14%) | CW56: 2093.417 | CX56: =VLOOKUP($AX56&"_"&$CW$14,データシート1!$A:$BT,MATCH($CW$12&"_"&CX$20,データシート1!$A$1:$BT$1,0),0) -> 2093.417 | CY56: =VLOOKUP($AX56&"_"&$CW$14,データシート1!$A:$BT,MATCH($CW$12&"_"&CY$20,データシート1!$A$1:$BT$1,0),0) -> 0 | CZ56: =VLOOKUP($AX56&"_"&$CW$14,データシート1!$A:$BT,MATCH($CW$12&"_"&CZ$20,データシート1!$A$1:$BT$1,0),0) -> 0 | DA56: =VLOOKUP($AX56&"_"&$CW$14,データシート1!$A:$BT,MATCH($CW$12&"_"&DA$20,データシート1!$A$1:$BT$1,0),0) -> 158.777 | DB56: =VLOOKUP($AX56&"_"&$CW$14,データシート1!$A:$BT,MATCH($CW$12&"_"&DB$20,データシート1!$A$1:$BT$1,0),0) -> 864.638 | DC56: =VLOOKUP($AX56&"_"&$CW$14,データシート1!$A:$BT,MATCH($CW$12&"_"&DC$20,データシート1!$A$1:$BT$1,0),0) -> 0 | DD56: 3116.832 | DF56: =VLOOKUP($AX56&"_"&$DF$14,データシート1!$A:$BT,MATCH($DF$12&"_"&DF$20,データシート1!$A$1:$BT$1,0),0) -> 65 | DG56: =VLOOKUP($AX56&"_"&$DF$14,データシート1!$A:$BT,MATCH($DF$12&"_"&DG$20,データシート1!$A$1:$BT$1,0),0) -> 0 | DH56: =VLOOKUP($AX56&"_"&$DF$14,データシート1!$A:$BT,MATCH($DF$12&"_"&DH$20,データシート1!$A$1:$BT$1,0),0) -> 0 | DI56: =VLOOKUP($AX56&"_"&$DF$14,データシート1!$A:$BT,MATCH($DF$12&"_"&DI$20,データシート1!$A$1:$BT$1,0),0) -> 21 | DJ56: =VLOOKUP($AX56&"_"&$DF$14,データシート1!$A:$BT,MATCH($DF$12&"_"&DJ$20,データシート1!$A$1:$BT$1,0),0) -> 3 | DK56: =VLOOKUP($AX56&"_"&$DF$14,データシート1!$A:$BT,MATCH($DF$12&"_"&DK$20,データシート1!$A$1:$BT$1,0),0) -> 0 | DL56: 89 | DN56: 67.0% | DO56: 0 | DP56: 0 | DQ56: 5.0% | DR56: 28.0% | DS56: 0
AX57: =比較地域マスタ!$Y42 -> 37 | AY57: =IF(IFERROR(比較地域マスタ!$Z42,"")=0,"",IFERROR(比較地域マスタ!$Z42,"")) -> 香川県 | BB57: 37 | BC57: 香川県 | BD57: 8,216 | BE57: 3,110 | BF57: =VLOOKUP($AX57&"_"&$BC$14,データシート1!$A:$BT,MATCH($BC$12&"_"&BF$20,データシート1!$A$1:$BT$1,0),0) -> 2,794 | BG57: =VLOOKUP($AX57&"_"&$BC$14,データシート1!$A:$BT,MATCH($BC$12&"_"&BG$20,データシート1!$A$1:$BT$1,0),0) -> 71 | BH57: =VLOOKUP($AX57&"_"&$BC$14,データシート1!$A:$BT,MATCH($BC$12&"_"&BH$20,データシート1!$A$1:$BT$1,0),0) -> 246 | BI57: =VLOOKUP($AX57&"_"&$BC$14,データシート1!$A:$BT,MATCH($BC$12&"_"&BI$20,データシート1!$A$1:$BT$1,0),0) -> 1,456 | BJ57: =VLOOKUP($AX57&"_"&$BC$14,データシート1!$A:$BT,MATCH($BC$12&"_"&BJ$20,データシート1!$A$1:$BT$1,0),0) -> 1,516 | BK57: 2,051 | BL57: 1,603 | BM57: =VLOOKUP($AX57&"_"&$BC$14,データシート1!$A:$BT,MATCH($BC$12&"_"&BM$20,データシート1!$A$1:$BT$1,0),0) -> 829 | BN57: =VLOOKUP($AX57&"_"&$BC$14,データシート1!$A:$BT,MATCH($BC$12&"_"&BN$20,データシート1!$A$1:$BT$1,0),0) -> 774 | BO57: =VLOOKUP($AX57&"_"&$BC$14,データシート1!$A:$BT,MATCH($BC$12&"_"&BO$20,データシート1!$A$1:$BT$1,0),0) -> 56 | BP57: =VLOOKUP($AX57&"_"&$BC$14,データシート1!$A:$BT,MATCH($BC$12&"_"&BP$20,データシート1!$A$1:$BT$1,0),0) -> 392 | BQ57: =VLOOKUP($AX57&"_"&$BC$14,データシート1!$A:$BT,MATCH($BC$12&"_"&BQ$20,データシート1!$A$1:$BT$1,0),0) -> 82 | BR57: 8,216 | BT57: 香川県 | BU57: 8,216 | BV57: 38% | BW57: 34% | BX57: 1% | BY57: 3% | BZ57: 18% | CA57: 18% | CB57: 25% | CC57: 20% | CD57: 10% | CE57: 9% | CF57: 1% | CG57: 5% | CH57: 1% | CI57: 100% | CK57: 香川県 | CL57: 3,110 | CM57: (46%) | CN57: 2,794 | CO57: (51%) | CP57: 71 | CQ57: 0 | CR57: 246 | CS57: (6%) | CT57: 1,456 | CU57: (21%) | CW57: 1425.399 | CX57: =VLOOKUP($AX57&"_"&$CW$14,データシート1!$A:$BT,MATCH($CW$12&"_"&CX$20,データシート1!$A$1:$BT$1,0),0) -> 1411.711 | CY57: =VLOOKUP($AX57&"_"&$CW$14,データシート1!$A:$BT,MATCH($CW$12&"_"&CY$20,データシート1!$A$1:$BT$1,0),0) -> 0 | CZ57: =VLOOKUP($AX57&"_"&$CW$14,データシート1!$A:$BT,MATCH($CW$12&"_"&CZ$20,データシート1!$A$1:$BT$1,0),0) -> 13.688 | DA57: =VLOOKUP($AX57&"_"&$CW$14,データシート1!$A:$BT,MATCH($CW$12&"_"&DA$20,データシート1!$A$1:$BT$1,0),0) -> 311 | DB57: =VLOOKUP($AX57&"_"&$CW$14,データシート1!$A:$BT,MATCH($CW$12&"_"&DB$20,データシート1!$A$1:$BT$1,0),0) -> 709.116 | DC57: =VLOOKUP($AX57&"_"&$CW$14,データシート1!$A:$BT,MATCH($CW$12&"_"&DC$20,データシート1!$A$1:$BT$1,0),0) -> 0 | DD57: 2445.515 | DF57: =VLOOKUP($AX57&"_"&$DF$14,データシート1!$A:$BT,MATCH($DF$12&"_"&DF$20,データシート1!$A$1:$BT$1,0),0) -> 85 | DG57: =VLOOKUP($AX57&"_"&$DF$14,データシート1!$A:$BT,MATCH($DF$12&"_"&DG$20,データシート1!$A$1:$BT$1,0),0) -> 0 | DH57: =VLOOKUP($AX57&"_"&$DF$14,データシート1!$A:$BT,MATCH($DF$12&"_"&DH$20,データシート1!$A$1:$BT$1,0),0) -> 1 | DI57: =VLOOKUP($AX57&"_"&$DF$14,データシート1!$A:$BT,MATCH($DF$12&"_"&DI$20,データシート1!$A$1:$BT$1,0),0) -> 39 | DJ57: =VLOOKUP($AX57&"_"&$DF$14,データシート1!$A:$BT,MATCH($DF$12&"_"&DJ$20,データシート1!$A$1:$BT$1,0),0) -> 4 | DK57: =VLOOKUP($AX57&"_"&$DF$14,データシート1!$A:$BT,MATCH($DF$12&"_"&DK$20,データシート1!$A$1:$BT$1,0),0) -> 0 | DL57: 129 | DN57: 58.0% | DO57: 0 | DP57: 1.0% | DQ57: 13.0% | DR57: 29.0% | DS57: 0
AX58: =比較地域マスタ!$Y43 -> 38 | AY58: =IF(IFERROR(比較地域マスタ!$Z43,"")=0,"",IFERROR(比較地域マスタ!$Z43,"")) -> 愛媛県 | BB58: 38 | BC58: 愛媛県 | BD58: 16,345 | BE58: 9,677 | BF58: =VLOOKUP($AX58&"_"&$BC$14,データシート1!$A:$BT,MATCH($BC$12&"_"&BF$20,データシート1!$A$1:$BT$1,0),0) -> 9,280 | BG58: =VLOOKUP($AX58&"_"&$BC$14,データシート1!$A:$BT,MATCH($BC$12&"_"&BG$20,データシート1!$A$1:$BT$1,0),0) -> 93 | BH58: =VLOOKUP($AX58&"_"&$BC$14,データシート1!$A:$BT,MATCH($BC$12&"_"&BH$20,データシート1!$A$1:$BT$1,0),0) -> 304 | BI58: =VLOOKUP($AX58&"_"&$BC$14,データシート1!$A:$BT,MATCH($BC$12&"_"&BI$20,データシート1!$A$1:$BT$1,0),0) -> 1,835 | BJ58: =VLOOKUP($AX58&"_"&$BC$14,データシート1!$A:$BT,MATCH($BC$12&"_"&BJ$20,データシート1!$A$1:$BT$1,0),0) -> 2,013 | BK58: 2,682 | BL58: 2,135 | BM58: =VLOOKUP($AX58&"_"&$BC$14,データシート1!$A:$BT,MATCH($BC$12&"_"&BM$20,データシート1!$A$1:$BT$1,0),0) -> 1,042 | BN58: =VLOOKUP($AX58&"_"&$BC$14,データシート1!$A:$BT,MATCH($BC$12&"_"&BN$20,データシート1!$A$1:$BT$1,0),0) -> 1,093 | BO58: =VLOOKUP($AX58&"_"&$BC$14,データシート1!$A:$BT,MATCH($BC$12&"_"&BO$20,データシート1!$A$1:$BT$1,0),0) -> 78 | BP58: =VLOOKUP($AX58&"_"&$BC$14,データシート1!$A:$BT,MATCH($BC$12&"_"&BP$20,データシート1!$A$1:$BT$1,0),0) -> 469 | BQ58: =VLOOKUP($AX58&"_"&$BC$14,データシート1!$A:$BT,MATCH($BC$12&"_"&BQ$20,データシート1!$A$1:$BT$1,0),0) -> 138 | BR58: 16,345 | BT58: 愛媛県 | BU58: 16,345 | BV58: 59% | BW58: 57% | BX58: 1% | BY58: 2% | BZ58: 11% | CA58: 12% | CB58: 16% | CC58: 13% | CD58: 6% | CE58: 7% | CF58: 0% | CG58: 3% | CH58: 1% | CI58: 100% | CK58: 愛媛県 | CL58: 9,677 | CM58: (98%) | CN58: 9,280 | CO58: (100%) | CP58: 93 | CQ58: 0 | CR58: 304 | CS58: (1%) | CT58: 1,835 | CU58: (26%) | CW58: 9469.034 | CX58: =VLOOKUP($AX58&"_"&$CW$14,データシート1!$A:$BT,MATCH($CW$12&"_"&CX$20,データシート1!$A$1:$BT$1,0),0) -> 9466.985 | CY58: =VLOOKUP($AX58&"_"&$CW$14,データシート1!$A:$BT,MATCH($CW$12&"_"&CY$20,データシート1!$A$1:$BT$1,0),0) -> 0 | CZ58: =VLOOKUP($AX58&"_"&$CW$14,データシート1!$A:$BT,MATCH($CW$12&"_"&CZ$20,データシート1!$A$1:$BT$1,0),0) -> 2.049 | DA58: =VLOOKUP($AX58&"_"&$CW$14,データシート1!$A:$BT,MATCH($CW$12&"_"&DA$20,データシート1!$A$1:$BT$1,0),0) -> 485.024 | DB58: =VLOOKUP($AX58&"_"&$CW$14,データシート1!$A:$BT,MATCH($CW$12&"_"&DB$20,データシート1!$A$1:$BT$1,0),0) -> 1524.038 | DC58: =VLOOKUP($AX58&"_"&$CW$14,データシート1!$A:$BT,MATCH($CW$12&"_"&DC$20,データシート1!$A$1:$BT$1,0),0) -> 0 | DD58: 11478.096 | DF58: =VLOOKUP($AX58&"_"&$DF$14,データシート1!$A:$BT,MATCH($DF$12&"_"&DF$20,データシート1!$A$1:$BT$1,0),0) -> 128 | DG58: =VLOOKUP($AX58&"_"&$DF$14,データシート1!$A:$BT,MATCH($DF$12&"_"&DG$20,データシート1!$A$1:$BT$1,0),0) -> 0 | DH58: =VLOOKUP($AX58&"_"&$DF$14,データシート1!$A:$BT,MATCH($DF$12&"_"&DH$20,データシート1!$A$1:$BT$1,0),0) -> 2 | DI58: =VLOOKUP($AX58&"_"&$DF$14,データシート1!$A:$BT,MATCH($DF$12&"_"&DI$20,データシート1!$A$1:$BT$1,0),0) -> 39 | DJ58: =VLOOKUP($AX58&"_"&$DF$14,データシート1!$A:$BT,MATCH($DF$12&"_"&DJ$20,データシート1!$A$1:$BT$1,0),0) -> 6 | DK58: =VLOOKUP($AX58&"_"&$DF$14,データシート1!$A:$BT,MATCH($DF$12&"_"&DK$20,データシート1!$A$1:$BT$1,0),0) -> 0 | DL58: 175 | DN58: 82.0% | DO58: 0 | DP58: 0 | DQ58: 4.0% | DR58: 13.0% | DS58: 0
AX59: =比較地域マスタ!$Y44 -> 39 | AY59: =IF(IFERROR(比較地域マスタ!$Z44,"")=0,"",IFERROR(比較地域マスタ!$Z44,"")) -> 高知県 | BB59: 39 | BC59: 高知県 | BD59: 5,412 | BE59: 2,109 | BF59: =VLOOKUP($AX59&"_"&$BC$14,データシート1!$A:$BT,MATCH($BC$12&"_"&BF$20,データシート1!$A$1:$BT$1,0),0) -> 1,693 | BG59: =VLOOKUP($AX59&"_"&$BC$14,データシート1!$A:$BT,MATCH($BC$12&"_"&BG$20,データシート1!$A$1:$BT$1,0),0) -> 94 | BH59: =VLOOKUP($AX59&"_"&$BC$14,データシート1!$A:$BT,MATCH($BC$12&"_"&BH$20,データシート1!$A$1:$BT$1,0),0) -> 321 | BI59: =VLOOKUP($AX59&"_"&$BC$14,データシート1!$A:$BT,MATCH($BC$12&"_"&BI$20,データシート1!$A$1:$BT$1,0),0) -> 1,061 | BJ59: =VLOOKUP($AX59&"_"&$BC$14,データシート1!$A:$BT,MATCH($BC$12&"_"&BJ$20,データシート1!$A$1:$BT$1,0),0) -> 857 | BK59: 1,306 | BL59: 1,204 | BM59: =VLOOKUP($AX59&"_"&$BC$14,データシート1!$A:$BT,MATCH($BC$12&"_"&BM$20,データシート1!$A$1:$BT$1,0),0) -> 557 | BN59: =VLOOKUP($AX59&"_"&$BC$14,データシート1!$A:$BT,MATCH($BC$12&"_"&BN$20,データシート1!$A$1:$BT$1,0),0) -> 647 | BO59: =VLOOKUP($AX59&"_"&$BC$14,データシート1!$A:$BT,MATCH($BC$12&"_"&BO$20,データシート1!$A$1:$BT$1,0),0) -> 40 | BP59: =VLOOKUP($AX59&"_"&$BC$14,データシート1!$A:$BT,MATCH($BC$12&"_"&BP$20,データシート1!$A$1:$BT$1,0),0) -> 62 | BQ59: =VLOOKUP($AX59&"_"&$BC$14,データシート1!$A:$BT,MATCH($BC$12&"_"&BQ$20,データシート1!$A$1:$BT$1,0),0) -> 79 | BR59: 5,412 | BT59: 高知県 | BU59: 5,412 | BV59: 39% | BW59: 31% | BX59: 2% | BY59: 6% | BZ59: 20% | CA59: 16% | CB59: 24% | CC59: 22% | CD59: 10% | CE59: 12% | CF59: 1% | CG59: 1% | CH59: 1% | CI59: 100% | CK59: 高知県 | CL59: 2,109 | CM59: (100%) | CN59: 1,693 | CO59: (100%) | CP59: 94 | CQ59: (42%) | CR59: 321 | CS59: 0 | CT59: 1,061 | CU59: (13%) | CW59: 3478.6 | CX59: =VLOOKUP($AX59&"_"&$CW$14,データシート1!$A:$BT,MATCH($CW$12&"_"&CX$20,データシート1!$A$1:$BT$1,0),0) -> 3439.031 | CY59: =VLOOKUP($AX59&"_"&$CW$14,データシート1!$A:$BT,MATCH($CW$12&"_"&CY$20,データシート1!$A$1:$BT$1,0),0) -> 39.569 | CZ59: =VLOOKUP($AX59&"_"&$CW$14,データシート1!$A:$BT,MATCH($CW$12&"_"&CZ$20,データシート1!$A$1:$BT$1,0),0) -> 0 | DA59: =VLOOKUP($AX59&"_"&$CW$14,データシート1!$A:$BT,MATCH($CW$12&"_"&DA$20,データシート1!$A$1:$BT$1,0),0) -> 134.217 | DB59: =VLOOKUP($AX59&"_"&$CW$14,データシート1!$A:$BT,MATCH($CW$12&"_"&DB$20,データシート1!$A$1:$BT$1,0),0) -> 82.42 | DC59: =VLOOKUP($AX59&"_"&$CW$14,データシート1!$A:$BT,MATCH($CW$12&"_"&DC$20,データシート1!$A$1:$BT$1,0),0) -> 0 | DD59: 3695.237 | DF59: =VLOOKUP($AX59&"_"&$DF$14,データシート1!$A:$BT,MATCH($DF$12&"_"&DF$20,データシート1!$A$1:$BT$1,0),0) -> 31 | DG59: =VLOOKUP($AX59&"_"&$DF$14,データシート1!$A:$BT,MATCH($DF$12&"_"&DG$20,データシート1!$A$1:$BT$1,0),0) -> 2 | DH59: =VLOOKUP($AX59&"_"&$DF$14,データシート1!$A:$BT,MATCH($DF$12&"_"&DH$20,データシート1!$A$1:$BT$1,0),0) -> 0 | DI59: =VLOOKUP($AX59&"_"&$DF$14,データシート1!$A:$BT,MATCH($DF$12&"_"&DI$20,データシート1!$A$1:$BT$1,0),0) -> 18 | DJ59: =VLOOKUP($AX59&"_"&$DF$14,データシート1!$A:$BT,MATCH($DF$12&"_"&DJ$20,データシート1!$A$1:$BT$1,0),0) -> 1 | DK59: =VLOOKUP($AX59&"_"&$DF$14,データシート1!$A:$BT,MATCH($DF$12&"_"&DK$20,データシート1!$A$1:$BT$1,0),0) -> 0 | DL59: 52 | DN59: 93.0% | DO59: 1.0% | DP59: 0 | DQ59: 4.0% | DR59: 2.0% | DS59: 0
AX60: =比較地域マスタ!$Y45 -> 40 | AY60: =IF(IFERROR(比較地域マスタ!$Z45,"")=0,"",IFERROR(比較地域マスタ!$Z45,"")) -> 福岡県 | BB60: 40 | BC60: 福岡県 | BD60: 34,822 | BE60: 15,966 | BF60: =VLOOKUP($AX60&"_"&$BC$14,データシート1!$A:$BT,MATCH($BC$12&"_"&BF$20,データシート1!$A$1:$BT$1,0),0) -> 15,347 | BG60: =VLOOKUP($AX60&"_"&$BC$14,データシート1!$A:$BT,MATCH($BC$12&"_"&BG$20,データシート1!$A$1:$BT$1,0),0) -> 318 | BH60: =VLOOKUP($AX60&"_"&$BC$14,データシート1!$A:$BT,MATCH($BC$12&"_"&BH$20,データシート1!$A$1:$BT$1,0),0) -> 302 | BI60: =VLOOKUP($AX60&"_"&$BC$14,データシート1!$A:$BT,MATCH($BC$12&"_"&BI$20,データシート1!$A$1:$BT$1,0),0) -> 6,368 | BJ60: =VLOOKUP($AX60&"_"&$BC$14,データシート1!$A:$BT,MATCH($BC$12&"_"&BJ$20,データシート1!$A$1:$BT$1,0),0) -> 4,506 | BK60: 7,446 | BL60: 6,636 | BM60: =VLOOKUP($AX60&"_"&$BC$14,データシート1!$A:$BT,MATCH($BC$12&"_"&BM$20,データシート1!$A$1:$BT$1,0),0) -> 3,703 | BN60: =VLOOKUP($AX60&"_"&$BC$14,データシート1!$A:$BT,MATCH($BC$12&"_"&BN$20,データシート1!$A$1:$BT$1,0),0) -> 2,933 | BO60: =VLOOKUP($AX60&"_"&$BC$14,データシート1!$A:$BT,MATCH($BC$12&"_"&BO$20,データシート1!$A$1:$BT$1,0),0) -> 298 | BP60: =VLOOKUP($AX60&"_"&$BC$14,データシート1!$A:$BT,MATCH($BC$12&"_"&BP$20,データシート1!$A$1:$BT$1,0),0) -> 512 | BQ60: =VLOOKUP($AX60&"_"&$BC$14,データシート1!$A:$BT,MATCH($BC$12&"_"&BQ$20,データシート1!$A$1:$BT$1,0),0) -> 536 | BR60: 34,822 | BT60: 福岡県 | BU60: 34,822 | BV60: 46% | BW60: 44% | BX60: 1% | BY60: 1% | BZ60: 18% | CA60: 13% | CB60: 21% | CC60: 19% | CD60: 11% | CE60: 8% | CF60: 1% | CG60: 1% | CH60: 2% | CI60: 100% | CK60: 福岡県 | CL60: 15,966 | CM60: (100%) | CN60: 15,347 | CO60: (100%) | CP60: 318 | CQ60: (10%) | CR60: 302 | CS60: (9%) | CT60: 6,368 | CU60: (23%) | CW60: 23369.231 | CX60: =VLOOKUP($AX60&"_"&$CW$14,データシート1!$A:$BT,MATCH($CW$12&"_"&CX$20,データシート1!$A$1:$BT$1,0),0) -> 23309.706 | CY60: =VLOOKUP($AX60&"_"&$CW$14,データシート1!$A:$BT,MATCH($CW$12&"_"&CY$20,データシート1!$A$1:$BT$1,0),0) -> 32.551 | CZ60: =VLOOKUP($AX60&"_"&$CW$14,データシート1!$A:$BT,MATCH($CW$12&"_"&CZ$20,データシート1!$A$1:$BT$1,0),0) -> 26.974 | DA60: =VLOOKUP($AX60&"_"&$CW$14,データシート1!$A:$BT,MATCH($CW$12&"_"&DA$20,データシート1!$A$1:$BT$1,0),0) -> 1487.38 | DB60: =VLOOKUP($AX60&"_"&$CW$14,データシート1!$A:$BT,MATCH($CW$12&"_"&DB$20,データシート1!$A$1:$BT$1,0),0) -> 910.679 | DC60: =VLOOKUP($AX60&"_"&$CW$14,データシート1!$A:$BT,MATCH($CW$12&"_"&DC$20,データシート1!$A$1:$BT$1,0),0) -> 0 | DD60: 25767.29 | DF60: =VLOOKUP($AX60&"_"&$DF$14,データシート1!$A:$BT,MATCH($DF$12&"_"&DF$20,データシート1!$A$1:$BT$1,0),0) -> 275 | DG60: =VLOOKUP($AX60&"_"&$DF$14,データシート1!$A:$BT,MATCH($DF$12&"_"&DG$20,データシート1!$A$1:$BT$1,0),0) -> 3 | DH60: =VLOOKUP($AX60&"_"&$DF$14,データシート1!$A:$BT,MATCH($DF$12&"_"&DH$20,データシート1!$A$1:$BT$1,0),0) -> 4 | DI60: =VLOOKUP($AX60&"_"&$DF$14,データシート1!$A:$BT,MATCH($DF$12&"_"&DI$20,データシート1!$A$1:$BT$1,0),0) -> 191 | DJ60: =VLOOKUP($AX60&"_"&$DF$14,データシート1!$A:$BT,MATCH($DF$12&"_"&DJ$20,データシート1!$A$1:$BT$1,0),0) -> 18 | DK60: =VLOOKUP($AX60&"_"&$DF$14,データシート1!$A:$BT,MATCH($DF$12&"_"&DK$20,データシート1!$A$1:$BT$1,0),0) -> 0 | DL60: 491 | DN60: 90.0% | DO60: 0 | DP60: 0 | DQ60: 6.0% | DR60: 4.0% | DS60: 0
AX61: =比較地域マスタ!$Y46 -> 41 | AY61: =IF(IFERROR(比較地域マスタ!$Z46,"")=0,"",IFERROR(比較地域マスタ!$Z46,"")) -> 佐賀県 | BB61: 41 | BC61: 佐賀県 | BD61: 4,491 | BE61: 1,263 | BF61: =VLOOKUP($AX61&"_"&$BC$14,データシート1!$A:$BT,MATCH($BC$12&"_"&BF$20,データシート1!$A$1:$BT$1,0),0) -> 1,042 | BG61: =VLOOKUP($AX61&"_"&$BC$14,データシート1!$A:$BT,MATCH($BC$12&"_"&BG$20,データシート1!$A$1:$BT$1,0),0) -> 52 | BH61: =VLOOKUP($AX61&"_"&$BC$14,データシート1!$A:$BT,MATCH($BC$12&"_"&BH$20,データシート1!$A$1:$BT$1,0),0) -> 168 | BI61: =VLOOKUP($AX61&"_"&$BC$14,データシート1!$A:$BT,MATCH($BC$12&"_"&BI$20,データシート1!$A$1:$BT$1,0),0) -> 876 | BJ61: =VLOOKUP($AX61&"_"&$BC$14,データシート1!$A:$BT,MATCH($BC$12&"_"&BJ$20,データシート1!$A$1:$BT$1,0),0) -> 781 | BK61: 1,477 | BL61: 1,403 | BM61: =VLOOKUP($AX61&"_"&$BC$14,データシート1!$A:$BT,MATCH($BC$12&"_"&BM$20,データシート1!$A$1:$BT$1,0),0) -> 718 | BN61: =VLOOKUP($AX61&"_"&$BC$14,データシート1!$A:$BT,MATCH($BC$12&"_"&BN$20,データシート1!$A$1:$BT$1,0),0) -> 685 | BO61: =VLOOKUP($AX61&"_"&$BC$14,データシート1!$A:$BT,MATCH($BC$12&"_"&BO$20,データシート1!$A$1:$BT$1,0),0) -> 47 | BP61: =VLOOKUP($AX61&"_"&$BC$14,データシート1!$A:$BT,MATCH($BC$12&"_"&BP$20,データシート1!$A$1:$BT$1,0),0) -> 26 | BQ61: =VLOOKUP($AX61&"_"&$BC$14,データシート1!$A:$BT,MATCH($BC$12&"_"&BQ$20,データシート1!$A$1:$BT$1,0),0) -> 94 | BR61: 4,491 | BT61: 佐賀県 | BU61: 4,491 | BV61: 28% | BW61: 23% | BX61: 1% | BY61: 4% | BZ61: 20% | CA61: 17% | CB61: 33% | CC61: 31% | CD61: 16% | CE61: 15% | CF61: 1% | CG61: 1% | CH61: 2% | CI61: 100% | CK61: 佐賀県 | CL61: 1,263 | CM61: (100%) | CN61: 1,042 | CO61: (100%) | CP61: 52 | CQ61: 0 | CR61: 168 | CS61: (3%) | CT61: 876 | CU61: (20%) | CW61: 1348.724 | CX61: =VLOOKUP($AX61&"_"&$CW$14,データシート1!$A:$BT,MATCH($CW$12&"_"&CX$20,データシート1!$A$1:$BT$1,0),0) -> 1343.893 | CY61: =VLOOKUP($AX61&"_"&$CW$14,データシート1!$A:$BT,MATCH($CW$12&"_"&CY$20,データシート1!$A$1:$BT$1,0),0) -> 0 | CZ61: =VLOOKUP($AX61&"_"&$CW$14,データシート1!$A:$BT,MATCH($CW$12&"_"&CZ$20,データシート1!$A$1:$BT$1,0),0) -> 4.831 | DA61: =VLOOKUP($AX61&"_"&$CW$14,データシート1!$A:$BT,MATCH($CW$12&"_"&DA$20,データシート1!$A$1:$BT$1,0),0) -> 171.578 | DB61: =VLOOKUP($AX61&"_"&$CW$14,データシート1!$A:$BT,MATCH($CW$12&"_"&DB$20,データシート1!$A$1:$BT$1,0),0) -> 14.533 | DC61: =VLOOKUP($AX61&"_"&$CW$14,データシート1!$A:$BT,MATCH($CW$12&"_"&DC$20,データシート1!$A$1:$BT$1,0),0) -> 0 | DD61: 1534.835 | DF61: =VLOOKUP($AX61&"_"&$DF$14,データシート1!$A:$BT,MATCH($DF$12&"_"&DF$20,データシート1!$A$1:$BT$1,0),0) -> 83 | DG61: =VLOOKUP($AX61&"_"&$DF$14,データシート1!$A:$BT,MATCH($DF$12&"_"&DG$20,データシート1!$A$1:$BT$1,0),0) -> 0 | DH61: =VLOOKUP($AX61&"_"&$DF$14,データシート1!$A:$BT,MATCH($DF$12&"_"&DH$20,データシート1!$A$1:$BT$1,0),0) -> 1 | DI61: =VLOOKUP($AX61&"_"&$DF$14,データシート1!$A:$BT,MATCH($DF$12&"_"&DI$20,データシート1!$A$1:$BT$1,0),0) -> 25 | DJ61: =VLOOKUP($AX61&"_"&$DF$14,データシート1!$A:$BT,MATCH($DF$12&"_"&DJ$20,データシート1!$A$1:$BT$1,0),0) -> 1 | DK61: =VLOOKUP($AX61&"_"&$DF$14,データシート1!$A:$BT,MATCH($DF$12&"_"&DK$20,データシート1!$A$1:$BT$1,0),0) -> 0 | DL61: 110 | DN61: 88.0% | DO61: 0 | DP61: 0 | DQ61: 11.0% | DR61: 1.0% | DS61: 0
AX62: =比較地域マスタ!$Y47 -> 42 | AY62: =IF(IFERROR(比較地域マスタ!$Z47,"")=0,"",IFERROR(比較地域マスタ!$Z47,"")) -> 長崎県 | BB62: 42 | BC62: 長崎県 | BD62: 6,506 | BE62: 1,409 | BF62: =VLOOKUP($AX62&"_"&$BC$14,データシート1!$A:$BT,MATCH($BC$12&"_"&BF$20,データシート1!$A$1:$BT$1,0),0) -> 714 | BG62: =VLOOKUP($AX62&"_"&$BC$14,データシート1!$A:$BT,MATCH($BC$12&"_"&BG$20,データシート1!$A$1:$BT$1,0),0) -> 86 | BH62: =VLOOKUP($AX62&"_"&$BC$14,データシート1!$A:$BT,MATCH($BC$12&"_"&BH$20,データシート1!$A$1:$BT$1,0),0) -> 608 | BI62: =VLOOKUP($AX62&"_"&$BC$14,データシート1!$A:$BT,MATCH($BC$12&"_"&BI$20,データシート1!$A$1:$BT$1,0),0) -> 1,432 | BJ62: =VLOOKUP($AX62&"_"&$BC$14,データシート1!$A:$BT,MATCH($BC$12&"_"&BJ$20,データシート1!$A$1:$BT$1,0),0) -> 1,215 | BK62: 2,311 | BL62: 1,911 | BM62: =VLOOKUP($AX62&"_"&$BC$14,データシート1!$A:$BT,MATCH($BC$12&"_"&BM$20,データシート1!$A$1:$BT$1,0),0) -> 980 | BN62: =VLOOKUP($AX62&"_"&$BC$14,データシート1!$A:$BT,MATCH($BC$12&"_"&BN$20,データシート1!$A$1:$BT$1,0),0) -> 932 | BO62: =VLOOKUP($AX62&"_"&$BC$14,データシート1!$A:$BT,MATCH($BC$12&"_"&BO$20,データシート1!$A$1:$BT$1,0),0) -> 77 | BP62: =VLOOKUP($AX62&"_"&$BC$14,データシート1!$A:$BT,MATCH($BC$12&"_"&BP$20,データシート1!$A$1:$BT$1,0),0) -> 322 | BQ62: =VLOOKUP($AX62&"_"&$BC$14,データシート1!$A:$BT,MATCH($BC$12&"_"&BQ$20,データシート1!$A$1:$BT$1,0),0) -> 140 | BR62: 6,506 | BT62: 長崎県 | BU62: 6,506 | BV62: 22% | BW62: 11% | BX62: 1% | BY62: 9% | BZ62: 22% | CA62: 19% | CB62: 36% | CC62: 29% | CD62: 15% | CE62: 14% | CF62: 1% | CG62: 5% | CH62: 2% | CI62: 100% | CK62: 長崎県 | CL62: 1,409 | CM62: (60%) | CN62: 714 | CO62: (100%) | CP62: 86 | CQ62: 0 | CR62: 608 | CS62: 0 | CT62: 1,432 | CU62: (13%) | CW62: 851.986 | CX62: =VLOOKUP($AX62&"_"&$CW$14,データシート1!$A:$BT,MATCH($CW$12&"_"&CX$20,データシート1!$A$1:$BT$1,0),0) -> 851.986 | CY62: =VLOOKUP($AX62&"_"&$CW$14,データシート1!$A:$BT,MATCH($CW$12&"_"&CY$20,データシート1!$A$1:$BT$1,0),0) -> 0 | CZ62: =VLOOKUP($AX62&"_"&$CW$14,データシート1!$A:$BT,MATCH($CW$12&"_"&CZ$20,データシート1!$A$1:$BT$1,0),0) -> 0 | DA62: =VLOOKUP($AX62&"_"&$CW$14,データシート1!$A:$BT,MATCH($CW$12&"_"&DA$20,データシート1!$A$1:$BT$1,0),0) -> 180.632 | DB62: =VLOOKUP($AX62&"_"&$CW$14,データシート1!$A:$BT,MATCH($CW$12&"_"&DB$20,データシート1!$A$1:$BT$1,0),0) -> 1126.313 | DC62: =VLOOKUP($AX62&"_"&$CW$14,データシート1!$A:$BT,MATCH($CW$12&"_"&DC$20,データシート1!$A$1:$BT$1,0),0) -> 0 | DD62: 2158.931 | DF62: =VLOOKUP($AX62&"_"&$DF$14,データシート1!$A:$BT,MATCH($DF$12&"_"&DF$20,データシート1!$A$1:$BT$1,0),0) -> 37 | DG62: =VLOOKUP($AX62&"_"&$DF$14,データシート1!$A:$BT,MATCH($DF$12&"_"&DG$20,データシート1!$A$1:$BT$1,0),0) -> 0 | DH62: =VLOOKUP($AX62&"_"&$DF$14,データシート1!$A:$BT,MATCH($DF$12&"_"&DH$20,データシート1!$A$1:$BT$1,0),0) -> 0 | DI62: =VLOOKUP($AX62&"_"&$DF$14,データシート1!$A:$BT,MATCH($DF$12&"_"&DI$20,データシート1!$A$1:$BT$1,0),0) -> 32 | DJ62: =VLOOKUP($AX62&"_"&$DF$14,データシート1!$A:$BT,MATCH($DF$12&"_"&DJ$20,データシート1!$A$1:$BT$1,0),0) -> 7 | DK62: =VLOOKUP($AX62&"_"&$DF$14,データシート1!$A:$BT,MATCH($DF$12&"_"&DK$20,データシート1!$A$1:$BT$1,0),0) -> 0 | DL62: 76 | DN62: 39.0% | DO62: 0 | DP62: 0 | DQ62: 8.0% | DR62: 52.0% | DS62: 0
AX63: =比較地域マスタ!$Y48 -> 43 | AY63: =IF(IFERROR(比較地域マスタ!$Z48,"")=0,"",IFERROR(比較地域マスタ!$Z48,"")) -> 熊本県 | BB63: 43 | BC63: 熊本県 | BD63: 9,153 | BE63: 2,533 | BF63: =VLOOKUP($AX63&"_"&$BC$14,データシート1!$A:$BT,MATCH($BC$12&"_"&BF$20,データシート1!$A$1:$BT$1,0),0) -> 2,094 | BG63: =VLOOKUP($AX63&"_"&$BC$14,データシート1!$A:$BT,MATCH($BC$12&"_"&BG$20,データシート1!$A$1:$BT$1,0),0) -> 107 | BH63: =VLOOKUP($AX63&"_"&$BC$14,データシート1!$A:$BT,MATCH($BC$12&"_"&BH$20,データシート1!$A$1:$BT$1,0),0) -> 331 | BI63: =VLOOKUP($AX63&"_"&$BC$14,データシート1!$A:$BT,MATCH($BC$12&"_"&BI$20,データシート1!$A$1:$BT$1,0),0) -> 1,866 | BJ63: =VLOOKUP($AX63&"_"&$BC$14,データシート1!$A:$BT,MATCH($BC$12&"_"&BJ$20,データシート1!$A$1:$BT$1,0),0) -> 1,457 | BK63: 3,110 | BL63: 2,886 | BM63: =VLOOKUP($AX63&"_"&$BC$14,データシート1!$A:$BT,MATCH($BC$12&"_"&BM$20,データシート1!$A$1:$BT$1,0),0) -> 1,458 | BN63: =VLOOKUP($AX63&"_"&$BC$14,データシート1!$A:$BT,MATCH($BC$12&"_"&BN$20,データシート1!$A$1:$BT$1,0),0) -> 1,429 | BO63: =VLOOKUP($AX63&"_"&$BC$14,データシート1!$A:$BT,MATCH($BC$12&"_"&BO$20,データシート1!$A$1:$BT$1,0),0) -> 102 | BP63: =VLOOKUP($AX63&"_"&$BC$14,データシート1!$A:$BT,MATCH($BC$12&"_"&BP$20,データシート1!$A$1:$BT$1,0),0) -> 122 | BQ63: =VLOOKUP($AX63&"_"&$BC$14,データシート1!$A:$BT,MATCH($BC$12&"_"&BQ$20,データシート1!$A$1:$BT$1,0),0) -> 187 | BR63: 9,153 | BT63: 熊本県 | BU63: 9,153 | BV63: 28% | BW63: 23% | BX63: 1% | BY63: 4% | BZ63: 20% | CA63: 16% | CB63: 34% | CC63: 32% | CD63: 16% | CE63: 16% | CF63: 1% | CG63: 1% | CH63: 2% | CI63: 100% | CK63: 熊本県 | CL63: 2,533 | CM63: (92%) | CN63: 2,094 | CO63: (100%) | CP63: 107 | CQ63: 0 | CR63: 331 | CS63: 0 | CT63: 1,866 | CU63: (15%) | CW63: 2341.322 | CX63: =VLOOKUP($AX63&"_"&$CW$14,データシート1!$A:$BT,MATCH($CW$12&"_"&CX$20,データシート1!$A$1:$BT$1,0),0) -> 2341.322 | CY63: =VLOOKUP($AX63&"_"&$CW$14,データシート1!$A:$BT,MATCH($CW$12&"_"&CY$20,データシート1!$A$1:$BT$1,0),0) -> 0 | CZ63: =VLOOKUP($AX63&"_"&$CW$14,データシート1!$A:$BT,MATCH($CW$12&"_"&CZ$20,データシート1!$A$1:$BT$1,0),0) -> 0 | DA63: =VLOOKUP($AX63&"_"&$CW$14,データシート1!$A:$BT,MATCH($CW$12&"_"&DA$20,データシート1!$A$1:$BT$1,0),0) -> 278.628 | DB63: =VLOOKUP($AX63&"_"&$CW$14,データシート1!$A:$BT,MATCH($CW$12&"_"&DB$20,データシート1!$A$1:$BT$1,0),0) -> 370.485 | DC63: =VLOOKUP($AX63&"_"&$CW$14,データシート1!$A:$BT,MATCH($CW$12&"_"&DC$20,データシート1!$A$1:$BT$1,0),0) -> 0 | DD63: 2990.435 | DF63: =VLOOKUP($AX63&"_"&$DF$14,データシート1!$A:$BT,MATCH($DF$12&"_"&DF$20,データシート1!$A$1:$BT$1,0),0) -> 118 | DG63: =VLOOKUP($AX63&"_"&$DF$14,データシート1!$A:$BT,MATCH($DF$12&"_"&DG$20,データシート1!$A$1:$BT$1,0),0) -> 0 | DH63: =VLOOKUP($AX63&"_"&$DF$14,データシート1!$A:$BT,MATCH($DF$12&"_"&DH$20,データシート1!$A$1:$BT$1,0),0) -> 0 | DI63: =VLOOKUP($AX63&"_"&$DF$14,データシート1!$A:$BT,MATCH($DF$12&"_"&DI$20,データシート1!$A$1:$BT$1,0),0) -> 51 | DJ63: =VLOOKUP($AX63&"_"&$DF$14,データシート1!$A:$BT,MATCH($DF$12&"_"&DJ$20,データシート1!$A$1:$BT$1,0),0) -> 2 | DK63: =VLOOKUP($AX63&"_"&$DF$14,データシート1!$A:$BT,MATCH($DF$12&"_"&DK$20,データシート1!$A$1:$BT$1,0),0) -> 0 | DL63: 171 | DN63: 78.0% | DO63: 0 | DP63: 0 | DQ63: 9.0% | DR63: 12.0% | DS63: 0
AX64: =比較地域マスタ!$Y49 -> 44 | AY64: =IF(IFERROR(比較地域マスタ!$Z49,"")=0,"",IFERROR(比較地域マスタ!$Z49,"")) -> 大分県 | BB64: 44 | BC64: 大分県 | BD64: 25,996 | BE64: 20,951 | BF64: =VLOOKUP($AX64&"_"&$BC$14,データシート1!$A:$BT,MATCH($BC$12&"_"&BF$20,データシート1!$A$1:$BT$1,0),0) -> 20,456 | BG64: =VLOOKUP($AX64&"_"&$BC$14,データシート1!$A:$BT,MATCH($BC$12&"_"&BG$20,データシート1!$A$1:$BT$1,0),0) -> 150 | BH64: =VLOOKUP($AX64&"_"&$BC$14,データシート1!$A:$BT,MATCH($BC$12&"_"&BH$20,データシート1!$A$1:$BT$1,0),0) -> 345 | BI64: =VLOOKUP($AX64&"_"&$BC$14,データシート1!$A:$BT,MATCH($BC$12&"_"&BI$20,データシート1!$A$1:$BT$1,0),0) -> 1,436 | BJ64: =VLOOKUP($AX64&"_"&$BC$14,データシート1!$A:$BT,MATCH($BC$12&"_"&BJ$20,データシート1!$A$1:$BT$1,0),0) -> 1,115 | BK64: 2,335 | BL64: 1,885 | BM64: =VLOOKUP($AX64&"_"&$BC$14,データシート1!$A:$BT,MATCH($BC$12&"_"&BM$20,データシート1!$A$1:$BT$1,0),0) -> 968 | BN64: =VLOOKUP($AX64&"_"&$BC$14,データシート1!$A:$BT,MATCH($BC$12&"_"&BN$20,データシート1!$A$1:$BT$1,0),0) -> 917 | BO64: =VLOOKUP($AX64&"_"&$BC$14,データシート1!$A:$BT,MATCH($BC$12&"_"&BO$20,データシート1!$A$1:$BT$1,0),0) -> 66 | BP64: =VLOOKUP($AX64&"_"&$BC$14,データシート1!$A:$BT,MATCH($BC$12&"_"&BP$20,データシート1!$A$1:$BT$1,0),0) -> 383 | BQ64: =VLOOKUP($AX64&"_"&$BC$14,データシート1!$A:$BT,MATCH($BC$12&"_"&BQ$20,データシート1!$A$1:$BT$1,0),0) -> 159 | BR64: 25,996 | BT64: 大分県 | BU64: 25,996 | BV64: 81% | BW64: 79% | BX64: 1% | BY64: 1% | BZ64: 6% | CA64: 4% | CB64: 9% | CC64: 7% | CD64: 4% | CE64: 4% | CF64: 0% | CG64: 1% | CH64: 1% | CI64: 100% | CK64: 大分県 | CL64: 20,951 | CM64: (100%) | CN64: 20,456 | CO64: (100%) | CP64: 150 | CQ64: (49%) | CR64: 345 | CS64: (7%) | CT64: 1,436 | CU64: (17%) | CW64: 22894.85 | CX64: =VLOOKUP($AX64&"_"&$CW$14,データシート1!$A:$BT,MATCH($CW$12&"_"&CX$20,データシート1!$A$1:$BT$1,0),0) -> 22798.629 | CY64: =VLOOKUP($AX64&"_"&$CW$14,データシート1!$A:$BT,MATCH($CW$12&"_"&CY$20,データシート1!$A$1:$BT$1,0),0) -> 73.715 | CZ64: =VLOOKUP($AX64&"_"&$CW$14,データシート1!$A:$BT,MATCH($CW$12&"_"&CZ$20,データシート1!$A$1:$BT$1,0),0) -> 22.506 | DA64: =VLOOKUP($AX64&"_"&$CW$14,データシート1!$A:$BT,MATCH($CW$12&"_"&DA$20,データシート1!$A$1:$BT$1,0),0) -> 245.927 | DB64: =VLOOKUP($AX64&"_"&$CW$14,データシート1!$A:$BT,MATCH($CW$12&"_"&DB$20,データシート1!$A$1:$BT$1,0),0) -> 1411.95 | DC64: =VLOOKUP($AX64&"_"&$CW$14,データシート1!$A:$BT,MATCH($CW$12&"_"&DC$20,データシート1!$A$1:$BT$1,0),0) -> 0 | DD64: 24552.727 | DF64: =VLOOKUP($AX64&"_"&$DF$14,データシート1!$A:$BT,MATCH($DF$12&"_"&DF$20,データシート1!$A$1:$BT$1,0),0) -> 95 | DG64: =VLOOKUP($AX64&"_"&$DF$14,データシート1!$A:$BT,MATCH($DF$12&"_"&DG$20,データシート1!$A$1:$BT$1,0),0) -> 4 | DH64: =VLOOKUP($AX64&"_"&$DF$14,データシート1!$A:$BT,MATCH($DF$12&"_"&DH$20,データシート1!$A$1:$BT$1,0),0) -> 1 | DI64: =VLOOKUP($AX64&"_"&$DF$14,データシート1!$A:$BT,MATCH($DF$12&"_"&DI$20,データシート1!$A$1:$BT$1,0),0) -> 30 | DJ64: =VLOOKUP($AX64&"_"&$DF$14,データシート1!$A:$BT,MATCH($DF$12&"_"&DJ$20,データシート1!$A$1:$BT$1,0),0) -> 6 | DK64: =VLOOKUP($AX64&"_"&$DF$14,データシート1!$A:$BT,MATCH($DF$12&"_"&DK$20,データシート1!$A$1:$BT$1,0),0) -> 0 | DL64: 136 | DN64: 93.0% | DO64: 0 | DP64: 0 | DQ64: 1.0% | DR64: 6.0% | DS64: 0
AX65: =比較地域マスタ!$Y50 -> 45 | AY65: =IF(IFERROR(比較地域マスタ!$Z50,"")=0,"",IFERROR(比較地域マスタ!$Z50,"")) -> 宮崎県 | BB65: 45 | BC65: 宮崎県 | BD65: 7,211 | BE65: 2,756 | BF65: =VLOOKUP($AX65&"_"&$BC$14,データシート1!$A:$BT,MATCH($BC$12&"_"&BF$20,データシート1!$A$1:$BT$1,0),0) -> 2,153 | BG65: =VLOOKUP($AX65&"_"&$BC$14,データシート1!$A:$BT,MATCH($BC$12&"_"&BG$20,データシート1!$A$1:$BT$1,0),0) -> 66 | BH65: =VLOOKUP($AX65&"_"&$BC$14,データシート1!$A:$BT,MATCH($BC$12&"_"&BH$20,データシート1!$A$1:$BT$1,0),0) -> 537 | BI65: =VLOOKUP($AX65&"_"&$BC$14,データシート1!$A:$BT,MATCH($BC$12&"_"&BI$20,データシート1!$A$1:$BT$1,0),0) -> 1,274 | BJ65: =VLOOKUP($AX65&"_"&$BC$14,データシート1!$A:$BT,MATCH($BC$12&"_"&BJ$20,データシート1!$A$1:$BT$1,0),0) -> 949 | BK65: 2,123 | BL65: 1,999 | BM65: =VLOOKUP($AX65&"_"&$BC$14,データシート1!$A:$BT,MATCH($BC$12&"_"&BM$20,データシート1!$A$1:$BT$1,0),0) -> 951 | BN65: =VLOOKUP($AX65&"_"&$BC$14,データシート1!$A:$BT,MATCH($BC$12&"_"&BN$20,データシート1!$A$1:$BT$1,0),0) -> 1,048 | BO65: =VLOOKUP($AX65&"_"&$BC$14,データシート1!$A:$BT,MATCH($BC$12&"_"&BO$20,データシート1!$A$1:$BT$1,0),0) -> 63 | BP65: =VLOOKUP($AX65&"_"&$BC$14,データシート1!$A:$BT,MATCH($BC$12&"_"&BP$20,データシート1!$A$1:$BT$1,0),0) -> 60 | BQ65: =VLOOKUP($AX65&"_"&$BC$14,データシート1!$A:$BT,MATCH($BC$12&"_"&BQ$20,データシート1!$A$1:$BT$1,0),0) -> 109 | BR65: 7,211 | BT65: 宮崎県 | BU65: 7,211 | BV65: 38% | BW65: 30% | BX65: 1% | BY65: 7% | BZ65: 18% | CA65: 13% | CB65: 29% | CC65: 28% | CD65: 13% | CE65: 15% | CF65: 1% | CG65: 1% | CH65: 2% | CI65: 100% | CK65: 宮崎県 | CL65: 2,756 | CM65: (76%) | CN65: 2,153 | CO65: (97%) | CP65: 66 | CQ65: 0 | CR65: 537 | CS65: (1%) | CT65: 1,274 | CU65: (10%) | CW65: 2088.481 | CX65: =VLOOKUP($AX65&"_"&$CW$14,データシート1!$A:$BT,MATCH($CW$12&"_"&CX$20,データシート1!$A$1:$BT$1,0),0) -> 2080.805 | CY65: =VLOOKUP($AX65&"_"&$CW$14,データシート1!$A:$BT,MATCH($CW$12&"_"&CY$20,データシート1!$A$1:$BT$1,0),0) -> 0 | CZ65: =VLOOKUP($AX65&"_"&$CW$14,データシート1!$A:$BT,MATCH($CW$12&"_"&CZ$20,データシート1!$A$1:$BT$1,0),0) -> 7.676 | DA65: =VLOOKUP($AX65&"_"&$CW$14,データシート1!$A:$BT,MATCH($CW$12&"_"&DA$20,データシート1!$A$1:$BT$1,0),0) -> 126.742 | DB65: =VLOOKUP($AX65&"_"&$CW$14,データシート1!$A:$BT,MATCH($CW$12&"_"&DB$20,データシート1!$A$1:$BT$1,0),0) -> 1.688 | DC65: =VLOOKUP($AX65&"_"&$CW$14,データシート1!$A:$BT,MATCH($CW$12&"_"&DC$20,データシート1!$A$1:$BT$1,0),0) -> 0 | DD65: 2216.911 | DF65: =VLOOKUP($AX65&"_"&$DF$14,データシート1!$A:$BT,MATCH($DF$12&"_"&DF$20,データシート1!$A$1:$BT$1,0),0) -> 76 | DG65: =VLOOKUP($AX65&"_"&$DF$14,データシート1!$A:$BT,MATCH($DF$12&"_"&DG$20,データシート1!$A$1:$BT$1,0),0) -> 0 | DH65: =VLOOKUP($AX65&"_"&$DF$14,データシート1!$A:$BT,MATCH($DF$12&"_"&DH$20,データシート1!$A$1:$BT$1,0),0) -> 1 | DI65: =VLOOKUP($AX65&"_"&$DF$14,データシート1!$A:$BT,MATCH($DF$12&"_"&DI$20,データシート1!$A$1:$BT$1,0),0) -> 26 | DJ65: =VLOOKUP($AX65&"_"&$DF$14,データシート1!$A:$BT,MATCH($DF$12&"_"&DJ$20,データシート1!$A$1:$BT$1,0),0) -> 2 | DK65: =VLOOKUP($AX65&"_"&$DF$14,データシート1!$A:$BT,MATCH($DF$12&"_"&DK$20,データシート1!$A$1:$BT$1,0),0) -> 0 | DL65: 105 | DN65: 94.0% | DO65: 0 | DP65: 0 | DQ65: 6.0% | DR65: 0 | DS65: 0
AX66: =比較地域マスタ!$Y51 -> 46 | AY66: =IF(IFERROR(比較地域マスタ!$Z51,"")=0,"",IFERROR(比較地域マスタ!$Z51,"")) -> 鹿児島県 | BB66: 46 | BC66: 鹿児島県 | BD66: 9,027 | BE66: 1,604 | BF66: =VLOOKUP($AX66&"_"&$BC$14,データシート1!$A:$BT,MATCH($BC$12&"_"&BF$20,データシート1!$A$1:$BT$1,0),0) -> 856 | BG66: =VLOOKUP($AX66&"_"&$BC$14,データシート1!$A:$BT,MATCH($BC$12&"_"&BG$20,データシート1!$A$1:$BT$1,0),0) -> 129 | BH66: =VLOOKUP($AX66&"_"&$BC$14,データシート1!$A:$BT,MATCH($BC$12&"_"&BH$20,データシート1!$A$1:$BT$1,0),0) -> 619 | BI66: =VLOOKUP($AX66&"_"&$BC$14,データシート1!$A:$BT,MATCH($BC$12&"_"&BI$20,データシート1!$A$1:$BT$1,0),0) -> 1,854 | BJ66: =VLOOKUP($AX66&"_"&$BC$14,データシート1!$A:$BT,MATCH($BC$12&"_"&BJ$20,データシート1!$A$1:$BT$1,0),0) -> 1,492 | BK66: 3,933 | BL66: 2,896 | BM66: =VLOOKUP($AX66&"_"&$BC$14,データシート1!$A:$BT,MATCH($BC$12&"_"&BM$20,データシート1!$A$1:$BT$1,0),0) -> 1,341 | BN66: =VLOOKUP($AX66&"_"&$BC$14,データシート1!$A:$BT,MATCH($BC$12&"_"&BN$20,データシート1!$A$1:$BT$1,0),0) -> 1,555 | BO66: =VLOOKUP($AX66&"_"&$BC$14,データシート1!$A:$BT,MATCH($BC$12&"_"&BO$20,データシート1!$A$1:$BT$1,0),0) -> 94 | BP66: =VLOOKUP($AX66&"_"&$BC$14,データシート1!$A:$BT,MATCH($BC$12&"_"&BP$20,データシート1!$A$1:$BT$1,0),0) -> 943 | BQ66: =VLOOKUP($AX66&"_"&$BC$14,データシート1!$A:$BT,MATCH($BC$12&"_"&BQ$20,データシート1!$A$1:$BT$1,0),0) -> 143 | BR66: 9,027 | BT66: 鹿児島県 | BU66: 9,027 | BV66: 18% | BW66: 9% | BX66: 1% | BY66: 7% | BZ66: 21% | CA66: 17% | CB66: 44% | CC66: 32% | CD66: 15% | CE66: 17% | CF66: 1% | CG66: 10% | CH66: 2% | CI66: 100% | CK66: 鹿児島県 | CL66: 1,604 | CM66: (42%) | CN66: 856 | CO66: (75%) | CP66: 129 | CQ66: (9%) | CR66: 619 | CS66: (4%) | CT66: 1,854 | CU66: (14%) | CW66: 674.355 | CX66: =VLOOKUP($AX66&"_"&$CW$14,データシート1!$A:$BT,MATCH($CW$12&"_"&CX$20,データシート1!$A$1:$BT$1,0),0) -> 638.242 | CY66: =VLOOKUP($AX66&"_"&$CW$14,データシート1!$A:$BT,MATCH($CW$12&"_"&CY$20,データシート1!$A$1:$BT$1,0),0) -> 11.446 | CZ66: =VLOOKUP($AX66&"_"&$CW$14,データシート1!$A:$BT,MATCH($CW$12&"_"&CZ$20,データシート1!$A$1:$BT$1,0),0) -> 24.667 | DA66: =VLOOKUP($AX66&"_"&$CW$14,データシート1!$A:$BT,MATCH($CW$12&"_"&DA$20,データシート1!$A$1:$BT$1,0),0) -> 251.577 | DB66: =VLOOKUP($AX66&"_"&$CW$14,データシート1!$A:$BT,MATCH($CW$12&"_"&DB$20,データシート1!$A$1:$BT$1,0),0) -> 20.6 | DC66: =VLOOKUP($AX66&"_"&$CW$14,データシート1!$A:$BT,MATCH($CW$12&"_"&DC$20,データシート1!$A$1:$BT$1,0),0) -> 0 | DD66: 946.532 | DF66: =VLOOKUP($AX66&"_"&$DF$14,データシート1!$A:$BT,MATCH($DF$12&"_"&DF$20,データシート1!$A$1:$BT$1,0),0) -> 57 | DG66: =VLOOKUP($AX66&"_"&$DF$14,データシート1!$A:$BT,MATCH($DF$12&"_"&DG$20,データシート1!$A$1:$BT$1,0),0) -> 1 | DH66: =VLOOKUP($AX66&"_"&$DF$14,データシート1!$A:$BT,MATCH($DF$12&"_"&DH$20,データシート1!$A$1:$BT$1,0),0) -> 5 | DI66: =VLOOKUP($AX66&"_"&$DF$14,データシート1!$A:$BT,MATCH($DF$12&"_"&DI$20,データシート1!$A$1:$BT$1,0),0) -> 38 | DJ66: =VLOOKUP($AX66&"_"&$DF$14,データシート1!$A:$BT,MATCH($DF$12&"_"&DJ$20,データシート1!$A$1:$BT$1,0),0) -> 10 | DK66: =VLOOKUP($AX66&"_"&$DF$14,データシート1!$A:$BT,MATCH($DF$12&"_"&DK$20,データシート1!$A$1:$BT$1,0),0) -> 0 | DL66: 111 | DN66: 67.0% | DO66: 1.0% | DP66: 3.0% | DQ66: 27.0% | DR66: 2.0% | DS66: 0
AX67: =比較地域マスタ!$Y52 -> 47 | AY67: =IF(IFERROR(比較地域マスタ!$Z52,"")=0,"",IFERROR(比較地域マスタ!$Z52,"")) -> 沖縄県 | BB67: 47 | BC67: 沖縄県 | BD67: 9,185 | BE67: 963 | BF67: =VLOOKUP($AX67&"_"&$BC$14,データシート1!$A:$BT,MATCH($BC$12&"_"&BF$20,データシート1!$A$1:$BT$1,0),0) -> 678 | BG67: =VLOOKUP($AX67&"_"&$BC$14,データシート1!$A:$BT,MATCH($BC$12&"_"&BG$20,データシート1!$A$1:$BT$1,0),0) -> 115 | BH67: =VLOOKUP($AX67&"_"&$BC$14,データシート1!$A:$BT,MATCH($BC$12&"_"&BH$20,データシート1!$A$1:$BT$1,0),0) -> 170 | BI67: =VLOOKUP($AX67&"_"&$BC$14,データシート1!$A:$BT,MATCH($BC$12&"_"&BI$20,データシート1!$A$1:$BT$1,0),0) -> 3,187 | BJ67: =VLOOKUP($AX67&"_"&$BC$14,データシート1!$A:$BT,MATCH($BC$12&"_"&BJ$20,データシート1!$A$1:$BT$1,0),0) -> 2,267 | BK67: 2,569 | BL67: 2,249 | BM67: =VLOOKUP($AX67&"_"&$BC$14,データシート1!$A:$BT,MATCH($BC$12&"_"&BM$20,データシート1!$A$1:$BT$1,0),0) -> 1,187 | BN67: =VLOOKUP($AX67&"_"&$BC$14,データシート1!$A:$BT,MATCH($BC$12&"_"&BN$20,データシート1!$A$1:$BT$1,0),0) -> 1,062 | BO67: =VLOOKUP($AX67&"_"&$BC$14,データシート1!$A:$BT,MATCH($BC$12&"_"&BO$20,データシート1!$A$1:$BT$1,0),0) -> 87 | BP67: =VLOOKUP($AX67&"_"&$BC$14,データシート1!$A:$BT,MATCH($BC$12&"_"&BP$20,データシート1!$A$1:$BT$1,0),0) -> 233 | BQ67: =VLOOKUP($AX67&"_"&$BC$14,データシート1!$A:$BT,MATCH($BC$12&"_"&BQ$20,データシート1!$A$1:$BT$1,0),0) -> 200 | BR67: 9,185 | BT67: 沖縄県 | BU67: 9,185 | BV67: 10% | BW67: 7% | BX67: 1% | BY67: 2% | BZ67: 35% | CA67: 25% | CB67: 28% | CC67: 24% | CD67: 13% | CE67: 12% | CF67: 1% | CG67: 3% | CH67: 2% | CI67: 100% | CK67: 沖縄県 | CL67: 963 | CM67: (66%) | CN67: 678 | CO67: (92%) | CP67: 115 | CQ67: (8%) | CR67: 170 | CS67: 0 | CT67: 3,187 | CU67: (17%) | CW67: 633.355 | CX67: =VLOOKUP($AX67&"_"&$CW$14,データシート1!$A:$BT,MATCH($CW$12&"_"&CX$20,データシート1!$A$1:$BT$1,0),0) -> 624.17 | CY67: =VLOOKUP($AX67&"_"&$CW$14,データシート1!$A:$BT,MATCH($CW$12&"_"&CY$20,データシート1!$A$1:$BT$1,0),0) -> 9.185 | CZ67: =VLOOKUP($AX67&"_"&$CW$14,データシート1!$A:$BT,MATCH($CW$12&"_"&CZ$20,データシート1!$A$1:$BT$1,0),0) -> 0 | DA67: =VLOOKUP($AX67&"_"&$CW$14,データシート1!$A:$BT,MATCH($CW$12&"_"&DA$20,データシート1!$A$1:$BT$1,0),0) -> 543.28 | DB67: =VLOOKUP($AX67&"_"&$CW$14,データシート1!$A:$BT,MATCH($CW$12&"_"&DB$20,データシート1!$A$1:$BT$1,0),0) -> 588.422 | DC67: =VLOOKUP($AX67&"_"&$CW$14,データシート1!$A:$BT,MATCH($CW$12&"_"&DC$20,データシート1!$A$1:$BT$1,0),0) -> 0 | DD67: 1765.057 | DF67: =VLOOKUP($AX67&"_"&$DF$14,データシート1!$A:$BT,MATCH($DF$12&"_"&DF$20,データシート1!$A$1:$BT$1,0),0) -> 20 | DG67: =VLOOKUP($AX67&"_"&$DF$14,データシート1!$A:$BT,MATCH($DF$12&"_"&DG$20,データシート1!$A$1:$BT$1,0),0) -> 1 | DH67: =VLOOKUP($AX67&"_"&$DF$14,データシート1!$A:$BT,MATCH($DF$12&"_"&DH$20,データシート1!$A$1:$BT$1,0),0) -> 0 | DI67: =VLOOKUP($AX67&"_"&$DF$14,データシート1!$A:$BT,MATCH($DF$12&"_"&DI$20,データシート1!$A$1:$BT$1,0),0) -> 79 | DJ67: =VLOOKUP($AX67&"_"&$DF$14,データシート1!$A:$BT,MATCH($DF$12&"_"&DJ$20,データシート1!$A$1:$BT$1,0),0) -> 13 | DK67: =VLOOKUP($AX67&"_"&$DF$14,データシート1!$A:$BT,MATCH($DF$12&"_"&DK$20,データシート1!$A$1:$BT$1,0),0) -> 0 | DL67: 113 | DN67: 35.0% | DO67: 1.0% | DP67: 0 | DQ67: 31.0% | DR67: 33.0% | DS67: 0
AX68: =比較地域マスタ!$Y53 -> 0 | AY68: =IF(IFERROR(比較地域マスタ!$Z53,"")=0,"",IFERROR(比較地域マスタ!$Z53,"")) ->  | BB68: 0 | BE68: =SUM(BF68:BH68) ->  | BF68: =VLOOKUP($AX68&"_"&$BC$14,データシート1!$A:$BT,MATCH($BC$12&"_"&BF$20,データシート1!$A$1:$BT$1,0),0) ->  | BG68: =VLOOKUP($AX68&"_"&$BC$14,データシート1!$A:$BT,MATCH($BC$12&"_"&BG$20,データシート1!$A$1:$BT$1,0),0) ->  | BH68: =VLOOKUP($AX68&"_"&$BC$14,データシート1!$A:$BT,MATCH($BC$12&"_"&BH$20,データシート1!$A$1:$BT$1,0),0) ->  | BI68: =VLOOKUP($AX68&"_"&$BC$14,データシート1!$A:$BT,MATCH($BC$12&"_"&BI$20,データシート1!$A$1:$BT$1,0),0) ->  | BJ68: =VLOOKUP($AX68&"_"&$BC$14,データシート1!$A:$BT,MATCH($BC$12&"_"&BJ$20,データシート1!$A$1:$BT$1,0),0) ->  | BL68: =SUM(BM68:BN68) ->  | BM68: =VLOOKUP($AX68&"_"&$BC$14,データシート1!$A:$BT,MATCH($BC$12&"_"&BM$20,データシート1!$A$1:$BT$1,0),0) ->  | BN68: =VLOOKUP($AX68&"_"&$BC$14,データシート1!$A:$BT,MATCH($BC$12&"_"&BN$20,データシート1!$A$1:$BT$1,0),0) ->  | BO68: =VLOOKUP($AX68&"_"&$BC$14,データシート1!$A:$BT,MATCH($BC$12&"_"&BO$20,データシート1!$A$1:$BT$1,0),0) ->  | BP68: =VLOOKUP($AX68&"_"&$BC$14,データシート1!$A:$BT,MATCH($BC$12&"_"&BP$20,データシート1!$A$1:$BT$1,0),0) ->  | BQ68: =VLOOKUP($AX68&"_"&$BC$14,データシート1!$A:$BT,MATCH($BC$12&"_"&BQ$20,データシート1!$A$1:$BT$1,0),0) ->  | CX68: =VLOOKUP($AX68&"_"&$CW$14,データシート1!$A:$BT,MATCH($CW$12&"_"&CX$20,データシート1!$A$1:$BT$1,0),0) ->  | CY68: =VLOOKUP($AX68&"_"&$CW$14,データシート1!$A:$BT,MATCH($CW$12&"_"&CY$20,データシート1!$A$1:$BT$1,0),0) ->  | CZ68: =VLOOKUP($AX68&"_"&$CW$14,データシート1!$A:$BT,MATCH($CW$12&"_"&CZ$20,データシート1!$A$1:$BT$1,0),0) ->  | DA68: =VLOOKUP($AX68&"_"&$CW$14,データシート1!$A:$BT,MATCH($CW$12&"_"&DA$20,データシート1!$A$1:$BT$1,0),0) ->  | DB68: =VLOOKUP($AX68&"_"&$CW$14,データシート1!$A:$BT,MATCH($CW$12&"_"&DB$20,データシート1!$A$1:$BT$1,0),0) ->  | DC68: =VLOOKUP($AX68&"_"&$CW$14,データシート1!$A:$BT,MATCH($CW$12&"_"&DC$20,データシート1!$A$1:$BT$1,0),0) ->  | DF68: =VLOOKUP($AX68&"_"&$DF$14,データシート1!$A:$BT,MATCH($DF$12&"_"&DF$20,データシート1!$A$1:$BT$1,0),0) ->  | DG68: =VLOOKUP($AX68&"_"&$DF$14,データシート1!$A:$BT,MATCH($DF$12&"_"&DG$20,データシート1!$A$1:$BT$1,0),0) ->  | DH68: =VLOOKUP($AX68&"_"&$DF$14,データシート1!$A:$BT,MATCH($DF$12&"_"&DH$20,データシート1!$A$1:$BT$1,0),0) ->  | DI68: =VLOOKUP($AX68&"_"&$DF$14,データシート1!$A:$BT,MATCH($DF$12&"_"&DI$20,データシート1!$A$1:$BT$1,0),0) ->  | DJ68: =VLOOKUP($AX68&"_"&$DF$14,データシート1!$A:$BT,MATCH($DF$12&"_"&DJ$20,データシート1!$A$1:$BT$1,0),0) ->  | DK68: =VLOOKUP($AX68&"_"&$DF$14,データシート1!$A:$BT,MATCH($DF$12&"_"&DK$20,データシート1!$A$1:$BT$1,0),0) ->  | DN68: =IF($DD68=0,0,ROUND(CX68/$DD68,2)) ->  | DO68: =IF($DD68=0,0,ROUND(CY68/$DD68,2)) ->  | DS68: =IF($DD68=0,0,ROUND(DC68/$DD68,2)) -> 
B71: ="3 特定事業所排出量の比較（" & $BC$14 & "（" & $BC$15 & "年度））" -> 3 特定事業所排出量の比較（令和3年度（2021年度））
B72: 5）特定事業所排出量の比較 | Q72: 6）特定事業所数の比較 | AF72: 7）特定事業所排出量の部門別構成比の比較
L74: （千t-CO2）

Sheet 再エネ比較シート
B1: 自治体排出量カルテ 他の地方公共団体との比較（再エネ導入量・再エネポテンシャル） | AT1: =AY4 -> 石川県
B2: ="1 再エネ導入量の比較（"&AZ7&"（"&AY7&"年度））" -> 1 再エネ導入量の比較（令和5年度（2023年度））
B3: 1）他の地方公共団体との再エネ別導入設備容量の比較 | M3: 2）他の地方公共団体との再エネ別発電電力量の比較 | Y3: 3）他の地方公共団体との対電気使用量FIT・FIP導入比の比較 | AK3: 4）対世帯数FIT・FIP太陽光発電（10kW未満）導入比の比較 | AX3: 年度マスタ
AX4: =年度マスタ!$I4 -> 石川県 | AY4: =年度マスタ!$J4 -> 石川県 | AZ4: =年度マスタ!$K4 -> 17
AX5: =年度マスタ!$I5 -> A.現況推計データ | AY5: =年度マスタ!$J5 -> 2022 | AZ5: =年度マスタ!$K5 -> 令和4年度
AX6: =年度マスタ!$I6 -> B.SHKデータ | AY6: =年度マスタ!$J6 -> 2021 | AZ6: =年度マスタ!$K6 -> 令和3年度
AX7: =年度マスタ!$I7 -> C.FITデータ | AY7: =年度マスタ!$J7 -> 2023 | AZ7: =年度マスタ!$K7 -> 令和5年度
AX8: =年度マスタ!$I8 -> D.区域電力使用量データ | AY8: =年度マスタ!$J8 -> 2022 | AZ8: =年度マスタ!$K8 -> 令和4年度
AX9: =年度マスタ!$I9 -> E.REPOSデータ | AY9: =年度マスタ!$J9 -> 2024 | AZ9: =年度マスタ!$K9 -> 令和6年度
BC10: 1）他の地方公共団体との再エネ別導入設備容量の比較 | BM10: 2）他の地方公共団体との再エネ別発電電力量の比較 | CA10: 3）他の地方公共団体との対電気使用量FIT・FIP導入比の比較 | CK10: 4）対世帯数FIT・FIP太陽光発電（10kW未満）導入比の比較
BK11: [kW] | BU11: [MWh/年] | BY11: [MWh/年] | CI11: [%]
AX12: 該当コード | AY12: 該当地域名 | BD12: 該当地域名 | BE12: 太陽光発電（10kW未満） | BF12: 太陽光発電（10kW以上） | BG12: 風力発電 | BH12: 水力発電 | BI12: 地熱発電 | BJ12: バイオマス発電 | BK12: 合計 | BN12: 該当地域名 | BO12: 太陽光発電（10kW未満） | BP12: 太陽光発電（10kW以上） | BQ12: 風力発電 | BR12: 水力発電 | BS12: 地熱発電 | BT12: バイオマス発電 | BU12: 合計 | BX12: 該当地域名 | BY12: 区域の電気使用量 | CB12: 該当地域名 | CC12: 太陽光発電（10kW未満） | CD12: 太陽光発電（10kW以上） | CE12: 風力発電 | CF12: 水力発電 | CG12: 地熱発電 | CH12: バイオマス発電 | CI12: 区域の電気使用量 | CL12: 該当地域名 | CM12: 太陽光発電（10kW未満）導入件数 | CN12: 世帯数 | CO12: 導入比
AX13: =比較地域マスタ!$Y6 -> 01 | AY13: =IF(IFERROR(比較地域マスタ!$Z6,"")=0,"",IFERROR(比較地域マスタ!$Z6,"")) -> 北海道 | BC13: =AX13 -> 01 | BD13: =AY13 -> 北海道 | BE13: =VLOOKUP($BC13&"_"&$AZ$7,データシート1!$A:$BT,MATCH("cb_"&BE$12,データシート1!$A$1:$BT$1,0),0) -> 257,749 | BF13: =VLOOKUP($BC13&"_"&$AZ$7,データシート1!$A:$BT,MATCH("cb_"&BF$12,データシート1!$A$1:$BT$1,0),0) -> 2,035,101 | BG13: =VLOOKUP($BC13&"_"&$AZ$7,データシート1!$A:$BT,MATCH("cb_"&BG$12,データシート1!$A$1:$BT$1,0),0) -> 1,164,556 | BH13: =VLOOKUP($BC13&"_"&$AZ$7,データシート1!$A:$BT,MATCH("cb_"&BH$12,データシート1!$A$1:$BT$1,0),0) -> 193,638 | BI13: =VLOOKUP($BC13&"_"&$AZ$7,データシート1!$A:$BT,MATCH("cb_"&BI$12,データシート1!$A$1:$BT$1,0),0) -> 2,350 | BJ13: =VLOOKUP($BC13&"_"&$AZ$7,データシート1!$A:$BT,MATCH("cb_"&BJ$12,データシート1!$A$1:$BT$1,0),0) -> 330,975 | BK13: =SUM(BE13:BJ13) -> 3,984,368 | BM13: =AX13 -> 01 | BN13: =AY13 -> 北海道 | BO13: =BE13*VLOOKUP(BO$12,別紙!$B$4:$E$10,MATCH("設備利用率",別紙!$B$4:$E$4,0),0)/100*8760/10^3 -> 309,329 | BP13: =BF13*VLOOKUP(BP$12,別紙!$B$4:$E$10,MATCH("設備利用率",別紙!$B$4:$E$4,0),0)/100*8760/10^3 -> 2,691,950 | BQ13: =BG13*VLOOKUP(BQ$12,別紙!$B$4:$E$10,MATCH("設備利用率",別紙!$B$4:$E$4,0),0)/100*8760/10^3 -> 2,529,974 | BR13: =BH13*VLOOKUP(BR$12,別紙!$B$4:$E$10,MATCH("設備利用率",別紙!$B$4:$E$4,0),0)/100*8760/10^3 -> 1,017,760 | BS13: =BI13*VLOOKUP(BS$12,別紙!$B$4:$E$10,MATCH("設備利用率",別紙!$B$4:$E$4,0),0)/100*8760/10^3 -> 16,469 | BT13: =BJ13*VLOOKUP(BT$12,別紙!$B$4:$E$10,MATCH("設備利用率",別紙!$B$4:$E$4,0),0)/100*8760/10^3 -> 2,319,475 | BU13: =SUM(BO13:BT13) -> 8,884,956 | BW13: =AX13 -> 01 | BX13: =AY13 -> 北海道 | BY13: =(VLOOKUP($BW13&"_"&$AZ$8,データシート1!$A:$BT,MATCH("da_製造業",データシート1!$A$1:$BT$1,0),0)+VLOOKUP($BW13&"_"&$AZ$8,データシート1!$A:$BT,MATCH("da_建設業・鉱業",データシート1!$A$1:$BT$1,0),0)+VLOOKUP($BW13&"_"&$AZ$8,データシート1!$A:$BT,MATCH("da_農林水産業",データシート1!$A$1:$BT$1,0),0)+VLOOKUP($BW13&"_"&$AZ$8,データシート1!$A:$BT,MATCH("da_業務",データシート1!$A$1:$BT$1,0),0)+VLOOKUP($BW13&"_"&$AZ$8,データシート1!$A:$BT,MATCH("da_家庭",データシート1!$A$1:$BT$1,0),0)+VLOOKUP($BW13&"_"&$AZ$8,データシート1!$A:$BT,MATCH("da_鉄道",データシート1!$A$1:$BT$1,0),0))/10^3 -> 29,752,205 | CA13: =AX13 -> 01 | CB13: =AY13 -> 北海道 | CC13: =BO13/$BY13 -> 1.0% | CD13: =BP13/$BY13 -> 9.0% | CE13: 8.5% | CF13: 3.4% | CG13: 0.1% | CH13: 7.8% | CI13: =BU13/BY13 -> 29.9% | CK13: =AX13 -> 01 | CL13: =AY13 -> 北海道 | CM13: =VLOOKUP($CK13&"_"&$AZ$7,データシート1!$A:$BT,MATCH("ca_太陽光発電（10kW未満）",データシート1!$A$1:$BT$1,0),0) -> 48697 | CN13: =VLOOKUP($CK13&"_"&$AZ$5,データシート1!$A:$BT,MATCH("ab_家庭",データシート1!$A$1:$BT$1,0),0) -> 2804281 | CO13: =CM13/CN13 -> 1.7%
AX14: =比較地域マスタ!$Y7 -> 02 | AY14: =IF(IFERROR(比較地域マスタ!$Z7,"")=0,"",IFERROR(比較地域マスタ!$Z7,"")) -> 青森県 | BC14: 02 | BD14: =AY14 -> 青森県 | BE14: =VLOOKUP($BC14&"_"&$AZ$7,データシート1!$A:$BT,MATCH("cb_"&BE$12,データシート1!$A$1:$BT$1,0),0) -> 82,109 | BF14: =VLOOKUP($BC14&"_"&$AZ$7,データシート1!$A:$BT,MATCH("cb_"&BF$12,データシート1!$A$1:$BT$1,0),0) -> 877,348 | BG14: =VLOOKUP($BC14&"_"&$AZ$7,データシート1!$A:$BT,MATCH("cb_"&BG$12,データシート1!$A$1:$BT$1,0),0) -> 913,537 | BH14: =VLOOKUP($BC14&"_"&$AZ$7,データシート1!$A:$BT,MATCH("cb_"&BH$12,データシート1!$A$1:$BT$1,0),0) -> 4,160 | BI14: =VLOOKUP($BC14&"_"&$AZ$7,データシート1!$A:$BT,MATCH("cb_"&BI$12,データシート1!$A$1:$BT$1,0),0) -> 0 | BJ14: =VLOOKUP($BC14&"_"&$AZ$7,データシート1!$A:$BT,MATCH("cb_"&BJ$12,データシート1!$A$1:$BT$1,0),0) -> 102,147 | BK14: =SUM(BE14:BJ14) -> 1,979,300 | BM14: =AX14 -> 02 | BN14: =AY14 -> 青森県 | BO14: =BE14*VLOOKUP(BO$12,別紙!$B$4:$E$10,MATCH("設備利用率",別紙!$B$4:$E$4,0),0)/100*8760/10^3 -> 98,540 | BP14: =BF14*VLOOKUP(BP$12,別紙!$B$4:$E$10,MATCH("設備利用率",別紙!$B$4:$E$4,0),0)/100*8760/10^3 -> 1,160,521 | BQ14: =BG14*VLOOKUP(BQ$12,別紙!$B$4:$E$10,MATCH("設備利用率",別紙!$B$4:$E$4,0),0)/100*8760/10^3 -> 1,984,640 | BR14: =BH14*VLOOKUP(BR$12,別紙!$B$4:$E$10,MATCH("設備利用率",別紙!$B$4:$E$4,0),0)/100*8760/10^3 -> 21,865 | BS14: =BI14*VLOOKUP(BS$12,別紙!$B$4:$E$10,MATCH("設備利用率",別紙!$B$4:$E$4,0),0)/100*8760/10^3 -> 0 | BT14: =BJ14*VLOOKUP(BT$12,別紙!$B$4:$E$10,MATCH("設備利用率",別紙!$B$4:$E$4,0),0)/100*8760/10^3 -> 715,843 | BU14: =SUM(BO14:BT14) -> 3,981,409 | BW14: =AX14 -> 02 | BX14: =AY14 -> 青森県 | BY14: =(VLOOKUP($BW14&"_"&$AZ$8,データシート1!$A:$BT,MATCH("da_製造業",データシート1!$A$1:$BT$1,0),0)+VLOOKUP($BW14&"_"&$AZ$8,データシート1!$A:$BT,MATCH("da_建設業・鉱業",データシート1!$A$1:$BT$1,0),0)+VLOOKUP($BW14&"_"&$AZ$8,データシート1!$A:$BT,MATCH("da_農林水産業",データシート1!$A$1:$BT$1,0),0)+VLOOKUP($BW14&"_"&$AZ$8,データシート1!$A:$BT,MATCH("da_業務",データシート1!$A$1:$BT$1,0),0)+VLOOKUP($BW14&"_"&$AZ$8,データシート1!$A:$BT,MATCH("da_家庭",データシート1!$A$1:$BT$1,0),0)+VLOOKUP($BW14&"_"&$AZ$8,データシート1!$A:$BT,MATCH("da_鉄道",データシート1!$A$1:$BT$1,0),0))/10^3 -> 8,162,950 | CA14: =AX14 -> 02 | CB14: =AY14 -> 青森県 | CC14: =BO14/$BY14 -> 1.2% | CD14: 14.2% | CE14: 24.3% | CF14: 0.3% | CG14: 0.0% | CH14: 8.8% | CI14: =BU14/BY14 -> 48.8% | CK14: =AX14 -> 02 | CL14: =AY14 -> 青森県 | CM14: =VLOOKUP($CK14&"_"&$AZ$7,データシート1!$A:$BT,MATCH("ca_太陽光発電（10kW未満）",データシート1!$A$1:$BT$1,0),0) -> 16161 | CN14: =VLOOKUP($CK14&"_"&$AZ$5,データシート1!$A:$BT,MATCH("ab_家庭",データシート1!$A$1:$BT$1,0),0) -> 594597 | CO14: =CM14/CN14 -> 2.7%
AX15: =比較地域マスタ!$Y8 -> 03 | AY15: =IF(IFERROR(比較地域マスタ!$Z8,"")=0,"",IFERROR(比較地域マスタ!$Z8,"")) -> 岩手県 | BC15: 03 | BD15: 岩手県 | BE15: =VLOOKUP($BC15&"_"&$AZ$7,データシート1!$A:$BT,MATCH("cb_"&BE$12,データシート1!$A$1:$BT$1,0),0) -> 173,167 | BF15: =VLOOKUP($BC15&"_"&$AZ$7,データシート1!$A:$BT,MATCH("cb_"&BF$12,データシート1!$A$1:$BT$1,0),0) -> 1,011,308 | BG15: =VLOOKUP($BC15&"_"&$AZ$7,データシート1!$A:$BT,MATCH("cb_"&BG$12,データシート1!$A$1:$BT$1,0),0) -> 281,980 | BH15: =VLOOKUP($BC15&"_"&$AZ$7,データシート1!$A:$BT,MATCH("cb_"&BH$12,データシート1!$A$1:$BT$1,0),0) -> 27,813 | BI15: =VLOOKUP($BC15&"_"&$AZ$7,データシート1!$A:$BT,MATCH("cb_"&BI$12,データシート1!$A$1:$BT$1,0),0) -> 23,024 | BJ15: =VLOOKUP($BC15&"_"&$AZ$7,データシート1!$A:$BT,MATCH("cb_"&BJ$12,データシート1!$A$1:$BT$1,0),0) -> 127,272 | BK15: 1,644,563 | BM15: 03 | BN15: 岩手県 | BO15: =BE15*VLOOKUP(BO$12,別紙!$B$4:$E$10,MATCH("設備利用率",別紙!$B$4:$E$4,0),0)/100*8760/10^3 -> 207,821 | BP15: =BF15*VLOOKUP(BP$12,別紙!$B$4:$E$10,MATCH("設備利用率",別紙!$B$4:$E$4,0),0)/100*8760/10^3 -> 1,337,718 | BQ15: =BG15*VLOOKUP(BQ$12,別紙!$B$4:$E$10,MATCH("設備利用率",別紙!$B$4:$E$4,0),0)/100*8760/10^3 -> 612,595 | BR15: =BH15*VLOOKUP(BR$12,別紙!$B$4:$E$10,MATCH("設備利用率",別紙!$B$4:$E$4,0),0)/100*8760/10^3 -> 146,187 | BS15: =BI15*VLOOKUP(BS$12,別紙!$B$4:$E$10,MATCH("設備利用率",別紙!$B$4:$E$4,0),0)/100*8760/10^3 -> 161,352 | BT15: =BJ15*VLOOKUP(BT$12,別紙!$B$4:$E$10,MATCH("設備利用率",別紙!$B$4:$E$4,0),0)/100*8760/10^3 -> 891,920 | BU15: 3,357,593 | BW15: 03 | BX15: 岩手県 | BY15: =(VLOOKUP($BW15&"_"&$AZ$8,データシート1!$A:$BT,MATCH("da_製造業",データシート1!$A$1:$BT$1,0),0)+VLOOKUP($BW15&"_"&$AZ$8,データシート1!$A:$BT,MATCH("da_建設業・鉱業",データシート1!$A$1:$BT$1,0),0)+VLOOKUP($BW15&"_"&$AZ$8,データシート1!$A:$BT,MATCH("da_農林水産業",データシート1!$A$1:$BT$1,0),0)+VLOOKUP($BW15&"_"&$AZ$8,データシート1!$A:$BT,MATCH("da_業務",データシート1!$A$1:$BT$1,0),0)+VLOOKUP($BW15&"_"&$AZ$8,データシート1!$A:$BT,MATCH("da_家庭",データシート1!$A$1:$BT$1,0),0)+VLOOKUP($BW15&"_"&$AZ$8,データシート1!$A:$BT,MATCH("da_鉄道",データシート1!$A$1:$BT$1,0),0))/10^3 -> 7,772,564 | CA15: 03 | CB15: 岩手県 | CC15: 2.7% | CD15: 17.2% | CE15: 7.9% | CF15: 1.9% | CG15: 2.1% | CH15: 11.5% | CI15: 43.2% | CK15: 03 | CL15: 岩手県 | CM15: =VLOOKUP($CK15&"_"&$AZ$7,データシート1!$A:$BT,MATCH("ca_太陽光発電（10kW未満）",データシート1!$A$1:$BT$1,0),0) -> 35917 | CN15: =VLOOKUP($CK15&"_"&$AZ$5,データシート1!$A:$BT,MATCH("ab_家庭",データシート1!$A$1:$BT$1,0),0) -> 533908 | CO15: 6.7%
AX16: =比較地域マスタ!$Y9 -> 04 | AY16: =IF(IFERROR(比較地域マスタ!$Z9,"")=0,"",IFERROR(比較地域マスタ!$Z9,"")) -> 宮城県 | BC16: 04 | BD16: 宮城県 | BE16: =VLOOKUP($BC16&"_"&$AZ$7,データシート1!$A:$BT,MATCH("cb_"&BE$12,データシート1!$A$1:$BT$1,0),0) -> 336,064 | BF16: =VLOOKUP($BC16&"_"&$AZ$7,データシート1!$A:$BT,MATCH("cb_"&BF$12,データシート1!$A$1:$BT$1,0),0) -> 2,043,005 | BG16: =VLOOKUP($BC16&"_"&$AZ$7,データシート1!$A:$BT,MATCH("cb_"&BG$12,データシート1!$A$1:$BT$1,0),0) -> 28,147 | BH16: =VLOOKUP($BC16&"_"&$AZ$7,データシート1!$A:$BT,MATCH("cb_"&BH$12,データシート1!$A$1:$BT$1,0),0) -> 4,719 | BI16: =VLOOKUP($BC16&"_"&$AZ$7,データシート1!$A:$BT,MATCH("cb_"&BI$12,データシート1!$A$1:$BT$1,0),0) -> 14,950 | BJ16: =VLOOKUP($BC16&"_"&$AZ$7,データシート1!$A:$BT,MATCH("cb_"&BJ$12,データシート1!$A$1:$BT$1,0),0) -> 273,914 | BK16: 2,700,799 | BM16: 04 | BN16: 宮城県 | BO16: =BE16*VLOOKUP(BO$12,別紙!$B$4:$E$10,MATCH("設備利用率",別紙!$B$4:$E$4,0),0)/100*8760/10^3 -> 403,317 | BP16: =BF16*VLOOKUP(BP$12,別紙!$B$4:$E$10,MATCH("設備利用率",別紙!$B$4:$E$4,0),0)/100*8760/10^3 -> 2,702,406 | BQ16: =BG16*VLOOKUP(BQ$12,別紙!$B$4:$E$10,MATCH("設備利用率",別紙!$B$4:$E$4,0),0)/100*8760/10^3 -> 61,150 | BR16: =BH16*VLOOKUP(BR$12,別紙!$B$4:$E$10,MATCH("設備利用率",別紙!$B$4:$E$4,0),0)/100*8760/10^3 -> 24,804 | BS16: =BI16*VLOOKUP(BS$12,別紙!$B$4:$E$10,MATCH("設備利用率",別紙!$B$4:$E$4,0),0)/100*8760/10^3 -> 104,766 | BT16: =BJ16*VLOOKUP(BT$12,別紙!$B$4:$E$10,MATCH("設備利用率",別紙!$B$4:$E$4,0),0)/100*8760/10^3 -> 1,919,590 | BU16: 5,216,033 | BW16: 04 | BX16: 宮城県 | BY16: =(VLOOKUP($BW16&"_"&$AZ$8,データシート1!$A:$BT,MATCH("da_製造業",データシート1!$A$1:$BT$1,0),0)+VLOOKUP($BW16&"_"&$AZ$8,データシート1!$A:$BT,MATCH("da_建設業・鉱業",データシート1!$A$1:$BT$1,0),0)+VLOOKUP($BW16&"_"&$AZ$8,データシート1!$A:$BT,MATCH("da_農林水産業",データシート1!$A$1:$BT$1,0),0)+VLOOKUP($BW16&"_"&$AZ$8,データシート1!$A:$BT,MATCH("da_業務",データシート1!$A$1:$BT$1,0),0)+VLOOKUP($BW16&"_"&$AZ$8,データシート1!$A:$BT,MATCH("da_家庭",データシート1!$A$1:$BT$1,0),0)+VLOOKUP($BW16&"_"&$AZ$8,データシート1!$A:$BT,MATCH("da_鉄道",データシート1!$A$1:$BT$1,0),0))/10^3 -> 13,118,483 | CA16: 04 | CB16: 宮城県 | CC16: 3.1% | CD16: 20.6% | CE16: 0.5% | CF16: 0.2% | CG16: 0.8% | CH16: 14.6% | CI16: 39.8% | CK16: 04 | CL16: 宮城県 | CM16: =VLOOKUP($CK16&"_"&$AZ$7,データシート1!$A:$BT,MATCH("ca_太陽光発電（10kW未満）",データシート1!$A$1:$BT$1,0),0) -> 73757 | CN16: =VLOOKUP($CK16&"_"&$AZ$5,データシート1!$A:$BT,MATCH("ab_家庭",データシート1!$A$1:$BT$1,0),0) -> 1035949 | CO16: 7.1%
AX17: =比較地域マスタ!$Y10 -> 05 | AY17: =IF(IFERROR(比較地域マスタ!$Z10,"")=0,"",IFERROR(比較地域マスタ!$Z10,"")) -> 秋田県 | BC17: 05 | BD17: 秋田県 | BE17: =VLOOKUP($BC17&"_"&$AZ$7,データシート1!$A:$BT,MATCH("cb_"&BE$12,データシート1!$A$1:$BT$1,0),0) -> 49,731 | BF17: =VLOOKUP($BC17&"_"&$AZ$7,データシート1!$A:$BT,MATCH("cb_"&BF$12,データシート1!$A$1:$BT$1,0),0) -> 277,487 | BG17: =VLOOKUP($BC17&"_"&$AZ$7,データシート1!$A:$BT,MATCH("cb_"&BG$12,データシート1!$A$1:$BT$1,0),0) -> 703,666 | BH17: =VLOOKUP($BC17&"_"&$AZ$7,データシート1!$A:$BT,MATCH("cb_"&BH$12,データシート1!$A$1:$BT$1,0),0) -> 42,607 | BI17: =VLOOKUP($BC17&"_"&$AZ$7,データシート1!$A:$BT,MATCH("cb_"&BI$12,データシート1!$A$1:$BT$1,0),0) -> 46,449 | BJ17: =VLOOKUP($BC17&"_"&$AZ$7,データシート1!$A:$BT,MATCH("cb_"&BJ$12,データシート1!$A$1:$BT$1,0),0) -> 40,566 | BK17: 1,160,505 | BM17: 05 | BN17: 秋田県 | BO17: =BE17*VLOOKUP(BO$12,別紙!$B$4:$E$10,MATCH("設備利用率",別紙!$B$4:$E$4,0),0)/100*8760/10^3 -> 59,683 | BP17: =BF17*VLOOKUP(BP$12,別紙!$B$4:$E$10,MATCH("設備利用率",別紙!$B$4:$E$4,0),0)/100*8760/10^3 -> 367,048 | BQ17: =BG17*VLOOKUP(BQ$12,別紙!$B$4:$E$10,MATCH("設備利用率",別紙!$B$4:$E$4,0),0)/100*8760/10^3 -> 1,528,699 | BR17: =BH17*VLOOKUP(BR$12,別紙!$B$4:$E$10,MATCH("設備利用率",別紙!$B$4:$E$4,0),0)/100*8760/10^3 -> 223,940 | BS17: =BI17*VLOOKUP(BS$12,別紙!$B$4:$E$10,MATCH("設備利用率",別紙!$B$4:$E$4,0),0)/100*8760/10^3 -> 325,515 | BT17: =BJ17*VLOOKUP(BT$12,別紙!$B$4:$E$10,MATCH("設備利用率",別紙!$B$4:$E$4,0),0)/100*8760/10^3 -> 284,285 | BU17: 2,789,171 | BW17: 05 | BX17: 秋田県 | BY17: =(VLOOKUP($BW17&"_"&$AZ$8,データシート1!$A:$BT,MATCH("da_製造業",データシート1!$A$1:$BT$1,0),0)+VLOOKUP($BW17&"_"&$AZ$8,データシート1!$A:$BT,MATCH("da_建設業・鉱業",データシート1!$A$1:$BT$1,0),0)+VLOOKUP($BW17&"_"&$AZ$8,データシート1!$A:$BT,MATCH("da_農林水産業",データシート1!$A$1:$BT$1,0),0)+VLOOKUP($BW17&"_"&$AZ$8,データシート1!$A:$BT,MATCH("da_業務",データシート1!$A$1:$BT$1,0),0)+VLOOKUP($BW17&"_"&$AZ$8,データシート1!$A:$BT,MATCH("da_家庭",データシート1!$A$1:$BT$1,0),0)+VLOOKUP($BW17&"_"&$AZ$8,データシート1!$A:$BT,MATCH("da_鉄道",データシート1!$A$1:$BT$1,0),0))/10^3 -> 6,774,915 | CA17: 05 | CB17: 秋田県 | CC17: 0.9% | CD17: 5.4% | CE17: 22.6% | CF17: 3.3% | CG17: 4.8% | CH17: 4.2% | CI17: 41.2% | CK17: 05 | CL17: 秋田県 | CM17: =VLOOKUP($CK17&"_"&$AZ$7,データシート1!$A:$BT,MATCH("ca_太陽光発電（10kW未満）",データシート1!$A$1:$BT$1,0),0) -> 10001 | CN17: =VLOOKUP($CK17&"_"&$AZ$5,データシート1!$A:$BT,MATCH("ab_家庭",データシート1!$A$1:$BT$1,0),0) -> 425607 | CO17: 2.3%
AX18: =比較地域マスタ!$Y11 -> 06 | AY18: =IF(IFERROR(比較地域マスタ!$Z11,"")=0,"",IFERROR(比較地域マスタ!$Z11,"")) -> 山形県 | BC18: 06 | BD18: 山形県 | BE18: =VLOOKUP($BC18&"_"&$AZ$7,データシート1!$A:$BT,MATCH("cb_"&BE$12,データシート1!$A$1:$BT$1,0),0) -> 89,613 | BF18: =VLOOKUP($BC18&"_"&$AZ$7,データシート1!$A:$BT,MATCH("cb_"&BF$12,データシート1!$A$1:$BT$1,0),0) -> 283,517 | BG18: =VLOOKUP($BC18&"_"&$AZ$7,データシート1!$A:$BT,MATCH("cb_"&BG$12,データシート1!$A$1:$BT$1,0),0) -> 122,563 | BH18: =VLOOKUP($BC18&"_"&$AZ$7,データシート1!$A:$BT,MATCH("cb_"&BH$12,データシート1!$A$1:$BT$1,0),0) -> 66,551 | BI18: =VLOOKUP($BC18&"_"&$AZ$7,データシート1!$A:$BT,MATCH("cb_"&BI$12,データシート1!$A$1:$BT$1,0),0) -> 0 | BJ18: =VLOOKUP($BC18&"_"&$AZ$7,データシート1!$A:$BT,MATCH("cb_"&BJ$12,データシート1!$A$1:$BT$1,0),0) -> 79,888 | BK18: 642,132 | BM18: 06 | BN18: 山形県 | BO18: =BE18*VLOOKUP(BO$12,別紙!$B$4:$E$10,MATCH("設備利用率",別紙!$B$4:$E$4,0),0)/100*8760/10^3 -> 107,547 | BP18: =BF18*VLOOKUP(BP$12,別紙!$B$4:$E$10,MATCH("設備利用率",別紙!$B$4:$E$4,0),0)/100*8760/10^3 -> 375,025 | BQ18: =BG18*VLOOKUP(BQ$12,別紙!$B$4:$E$10,MATCH("設備利用率",別紙!$B$4:$E$4,0),0)/100*8760/10^3 -> 266,266 | BR18: =BH18*VLOOKUP(BR$12,別紙!$B$4:$E$10,MATCH("設備利用率",別紙!$B$4:$E$4,0),0)/100*8760/10^3 -> 349,792 | BS18: =BI18*VLOOKUP(BS$12,別紙!$B$4:$E$10,MATCH("設備利用率",別紙!$B$4:$E$4,0),0)/100*8760/10^3 -> 0 | BT18: =BJ18*VLOOKUP(BT$12,別紙!$B$4:$E$10,MATCH("設備利用率",別紙!$B$4:$E$4,0),0)/100*8760/10^3 -> 559,856 | BU18: 1,658,485 | BW18: 06 | BX18: 山形県 | BY18: =(VLOOKUP($BW18&"_"&$AZ$8,データシート1!$A:$BT,MATCH("da_製造業",データシート1!$A$1:$BT$1,0),0)+VLOOKUP($BW18&"_"&$AZ$8,データシート1!$A:$BT,MATCH("da_建設業・鉱業",データシート1!$A$1:$BT$1,0),0)+VLOOKUP($BW18&"_"&$AZ$8,データシート1!$A:$BT,MATCH("da_農林水産業",データシート1!$A$1:$BT$1,0),0)+VLOOKUP($BW18&"_"&$AZ$8,データシート1!$A:$BT,MATCH("da_業務",データシート1!$A$1:$BT$1,0),0)+VLOOKUP($BW18&"_"&$AZ$8,データシート1!$A:$BT,MATCH("da_家庭",データシート1!$A$1:$BT$1,0),0)+VLOOKUP($BW18&"_"&$AZ$8,データシート1!$A:$BT,MATCH("da_鉄道",データシート1!$A$1:$BT$1,0),0))/10^3 -> 7,591,266 | CA18: 06 | CB18: 山形県 | CC18: 1.4% | CD18: 4.9% | CE18: 3.5% | CF18: 4.6% | CG18: 0.0% | CH18: 7.4% | CI18: 21.8% | CK18: 06 | CL18: 山形県 | CM18: =VLOOKUP($CK18&"_"&$AZ$7,データシート1!$A:$BT,MATCH("ca_太陽光発電（10kW未満）",データシート1!$A$1:$BT$1,0),0) -> 18983 | CN18: =VLOOKUP($CK18&"_"&$AZ$5,データシート1!$A:$BT,MATCH("ab_家庭",データシート1!$A$1:$BT$1,0),0) -> 421275 | CO18: 4.5%
AX19: =比較地域マスタ!$Y12 -> 07 | AY19: =IF(IFERROR(比較地域マスタ!$Z12,"")=0,"",IFERROR(比較地域マスタ!$Z12,"")) -> 福島県 | BC19: 07 | BD19: 福島県 | BE19: =VLOOKUP($BC19&"_"&$AZ$7,データシート1!$A:$BT,MATCH("cb_"&BE$12,データシート1!$A$1:$BT$1,0),0) -> 317,501 | BF19: =VLOOKUP($BC19&"_"&$AZ$7,データシート1!$A:$BT,MATCH("cb_"&BF$12,データシート1!$A$1:$BT$1,0),0) -> 2,815,216 | BG19: =VLOOKUP($BC19&"_"&$AZ$7,データシート1!$A:$BT,MATCH("cb_"&BG$12,データシート1!$A$1:$BT$1,0),0) -> 224,261 | BH19: =VLOOKUP($BC19&"_"&$AZ$7,データシート1!$A:$BT,MATCH("cb_"&BH$12,データシート1!$A$1:$BT$1,0),0) -> 55,229 | BI19: =VLOOKUP($BC19&"_"&$AZ$7,データシート1!$A:$BT,MATCH("cb_"&BI$12,データシート1!$A$1:$BT$1,0),0) -> 440 | BJ19: =VLOOKUP($BC19&"_"&$AZ$7,データシート1!$A:$BT,MATCH("cb_"&BJ$12,データシート1!$A$1:$BT$1,0),0) -> 320,251 | BK19: 3,732,898 | BM19: 07 | BN19: 福島県 | BO19: =BE19*VLOOKUP(BO$12,別紙!$B$4:$E$10,MATCH("設備利用率",別紙!$B$4:$E$4,0),0)/100*8760/10^3 -> 381,040 | BP19: =BF19*VLOOKUP(BP$12,別紙!$B$4:$E$10,MATCH("設備利用率",別紙!$B$4:$E$4,0),0)/100*8760/10^3 -> 3,723,855 | BQ19: =BG19*VLOOKUP(BQ$12,別紙!$B$4:$E$10,MATCH("設備利用率",別紙!$B$4:$E$4,0),0)/100*8760/10^3 -> 487,202 | BR19: =BH19*VLOOKUP(BR$12,別紙!$B$4:$E$10,MATCH("設備利用率",別紙!$B$4:$E$4,0),0)/100*8760/10^3 -> 290,283 | BS19: =BI19*VLOOKUP(BS$12,別紙!$B$4:$E$10,MATCH("設備利用率",別紙!$B$4:$E$4,0),0)/100*8760/10^3 -> 3,084 | BT19: =BJ19*VLOOKUP(BT$12,別紙!$B$4:$E$10,MATCH("設備利用率",別紙!$B$4:$E$4,0),0)/100*8760/10^3 -> 2,244,320 | BU19: 7,129,783 | BW19: 07 | BX19: 福島県 | BY19: =(VLOOKUP($BW19&"_"&$AZ$8,データシート1!$A:$BT,MATCH("da_製造業",データシート1!$A$1:$BT$1,0),0)+VLOOKUP($BW19&"_"&$AZ$8,データシート1!$A:$BT,MATCH("da_建設業・鉱業",データシート1!$A$1:$BT$1,0),0)+VLOOKUP($BW19&"_"&$AZ$8,データシート1!$A:$BT,MATCH("da_農林水産業",データシート1!$A$1:$BT$1,0),0)+VLOOKUP($BW19&"_"&$AZ$8,データシート1!$A:$BT,MATCH("da_業務",データシート1!$A$1:$BT$1,0),0)+VLOOKUP($BW19&"_"&$AZ$8,データシート1!$A:$BT,MATCH("da_家庭",データシート1!$A$1:$BT$1,0),0)+VLOOKUP($BW19&"_"&$AZ$8,データシート1!$A:$BT,MATCH("da_鉄道",データシート1!$A$1:$BT$1,0),0))/10^3 -> 12,163,760 | CA19: 07 | CB19: 福島県 | CC19: 3.1% | CD19: 30.6% | CE19: 4.0% | CF19: 2.4% | CG19: 0.0% | CH19: 18.5% | CI19: 58.6% | CK19: 07 | CL19: 福島県 | CM19: =VLOOKUP($CK19&"_"&$AZ$7,データシート1!$A:$BT,MATCH("ca_太陽光発電（10kW未満）",データシート1!$A$1:$BT$1,0),0) -> 67062 | CN19: =VLOOKUP($CK19&"_"&$AZ$5,データシート1!$A:$BT,MATCH("ab_家庭",データシート1!$A$1:$BT$1,0),0) -> 796575 | CO19: 8.4%
AX20: =比較地域マスタ!$Y13 -> 08 | AY20: =IF(IFERROR(比較地域マスタ!$Z13,"")=0,"",IFERROR(比較地域マスタ!$Z13,"")) -> 茨城県 | BC20: 08 | BD20: 茨城県 | BE20: =VLOOKUP($BC20&"_"&$AZ$7,データシート1!$A:$BT,MATCH("cb_"&BE$12,データシート1!$A$1:$BT$1,0),0) -> 527,715 | BF20: =VLOOKUP($BC20&"_"&$AZ$7,データシート1!$A:$BT,MATCH("cb_"&BF$12,データシート1!$A$1:$BT$1,0),0) -> 4,023,094 | BG20: =VLOOKUP($BC20&"_"&$AZ$7,データシート1!$A:$BT,MATCH("cb_"&BG$12,データシート1!$A$1:$BT$1,0),0) -> 107,179 | BH20: =VLOOKUP($BC20&"_"&$AZ$7,データシート1!$A:$BT,MATCH("cb_"&BH$12,データシート1!$A$1:$BT$1,0),0) -> 17,336 | BI20: =VLOOKUP($BC20&"_"&$AZ$7,データシート1!$A:$BT,MATCH("cb_"&BI$12,データシート1!$A$1:$BT$1,0),0) -> 0 | BJ20: =VLOOKUP($BC20&"_"&$AZ$7,データシート1!$A:$BT,MATCH("cb_"&BJ$12,データシート1!$A$1:$BT$1,0),0) -> 334,882 | BK20: 5,010,206 | BM20: 08 | BN20: 茨城県 | BO20: =BE20*VLOOKUP(BO$12,別紙!$B$4:$E$10,MATCH("設備利用率",別紙!$B$4:$E$4,0),0)/100*8760/10^3 -> 633,321 | BP20: =BF20*VLOOKUP(BP$12,別紙!$B$4:$E$10,MATCH("設備利用率",別紙!$B$4:$E$4,0),0)/100*8760/10^3 -> 5,321,588 | BQ20: =BG20*VLOOKUP(BQ$12,別紙!$B$4:$E$10,MATCH("設備利用率",別紙!$B$4:$E$4,0),0)/100*8760/10^3 -> 232,845 | BR20: =BH20*VLOOKUP(BR$12,別紙!$B$4:$E$10,MATCH("設備利用率",別紙!$B$4:$E$4,0),0)/100*8760/10^3 -> 91,115 | BS20: =BI20*VLOOKUP(BS$12,別紙!$B$4:$E$10,MATCH("設備利用率",別紙!$B$4:$E$4,0),0)/100*8760/10^3 -> 0 | BT20: =BJ20*VLOOKUP(BT$12,別紙!$B$4:$E$10,MATCH("設備利用率",別紙!$B$4:$E$4,0),0)/100*8760/10^3 -> 2,346,851 | BU20: 8,625,720 | BW20: 08 | BX20: 茨城県 | BY20: =(VLOOKUP($BW20&"_"&$AZ$8,データシート1!$A:$BT,MATCH("da_製造業",データシート1!$A$1:$BT$1,0),0)+VLOOKUP($BW20&"_"&$AZ$8,データシート1!$A:$BT,MATCH("da_建設業・鉱業",データシート1!$A$1:$BT$1,0),0)+VLOOKUP($BW20&"_"&$AZ$8,データシート1!$A:$BT,MATCH("da_農林水産業",データシート1!$A$1:$BT$1,0),0)+VLOOKUP($BW20&"_"&$AZ$8,データシート1!$A:$BT,MATCH("da_業務",データシート1!$A$1:$BT$1,0),0)+VLOOKUP($BW20&"_"&$AZ$8,データシート1!$A:$BT,MATCH("da_家庭",データシート1!$A$1:$BT$1,0),0)+VLOOKUP($BW20&"_"&$AZ$8,データシート1!$A:$BT,MATCH("da_鉄道",データシート1!$A$1:$BT$1,0),0))/10^3 -> 26,881,146 | CA20: 08 | CB20: 茨城県 | CC20: 2.4% | CD20: 19.8% | CE20: 0.9% | CF20: 0.3% | CG20: 0.0% | CH20: 8.7% | CI20: 32.1% | CK20: 08 | CL20: 茨城県 | CM20: =VLOOKUP($CK20&"_"&$AZ$7,データシート1!$A:$BT,MATCH("ca_太陽光発電（10kW未満）",データシート1!$A$1:$BT$1,0),0) -> 112242 | CN20: =VLOOKUP($CK20&"_"&$AZ$5,データシート1!$A:$BT,MATCH("ab_家庭",データシート1!$A$1:$BT$1,0),0) -> 1298834 | CO20: 8.6%
AX21: =比較地域マスタ!$Y14 -> 09 | AY21: =IF(IFERROR(比較地域マスタ!$Z14,"")=0,"",IFERROR(比較地域マスタ!$Z14,"")) -> 栃木県 | BC21: 09 | BD21: 栃木県 | BE21: =VLOOKUP($BC21&"_"&$AZ$7,データシート1!$A:$BT,MATCH("cb_"&BE$12,データシート1!$A$1:$BT$1,0),0) -> 398,975 | BF21: =VLOOKUP($BC21&"_"&$AZ$7,データシート1!$A:$BT,MATCH("cb_"&BF$12,データシート1!$A$1:$BT$1,0),0) -> 2,785,829 | BG21: =VLOOKUP($BC21&"_"&$AZ$7,データシート1!$A:$BT,MATCH("cb_"&BG$12,データシート1!$A$1:$BT$1,0),0) -> 0 | BH21: =VLOOKUP($BC21&"_"&$AZ$7,データシート1!$A:$BT,MATCH("cb_"&BH$12,データシート1!$A$1:$BT$1,0),0) -> 12,290 | BI21: =VLOOKUP($BC21&"_"&$AZ$7,データシート1!$A:$BT,MATCH("cb_"&BI$12,データシート1!$A$1:$BT$1,0),0) -> 0 | BJ21: =VLOOKUP($BC21&"_"&$AZ$7,データシート1!$A:$BT,MATCH("cb_"&BJ$12,データシート1!$A$1:$BT$1,0),0) -> 66,895 | BK21: 3,263,989 | BM21: 09 | BN21: 栃木県 | BO21: =BE21*VLOOKUP(BO$12,別紙!$B$4:$E$10,MATCH("設備利用率",別紙!$B$4:$E$4,0),0)/100*8760/10^3 -> 478,818 | BP21: =BF21*VLOOKUP(BP$12,別紙!$B$4:$E$10,MATCH("設備利用率",別紙!$B$4:$E$4,0),0)/100*8760/10^3 -> 3,684,983 | BQ21: =BG21*VLOOKUP(BQ$12,別紙!$B$4:$E$10,MATCH("設備利用率",別紙!$B$4:$E$4,0),0)/100*8760/10^3 -> 0 | BR21: =BH21*VLOOKUP(BR$12,別紙!$B$4:$E$10,MATCH("設備利用率",別紙!$B$4:$E$4,0),0)/100*8760/10^3 -> 64,597 | BS21: =BI21*VLOOKUP(BS$12,別紙!$B$4:$E$10,MATCH("設備利用率",別紙!$B$4:$E$4,0),0)/100*8760/10^3 -> 0 | BT21: =BJ21*VLOOKUP(BT$12,別紙!$B$4:$E$10,MATCH("設備利用率",別紙!$B$4:$E$4,0),0)/100*8760/10^3 -> 468,803 | BU21: 4,697,201 | BW21: 09 | BX21: 栃木県 | BY21: =(VLOOKUP($BW21&"_"&$AZ$8,データシート1!$A:$BT,MATCH("da_製造業",データシート1!$A$1:$BT$1,0),0)+VLOOKUP($BW21&"_"&$AZ$8,データシート1!$A:$BT,MATCH("da_建設業・鉱業",データシート1!$A$1:$BT$1,0),0)+VLOOKUP($BW21&"_"&$AZ$8,データシート1!$A:$BT,MATCH("da_農林水産業",データシート1!$A$1:$BT$1,0),0)+VLOOKUP($BW21&"_"&$AZ$8,データシート1!$A:$BT,MATCH("da_業務",データシート1!$A$1:$BT$1,0),0)+VLOOKUP($BW21&"_"&$AZ$8,データシート1!$A:$BT,MATCH("da_家庭",データシート1!$A$1:$BT$1,0),0)+VLOOKUP($BW21&"_"&$AZ$8,データシート1!$A:$BT,MATCH("da_鉄道",データシート1!$A$1:$BT$1,0),0))/10^3 -> 15,097,364 | CA21: 09 | CB21: 栃木県 | CC21: 3.2% | CD21: 24.4% | CE21: 0.0% | CF21: 0.4% | CG21: 0.0% | CH21: 3.1% | CI21: 31.1% | CK21: 09 | CL21: 栃木県 | CM21: =VLOOKUP($CK21&"_"&$AZ$7,データシート1!$A:$BT,MATCH("ca_太陽光発電（10kW未満）",データシート1!$A$1:$BT$1,0),0) -> 84899 | CN21: =VLOOKUP($CK21&"_"&$AZ$5,データシート1!$A:$BT,MATCH("ab_家庭",データシート1!$A$1:$BT$1,0),0) -> 860314 | CO21: 9.9%
AX22: =比較地域マスタ!$Y15 -> 10 | AY22: =IF(IFERROR(比較地域マスタ!$Z15,"")=0,"",IFERROR(比較地域マスタ!$Z15,"")) -> 群馬県 | BC22: 10 | BD22: 群馬県 | BE22: =VLOOKUP($BC22&"_"&$AZ$7,データシート1!$A:$BT,MATCH("cb_"&BE$12,データシート1!$A$1:$BT$1,0),0) -> 399,516 | BF22: =VLOOKUP($BC22&"_"&$AZ$7,データシート1!$A:$BT,MATCH("cb_"&BF$12,データシート1!$A$1:$BT$1,0),0) -> 2,397,748 | BG22: =VLOOKUP($BC22&"_"&$AZ$7,データシート1!$A:$BT,MATCH("cb_"&BG$12,データシート1!$A$1:$BT$1,0),0) -> 56 | BH22: =VLOOKUP($BC22&"_"&$AZ$7,データシート1!$A:$BT,MATCH("cb_"&BH$12,データシート1!$A$1:$BT$1,0),0) -> 77,883 | BI22: =VLOOKUP($BC22&"_"&$AZ$7,データシート1!$A:$BT,MATCH("cb_"&BI$12,データシート1!$A$1:$BT$1,0),0) -> 0 | BJ22: =VLOOKUP($BC22&"_"&$AZ$7,データシート1!$A:$BT,MATCH("cb_"&BJ$12,データシート1!$A$1:$BT$1,0),0) -> 32,569 | BK22: 2,907,772 | BM22: 10 | BN22: 群馬県 | BO22: =BE22*VLOOKUP(BO$12,別紙!$B$4:$E$10,MATCH("設備利用率",別紙!$B$4:$E$4,0),0)/100*8760/10^3 -> 479,467 | BP22: =BF22*VLOOKUP(BP$12,別紙!$B$4:$E$10,MATCH("設備利用率",別紙!$B$4:$E$4,0),0)/100*8760/10^3 -> 3,171,645 | BQ22: =BG22*VLOOKUP(BQ$12,別紙!$B$4:$E$10,MATCH("設備利用率",別紙!$B$4:$E$4,0),0)/100*8760/10^3 -> 122 | BR22: =BH22*VLOOKUP(BR$12,別紙!$B$4:$E$10,MATCH("設備利用率",別紙!$B$4:$E$4,0),0)/100*8760/10^3 -> 409,355 | BS22: =BI22*VLOOKUP(BS$12,別紙!$B$4:$E$10,MATCH("設備利用率",別紙!$B$4:$E$4,0),0)/100*8760/10^3 -> 0 | BT22: =BJ22*VLOOKUP(BT$12,別紙!$B$4:$E$10,MATCH("設備利用率",別紙!$B$4:$E$4,0),0)/100*8760/10^3 -> 228,244 | BU22: 4,288,832 | BW22: 10 | BX22: 群馬県 | BY22: =(VLOOKUP($BW22&"_"&$AZ$8,データシート1!$A:$BT,MATCH("da_製造業",データシート1!$A$1:$BT$1,0),0)+VLOOKUP($BW22&"_"&$AZ$8,データシート1!$A:$BT,MATCH("da_建設業・鉱業",データシート1!$A$1:$BT$1,0),0)+VLOOKUP($BW22&"_"&$AZ$8,データシート1!$A:$BT,MATCH("da_農林水産業",データシート1!$A$1:$BT$1,0),0)+VLOOKUP($BW22&"_"&$AZ$8,データシート1!$A:$BT,MATCH("da_業務",データシート1!$A$1:$BT$1,0),0)+VLOOKUP($BW22&"_"&$AZ$8,データシート1!$A:$BT,MATCH("da_家庭",データシート1!$A$1:$BT$1,0),0)+VLOOKUP($BW22&"_"&$AZ$8,データシート1!$A:$BT,MATCH("da_鉄道",データシート1!$A$1:$BT$1,0),0))/10^3 -> 14,344,545 | CA22: 10 | CB22: 群馬県 | CC22: 3.3% | CD22: 22.1% | CE22: 0.0% | CF22: 2.9% | CG22: 0.0% | CH22: 1.6% | CI22: 29.9% | CK22: 10 | CL22: 群馬県 | CM22: =VLOOKUP($CK22&"_"&$AZ$7,データシート1!$A:$BT,MATCH("ca_太陽光発電（10kW未満）",データシート1!$A$1:$BT$1,0),0) -> 84622 | CN22: =VLOOKUP($CK22&"_"&$AZ$5,データシート1!$A:$BT,MATCH("ab_家庭",データシート1!$A$1:$BT$1,0),0) -> 872782 | CO22: 9.7%
AX23: =比較地域マスタ!$Y16 -> 11 | AY23: =IF(IFERROR(比較地域マスタ!$Z16,"")=0,"",IFERROR(比較地域マスタ!$Z16,"")) -> 埼玉県 | BC23: 11 | BD23: 埼玉県 | BE23: =VLOOKUP($BC23&"_"&$AZ$7,データシート1!$A:$BT,MATCH("cb_"&BE$12,データシート1!$A$1:$BT$1,0),0) -> 814,286 | BF23: =VLOOKUP($BC23&"_"&$AZ$7,データシート1!$A:$BT,MATCH("cb_"&BF$12,データシート1!$A$1:$BT$1,0),0) -> 1,233,359 | BG23: =VLOOKUP($BC23&"_"&$AZ$7,データシート1!$A:$BT,MATCH("cb_"&BG$12,データシート1!$A$1:$BT$1,0),0) -> 0 | BH23: =VLOOKUP($BC23&"_"&$AZ$7,データシート1!$A:$BT,MATCH("cb_"&BH$12,データシート1!$A$1:$BT$1,0),0) -> 28,994 | BI23: =VLOOKUP($BC23&"_"&$AZ$7,データシート1!$A:$BT,MATCH("cb_"&BI$12,データシート1!$A$1:$BT$1,0),0) -> 0 | BJ23: =VLOOKUP($BC23&"_"&$AZ$7,データシート1!$A:$BT,MATCH("cb_"&BJ$12,データシート1!$A$1:$BT$1,0),0) -> 45,763 | BK23: 2,122,402 | BM23: 11 | BN23: 埼玉県 | BO23: =BE23*VLOOKUP(BO$12,別紙!$B$4:$E$10,MATCH("設備利用率",別紙!$B$4:$E$4,0),0)/100*8760/10^3 -> 977,241 | BP23: =BF23*VLOOKUP(BP$12,別紙!$B$4:$E$10,MATCH("設備利用率",別紙!$B$4:$E$4,0),0)/100*8760/10^3 -> 1,631,439 | BQ23: =BG23*VLOOKUP(BQ$12,別紙!$B$4:$E$10,MATCH("設備利用率",別紙!$B$4:$E$4,0),0)/100*8760/10^3 -> 0 | BR23: =BH23*VLOOKUP(BR$12,別紙!$B$4:$E$10,MATCH("設備利用率",別紙!$B$4:$E$4,0),0)/100*8760/10^3 -> 152,390 | BS23: =BI23*VLOOKUP(BS$12,別紙!$B$4:$E$10,MATCH("設備利用率",別紙!$B$4:$E$4,0),0)/100*8760/10^3 -> 0 | BT23: =BJ23*VLOOKUP(BT$12,別紙!$B$4:$E$10,MATCH("設備利用率",別紙!$B$4:$E$4,0),0)/100*8760/10^3 -> 320,707 | BU23: 3,081,777 | BW23: 11 | BX23: 埼玉県 | BY23: =(VLOOKUP($BW23&"_"&$AZ$8,データシート1!$A:$BT,MATCH("da_製造業",データシート1!$A$1:$BT$1,0),0)+VLOOKUP($BW23&"_"&$AZ$8,データシート1!$A:$BT,MATCH("da_建設業・鉱業",データシート1!$A$1:$BT$1,0),0)+VLOOKUP($BW23&"_"&$AZ$8,データシート1!$A:$BT,MATCH("da_農林水産業",データシート1!$A$1:$BT$1,0),0)+VLOOKUP($BW23&"_"&$AZ$8,データシート1!$A:$BT,MATCH("da_業務",データシート1!$A$1:$BT$1,0),0)+VLOOKUP($BW23&"_"&$AZ$8,データシート1!$A:$BT,MATCH("da_家庭",データシート1!$A$1:$BT$1,0),0)+VLOOKUP($BW23&"_"&$AZ$8,データシート1!$A:$BT,MATCH("da_鉄道",データシート1!$A$1:$BT$1,0),0))/10^3 -> 37,324,719 | CA23: 11 | CB23: 埼玉県 | CC23: 2.6% | CD23: 4.4% | CE23: 0.0% | CF23: 0.4% | CG23: 0.0% | CH23: 0.9% | CI23: 8.3% | CK23: 11 | CL23: 埼玉県 | CM23: =VLOOKUP($CK23&"_"&$AZ$7,データシート1!$A:$BT,MATCH("ca_太陽光発電（10kW未満）",データシート1!$A$1:$BT$1,0),0) -> 193484 | CN23: =VLOOKUP($CK23&"_"&$AZ$5,データシート1!$A:$BT,MATCH("ab_家庭",データシート1!$A$1:$BT$1,0),0) -> 3470089 | CO23: 5.6%
AX24: =比較地域マスタ!$Y17 -> 12 | AY24: =IF(IFERROR(比較地域マスタ!$Z17,"")=0,"",IFERROR(比較地域マスタ!$Z17,"")) -> 千葉県 | BC24: 12 | BD24: 千葉県 | BE24: =VLOOKUP($BC24&"_"&$AZ$7,データシート1!$A:$BT,MATCH("cb_"&BE$12,データシート1!$A$1:$BT$1,0),0) -> 660,322 | BF24: =VLOOKUP($BC24&"_"&$AZ$7,データシート1!$A:$BT,MATCH("cb_"&BF$12,データシート1!$A$1:$BT$1,0),0) -> 2,818,806 | BG24: =VLOOKUP($BC24&"_"&$AZ$7,データシート1!$A:$BT,MATCH("cb_"&BG$12,データシート1!$A$1:$BT$1,0),0) -> 62,927 | BH24: =VLOOKUP($BC24&"_"&$AZ$7,データシート1!$A:$BT,MATCH("cb_"&BH$12,データシート1!$A$1:$BT$1,0),0) -> 1,000 | BI24: =VLOOKUP($BC24&"_"&$AZ$7,データシート1!$A:$BT,MATCH("cb_"&BI$12,データシート1!$A$1:$BT$1,0),0) -> 0 | BJ24: =VLOOKUP($BC24&"_"&$AZ$7,データシート1!$A:$BT,MATCH("cb_"&BJ$12,データシート1!$A$1:$BT$1,0),0) -> 129,466 | BK24: 3,672,521 | BM24: 12 | BN24: 千葉県 | BO24: =BE24*VLOOKUP(BO$12,別紙!$B$4:$E$10,MATCH("設備利用率",別紙!$B$4:$E$4,0),0)/100*8760/10^3 -> 792,465 | BP24: =BF24*VLOOKUP(BP$12,別紙!$B$4:$E$10,MATCH("設備利用率",別紙!$B$4:$E$4,0),0)/100*8760/10^3 -> 3,728,604 | BQ24: =BG24*VLOOKUP(BQ$12,別紙!$B$4:$E$10,MATCH("設備利用率",別紙!$B$4:$E$4,0),0)/100*8760/10^3 -> 136,708 | BR24: =BH24*VLOOKUP(BR$12,別紙!$B$4:$E$10,MATCH("設備利用率",別紙!$B$4:$E$4,0),0)/100*8760/10^3 -> 5,255 | BS24: =BI24*VLOOKUP(BS$12,別紙!$B$4:$E$10,MATCH("設備利用率",別紙!$B$4:$E$4,0),0)/100*8760/10^3 -> 0 | BT24: =BJ24*VLOOKUP(BT$12,別紙!$B$4:$E$10,MATCH("設備利用率",別紙!$B$4:$E$4,0),0)/100*8760/10^3 -> 907,298 | BU24: 5,570,331 | BW24: 12 | BX24: 千葉県 | BY24: =(VLOOKUP($BW24&"_"&$AZ$8,データシート1!$A:$BT,MATCH("da_製造業",データシート1!$A$1:$BT$1,0),0)+VLOOKUP($BW24&"_"&$AZ$8,データシート1!$A:$BT,MATCH("da_建設業・鉱業",データシート1!$A$1:$BT$1,0),0)+VLOOKUP($BW24&"_"&$AZ$8,データシート1!$A:$BT,MATCH("da_農林水産業",データシート1!$A$1:$BT$1,0),0)+VLOOKUP($BW24&"_"&$AZ$8,データシート1!$A:$BT,MATCH("da_業務",データシート1!$A$1:$BT$1,0),0)+VLOOKUP($BW24&"_"&$AZ$8,データシート1!$A:$BT,MATCH("da_家庭",データシート1!$A$1:$BT$1,0),0)+VLOOKUP($BW24&"_"&$AZ$8,データシート1!$A:$BT,MATCH("da_鉄道",データシート1!$A$1:$BT$1,0),0))/10^3 -> 40,110,030 | CA24: 12 | CB24: 千葉県 | CC24: 2.0% | CD24: 9.3% | CE24: 0.3% | CF24: 0.0% | CG24: 0.0% | CH24: 2.3% | CI24: 13.9% | CK24: 12 | CL24: 千葉県 | CM24: =VLOOKUP($CK24&"_"&$AZ$7,データシート1!$A:$BT,MATCH("ca_太陽光発電（10kW未満）",データシート1!$A$1:$BT$1,0),0) -> 151741 | CN24: =VLOOKUP($CK24&"_"&$AZ$5,データシート1!$A:$BT,MATCH("ab_家庭",データシート1!$A$1:$BT$1,0),0) -> 3023394 | CO24: 5.0%
AX25: =比較地域マスタ!$Y18 -> 13 | AY25: =IF(IFERROR(比較地域マスタ!$Z18,"")=0,"",IFERROR(比較地域マスタ!$Z18,"")) -> 東京都 | BC25: 13 | BD25: 東京都 | BE25: =VLOOKUP($BC25&"_"&$AZ$7,データシート1!$A:$BT,MATCH("cb_"&BE$12,データシート1!$A$1:$BT$1,0),0) -> 578,002 | BF25: =VLOOKUP($BC25&"_"&$AZ$7,データシート1!$A:$BT,MATCH("cb_"&BF$12,データシート1!$A$1:$BT$1,0),0) -> 157,741 | BG25: =VLOOKUP($BC25&"_"&$AZ$7,データシート1!$A:$BT,MATCH("cb_"&BG$12,データシート1!$A$1:$BT$1,0),0) -> 1,950 | BH25: =VLOOKUP($BC25&"_"&$AZ$7,データシート1!$A:$BT,MATCH("cb_"&BH$12,データシート1!$A$1:$BT$1,0),0) -> 747 | BI25: =VLOOKUP($BC25&"_"&$AZ$7,データシート1!$A:$BT,MATCH("cb_"&BI$12,データシート1!$A$1:$BT$1,0),0) -> 0 | BJ25: =VLOOKUP($BC25&"_"&$AZ$7,データシート1!$A:$BT,MATCH("cb_"&BJ$12,データシート1!$A$1:$BT$1,0),0) -> 191,275 | BK25: 929,714 | BM25: 13 | BN25: 東京都 | BO25: =BE25*VLOOKUP(BO$12,別紙!$B$4:$E$10,MATCH("設備利用率",別紙!$B$4:$E$4,0),0)/100*8760/10^3 -> 693,671 | BP25: =BF25*VLOOKUP(BP$12,別紙!$B$4:$E$10,MATCH("設備利用率",別紙!$B$4:$E$4,0),0)/100*8760/10^3 -> 208,653 | BQ25: =BG25*VLOOKUP(BQ$12,別紙!$B$4:$E$10,MATCH("設備利用率",別紙!$B$4:$E$4,0),0)/100*8760/10^3 -> 4,236 | BR25: =BH25*VLOOKUP(BR$12,別紙!$B$4:$E$10,MATCH("設備利用率",別紙!$B$4:$E$4,0),0)/100*8760/10^3 -> 3,925 | BS25: =BI25*VLOOKUP(BS$12,別紙!$B$4:$E$10,MATCH("設備利用率",別紙!$B$4:$E$4,0),0)/100*8760/10^3 -> 0 | BT25: =BJ25*VLOOKUP(BT$12,別紙!$B$4:$E$10,MATCH("設備利用率",別紙!$B$4:$E$4,0),0)/100*8760/10^3 -> 1,340,456 | BU25: 2,250,942 | BW25: 13 | BX25: 東京都 | BY25: =(VLOOKUP($BW25&"_"&$AZ$8,データシート1!$A:$BT,MATCH("da_製造業",データシート1!$A$1:$BT$1,0),0)+VLOOKUP($BW25&"_"&$AZ$8,データシート1!$A:$BT,MATCH("da_建設業・鉱業",データシート1!$A$1:$BT$1,0),0)+VLOOKUP($BW25&"_"&$AZ$8,データシート1!$A:$BT,MATCH("da_農林水産業",データシート1!$A$1:$BT$1,0),0)+VLOOKUP($BW25&"_"&$AZ$8,データシート1!$A:$BT,MATCH("da_業務",データシート1!$A$1:$BT$1,0),0)+VLOOKUP($BW25&"_"&$AZ$8,データシート1!$A:$BT,MATCH("da_家庭",データシート1!$A$1:$BT$1,0),0)+VLOOKUP($BW25&"_"&$AZ$8,データシート1!$A:$BT,MATCH("da_鉄道",データシート1!$A$1:$BT$1,0),0))/10^3 -> 83,436,564 | CA25: 13 | CB25: 東京都 | CC25: 0.8% | CD25: 0.3% | CE25: 0.0% | CF25: 0.0% | CG25: 0.0% | CH25: 1.6% | CI25: 2.7% | CK25: 13 | CL25: 東京都 | CM25: =VLOOKUP($CK25&"_"&$AZ$7,データシート1!$A:$BT,MATCH("ca_太陽光発電（10kW未満）",データシート1!$A$1:$BT$1,0),0) -> 148090 | CN25: =VLOOKUP($CK25&"_"&$AZ$5,データシート1!$A:$BT,MATCH("ab_家庭",データシート1!$A$1:$BT$1,0),0) -> 7451051 | CO25: 2.0%
AX26: =比較地域マスタ!$Y19 -> 14 | AY26: =IF(IFERROR(比較地域マスタ!$Z19,"")=0,"",IFERROR(比較地域マスタ!$Z19,"")) -> 神奈川県 | BC26: 14 | BD26: 神奈川県 | BE26: =VLOOKUP($BC26&"_"&$AZ$7,データシート1!$A:$BT,MATCH("cb_"&BE$12,データシート1!$A$1:$BT$1,0),0) -> 624,644 | BF26: =VLOOKUP($BC26&"_"&$AZ$7,データシート1!$A:$BT,MATCH("cb_"&BF$12,データシート1!$A$1:$BT$1,0),0) -> 338,586 | BG26: =VLOOKUP($BC26&"_"&$AZ$7,データシート1!$A:$BT,MATCH("cb_"&BG$12,データシート1!$A$1:$BT$1,0),0) -> 5,370 | BH26: =VLOOKUP($BC26&"_"&$AZ$7,データシート1!$A:$BT,MATCH("cb_"&BH$12,データシート1!$A$1:$BT$1,0),0) -> 14,447 | BI26: =VLOOKUP($BC26&"_"&$AZ$7,データシート1!$A:$BT,MATCH("cb_"&BI$12,データシート1!$A$1:$BT$1,0),0) -> 0 | BJ26: =VLOOKUP($BC26&"_"&$AZ$7,データシート1!$A:$BT,MATCH("cb_"&BJ$12,データシート1!$A$1:$BT$1,0),0) -> 126,742 | BK26: 1,109,788 | BM26: 14 | BN26: 神奈川県 | BO26: =BE26*VLOOKUP(BO$12,別紙!$B$4:$E$10,MATCH("設備利用率",別紙!$B$4:$E$4,0),0)/100*8760/10^3 -> 749,647 | BP26: =BF26*VLOOKUP(BP$12,別紙!$B$4:$E$10,MATCH("設備利用率",別紙!$B$4:$E$4,0),0)/100*8760/10^3 -> 447,867 | BQ26: =BG26*VLOOKUP(BQ$12,別紙!$B$4:$E$10,MATCH("設備利用率",別紙!$B$4:$E$4,0),0)/100*8760/10^3 -> 11,666 | BR26: =BH26*VLOOKUP(BR$12,別紙!$B$4:$E$10,MATCH("設備利用率",別紙!$B$4:$E$4,0),0)/100*8760/10^3 -> 75,932 | BS26: =BI26*VLOOKUP(BS$12,別紙!$B$4:$E$10,MATCH("設備利用率",別紙!$B$4:$E$4,0),0)/100*8760/10^3 -> 0 | BT26: =BJ26*VLOOKUP(BT$12,別紙!$B$4:$E$10,MATCH("設備利用率",別紙!$B$4:$E$4,0),0)/100*8760/10^3 -> 888,208 | BU26: 2,173,320 | BW26: 14 | BX26: 神奈川県 | BY26: =(VLOOKUP($BW26&"_"&$AZ$8,データシート1!$A:$BT,MATCH("da_製造業",データシート1!$A$1:$BT$1,0),0)+VLOOKUP($BW26&"_"&$AZ$8,データシート1!$A:$BT,MATCH("da_建設業・鉱業",データシート1!$A$1:$BT$1,0),0)+VLOOKUP($BW26&"_"&$AZ$8,データシート1!$A:$BT,MATCH("da_農林水産業",データシート1!$A$1:$BT$1,0),0)+VLOOKUP($BW26&"_"&$AZ$8,データシート1!$A:$BT,MATCH("da_業務",データシート1!$A$1:$BT$1,0),0)+VLOOKUP($BW26&"_"&$AZ$8,データシート1!$A:$BT,MATCH("da_家庭",データシート1!$A$1:$BT$1,0),0)+VLOOKUP($BW26&"_"&$AZ$8,データシート1!$A:$BT,MATCH("da_鉄道",データシート1!$A$1:$BT$1,0),0))/10^3 -> 49,274,356 | CA26: 14 | CB26: 神奈川県 | CC26: 1.5% | CD26: 0.9% | CE26: 0.0% | CF26: 0.2% | CG26: 0.0% | CH26: 1.8% | CI26: 4.4% | CK26: 14 | CL26: 神奈川県 | CM26: =VLOOKUP($CK26&"_"&$AZ$7,データシート1!$A:$BT,MATCH("ca_太陽光発電（10kW未満）",データシート1!$A$1:$BT$1,0),0) -> 156599 | CN26: =VLOOKUP($CK26&"_"&$AZ$5,データシート1!$A:$BT,MATCH("ab_家庭",データシート1!$A$1:$BT$1,0),0) -> 4512592 | CO26: 3.5%
AX27: =比較地域マスタ!$Y20 -> 15 | AY27: =IF(IFERROR(比較地域マスタ!$Z20,"")=0,"",IFERROR(比較地域マスタ!$Z20,"")) -> 新潟県 | BC27: 15 | BD27: 新潟県 | BE27: =VLOOKUP($BC27&"_"&$AZ$7,データシート1!$A:$BT,MATCH("cb_"&BE$12,データシート1!$A$1:$BT$1,0),0) -> 107,748 | BF27: =VLOOKUP($BC27&"_"&$AZ$7,データシート1!$A:$BT,MATCH("cb_"&BF$12,データシート1!$A$1:$BT$1,0),0) -> 368,030 | BG27: =VLOOKUP($BC27&"_"&$AZ$7,データシート1!$A:$BT,MATCH("cb_"&BG$12,データシート1!$A$1:$BT$1,0),0) -> 27,504 | BH27: =VLOOKUP($BC27&"_"&$AZ$7,データシート1!$A:$BT,MATCH("cb_"&BH$12,データシート1!$A$1:$BT$1,0),0) -> 126,746 | BI27: =VLOOKUP($BC27&"_"&$AZ$7,データシート1!$A:$BT,MATCH("cb_"&BI$12,データシート1!$A$1:$BT$1,0),0) -> 280 | BJ27: =VLOOKUP($BC27&"_"&$AZ$7,データシート1!$A:$BT,MATCH("cb_"&BJ$12,データシート1!$A$1:$BT$1,0),0) -> 27,018 | BK27: 657,326 | BM27: 15 | BN27: 新潟県 | BO27: =BE27*VLOOKUP(BO$12,別紙!$B$4:$E$10,MATCH("設備利用率",別紙!$B$4:$E$4,0),0)/100*8760/10^3 -> 129,310 | BP27: =BF27*VLOOKUP(BP$12,別紙!$B$4:$E$10,MATCH("設備利用率",別紙!$B$4:$E$4,0),0)/100*8760/10^3 -> 486,815 | BQ27: =BG27*VLOOKUP(BQ$12,別紙!$B$4:$E$10,MATCH("設備利用率",別紙!$B$4:$E$4,0),0)/100*8760/10^3 -> 59,751 | BR27: =BH27*VLOOKUP(BR$12,別紙!$B$4:$E$10,MATCH("設備利用率",別紙!$B$4:$E$4,0),0)/100*8760/10^3 -> 666,179 | BS27: =BI27*VLOOKUP(BS$12,別紙!$B$4:$E$10,MATCH("設備利用率",別紙!$B$4:$E$4,0),0)/100*8760/10^3 -> 1,962 | BT27: =BJ27*VLOOKUP(BT$12,別紙!$B$4:$E$10,MATCH("設備利用率",別紙!$B$4:$E$4,0),0)/100*8760/10^3 -> 189,340 | BU27: 1,533,358 | BW27: 15 | BX27: 新潟県 | BY27: =(VLOOKUP($BW27&"_"&$AZ$8,データシート1!$A:$BT,MATCH("da_製造業",データシート1!$A$1:$BT$1,0),0)+VLOOKUP($BW27&"_"&$AZ$8,データシート1!$A:$BT,MATCH("da_建設業・鉱業",データシート1!$A$1:$BT$1,0),0)+VLOOKUP($BW27&"_"&$AZ$8,データシート1!$A:$BT,MATCH("da_農林水産業",データシート1!$A$1:$BT$1,0),0)+VLOOKUP($BW27&"_"&$AZ$8,データシート1!$A:$BT,MATCH("da_業務",データシート1!$A$1:$BT$1,0),0)+VLOOKUP($BW27&"_"&$AZ$8,データシート1!$A:$BT,MATCH("da_家庭",データシート1!$A$1:$BT$1,0),0)+VLOOKUP($BW27&"_"&$AZ$8,データシート1!$A:$BT,MATCH("da_鉄道",データシート1!$A$1:$BT$1,0),0))/10^3 -> 14,131,866 | CA27: 15 | CB27: 新潟県 | CC27: 0.9% | CD27: 3.4% | CE27: 0.4% | CF27: 4.7% | CG27: 0.0% | CH27: 1.3% | CI27: 10.9% | CK27: 15 | CL27: 新潟県 | CM27: =VLOOKUP($CK27&"_"&$AZ$7,データシート1!$A:$BT,MATCH("ca_太陽光発電（10kW未満）",データシート1!$A$1:$BT$1,0),0) -> 23228 | CN27: =VLOOKUP($CK27&"_"&$AZ$5,データシート1!$A:$BT,MATCH("ab_家庭",データシート1!$A$1:$BT$1,0),0) -> 914487 | CO27: 2.5%
